Workbook

Sheet Contents
C2: Contents
C4: Diagram
C6: Inputs
D7: Inputs
D8: Project Dates and General
D9: Operating Inputs
D10: PPA and O&M Assumptions
D11: Tax Inputs
D12: Tax Equity Investor
D13: Sponsor
D14: Allocations of Cash and Income
D15: Debt Funding
D16: O&M Cost Categories
D17: Other/Parked
C19: Project Database
D20: General
D21: Operational
D22: O&M
D23: Tax
D24: Construction
C26: Financial Model
D27: Partnership Pre-Financing Cashflow (Pre-tax Because Partnership Does Not Pay Tax)
D28: Debt Financing at Partnership
D29: Partnership Income
D30: Partnership Balance Sheet
D31: Hypothetical Cash Flow and Return From Efficient Tax
D32: Distribution of Partnership Cash Flow
D33: Distribution of Partnership Income
D34: FMO Buyout of Tax Investor by Sponsor
D35: Tax Equity Cash Flow and IRR before Stranded Assets Caused by Outside Capital Constraints
D36: Reconciliation of Partnership and Inside Capital
D37: Inside Basis (704b) for Tax Investor
D38: Tax Equity Outside Capital (used to compute stranded taxes)
C40: Stranded Tax Diagram
C42: Periodic Model
D43: Production
D44: Revenue
D45: Operating Expenses
D46: Capital Expenditures Excluding Financing Expenditures
D47: Funding Needs in Partnership
D48: Partnership Income
D49: Partnership Balance Sheet which Should Reconcile to Capital Accounts
D50: Hypothetical Efficient Tax Returns with No Stranded Taxes Created by Capital Accounts
D51: Distribution of Partnership Cash Flow
D52: Distribution of Partnership Income
D53: FMO Buyout of Tax Investor by Sponsor
D54: Tax Equity Distributions before Stranded Assets Caused by Outside Capital Constraints
D55: Sponsor Cashflow Distribution
C57: Reformatted Intake
C59: SFG Pricing Request

Sheet Diagram
B2: DRO | C2: =Inputs!$G$158 -> 0.7 | S2: ='Financial Model'!C87 -> Gross Funding - Capital Expenditures | W2: ='Financial Model'!I87+'Financial Model'!I89 -> 10500000 | X2: =W2/$W$2 -> 1 | AC2: Key Project Parameters: | AD2: Elm Spring
O3: PPA Term | P3: =Inputs!K62 -> 20 | S3: ='Financial Model'!C88 -> Less: Sources - Debt @ Project Level | W3: ='Financial Model'!I88 -> 5775000 | X3: 0.55 | AD3: Current Case
O4: PPA Rate | P4: =Inputs!K53 -> 0.07 | S4: ='Financial Model'!C90 -> Net Funding Needs from Equity | W4: ='Financial Model'!I90 -> 4725000 | X4: 0.45 | AC4: Parameter | AD4: Value | AE4: $/W (dc) | AP4: Project: | AR4: =Inputs!G8 -> Purdue University | AS4: Offtaker: | AU4: =Inputs!G11 -> Purdue University
O5: Capacity Factor | P5: =Inputs!H35 -> 0.1553995434 | S5: ='Financial Model'!C92 -> Sources - Tax Equity | W5: ='Financial Model'!I92 -> 3139500 | X5: 0.299 | AC5: System Capacity (MWDC) | AD5: =+Inputs!G32/1000 -> 10 | AP5: =AP4&AR4&CHAR(10)&AS4&AU4 -> Project: Purdue University Offtaker: Purdue University
O6: Escalator | P6: =Inputs!K59 -> 0 | S6: ='Financial Model'!C93 -> Sources - Sponsor | W6: ='Financial Model'!I93-W7 -> 1585500 | X6: 0.151 | AC6: Est. P50 kWh/year Production | AD6: =+Inputs!#REF! -> 
S7: Back Leverage | W7: ='Financial Model'!I726 -> 0 | X7: 0 | AC7: Total Project Cost | AD7: =+Inputs!G41 -> 10500000 | AE7: =+AD7/(AD$5*10^6) -> 1.05
O8: O&M Cost/kWy | Q8: ='Financial Model'!H57 -> 14.1 | AC8: Total EPC Cost | AD8: NA | AP8: =" LLC : "&"PT UL IRR" -> LLC : PT UL IRR | AQ8: ='Financial Model'!G71 -> 0.01849471153 | AR8: PreTax Levered IRR | AT8: ='Financial Model'!G162 -> -0.01414740906 | AU8: After Tax Levered IRR | BA8: ='Financial Model'!G271 -> 0.2460302667 | BB8: After Tax UL-IRR | BF8: ='Financial Model'!G259 -> 0.0686187796
O9: O&M Cost/kWh | Q9: =Q8/(8760*P5) -> 0.01035774627 | AC9: Land Lease Payment (Annual) | AD9: 9800 | AP9: =AP8&TEXT(AQ8," 0.00%")&CHAR(10)&AR8&TEXT(AT8," 0.00%")&CHAR(10)&AU8&TEXT(BA8," 0.00%")&CHAR(10)&BB8&TEXT(BF8," 0.00%") -> LLC : PT UL IRR 1.85% PreTax Levered IRR- 1.41% After Tax Levered IRR 24.60% After Tax UL-IRR 6.86%
F10: EPC Cost/W | G10: =Inputs!G47 -> 1.05 | O10: Escalator | Q10: =Inputs!K79 -> 0.006626506024 | AC10: PPA Price per kWh (AC) | AD10: =+Inputs!G52 -> 0.07
AC11: PPA Initial Term (years) | AD11: NA
AC12: Project Loan Term (years) | AD12: =+Inputs!K195 -> 20 | AP12: EPC Company: | AS12: ='Project Database'!C8 -> TBD
AC13: Project Loan Rate (%) | AD13: =+Inputs!G192 -> 0.0495 | AP13: =AP12&CHAR(10)&AS12 -> EPC Company: TBD
AC14: Project Loan Amount | AD14: =+Inputs!M188 -> 5775000 | AE14: =+AD14/(AD$5*10^6) -> 0.5775
AC15: ITC (%) | AD15: =+Inputs!G113 -> 0.26 | AP15: O&M Company: | AS15: ='Project Database'!C8 -> TBD
AC16: ITC Value | AD16: =+Inputs!H113 -> 2730000 | AE16: =+AD16/(AD$5*10^6) -> 0.273 | AP16: =AP15&CHAR(10)&AS15 -> O&M Company: TBD
C17: Income | D17: Cash Flow | E17: Investment | Q17: Income | R17: Cash Flow | S17: Investment | AC17: Tax Equity Investment (Excess Tax Benefits) | AD17: =+W5 -> 3139500 | AE17: =+AD17/(AD$5*10^6) -> 0.31395
B18: Pre Flip | C18: =Inputs!G177 -> 0.99 | D18: =Inputs!G173 -> 0.05 | E18: ='Financial Model'!G589 -> 1.15 | P18: Pre Flip | Q18: =1-C18 -> 0.01 | R18: =1-D18 -> 0.95 | S18: ='Financial Model'!I93 -> 1585500 | AC18: Developer Equity Investment | AD18: =+W6 -> 1585500 | AE18: =+AD18/(AD$5*10^6) -> 0.15855
B19: Post Flip | C19: ='Financial Model'!H318 -> 0 | D19: ='Financial Model'!H298 -> 0 | P19: Post Flip | Q19: =1-D19 -> 1 | R19: ='Financial Model'!H302 -> 1 | AC19: Leveraged IRR: | AD19: =+'Financial Model'!K804 -> 0.05235827905 | AP19: ="Tax Equity Investor"&Inputs!G12 -> Tax Equity Investor | AT19: After-Tax IRR | AW19: ='Financial Model'!G590 -> 0.8779057499 | AX19: No Stranded Tax | BB19: ='Financial Model'!G386 -> 0.893767324
F20: Preferred | G20: =Inputs!G153 -> 0.0242 | AP20: =AP19&" "&CHAR(10)&AX19&TEXT(BB19," 0.00%")&CHAR(10)&AT19&TEXT(AW19," 0.00%") -> Tax Equity Investor No Stranded Tax 89.38% After-Tax IRR 87.79%
F21: FMO % | G21: =Inputs!G155 -> 0.07
AP22: ="Sponsor/Developer"&CHAR(10) -> Sponsor/Developer | AT22: After-Tax IRR | AW22: ='Financial Model'!G613 -> 0.05235827905 | AX22: Pre-Tax IRR | BA22: ='Financial Model'!G600 -> 0.1130542333 | BB22: After Back Leverage | BD22: ='Financial Model'!G731 -> 0.08125040739
AP23: =AP22&AT22&TEXT(AW22," 0.00%")&CHAR(10)&AX22&TEXT(BA22," 0.00%")&CHAR(10)&BB22&TEXT(BD22," 0.00%") -> Sponsor/Developer After-Tax IRR 5.24% Pre-Tax IRR 11.31% After Back Leverage 8.13%
AP25: Back Leverage | AS25: =X7 -> 0 | AT25: Interest Rate | AW25: =Inputs!G192 -> 0.0495 | AX25: Debt to Sponsor Capital | BB25: Tenor | BC25: =Inputs!G194 -> 20
AP26: =AP25&TEXT(AS25," 0.00%")&CHAR(10)&AT25&TEXT(AW25," 0.00%")&CHAR(10)&BB25&TEXT(BC25," 0") -> Back Leverage 0.00% Interest Rate 4.95% Tenor 20
AP28: Project Debt | AS28: =X3 -> 0.55 | AT28: Interest Rate | AW28: =AW25 -> 0.0495 | AX28: Debt to Sponsor Capital | BB28: Tenor | BC28: =Inputs!G194 -> 20
AP29: =AP28&TEXT(AS28," 0.00%")&CHAR(10)&AT28&TEXT(AW28," 0.00%")&CHAR(10)&BB28&TEXT(BC28," 0") -> Project Debt 55.00% Interest Rate 4.95% Tenor 20
AP31: PPA Contract and Estimated Capacity Factor | AX31: PPA Rate | BA31: =Inputs!G52 -> 0.07
U34: Arrows Represent the Direction of Money Flow
W35: Capital from Investors
W36: Distribution to Investors
F63: TRUE
B106: Cap Exp Goal Seek
B110: ='Financial Model'!$I$803 -> 0.0503 | D110: ='Financial Model'!$J$803 -> 0.07 | E110: ='Financial Model'!$K$803 -> 0.122

Sheet Inputs
A1: Input Sheet for Model | G1: CODING
A2: =MID(CELL("filename",A1),(FIND("]",CELL("filename",A1),1))+1,LEN(CELL("filename",A1))) -> Inputs | G2: Direct Inputs
G3: DataBase Replacements
A5: Project Dates and General
B8: Project Name | G8: ='Project Database'!C7 -> Purdue University
B9: EPC Company | G9: ='Project Database'!C8 -> TBD
B10: O&M Company | G10: ='Project Database'!C9 -> TBD
B11: Off-taker | G11: =G8 -> Purdue University
B12: Tax Inestor
B14: Development Start | F14: Date | G14: 2019-06-01
B15: Notice to Proceed | F15: Date | G15: 2019-12-01
B16: Construction Period | F16: Months | G16: 11
B17: Mechanical Completion | F17: Date | G17: =EDATE(G15,G16) -> 2020-11-01
B18: Commercial Operation Date | F18: Date | G18: =G17 -> 2020-11-01
B19: Project Life from Database | F19: Years | G19: ='Project Database'!C22 -> 25
B20: Allow Merchant Period | F20: Flag | G20: TRUE
B21: Project Life Applied | F21: Years | G21: =IF(G20,G19,G61) -> 25
B23: End Date | F23: Date | G23: =EDATE(G18,G21*12) -> 2045-11-01
B25: Months per Period Pre-COD | F25: Months | G25: 1
B26: Months per Period Post-COD | F26: Months | G26: 3
B27: Total Pre-COD Months | F27: Months | G27: =G16 -> 11
A29: Operating Inputs
B31: Production and Capacity
C32: Total Capacity | F32: kWp DC | G32: ='Project Database'!C27 -> 10000
C33: Annual Yield | F33: kWh/kWp | G33: ='Project Database'!C29 -> 1361.3 | H33: =G33*J33 -> 1361.3 | I33: 100 | J33: =I33/100 -> 1
C34: Degradation | F34: % p.a. | G34: ='Project Database'!C30 -> 0.005
C35: Capacity Factor | F35: % | G35: =G33/8760 -> 0.1553995434 | H35: =H33/8760 -> 0.1553995434
C37: Degradation Year | F37: Year | G37: 0 | H37: 1 | I37: 2 | J37: 3 | K37: 4 | L37: 5 | M37: 6 | N37: 7 | O37: 8 | P37: 9 | Q37: 10 | R37: 11 | S37: 12 | T37: 13 | U37: 14 | V37: 15 | W37: 16 | X37: 17 | Y37: 18 | Z37: 19 | AA37: 20 | AB37: 21 | AC37: 22 | AD37: 23 | AE37: 24 | AF37: 25 | AG37: 26 | AH37: 27 | AI37: 28 | AJ37: 29 | AK37: 30 | AL37: 31 | AM37: 32 | AN37: 33 | AO37: 34 | AP37: 35 | AQ37: 36 | AR37: 37 | AS37: 38 | AT37: 39 | AU37: 40 | AV37: 41 | AW37: 42 | AX37: 43 | AY37: 44 | AZ37: 45
C38: Degradation Percent | E38: Table not a match w input?? | F38: % p.a. | H38: =G34 -> 0.005 | I38: =H38 -> 0.005 | J38: =I38 -> 0.005 | K38: 0.005 | L38: 0.005 | M38: 0.005 | N38: 0.005 | O38: 0.005 | P38: 0.005 | Q38: 0.005 | R38: 0.005 | S38: 0.005 | T38: 0.005 | U38: 0.005 | V38: 0.005 | W38: 0.005 | X38: 0.005 | Y38: 0.005 | Z38: 0.005 | AA38: 0.005 | AB38: 0.005 | AC38: 0.005 | AD38: 0.005 | AE38: 0.005 | AF38: 0.005 | AG38: 0.005 | AH38: 0.005 | AI38: 0.005 | AJ38: 0.005 | AK38: 0.005 | AL38: 0.005 | AM38: 0.005 | AN38: 0.005 | AO38: 0.005 | AP38: 0.005 | AQ38: 0.005 | AR38: 0.005 | AS38: 0.005 | AT38: 0.005 | AU38: 0.005 | AV38: 0.005 | AW38: 0.005 | AX38: 0.005 | AY38: 0.005 | AZ38: 0.005 | BA38: 0.006203068477
B40: Capital Expenditure
C41: Capital Expenditure per Watt | E41: EPC and Developer | F41: $/W | G41: =H41*G32*1000 -> 10500000 | H41: ='Project Database'!C17 -> 1.05 | I41: =H41*100 -> 105
C42: Capital Expenditure from Goal Seek | F42: FALSE | G42: =G41 -> 10500000 | H42: Cap Exp | BD42: New Jersey | BE42: NJ
C44: Cap Exp Sensitivity Factor | F44: % | G44: =capexp_sens/100 -> 1 | I44: 100 | J44: hundred | K44: 100
C45: Capital Expenditures Applied | G45: =IF(F42,Cap_Exp,G41*G44) -> 10500000
C46: Cap Exp per kW | G46: =G45/G32 -> 1050
C47: Cap Exp per Watt | G47: =G46/1000 -> 1.05
A49: PPA and O&M Assumptions
C51: PPA Year | F51: Years | G51: 0 | H51: 100 | I51: 100 | J51: 100 | K51: 100
C52: PPA Price | F52: $/kWh | G52: 0.07 | H52: 0.08 | I52: 0.085 | J52: 0.096 | K52: 0.09
C53: PPA Sensitivity | F53: Factor | G53: 100 | H53: =G53/100 -> 1 | I53: ='Project Database'!$C$19 -> 0.06 | J53: Displayed | K53: =G52*H53 -> 0.07
C55: Inflation Frequency | F55: Years | G55: 1
C57: PPA Escalation Year | G57: 0 | H57: 100 | I57: 100 | J57: 100 | K57: 100
C58: PPA Escalation | F58: % p.p | G58: ='Project Database'!C25 -> 0 | H58: 0.015 | I58: 0.02 | J58: 0.02 | K58: 0.02 | L58: ='Project Database'!C25*100 -> 0
C59: PPA Escalation Senstitivty | G59: 5 | H59: =(esc_sens-5)/100 -> 0 | I59: =H59 -> 0 | J59: Displayed | K59: =G58+I59 -> 0
C61: PPA Term | E61: Added this with Ed | F61: Years | G61: ='Project Database'!C21 -> 25
C62: PPA Term Senstitivty | F62: Factor | G62: 80 | H62: =G62/100 -> 0.8 | J62: displayed | K62: =ROUND(H62*G61,0) -> 20
C64: Post-PPA Merchant Price | E64: Added this with Ed | F64: $/kWh | G64: ='Project Database'!C20 -> 0
C65: Post-PPA Inflation | E65: Added this with Ed | F65: % p.p | G65: ='Project Database'!C25 -> 0
C67: REC code | F67: code | G67: ='Project Database'!C23 -> 0 | H67: =MATCH(G67,SRECs!B:B,0) -> 25
C68: REC year | G68: 0 | H68: 1 | I68: 2 | J68: 3 | K68: 4 | L68: 5 | M68: 6 | N68: 7 | O68: 8 | P68: 9 | Q68: 10 | R68: 11 | S68: 12 | T68: 13 | U68: 14 | V68: 15 | W68: 16 | X68: 17 | Y68: 18 | Z68: 19 | AA68: 20 | AB68: 21 | AC68: 22 | AD68: 23 | AE68: 24 | AF68: 25 | AG68: 26 | AH68: 27 | AI68: 28 | AJ68: 29 | AK68: 30 | AL68: 31 | AM68: 32 | AN68: 33 | AO68: 34 | AP68: 35 | AQ68: 36 | AR68: 37 | AS68: 38 | AT68: 39 | AU68: 40
C69: REC $/MWhr | F69: $/MWhr | H69: =INDEX(SRECs!D:D,Inputs!$H$67) -> 85.1 | I69: =INDEX(SRECs!E:E,Inputs!$H$67) -> 72.97 | J69: =INDEX(SRECs!F:F,Inputs!$H$67) -> 0 | K69: =INDEX(SRECs!G:G,Inputs!$H$67) -> 0 | L69: =INDEX(SRECs!H:H,Inputs!$H$67) -> 0 | M69: =INDEX(SRECs!I:I,Inputs!$H$67) -> 0 | N69: =INDEX(SRECs!J:J,Inputs!$H$67) -> 0 | O69: =INDEX(SRECs!K:K,Inputs!$H$67) -> 0 | P69: =INDEX(SRECs!L:L,Inputs!$H$67) -> 0 | Q69: =INDEX(SRECs!M:M,Inputs!$H$67) -> 0 | R69: =INDEX(SRECs!N:N,Inputs!$H$67) -> 0 | S69: =INDEX(SRECs!O:O,Inputs!$H$67) -> 0 | T69: =INDEX(SRECs!P:P,Inputs!$H$67) -> 0 | U69: =INDEX(SRECs!Q:Q,Inputs!$H$67) -> 0 | V69: =INDEX(SRECs!R:R,Inputs!$H$67) -> 0 | W69: =INDEX(SRECs!S:S,Inputs!$H$67) -> 0 | X69: =INDEX(SRECs!T:T,Inputs!$H$67) -> 0 | Y69: =INDEX(SRECs!U:U,Inputs!$H$67) -> 0 | Z69: =INDEX(SRECs!V:V,Inputs!$H$67) -> 0 | AA69: =INDEX(SRECs!W:W,Inputs!$H$67) -> 0 | AB69: =INDEX(SRECs!X:X,Inputs!$H$67) -> 0 | AC69: =INDEX(SRECs!Y:Y,Inputs!$H$67) -> 0 | AD69: =INDEX(SRECs!Z:Z,Inputs!$H$67) -> 0 | AE69: =INDEX(SRECs!AA:AA,Inputs!$H$67) -> 0 | AF69: =INDEX(SRECs!AB:AB,Inputs!$H$67) -> 0 | AG69: =INDEX(SRECs!AC:AC,Inputs!$H$67) -> 0 | AH69: =INDEX(SRECs!AD:AD,Inputs!$H$67) -> 0 | AI69: =INDEX(SRECs!AE:AE,Inputs!$H$67) -> 0 | AJ69: =INDEX(SRECs!AF:AF,Inputs!$H$67) -> 0 | AK69: =INDEX(SRECs!AG:AG,Inputs!$H$67) -> 0 | AL69: =INDEX(SRECs!AH:AH,Inputs!$H$67) -> 0 | AM69: =INDEX(SRECs!AI:AI,Inputs!$H$67) -> 0 | AN69: =INDEX(SRECs!AJ:AJ,Inputs!$H$67) -> 0 | AO69: =INDEX(SRECs!AK:AK,Inputs!$H$67) -> 0 | AP69: =INDEX(SRECs!AL:AL,Inputs!$H$67) -> 0 | AQ69: =INDEX(SRECs!AM:AM,Inputs!$H$67) -> 0 | AR69: =INDEX(SRECs!AN:AN,Inputs!$H$67) -> 0 | AS69: =INDEX(SRECs!AO:AO,Inputs!$H$67) -> 0 | AT69: =INDEX(SRECs!AP:AP,Inputs!$H$67) -> 0 | AU69: =INDEX(SRECs!AQ:AQ,Inputs!$H$67) -> 0
C71: REC Term | F71: Years | G71: ='Project Database'!C24 -> 0
G72: $/kWy | H72: % Cap Exp | I72: Use $/kWy | J72: Escalation Rate | K72: Pct of O&M | L72: Sensitivity | M72: Applied
C73: O&M Agreement - Preventative ($/kWy) | F73: $/kWyear | G73: ='Project Database'!C33 -> 6 | I73: TRUE | J73: ='Project Database'!C37 -> 0.01 | K73: =G73/SUM($G$73:$G$76) -> 0.3614457831 | L73: =$P$73 -> 0.03 | M73: =L73 -> 0.03 | N73: 3 | O73: =N73/100 -> 0.03 | P73: =O73 -> 0.03
C74: O&M Agreement - Corrective ($/kWy) | F74: $/kWyear | G74: ='Project Database'!C34 -> 3 | I74: TRUE | J74: ='Project Database'!C38 -> 0.01 | K74: =G74/SUM($G$73:$G$76) -> 0.1807228916 | L74: =$P$73 -> 0.03 | M74: =L74 -> 0.03
C75: Management Fee ($/kWy) | F75: $/kWyear | G75: ='Project Database'!C35 -> 2 | I75: TRUE | J75: ='Project Database'!C39 -> 0.01 | K75: 0.1204819277 | L75: =$P$73 -> 0.03 | M75: 0.03
C76: Insurance ($/kWy) | F76: $/kWyear | G76: ='Project Database'!C36 -> 5.6 | I76: TRUE | J76: ='Project Database'!C40 -> 0 | K76: 0.3373493976 | L76: =$P$73 -> 0.03 | M76: 0.03
C77: Property Tax Method | G77: 3
C78: Personal Property Taxes | F78: $ | G78: ='Project Database'!C47 -> 0
G79: $ | J79: Wtd Avg Escalator | K79: =SUMPRODUCT(K73:K76*J73:J76) -> 0.006626506024
C80: O&M Holiday (no cost in year) | F80: Years | G80: 2
C81: Land Lease $/per Year | F81: $/Acre | G81: ='Reformatted Intake'!E41 -> 35000
C82: Acres | F82: Acres | G82: 1
C83: Lease Expense (was "Other") | E83: Added this with Ed | F83: $/year | G83: =G81*G82 -> 35000 | J83: Flat $/Annual
C84: Land Lease annual escalator | F84: %/year | G84: ='Project Database'!C43 -> 0 | J84: Flat $/Monthy
C85: Inverter Replacement Interval | E85: Added this with Ed | F85: Year | G85: ='Project Database'!C44 -> 15 | J85: $/MWdc
C86: Inverter Replacement Unit Cost | E86: Verify later | F86: $/W | G86: ='Project Database'!C45 -> 0.055 | J86: PPT w/ escalator
C87: Inverter Replacement Inflation Rate | E87: Added this with Ed | F87: % p.p | G87: ='Project Database'!C46 -> 0
C88: No Interverter Replacements after this year | F88: Year | G88: 25 | J88: =INDEX(J83:J86,G77) -> $/MWdc
C89: Tax Depreciation on Inverter Replacement | F89: Type | G89: =B123 -> MACRS - 5 year
C92: O&M with Sensitivity | F92: $/kWyear | G92: =SUM(G73:G78)*G93 -> 19.6
C93: O&M Sensitivity | F93: % | G93: =om_sensitivity/100 -> 1 | I93: 100
C95: Property Tax Year | E95: Using Jeff Model data | G95: 1 | H95: 2 | I95: 3 | J95: 4 | K95: 5 | L95: 6 | M95: 7 | N95: 8 | O95: 9 | P95: 10 | Q95: 11 | R95: 12 | S95: 13 | T95: 14 | U95: 15 | V95: 16 | W95: 17 | X95: 18 | Y95: 19 | Z95: 20 | AA95: 21 | AB95: 22 | AC95: 23 | AD95: 24 | AE95: 25 | AF95: 26 | AG95: 27 | AH95: 28 | AI95: 29 | AJ95: 30 | AK95: 31 | AL95: 32 | AM95: 33 | AN95: 34 | AO95: 35 | AP95: 36 | AQ95: 37 | AR95: 38 | AS95: 39 | AT95: 40 | AU95: 41
C96: Property Tax Bases | G96: 1 | H96: 0.95 | I96: 0.85 | J96: 0.75 | K96: 0.65 | L96: 0.55 | M96: 0.45 | N96: 0.35 | O96: 0.25 | P96: 0.2 | Q96: 0.2 | R96: 0.2 | S96: 0.2 | T96: 0.2 | U96: 0.2 | V96: 0.2 | W96: 0.2 | X96: 0.2 | Y96: 0.2 | Z96: 0.2 | AA96: 0.2 | AB96: 0.2 | AC96: 0.2 | AD96: 0.2 | AE96: 0.2 | AF96: 0.2 | AG96: 0.2 | AH96: 0.2 | AI96: 0.2 | AJ96: 0.2 | AK96: 0.2 | AL96: 0.2 | AM96: 0.2 | AN96: 0.2 | AO96: 0.2 | AP96: 0.2 | AQ96: 0.2 | AR96: 0.2 | AS96: 0.2 | AT96: 0.2 | AU96: 0.2
B98: Other Cost Assumptions (In Partnership)
C99: Asset Mgt Fee (O&M & Servicing) | E99: Using Jeff Model data | G99: 0
C100: Additional Insurance (AON, Credit)
C101: Accounting
C102: O&M
C103: Other
B105: Target Pre-tax Yield (Finds Cap Exp with Goal Seek) | G105: =H105/10000 -> 0.0503 | H105: 503 | BD105: New Hampshire | BE105: NH
H106: 503 | I106: 493
A107: Tax Inputs | BD107: North Carolina | BE107: NC
B109: Federal Income Tax Rate | F109: % | G109: 0.21
B110: Income Tax Rate | E110: Federal Only? | G110: 0.21
B111: State Income Tax Rate | F111: % | G111: 0
B113: ITC Rate | E113: 2019 rate still possible | G113: ='Project Database'!C50 -> 0.26 | H113: =+G113*G41 -> 2730000 | I113: $ value
B114: MACRS Life | E114: Using Model data - we used actual schedule | G114: 5
B115: MACRS Declining Balance Factor | E115: Using Model data - why not use actual schedule | G115: 1.5 | BD115: North Dakota | BE115: ND
BD116: Ohio | BE116: OH
B117: ITC Tax Basis Adjustment | G117: 0.5
B118: ITC Period | G118: =EDATE(G17,3) -> 2021-02-01
B120: Appy half-year convention for Depreciation | G120: TRUE
B122: Tax Depreciation Year | I122: 0 | J122: 1 | K122: 2 | L122: 3 | M122: 4 | N122: 5 | O122: 6 | P122: 7 | Q122: 8 | R122: 9 | S122: 10 | T122: 11 | U122: 12 | V122: 13 | W122: 14 | X122: 15 | Y122: 16 | Z122: 17 | AA122: 18 | AB122: 19 | AC122: 20 | AD122: 21 | AE122: 22 | AF122: 23 | AG122: 24 | AH122: 25 | AI122: 26 | AJ122: 27 | AK122: 28
B123: MACRS - 5 year | F123: 1 | G123: =G114 -> 5 | H123: =G115 -> 1.5 | J123: =IFERROR(VDB(1,0,$G123,I122,J122,$H123),0) -> 0.3 | K123: =IFERROR(VDB(1,0,$G123,J122,K122,$H123),0) -> 0.21 | L123: 0.1633333333 | M123: 0.1633333333 | N123: 0.1633333333 | O123: 0 | P123: 0 | Q123: 0 | R123: =IFERROR(VDB(1,0,$G$123,'Financial Model'!O5,'Financial Model'!R5,$H$123),0) -> 0 | S123: =IFERROR(VDB(1,0,$G$123,'Financial Model'!P5,'Financial Model'!S5,$H$123),0) -> 0 | T123: =IFERROR(VDB(1,0,$G$123,'Financial Model'!Q5,'Financial Model'!T5,$H$123),0) -> 0 | U123: =IFERROR(VDB(1,0,$G$123,'Financial Model'!R5,'Financial Model'!U5,$H$123),0) -> 0 | V123: =IFERROR(VDB(1,0,$G$123,'Financial Model'!S5,'Financial Model'!V5,$H$123),0) -> 0 | W123: =IFERROR(VDB(1,0,$G$123,'Financial Model'!T5,'Financial Model'!W5,$H$123),0) -> 0 | X123: =IFERROR(VDB(1,0,$G$123,'Financial Model'!U5,'Financial Model'!X5,$H$123),0) -> 0 | Y123: =IFERROR(VDB(1,0,$G$123,'Financial Model'!V5,'Financial Model'!Y5,$H$123),0) -> 0 | Z123: =IFERROR(VDB(1,0,$G$123,'Financial Model'!W5,'Financial Model'!Z5,$H$123),0) -> 0 | AA123: =IFERROR(VDB(1,0,$G$123,'Financial Model'!X5,'Financial Model'!AA5,$H$123),0) -> 0 | AB123: =IFERROR(VDB(1,0,$G$123,'Financial Model'!Y5,'Financial Model'!AB5,$H$123),0) -> 0 | AC123: =IFERROR(VDB(1,0,$G$123,'Financial Model'!Z5,'Financial Model'!AC5,$H$123),0) -> 0 | AD123: =IFERROR(VDB(1,0,$G$123,'Financial Model'!AA5,'Financial Model'!AD5,$H$123),0) -> 0 | AE123: =IFERROR(VDB(1,0,$G$123,'Financial Model'!AB5,'Financial Model'!AE5,$H$123),0) -> 0 | AF123: =IFERROR(VDB(1,0,$G$123,'Financial Model'!AC5,'Financial Model'!AF5,$H$123),0) -> 0 | AG123: =IFERROR(VDB(1,0,$G$123,'Financial Model'!AD5,'Financial Model'!AG5,$H$123),0) -> 0 | AH123: =IFERROR(VDB(1,0,$G$123,'Financial Model'!AE5,'Financial Model'!AH5,$H$123),0) -> 0 | AI123: =IFERROR(VDB(1,0,$G$123,'Financial Model'!AF5,'Financial Model'!AI5,$H$123),0) -> 0 | AJ123: =IFERROR(VDB(1,0,$G$123,'Financial Model'!AG5,'Financial Model'!AJ5,$H$123),0) -> 0 | AK123: =IFERROR(VDB(1,0,$G$123,'Financial Model'!AH5,'Financial Model'!AK5,$H$123),0) -> 0 | AL123: =IFERROR(VDB(1,0,$G$123,'Financial Model'!AI5,'Financial Model'!AL5,$H$123),0) -> 0 | AM123: =IFERROR(VDB(1,0,$G$123,'Financial Model'!AJ5,'Financial Model'!AM5,$H$123),0) -> 0 | AN123: =IFERROR(VDB(1,0,$G$123,'Financial Model'!AK5,'Financial Model'!AN5,$H$123),0) -> 0 | AO123: =IFERROR(VDB(1,0,$G$123,'Financial Model'!AL5,'Financial Model'!AO5,$H$123),0) -> 0 | AP123: =IFERROR(VDB(1,0,$G$123,'Financial Model'!AM5,'Financial Model'!AP5,$H$123),0) -> 0 | AQ123: =IFERROR(VDB(1,0,$G$123,'Financial Model'!AN5,'Financial Model'!AQ5,$H$123),0) -> 0 | AR123: =IFERROR(VDB(1,0,$G$123,'Financial Model'!AO5,'Financial Model'!AR5,$H$123),0) -> 0
B124: MACRS - 5 year (half-year) | F124: 2 | J124: 0.2 | K124: 0.32 | L124: 0.192 | M124: 0.1152 | N124: 0.1152 | O124: 0.0576 | P124: 0 | Q124: 0 | R124: 0 | S124: 0 | T124: 0 | U124: 0 | V124: 0 | W124: 0 | X124: 0 | Y124: 0 | Z124: 0 | AA124: 0 | AB124: 0 | AC124: 0 | AD124: 0 | AE124: 0 | AF124: 0 | AG124: 0 | AH124: 0 | AI124: 0 | AJ124: 0 | AK124: 0 | AL124: 0 | AM124: 0 | AN124: 0 | AO124: 0 | AP124: 0 | AQ124: 0 | AR124: 0
B125: Depreciation Applied | F125: 3 | J125: =IF($G$120,J124,J123) -> 0.2 | K125: =IF($G$120,K124,K123) -> 0.32 | L125: 0.192 | M125: 0.1152 | N125: 0.1152 | O125: 0.0576 | P125: 0 | Q125: 0 | R125: 0 | S125: 0 | T125: 0 | U125: 0 | V125: 0 | W125: 0 | X125: 0 | Y125: 0 | Z125: 0 | AA125: 0 | AB125: 0 | AC125: 0 | AD125: 0 | AE125: 0 | AF125: 0 | AG125: 0 | AH125: 0 | AI125: 0 | AJ125: 0 | AK125: 0 | AL125: 0 | AM125: 0 | AN125: 0 | AO125: 0 | AP125: 0 | AQ125: 0 | AR125: 0
B126: MACRS - 15 year | F126: 4 | G126: 15 | H126: =H123 -> 1.5 | J126: =IFERROR(VDB(1,0,$G126,I122,J122,$H126),0) -> 0.1 | K126: =IFERROR(VDB(1,0,$G126,J122,K122,$H126),0) -> 0.09 | L126: 0.081 | M126: 0.0729 | N126: 0.06561 | O126: 0.059049 | P126: 0.059049 | Q126: 0.059049 | R126: 0.059049 | S126: 0.059049 | T126: 0.059049 | U126: 0.059049 | V126: 0.059049 | W126: 0.059049 | X126: 0.059049 | Y126: 0 | Z126: 0 | AA126: 0 | AB126: 0 | AC126: 0 | AD126: 0 | AE126: 0 | AF126: 0 | AG126: 0 | AH126: 0 | AI126: 0 | AJ126: 0 | AK126: 0 | AL126: 0 | AM126: 0 | AN126: 0 | AO126: 0 | AP126: 0 | AQ126: 0 | AR126: 0
B127: MACRS - 20 year | F127: 5 | G127: 20 | H127: 1.5 | J127: =IFERROR(VDB(1,0,$G127,I122,J122,$H127),0) -> 0.075 | K127: =IFERROR(VDB(1,0,$G127,J122,K122,$H127),0) -> 0.069375 | L127: 0.064171875 | M127: 0.05935898438 | N127: 0.05490706055 | O127: 0.05078903101 | P127: 0.04697985368 | Q127: 0.04457063041 | R127: 0.04457063041 | S127: 0.04457063041 | T127: 0.04457063041 | U127: 0.04457063041 | V127: 0.04457063041 | W127: 0.04457063041 | X127: 0.04457063041 | Y127: 0.04457063041 | Z127: 0.04457063041 | AA127: 0.04457063041 | AB127: 0.04457063041 | AC127: 0.04457063041 | AD127: 0 | AE127: 0 | AF127: 0 | AG127: 0 | AH127: 0 | AI127: 0 | AJ127: 0 | AK127: 0 | AL127: 0 | AM127: 0 | AN127: 0 | AO127: 0 | AP127: 0 | AQ127: 0 | AR127: 0
B129: Non-Qualifying Assets | G129: ='Project Database'!C55 -> 0
B130: Depreciation rate for non-qualifying assets | G130: 1 | J130: =INDEX(J123:J127,$G$130) -> 0.3 | K130: 0.21 | L130: 0.1633333333 | M130: 0.1633333333 | N130: 0.1633333333 | O130: 0 | P130: 0 | Q130: 0 | R130: 0 | S130: 0 | T130: 0 | U130: 0 | V130: 0 | W130: 0 | X130: 0 | Y130: 0 | Z130: 0 | AA130: 0 | AB130: 0 | AC130: 0 | AD130: 0 | AE130: 0 | AF130: 0 | AG130: 0 | AH130: 0 | AI130: 0 | AJ130: 0 | AK130: 0 | AL130: 0 | AM130: 0 | AN130: 0 | AO130: 0 | AP130: 0 | AQ130: 0 | AR130: 0
B133: State Tax Option | G133: 1 | H133: Add State and Federal Rate
H134: Apply State taxes without Capital Accounts
H135: State and Federal Rate with Sepparate Depreciation Adjustment
H136: Zero State Tax
I138: Book Value of Plant without ITC
B139: Option for Taxable Gain or Loss on Sale | E139: Using Jeff Model data?? | G139: 2 | I139: Outside Basis of Plant
I140: Inside Capital Account Balance
B142: Adjust Outside Basis for ITC Base on Sale | G142: TRUE
A144: Tax Equity Investor
B146: Flip Mechanics | E146: These inputs are not used in the annual model | F146: Time / Yield | G146: Time
B147: Flip Duration (Periodic) | E147: These inputs are not used in the annual model | F147: Years/COD | G147: 6.5
B148: Flip Date/Year (Annual Model) | F148: Years | G148: 6
B149: Partnership Formation / Closing Date | E149: These inputs are not used in the annual model | F149: Date | G149: =G15 -> 2019-12-01
B150: Flip Date | E150: These inputs are not used in the annual model | F150: Date | G150: =EDATE(G149,G147*12) -> 2026-06-01
I151: Spinner
B152: $/Credit ($1 basis) | E152: Negotiated | F152: x | G152: =I152/100 -> 1.15 | I152: 115 | J152: =+'Financial Model'!C589 -> Contribution Ratio (per ITC)
B153: Pref Yield | E153: Typical Safe Harbor | F153: x | G153: =I153/10000 -> 0.0242 | I153: 242
B155: FMV Exit Return | E155: Consistent with Cash Flow | F155: % of contrib. | G155: =I155/10000 -> 0.07 | I155: 700
B156: Tax Equity Exit After Flip Date | G156: TRUE
B158: Max DRO as Percent of Tax Equity | E158: % of the tax equity investment | G158: =I158/1000 -> 0.7 | I158: 700
B159: Apply Minimum Gain | G159: TRUE
B160: Apply Minimum Gain Chargeback | G160: TRUE
B161: Apply Shared Liabilities in Outside Basis | G161: TRUE
B162: Income Allocation on Change (T)/Total (F) | G162: TRUE
A164: Sponsor
S165: 50
B166: Second Flip Date (from Sponsor to AM) | E166: Not Used | F166: Year | G166: =S165 -> 50
B167: Sponsor Exit After Second Flip Date | E167: Not Used | G167: FALSE
B168: Sponsor FMV Exit to Asset Mngr | E168: Not Used | G168: 0.07
B169: Sponsor Target IRR (For Cap Exp Goal Seek) | E169: Not Used | G169: =S169/1000 -> 0.122 | S169: 122
A171: Allocations of Cash and Income | G171: Tax Equity | H171: Sponsor Equity | I171: Asset Mgr
B173: Pre-Flip Cash Flow | E173: Typical Safe Harbor | G173: 0.05 | H173: =1-G173 -> 0.95 | I173: 0
B174: Post-Flip Cash Flow | E174: Typical Safe Harbor | G174: 0.05 | H174: =1-G174 -> 0.95 | I174: 0
B175: Second-Flip Cash Flow | E175: Typical Safe Harbor | G175: 0 | H175: 0 | I175: 1
B177: Pre-Flip Income | E177: Typical Safe Harbor | G177: 0.99 | H177: 0.01 | I177: 0
B178: Post-Flip Income | E178: Typical Safe Harbor | G178: 0.05 | H178: 0.95 | I178: 0
B179: Second-Flip Income | E179: Typical Safe Harbor | G179: 0 | H179: 0 | I179: 1
A181: Debt Funding
B183: Project Level (T/F) | E183: Checked Debt true if at LLC Level | G183: TRUE
B184: Back Leverage Debt | G184: =NOT(G183) -> FALSE
G186: Project Debt | H186: Back Leverage | K186: Project Debt | L186: Back Leverage | M186: Amount
B187: Debt Size from Required DSCR | E187: Use Fixed Debt | G187: =K187/100 -> 1.25 | H187: =L187/100 -> 1.42 | K187: 125 | L187: 142 | BD187: New York | BE187: NY
B188: Debt Size from Debt % of CapEx | E188: Use Fixed Debt | G188: =K188/1000 -> 0.55 | H188: =L188/1000 -> 0.5 | K188: 550 | L188: 500 | M188: =+G188*G41 -> 5775000
B189: Fixed Level of Debt | G189: 1787000 | H189: =+G189 -> 1787000
B190: Debt Sizing Option | G190: 2 | H190: 3
B192: Interest Rate | E192: Rate offered by Radiant | G192: =+K192/10000 -> 0.0495 | H192: =L192/10000 -> 0.0495 | K192: 495 | L192: =K192 -> 495
B193: Tenor | E193: 15 year loan | H193: =K195 -> 20
B194: Amortisation | E194: Why are tenor and amortization different? | G194: =K194 -> 20 | H194: =L194 -> 19 | K194: 20 | L194: 19 | BD194: New Mexico | BE194: NM
K195: =G194 -> 20
B196: Debt Repayment Date | G196: =EDATE(G18,G194*12) -> 2040-11-01
B197: Debt Service Reserve | G197: 0 | H197: 0
B198: Equipment Replacement Reserve | G198: 0 | H198: 0
A202: Graph Options
B203: Show First Period in Project Graph | G203: FALSE
B204: Show First Period in Tax Investor Cash Flow | G204: FALSE
B205: Show First Period in Developer/Sponsor Cash Flow | G205: FALSE
A211: O&M Cost Categories
B212: Potential O&M Costs
C213: O&M (Period 1)
C214: O&M (Period 2)
C215: Landscaping Expense
C216: Site Utilities
C217: Communication
C218: Maintenance - Shared Facilities
C219: Shared Facility Management Fees
C220: Donation
C221: Insurance
C222: Asset Management
C223: MOMA
C224: Scheduling Fee
C225: Administration
C226: PPA Security
C227: Property Tax
C228: Royalty Fee
C229: Land Lease
C230: Franchise Tax
C231: Operating Expenses
B233: Total Construction Costs
C234: Development Costs
C235: All-In Development Expenses
C236: Ag Exemption
C237: Real Estate
C238: Title Insurance
C239: Financing Legal
C240: Financing Reports
C241: Financing Admin
C242: Structuring Commitments
C243: Structuring Sponsor Costs
C244: Structuring TE Costs
C245: Hedge and Transmission LC Fees
C246: Misc
C247: Upfront Land Lease Costs
C248: MOMA Fees During Construction
C249: O&M Fees During Construction
C250: Land Lease and Property Tax
C251: Total Development Cost
C253: Construction Costs
C254: All-In Build Costs
C255: Miscelaneous 1
... 21 more rows

Sheet Project Database
B1: Summit Funding Group - Project Availability List
B3: Code Number | C3: 2
A6: General | D6: =IF(ISBLANK(D7),0,COLUMN()) -> 4 | E6: 5 | F6: 6 | G6: 7 | H6: 8 | I6: 9
B7: Project Name/Off-taker | C7: =INDEX(D7:N7,$C$3) -> Purdue University | D7: Brewer Sciences | E7: Purdue University | F7: Small co-op utility | G7: Nelson Co Public Schools | H7: Celina | I7: Hoosier Energy
B8: EPC Contractor | C8: =INDEX(D8:X8,$C$3) -> TBD | D8: Sun Solar, LLC | E8: TBD | F8: TBD | G8: Influent Energy | H8: TBD | I8: Solential
B9: O&M Contractor | C9: TBD | D9: Sun Solar, LLC | E9: TBD | F9: TBD | G9: Influent Energy | H9: TBD | I9: Solential
B10: Developer | C10: Telamon Energy Solutions | D10: Sun Solar, LLC | E10: Telamon Energy Solutions | F10: Round Trip LLC | G10: Influent Energy | H10: Summit | I10: Telamon
C11: 0
B12: COD Year: | C12: 2020 | D12: 2020 | E12: 2020 | F12: 2020 | G12: 2020 | H12: 2020 | I12: 1905
B13: COD Quarter: | C13: 3 | D13: 0 | E13: 3 | F13: 4 | G13: 3 | H13: 0 | I13: 2
B14: Acquisition Timing: | C14: COD | D14: 0 | E14: COD | F14: NTP | G14: NTP | H14: COD | I14: COD
C15: 0
A16: Operational
B17: EPC Price ($/Wdc): | C17: =INDEX(D17:X17,$C$3) -> 1.05 | D17: 1.78 | E17: 1.05 | F17: 1.02 | G17: 1.3 | H17: 1.15 | I17: 0.89
B18: Amount: | C18: 10500000 | D18: 5078511 | E18: 10500000 | F18: 6293400 | G18: 1994200 | H18: 5750000 | I18: 8900000
B19: Year 1 Price ($/kWh): | C19: 0.06 | D19: 0.09 | E19: 0.06 | F19: 0.054 | G19: 0.09 | H19: 0.07 | I19: 0.045
B20: Post PPA Price (Merchant) | C20: 0 | D20: 0 | E20: 0 | F20: 0.04 | G20: 0 | H20: 0 | I20: 0
B21: Term: | C21: 25 | D21: 30 | E21: 25 | F21: 30 | G21: 20 | H21: 35 | I21: 30
B22: Project Life: | C22: 25 | D22: 30 | E22: 25 | F22: 35 | G22: 20 | H22: 35 | I22: 30
B23: REC code | C23: 0 | F23: No Value | G23: No Value | H23: No Value | I23: No Value
B24: REC term | C24: 0 | F24: 0 | G24: 0 | H24: 0 | I24: 0
B25: Escalator: | C25: 0 | D25: 0.02 | E25: 0 | F25: 0 | G25: 0 | H25: 0 | I25: 0.02
B26: Frequency of Escalation (Years) | C26: 1 | D26: 1 | E26: 1 | F26: 0 | G26: 0 | H26: 0 | I26: 0
B27: Size of system (kW dc): | C27: 10000 | D27: 2859.33 | E27: 10000 | F27: 6170 | G27: 1534 | H27: 5000 | I27: 10000
B28: # of separate sites: | C28: 5 | D28: 2 | E28: 5 | F28: 1 | G28: 5 | H28: 1 | I28: 1
B29: Production Factor (kWh/kW): | C29: 1361.3 | D29: 1283.36 | E29: 1361.3 | F29: 1670 | G29: 1856 | H29: 1351 | I29: 1424
B30: Annual Dedradation on Production Factor: | C30: 0.005 | D30: 0 | E30: 0.005 | F30: 0.005 | G30: 0.005 | H30: 0.005 | I30: 0.005
B31: Capacity Factor | C31: 0.1553995434 | E31: 0.1553995434 | F31: 0.1906392694 | G31: 0.2118721461 | H31: 0.1542237443 | I31: 0.1625570776
A32: O&M | C32: Escalator | D32: Escalator | E32: Escalator | F32: Escalator | G32: Escalator | H32: Escalator | I32: Escalator
B33: O&M Agreement - Preventative ($/kWy) | C33: 6 | D33: 5 | E33: 6 | F33: 7.4 | G33: 7.4 | H33: 7.4 | I33: 5
B34: O&M Agreement - Corrective ($/kWy) | C34: 3 | D34: 4 | E34: 3 | F34: 0 | G34: 0 | H34: 0 | I34: 0
B35: Management Fee ($/kWy) | C35: 2 | D35: 2 | E35: 2 | F35: 3.75 | G35: 3.75 | H35: 3.75 | I35: 3.75
B36: Insurance ($/kWy) | C36: 5.6 | D36: 4 | E36: 5.6 | F36: 9.98 | G36: 9.98 | H36: 9.98 | I36: 9.98
B37: O&M Agreement - Preventative Inflation | C37: 0.01 | D37: 0.01 | E37: 0.01 | F37: 0.02 | G37: 0.02 | H37: 0.02 | I37: 0.02
B38: O&M Agreement - Corrective Inflation | C38: 0.01 | D38: 0.01 | E38: 0.01 | F38: 0.01 | G38: 0.01 | H38: 0.01 | I38: 0.01
B39: Management Fee Inflation | C39: 0.01 | D39: 0.01 | E39: 0.01 | F39: 0.01 | G39: 0.01 | H39: 0.01 | I39: 0.01
B40: Insurance Inflation | C40: 0 | D40: 0 | E40: 0 | F40: 0 | G40: 0 | H40: 0 | I40: 0
B41: Land Lease $/per Year | C41: 0 | D41: 0 | E41: 0 | F41: 0 | G41: 0 | H41: 0 | I41: 35000
B42: Land Lease Acres | C42: 0 | D42: 0 | E42: 0 | F42: 0 | G42: 0 | H42: 0 | I42: 0
B43: Land Lease Rent Escalator % | C43: 0 | D43: 0 | E43: 0 | F43: 0.02 | G43: 0.02 | H43: 0.02 | I43: 0.02
B44: Inverter Replacement Year | C44: 15 | D44: 15 | E44: 15 | F44: 15 | G44: 15 | H44: 15 | I44: 15
B45: Inverter Cost per Watt | C45: 0.055 | D45: 0.055 | E45: 0.055 | F45: 0.055 | G45: 0.055 | H45: 0.055 | I45: 0.055
B46: Inverter Inflation Rate | C46: 0 | D46: 0 | E46: 0 | F46: 0 | G46: 0 | H46: 0 | I46: 0
B47: Personal Property Taxes | C47: 0 | F47: 0 | G47: 0 | H47: 5600 | I47: 0
C48: 0
A49: Tax | C49: =INDEX(D49:X49,$C$3) -> 0
B50: ITC Percent | C50: 0.26 | D50: 0.3 | E50: 0.26 | F50: 0.26 | G50: 0.26 | H50: 0.26 | I50: 0.26
B51: % Depreciation Bonus | C51: 0
B52: % Depreciation 5 Year MACRS | C52: 1 | D52: 1 | E52: 1 | F52: 1 | G52: 1 | H52: 1 | I52: 1
B53: % Depreciation 15 Year MACRS | C53: 0 | D53: 0 | E53: 0 | F53: 0 | G53: 0 | H53: 0 | I53: 0
B54: % Depreciation 20 Year SL | C54: 0 | D54: 0 | E54: 0 | F54: 0 | G54: 0 | H54: 0 | I54: 0
B55: Non-Qualifying Assets | C55: 0 | F55: 0 | G55: 0 | H55: 0 | I55: 0
A56: Construction | C56: 0
B57: Milestone Payments (Percent) | C57: 0
B58: Month 1 | C58: 0
B59: Month 2 | C59: 0
B60: Month 3 | C60: 0
B61: Month 4 | C61: 0
B62: Month 5 | C62: 0
B63: Month 6 | C63: 0
C64: 0
C65: 0
C66: 0
C67: 0
C68: 0
B69: Purchaser Credit Support: | C69: 0
B70: Structural Considerations: | C70: 0
B71: Equipment: | C71: 0
C72: 0
C73: 0
C74: 0
C75: 0
C76: 0
C77: 0
C78: 0
C79: 0
C80: 0
C81: =INDEX(D81:X81,$C$3) -> 0
C82: 0
C83: 0
C84: 0
C85: 0
C86: 0
C87: 0
C88: 0
B102: =TRANSPOSE(D7:DQ7) -> Brewer Sciences
B103: Purdue University
B104: Small co-op utility
B105: Nelson Co Public Schools
B106: Celina
B107: Hoosier Energy
B108: 0
B109: 0
B110: 0
B111: 0
B112: 0
B113: 0
B114: 0
B115: 0
B116: 0
B117: 0
B118: 0
B119: 0
B120: 0
B121: 0
B122: 0
B123: 0
B124: 0
B125: 0
B126: 0
B127: 0
B128: 0
B129: 0

Sheet Financial Model
C1: Project Pro Forma Cash Flow Model | F1: Units | G1: Driver 1 | H1: Driver 2 | J1: DRO | K1: =G446 -> 0.7 | P1: =G589 -> 1.15
C2: =C276 -> Pre-Flip Periods | G2: =H276 -> 6 | J2: =J276 -> 1 | K2: 1 | L2: 1 | M2: 1 | N2: 1 | O2: 1 | P2: 0 | Q2: 0 | R2: 0 | S2: 0 | T2: 0 | U2: 0 | V2: 0 | W2: 0 | X2: 0 | Y2: 0 | Z2: 0 | AA2: 0 | AB2: 0 | AC2: 0 | AD2: 0 | AE2: 0 | AF2: 0 | AG2: 0 | AH2: 0 | AI2: 0 | AJ2: 0 | AK2: 0 | AL2: 0 | AM2: 0 | AN2: 0 | AO2: 0 | AP2: 0 | AQ2: 0 | AR2: 0
C3: Post-Flip Periods | G3: =Inputs!G21 -> 25 | J3: =AND(J5>$G$2,J5<=$G$3)*1 -> 0 | K3: 0 | L3: 0 | M3: 0 | N3: 0 | O3: 0 | P3: 1 | Q3: 1 | R3: 1 | S3: 1 | T3: 1 | U3: 1 | V3: 1 | W3: 1 | X3: 1 | Y3: 1 | Z3: 1 | AA3: 1 | AB3: 1 | AC3: 1 | AD3: 1 | AE3: 1 | AF3: 1 | AG3: 1 | AH3: 1 | AI3: 0 | AJ3: 0 | AK3: 0 | AL3: 0 | AM3: 0 | AN3: 0 | AO3: 0 | AP3: 0 | AQ3: 0 | AR3: 0
C4: Post-Second Flip Period | F4: Sponsor IRR | G4: =G731 -> 0.08125040739 | J4: =(J2=J3)*1 -> 0 | K4: 0 | L4: 0 | M4: 0 | N4: 0 | O4: 0 | P4: 0 | Q4: 0 | R4: 0 | S4: 0 | T4: 0 | U4: 0 | V4: 0 | W4: 0 | X4: 0 | Y4: 0 | Z4: 0 | AA4: 0 | AB4: 0 | AC4: 0 | AD4: 0 | AE4: 0 | AF4: 0 | AG4: 0 | AH4: 0 | AI4: 1 | AJ4: 1 | AK4: 1 | AL4: 1 | AM4: 1 | AN4: 1 | AO4: 1 | AP4: 1 | AQ4: 1 | AR4: 1
F5: Tax Eq IRR | G5: =G590 -> 0.8779057499 | I5: 0 | J5: 1 | K5: 2 | L5: 3 | M5: 4 | N5: 5 | O5: 6 | P5: 7 | Q5: 8 | R5: 9 | S5: 10 | T5: 11 | U5: 12 | V5: 13 | W5: 14 | X5: 15 | Y5: 16 | Z5: 17 | AA5: 18 | AB5: 19 | AC5: 20 | AD5: 21 | AE5: 22 | AF5: 23 | AG5: 24 | AH5: 25 | AI5: 26 | AJ5: 27 | AK5: 28 | AL5: 29 | AM5: 30 | AN5: 31 | AO5: 32 | AP5: 33 | AQ5: 34 | AR5: 35
C6: Life Flag (zeros calculations beyond EOL) | G6: =Inputs!G21 -> 25 | J6: =(J5<=$G$6)*1 -> 1 | K6: =(K5<=$G$6)*1 -> 1 | L6: 1 | M6: 1 | N6: 1 | O6: 1 | P6: 1 | Q6: 1 | R6: 1 | S6: 1 | T6: 1 | U6: 1 | V6: 1 | W6: 1 | X6: 1 | Y6: 1 | Z6: 1 | AA6: 1 | AB6: 1 | AC6: 1 | AD6: 1 | AE6: 1 | AF6: 1 | AG6: 1 | AH6: 1 | AI6: 0 | AJ6: 0 | AK6: 0 | AL6: 0 | AM6: 0 | AN6: 0 | AO6: 0 | AP6: 0 | AQ6: 0 | AR6: 0
A7: Partnership Pre-Financing Cashflow (Pre-tax Because Partnership Does Not Pay Tax)
B8: Production
C9: Capacity (kWp) | F9: kWp | G9: =Inputs!G32 -> 10000 | J9: =$G$9*J6 -> 10000 | K9: =$G$9*K6 -> 10000 | L9: 10000 | M9: 10000 | N9: 10000 | O9: 10000 | P9: 10000 | Q9: 10000 | R9: 10000 | S9: 10000 | T9: 10000 | U9: 10000 | V9: 10000 | W9: 10000 | X9: 10000 | Y9: 10000 | Z9: 10000 | AA9: 10000 | AB9: 10000 | AC9: 10000 | AD9: 10000 | AE9: 10000 | AF9: 10000 | AG9: 10000 | AH9: 10000 | AI9: 0 | AJ9: 0 | AK9: 0 | AL9: 0 | AM9: 0 | AN9: 0 | AO9: 0 | AP9: 0 | AQ9: 0 | AR9: 0
C10: Yield Before Degradation | F10: kWh/kWp | G10: =Inputs!H33 -> 1361.3 | J10: =$G$10 -> 1361.3 | K10: 1361.3 | L10: 1361.3 | M10: 1361.3 | N10: 1361.3 | O10: 1361.3 | P10: 1361.3 | Q10: 1361.3 | R10: 1361.3 | S10: 1361.3 | T10: 1361.3 | U10: 1361.3 | V10: 1361.3 | W10: 1361.3 | X10: 1361.3 | Y10: 1361.3 | Z10: 1361.3 | AA10: 1361.3 | AB10: 1361.3 | AC10: 1361.3 | AD10: 1361.3 | AE10: 1361.3 | AF10: 1361.3 | AG10: 1361.3 | AH10: 1361.3 | AI10: 1361.3 | AJ10: 1361.3 | AK10: 1361.3 | AL10: 1361.3 | AM10: 1361.3 | AN10: 1361.3 | AO10: 1361.3 | AP10: 1361.3 | AQ10: 1361.3 | AR10: 1361.3 | BD10: SSI Template colors
C11: Energy Output before Degradaton | F11: kWh | J11: =J9*J10 -> 13613000 | K11: =K9*K10 -> 13613000 | L11: 13613000 | M11: 13613000 | N11: 13613000 | O11: 13613000 | P11: 13613000 | Q11: 13613000 | R11: 13613000 | S11: 13613000 | T11: 13613000 | U11: 13613000 | V11: 13613000 | W11: 13613000 | X11: 13613000 | Y11: 13613000 | Z11: 13613000 | AA11: 13613000 | AB11: 13613000 | AC11: 13613000 | AD11: 13613000 | AE11: 13613000 | AF11: 13613000 | AG11: 13613000 | AH11: 13613000 | AI11: 0 | AJ11: 0 | AK11: 0 | AL11: 0 | AM11: 0 | AN11: 0 | AO11: 0 | AP11: 0 | AQ11: 0 | AR11: 0
C12: Capacity Factor | F12: % | J12: =IF(J6,J11/8760/J9) -> 0.1553995434 | K12: =IF(K6,K11/8760/K9) -> 0.1553995434 | L12: 0.1553995434 | M12: 0.1553995434 | N12: 0.1553995434 | O12: 0.1553995434 | P12: 0.1553995434 | Q12: 0.1553995434 | R12: 0.1553995434 | S12: 0.1553995434 | T12: 0.1553995434 | U12: 0.1553995434 | V12: 0.1553995434 | W12: 0.1553995434 | X12: 0.1553995434 | Y12: 0.1553995434 | Z12: 0.1553995434 | AA12: 0.1553995434 | AB12: 0.1553995434 | AC12: 0.1553995434 | AD12: 0.1553995434 | AE12: 0.1553995434 | AF12: 0.1553995434 | AG12: 0.1553995434 | AH12: 0.1553995434 | AI12: FALSE | AJ12: FALSE | AK12: FALSE | AL12: FALSE | AM12: FALSE | AN12: FALSE | AO12: FALSE | AP12: FALSE | AQ12: FALSE | AR12: FALSE
C13: Degradation Percent | F13: % p.a. | J13: =LOOKUP(J5,Inputs!37:37,Inputs!38:38) -> 0.005 | K13: =LOOKUP(K5,Inputs!37:37,Inputs!38:38) -> 0.005 | L13: =LOOKUP(L5,Inputs!37:37,Inputs!38:38) -> 0.005 | M13: =LOOKUP(M5,Inputs!37:37,Inputs!38:38) -> 0.005 | N13: =LOOKUP(N5,Inputs!37:37,Inputs!38:38) -> 0.005 | O13: =LOOKUP(O5,Inputs!37:37,Inputs!38:38) -> 0.005 | P13: =LOOKUP(P5,Inputs!37:37,Inputs!38:38) -> 0.005 | Q13: =LOOKUP(Q5,Inputs!37:37,Inputs!38:38) -> 0.005 | R13: =LOOKUP(R5,Inputs!37:37,Inputs!38:38) -> 0.005 | S13: =LOOKUP(S5,Inputs!37:37,Inputs!38:38) -> 0.005 | T13: =LOOKUP(T5,Inputs!37:37,Inputs!38:38) -> 0.005 | U13: =LOOKUP(U5,Inputs!37:37,Inputs!38:38) -> 0.005 | V13: =LOOKUP(V5,Inputs!37:37,Inputs!38:38) -> 0.005 | W13: =LOOKUP(W5,Inputs!37:37,Inputs!38:38) -> 0.005 | X13: =LOOKUP(X5,Inputs!37:37,Inputs!38:38) -> 0.005 | Y13: =LOOKUP(Y5,Inputs!37:37,Inputs!38:38) -> 0.005 | Z13: =LOOKUP(Z5,Inputs!37:37,Inputs!38:38) -> 0.005 | AA13: =LOOKUP(AA5,Inputs!37:37,Inputs!38:38) -> 0.005 | AB13: =LOOKUP(AB5,Inputs!37:37,Inputs!38:38) -> 0.005 | AC13: =LOOKUP(AC5,Inputs!37:37,Inputs!38:38) -> 0.005 | AD13: =LOOKUP(AD5,Inputs!37:37,Inputs!38:38) -> 0.005 | AE13: =LOOKUP(AE5,Inputs!37:37,Inputs!38:38) -> 0.005 | AF13: =LOOKUP(AF5,Inputs!37:37,Inputs!38:38) -> 0.005 | AG13: =LOOKUP(AG5,Inputs!37:37,Inputs!38:38) -> 0.005 | AH13: =LOOKUP(AH5,Inputs!37:37,Inputs!38:38) -> 0.005 | AI13: =LOOKUP(AI5,Inputs!37:37,Inputs!38:38) -> 0.005 | AJ13: =LOOKUP(AJ5,Inputs!37:37,Inputs!38:38) -> 0.005 | AK13: =LOOKUP(AK5,Inputs!37:37,Inputs!38:38) -> 0.005 | AL13: =LOOKUP(AL5,Inputs!37:37,Inputs!38:38) -> 0.005 | AM13: =LOOKUP(AM5,Inputs!37:37,Inputs!38:38) -> 0.005 | AN13: =LOOKUP(AN5,Inputs!37:37,Inputs!38:38) -> 0.005 | AO13: =LOOKUP(AO5,Inputs!37:37,Inputs!38:38) -> 0.005 | AP13: =LOOKUP(AP5,Inputs!37:37,Inputs!38:38) -> 0.005 | AQ13: =LOOKUP(AQ5,Inputs!37:37,Inputs!38:38) -> 0.005 | AR13: =LOOKUP(AR5,Inputs!37:37,Inputs!38:38) -> 0.005
C14: Degradation | F14: % | G14: =Inputs!G34 -> 0.005 | I14: 1 | J14: =I14*(1+J13) -> 1.005 | K14: =J14*(1+K13) -> 1.010025 | L14: 1.015075125 | M14: 1.020150501 | N14: 1.025251253 | O14: 1.030377509 | P14: 1.035529397 | Q14: 1.040707044 | R14: 1.045910579 | S14: 1.051140132 | T14: 1.056395833 | U14: 1.061677812 | V14: 1.066986201 | W14: 1.072321132 | X14: 1.077682738 | Y14: 1.083071151 | Z14: 1.088486507 | AA14: 1.09392894 | AB14: 1.099398584 | AC14: 1.104895577 | AD14: 1.110420055 | AE14: 1.115972155 | AF14: 1.121552016 | AG14: 1.127159776 | AH14: 1.132795575 | AI14: 1.138459553 | AJ14: 1.144151851 | AK14: 1.14987261 | AL14: 1.155621973 | AM14: 1.161400083 | AN14: 1.167207083 | AO14: 1.173043119 | AP14: 1.178908334 | AQ14: 1.184802876 | AR14: 1.19072689
C15: Energy After Degradation | F15: kWh | J15: =J11/J14 -> 13545273.63 | K15: =K11/K14 -> 13477884.21 | L15: 13410830.06 | M15: 13344109.51 | N15: 13277720.91 | O15: 13211662.6 | P15: 13145932.93 | Q15: 13080530.28 | R15: 13015453.01 | S15: 12950699.52 | T15: 12886268.18 | U15: 12822157.39 | V15: 12758365.56 | W15: 12694891.11 | X15: 12631732.44 | Y15: 12568888 | Z15: 12506356.22 | AA15: 12444135.54 | AB15: 12382224.42 | AC15: 12320621.32 | AD15: 12259324.69 | AE15: 12198333.03 | AF15: 12137644.8 | AG15: 12077258.51 | AH15: 12017172.65 | AI15: 0 | AJ15: 0 | AK15: 0 | AL15: 0 | AM15: 0 | AN15: 0 | AO15: 0 | AP15: 0 | AQ15: 0 | AR15: 0
B17: Revenue
C18: PPA Flag | F18: Flag | G18: =Inputs!K62 -> 20 | J18: =J5<=$G$18 -> TRUE | K18: =K5<=$G$18 -> TRUE | L18: TRUE | M18: TRUE | N18: TRUE | O18: TRUE | P18: TRUE | Q18: TRUE | R18: TRUE | S18: TRUE | T18: TRUE | U18: TRUE | V18: TRUE | W18: TRUE | X18: TRUE | Y18: TRUE | Z18: TRUE | AA18: TRUE | AB18: TRUE | AC18: TRUE | AD18: FALSE | AE18: FALSE | AF18: FALSE | AG18: FALSE | AH18: FALSE | AI18: FALSE | AJ18: FALSE | AK18: FALSE | AL18: FALSE | AM18: FALSE | AN18: FALSE | AO18: FALSE | AP18: FALSE | AQ18: FALSE | AR18: FALSE
C19: Post-PPA Merchant Flag | F19: Flag | J19: =NOT(J18) -> FALSE | K19: =NOT(K18) -> FALSE | L19: FALSE | M19: FALSE | N19: FALSE | O19: FALSE | P19: FALSE | Q19: FALSE | R19: FALSE | S19: FALSE | T19: FALSE | U19: FALSE | V19: FALSE | W19: FALSE | X19: FALSE | Y19: FALSE | Z19: FALSE | AA19: FALSE | AB19: FALSE | AC19: FALSE | AD19: TRUE | AE19: TRUE | AF19: TRUE | AG19: TRUE | AH19: TRUE | AI19: TRUE | AJ19: TRUE | AK19: TRUE | AL19: TRUE | AM19: TRUE | AN19: TRUE | AO19: TRUE | AP19: TRUE | AQ19: TRUE | AR19: TRUE
C20: PPA Price without Inflation | F20: $/kWh | G20: =Inputs!H53 -> 1 | J20: =LOOKUP(J5,Inputs!51:51,Inputs!52:52)*$G$20 -> 0.07 | K20: =LOOKUP(K5,Inputs!51:51,Inputs!52:52)*$G$20 -> 0.07 | L20: =LOOKUP(L5,Inputs!51:51,Inputs!52:52)*$G$20 -> 0.07 | M20: =LOOKUP(M5,Inputs!51:51,Inputs!52:52)*$G$20 -> 0.07 | N20: =LOOKUP(N5,Inputs!51:51,Inputs!52:52)*$G$20 -> 0.07 | O20: =LOOKUP(O5,Inputs!51:51,Inputs!52:52)*$G$20 -> 0.07 | P20: =LOOKUP(P5,Inputs!51:51,Inputs!52:52)*$G$20 -> 0.07 | Q20: =LOOKUP(Q5,Inputs!51:51,Inputs!52:52)*$G$20 -> 0.07 | R20: =LOOKUP(R5,Inputs!51:51,Inputs!52:52)*$G$20 -> 0.07 | S20: =LOOKUP(S5,Inputs!51:51,Inputs!52:52)*$G$20 -> 0.07 | T20: =LOOKUP(T5,Inputs!51:51,Inputs!52:52)*$G$20 -> 0.07 | U20: =LOOKUP(U5,Inputs!51:51,Inputs!52:52)*$G$20 -> 0.07 | V20: =LOOKUP(V5,Inputs!51:51,Inputs!52:52)*$G$20 -> 0.07 | W20: =LOOKUP(W5,Inputs!51:51,Inputs!52:52)*$G$20 -> 0.07 | X20: =LOOKUP(X5,Inputs!51:51,Inputs!52:52)*$G$20 -> 0.07 | Y20: =LOOKUP(Y5,Inputs!51:51,Inputs!52:52)*$G$20 -> 0.07 | Z20: =LOOKUP(Z5,Inputs!51:51,Inputs!52:52)*$G$20 -> 0.07 | AA20: =LOOKUP(AA5,Inputs!51:51,Inputs!52:52)*$G$20 -> 0.07 | AB20: =LOOKUP(AB5,Inputs!51:51,Inputs!52:52)*$G$20 -> 0.07 | AC20: =LOOKUP(AC5,Inputs!51:51,Inputs!52:52)*$G$20 -> 0.07 | AD20: =LOOKUP(AD5,Inputs!51:51,Inputs!52:52)*$G$20 -> 0.07 | AE20: =LOOKUP(AE5,Inputs!51:51,Inputs!52:52)*$G$20 -> 0.07 | AF20: =LOOKUP(AF5,Inputs!51:51,Inputs!52:52)*$G$20 -> 0.07 | AG20: =LOOKUP(AG5,Inputs!51:51,Inputs!52:52)*$G$20 -> 0.07 | AH20: =LOOKUP(AH5,Inputs!51:51,Inputs!52:52)*$G$20 -> 0.07 | AI20: =LOOKUP(AI5,Inputs!51:51,Inputs!52:52)*$G$20 -> 0.07 | AJ20: =LOOKUP(AJ5,Inputs!51:51,Inputs!52:52)*$G$20 -> 0.07 | AK20: =LOOKUP(AK5,Inputs!51:51,Inputs!52:52)*$G$20 -> 0.07 | AL20: =LOOKUP(AL5,Inputs!51:51,Inputs!52:52)*$G$20 -> 0.07 | AM20: =LOOKUP(AM5,Inputs!51:51,Inputs!52:52)*$G$20 -> 0.07 | AN20: =LOOKUP(AN5,Inputs!51:51,Inputs!52:52)*$G$20 -> 0.07 | AO20: =LOOKUP(AO5,Inputs!51:51,Inputs!52:52)*$G$20 -> 0.07 | AP20: =LOOKUP(AP5,Inputs!51:51,Inputs!52:52)*$G$20 -> 0.07 | AQ20: =LOOKUP(AQ5,Inputs!51:51,Inputs!52:52)*$G$20 -> 0.07 | AR20: =LOOKUP(AR5,Inputs!51:51,Inputs!52:52)*$G$20 -> 0.07
C21: PPA Inflation Flag | F21: Years | G21: =Inputs!$G$55 -> 1 | J21: =(MOD(J5,$G$21)=0)*1 -> 1 | K21: 1 | L21: 1 | M21: 1 | N21: 1 | O21: 1 | P21: 1 | Q21: 1 | R21: 1 | S21: 1 | T21: 1 | U21: 1 | V21: 1 | W21: 1 | X21: 1 | Y21: 1 | Z21: 1 | AA21: 1 | AB21: 1 | AC21: 1 | AD21: 1 | AE21: 1 | AF21: 1 | AG21: 1 | AH21: 1 | AI21: 1 | AJ21: 1 | AK21: 1 | AL21: 1 | AM21: 1 | AN21: 1 | AO21: 1 | AP21: 1 | AQ21: 1 | AR21: 1
C22: PPA Inflaton Rate | F22: % p.a. | G22: =Inputs!I59 -> 0 | J22: =(LOOKUP(J5,Inputs!57:57,Inputs!58:58)+$G$22)*J21 -> 0 | K22: =(LOOKUP(K5,Inputs!57:57,Inputs!58:58)+$G$22)*K21 -> 0 | L22: =(LOOKUP(L5,Inputs!57:57,Inputs!58:58)+$G$22)*L21 -> 0 | M22: =(LOOKUP(M5,Inputs!57:57,Inputs!58:58)+$G$22)*M21 -> 0 | N22: =(LOOKUP(N5,Inputs!57:57,Inputs!58:58)+$G$22)*N21 -> 0 | O22: =(LOOKUP(O5,Inputs!57:57,Inputs!58:58)+$G$22)*O21 -> 0 | P22: =(LOOKUP(P5,Inputs!57:57,Inputs!58:58)+$G$22)*P21 -> 0 | Q22: =(LOOKUP(Q5,Inputs!57:57,Inputs!58:58)+$G$22)*Q21 -> 0 | R22: =(LOOKUP(R5,Inputs!57:57,Inputs!58:58)+$G$22)*R21 -> 0 | S22: =(LOOKUP(S5,Inputs!57:57,Inputs!58:58)+$G$22)*S21 -> 0 | T22: =(LOOKUP(T5,Inputs!57:57,Inputs!58:58)+$G$22)*T21 -> 0 | U22: =(LOOKUP(U5,Inputs!57:57,Inputs!58:58)+$G$22)*U21 -> 0 | V22: =(LOOKUP(V5,Inputs!57:57,Inputs!58:58)+$G$22)*V21 -> 0 | W22: =(LOOKUP(W5,Inputs!57:57,Inputs!58:58)+$G$22)*W21 -> 0 | X22: =(LOOKUP(X5,Inputs!57:57,Inputs!58:58)+$G$22)*X21 -> 0 | Y22: =(LOOKUP(Y5,Inputs!57:57,Inputs!58:58)+$G$22)*Y21 -> 0 | Z22: =(LOOKUP(Z5,Inputs!57:57,Inputs!58:58)+$G$22)*Z21 -> 0 | AA22: =(LOOKUP(AA5,Inputs!57:57,Inputs!58:58)+$G$22)*AA21 -> 0 | AB22: =(LOOKUP(AB5,Inputs!57:57,Inputs!58:58)+$G$22)*AB21 -> 0 | AC22: =(LOOKUP(AC5,Inputs!57:57,Inputs!58:58)+$G$22)*AC21 -> 0 | AD22: =(LOOKUP(AD5,Inputs!57:57,Inputs!58:58)+$G$22)*AD21 -> 0 | AE22: =(LOOKUP(AE5,Inputs!57:57,Inputs!58:58)+$G$22)*AE21 -> 0 | AF22: =(LOOKUP(AF5,Inputs!57:57,Inputs!58:58)+$G$22)*AF21 -> 0 | AG22: =(LOOKUP(AG5,Inputs!57:57,Inputs!58:58)+$G$22)*AG21 -> 0 | AH22: =(LOOKUP(AH5,Inputs!57:57,Inputs!58:58)+$G$22)*AH21 -> 0 | AI22: =(LOOKUP(AI5,Inputs!57:57,Inputs!58:58)+$G$22)*AI21 -> 0 | AJ22: =(LOOKUP(AJ5,Inputs!57:57,Inputs!58:58)+$G$22)*AJ21 -> 0 | AK22: =(LOOKUP(AK5,Inputs!57:57,Inputs!58:58)+$G$22)*AK21 -> 0 | AL22: =(LOOKUP(AL5,Inputs!57:57,Inputs!58:58)+$G$22)*AL21 -> 0 | AM22: =(LOOKUP(AM5,Inputs!57:57,Inputs!58:58)+$G$22)*AM21 -> 0 | AN22: =(LOOKUP(AN5,Inputs!57:57,Inputs!58:58)+$G$22)*AN21 -> 0 | AO22: =(LOOKUP(AO5,Inputs!57:57,Inputs!58:58)+$G$22)*AO21 -> 0 | AP22: =(LOOKUP(AP5,Inputs!57:57,Inputs!58:58)+$G$22)*AP21 -> 0 | AQ22: =(LOOKUP(AQ5,Inputs!57:57,Inputs!58:58)+$G$22)*AQ21 -> 0 | AR22: =(LOOKUP(AR5,Inputs!57:57,Inputs!58:58)+$G$22)*AR21 -> 0
C23: PPA Inflaton Index | F23: Index | I23: 1 | J23: =I23*(1+J22) -> 1 | K23: =J23*(1+K22) -> 1 | L23: 1 | M23: 1 | N23: 1 | O23: 1 | P23: 1 | Q23: 1 | R23: 1 | S23: 1 | T23: 1 | U23: 1 | V23: 1 | W23: 1 | X23: 1 | Y23: 1 | Z23: 1 | AA23: 1 | AB23: 1 | AC23: 1 | AD23: 1 | AE23: 1 | AF23: 1 | AG23: 1 | AH23: 1 | AI23: 1 | AJ23: 1 | AK23: 1 | AL23: 1 | AM23: 1 | AN23: 1 | AO23: 1 | AP23: 1 | AQ23: 1 | AR23: 1
C24: PPA with Inflation | F24: $/kWh | J24: =J20*J23 -> 0.07 | K24: =K20*K23 -> 0.07 | L24: 0.07 | M24: 0.07 | N24: 0.07 | O24: 0.07 | P24: 0.07 | Q24: 0.07 | R24: 0.07 | S24: 0.07 | T24: 0.07 | U24: 0.07 | V24: 0.07 | W24: 0.07 | X24: 0.07 | Y24: 0.07 | Z24: 0.07 | AA24: 0.07 | AB24: 0.07 | AC24: 0.07 | AD24: 0.07 | AE24: 0.07 | AF24: 0.07 | AG24: 0.07 | AH24: 0.07 | AI24: 0.07 | AJ24: 0.07 | AK24: 0.07 | AL24: 0.07 | AM24: 0.07 | AN24: 0.07 | AO24: 0.07 | AP24: 0.07 | AQ24: 0.07 | AR24: 0.07
C26: Post PPA Merchant Price | F26: $/kWh | G26: =Inputs!G64 -> 0 | J26: =$G$26 -> 0 | K26: =$G$26 -> 0 | L26: 0 | M26: 0 | N26: 0 | O26: 0 | P26: 0 | Q26: 0 | R26: 0 | S26: 0 | T26: 0 | U26: 0 | V26: 0 | W26: 0 | X26: 0 | Y26: 0 | Z26: 0 | AA26: 0 | AB26: 0 | AC26: 0 | AD26: 0 | AE26: 0 | AF26: 0 | AG26: 0 | AH26: 0 | AI26: 0 | AJ26: 0 | AK26: 0 | AL26: 0 | AM26: 0 | AN26: 0 | AO26: 0 | AP26: 0 | AQ26: 0 | AR26: 0
C27: Inflation index Post PPA | F27: Index | G27: =Inputs!G65 -> 0 | I27: 1 | J27: =I27*(1+$G$27*J19) -> 1 | K27: =J27*(1+$G$27*K19) -> 1 | L27: 1 | M27: 1 | N27: 1 | O27: 1 | P27: 1 | Q27: 1 | R27: 1 | S27: 1 | T27: 1 | U27: 1 | V27: 1 | W27: 1 | X27: 1 | Y27: 1 | Z27: 1 | AA27: 1 | AB27: 1 | AC27: 1 | AD27: 1 | AE27: 1 | AF27: 1 | AG27: 1 | AH27: 1 | AI27: 1 | AJ27: 1 | AK27: 1 | AL27: 1 | AM27: 1 | AN27: 1 | AO27: 1 | AP27: 1 | AQ27: 1 | AR27: 1
C28: Post PPA Price with Inflation | F28: $/kWh | J28: =J26*J27 -> 0 | K28: =K26*K27 -> 0 | L28: 0 | M28: 0 | N28: 0 | O28: 0 | P28: 0 | Q28: 0 | R28: 0 | S28: 0 | T28: 0 | U28: 0 | V28: 0 | W28: 0 | X28: 0 | Y28: 0 | Z28: 0 | AA28: 0 | AB28: 0 | AC28: 0 | AD28: 0 | AE28: 0 | AF28: 0 | AG28: 0 | AH28: 0 | AI28: 0 | AJ28: 0 | AK28: 0 | AL28: 0 | AM28: 0 | AN28: 0 | AO28: 0 | AP28: 0 | AQ28: 0 | AR28: 0
C30: Contracted Revenue | F30: $ | G30: =Inputs!G52 -> 0.07 | J30: =J24*J15*J18 -> 948169.1542 | K30: =K24*K15*K18 -> 943451.8948 | L30: 938758.1042 | M30: 934087.6659 | N30: 929440.4636 | O30: 924816.3817 | P30: 920215.3052 | Q30: 915637.1196 | R30: 911081.711 | S30: 906548.9662 | T30: 902038.7723 | U30: 897551.0172 | V30: 893085.5893 | W30: 888642.3774 | X30: 884221.271 | Y30: 879822.1602 | Z30: 875444.9356 | AA30: 871089.4881 | AB30: 866755.7096 | AC30: 862443.4921 | AD30: 0 | AE30: 0 | AF30: 0 | AG30: 0 | AH30: 0 | AI30: 0 | AJ30: 0 | AK30: 0 | AL30: 0 | AM30: 0 | AN30: 0 | AO30: 0 | AP30: 0 | AQ30: 0 | AR30: 0 | BD30: Arkansas | BE30: AR | BH30: Canopy
C31: Uncontracted Revenue | F31: $ | J31: =J28*J15*J19 -> 0 | K31: =K28*K15*K19 -> 0 | L31: 0 | M31: 0 | N31: 0 | O31: 0 | P31: 0 | Q31: 0 | R31: 0 | S31: 0 | T31: 0 | U31: 0 | V31: 0 | W31: 0 | X31: 0 | Y31: 0 | Z31: 0 | AA31: 0 | AB31: 0 | AC31: 0 | AD31: 0 | AE31: 0 | AF31: 0 | AG31: 0 | AH31: 0 | AI31: 0 | AJ31: 0 | AK31: 0 | AL31: 0 | AM31: 0 | AN31: 0 | AO31: 0 | AP31: 0 | AQ31: 0 | AR31: 0 | BD31: Illinois | BE31: IL
C33: REC $ | F33: $/MWhr | J33: =LOOKUP(J5,Inputs!68:68,Inputs!69:69) -> 85.1 | K33: =LOOKUP(K5,Inputs!68:68,Inputs!69:69) -> 72.97 | L33: =LOOKUP(L5,Inputs!68:68,Inputs!69:69) -> 0 | M33: =LOOKUP(M5,Inputs!68:68,Inputs!69:69) -> 0 | N33: =LOOKUP(N5,Inputs!68:68,Inputs!69:69) -> 0 | O33: =LOOKUP(O5,Inputs!68:68,Inputs!69:69) -> 0 | P33: =LOOKUP(P5,Inputs!68:68,Inputs!69:69) -> 0 | Q33: =LOOKUP(Q5,Inputs!68:68,Inputs!69:69) -> 0 | R33: =LOOKUP(R5,Inputs!68:68,Inputs!69:69) -> 0 | S33: =LOOKUP(S5,Inputs!68:68,Inputs!69:69) -> 0 | T33: =LOOKUP(T5,Inputs!68:68,Inputs!69:69) -> 0 | U33: =LOOKUP(U5,Inputs!68:68,Inputs!69:69) -> 0 | V33: =LOOKUP(V5,Inputs!68:68,Inputs!69:69) -> 0 | W33: =LOOKUP(W5,Inputs!68:68,Inputs!69:69) -> 0 | X33: =LOOKUP(X5,Inputs!68:68,Inputs!69:69) -> 0 | Y33: =LOOKUP(Y5,Inputs!68:68,Inputs!69:69) -> 0 | Z33: =LOOKUP(Z5,Inputs!68:68,Inputs!69:69) -> 0 | AA33: =LOOKUP(AA5,Inputs!68:68,Inputs!69:69) -> 0 | AB33: =LOOKUP(AB5,Inputs!68:68,Inputs!69:69) -> 0 | AC33: =LOOKUP(AC5,Inputs!68:68,Inputs!69:69) -> 0 | AD33: =LOOKUP(AD5,Inputs!68:68,Inputs!69:69) -> 0 | AE33: =LOOKUP(AE5,Inputs!68:68,Inputs!69:69) -> 0 | AF33: =LOOKUP(AF5,Inputs!68:68,Inputs!69:69) -> 0 | AG33: =LOOKUP(AG5,Inputs!68:68,Inputs!69:69) -> 0 | AH33: =LOOKUP(AH5,Inputs!68:68,Inputs!69:69) -> 0 | AI33: =LOOKUP(AI5,Inputs!68:68,Inputs!69:69) -> 0 | AJ33: =LOOKUP(AJ5,Inputs!68:68,Inputs!69:69) -> 0 | AK33: =LOOKUP(AK5,Inputs!68:68,Inputs!69:69) -> 0 | AL33: =LOOKUP(AL5,Inputs!68:68,Inputs!69:69) -> 0 | AM33: =LOOKUP(AM5,Inputs!68:68,Inputs!69:69) -> 0 | AN33: =LOOKUP(AN5,Inputs!68:68,Inputs!69:69) -> 0 | AO33: =LOOKUP(AO5,Inputs!68:68,Inputs!69:69) -> 0 | AP33: =LOOKUP(AP5,Inputs!68:68,Inputs!69:69) -> 0 | AQ33: =LOOKUP(AQ5,Inputs!68:68,Inputs!69:69) -> 0 | AR33: =LOOKUP(AR5,Inputs!68:68,Inputs!69:69) -> 0
C34: REC Flag | F34: Flag | G34: =Inputs!G71 -> 0 | J34: =J5<=$G$34 -> FALSE | K34: =K5<=$G$34 -> FALSE | L34: FALSE | M34: FALSE | N34: FALSE | O34: FALSE | P34: FALSE | Q34: FALSE | R34: FALSE | S34: FALSE | T34: FALSE | U34: FALSE | V34: FALSE | W34: FALSE | X34: FALSE | Y34: FALSE | Z34: FALSE | AA34: FALSE | AB34: FALSE | AC34: FALSE | AD34: FALSE | AE34: FALSE | AF34: FALSE | AG34: FALSE | AH34: FALSE | AI34: FALSE | AJ34: FALSE | AK34: FALSE | AL34: FALSE | AM34: FALSE | AN34: FALSE | AO34: FALSE | AP34: FALSE | AQ34: FALSE | AR34: FALSE
C35: REC Production | F35: MWhrs | J35: =J15/1000*J34 -> 0 | K35: =K15/1000*K34 -> 0 | L35: 0 | M35: 0 | N35: 0 | O35: 0 | P35: 0 | Q35: 0 | R35: 0 | S35: 0 | T35: 0 | U35: 0 | V35: 0 | W35: 0 | X35: 0 | Y35: 0 | Z35: 0 | AA35: 0 | AB35: 0 | AC35: 0 | AD35: 0 | AE35: 0 | AF35: 0 | AG35: 0 | AH35: 0 | AI35: 0 | AJ35: 0 | AK35: 0 | AL35: 0 | AM35: 0 | AN35: 0 | AO35: 0 | AP35: 0 | AQ35: 0 | AR35: 0
C36: REC Revenues | F36: $ | J36: =J33*J35 -> 0 | K36: =K33*K35 -> 0 | L36: 0 | M36: 0 | N36: 0 | O36: 0 | P36: 0 | Q36: 0 | R36: 0 | S36: 0 | T36: 0 | U36: 0 | V36: 0 | W36: 0 | X36: 0 | Y36: 0 | Z36: 0 | AA36: 0 | AB36: 0 | AC36: 0 | AD36: 0 | AE36: 0 | AF36: 0 | AG36: 0 | AH36: 0 | AI36: 0 | AJ36: 0 | AK36: 0 | AL36: 0 | AM36: 0 | AN36: 0 | AO36: 0 | AP36: 0 | AQ36: 0 | AR36: 0
C38: Total Revenues | F38: $ | J38: =J30+J31+J36 -> 948169.1542 | K38: =K30+K31+K36 -> 943451.8948 | L38: 938758.1042 | M38: 934087.6659 | N38: 929440.4636 | O38: 924816.3817 | P38: 920215.3052 | Q38: 915637.1196 | R38: 911081.711 | S38: 906548.9662 | T38: 902038.7723 | U38: 897551.0172 | V38: 893085.5893 | W38: 888642.3774 | X38: 884221.271 | Y38: 879822.1602 | Z38: 875444.9356 | AA38: 871089.4881 | AB38: 866755.7096 | AC38: 862443.4921 | AD38: 0 | AE38: 0 | AF38: 0 | AG38: 0 | AH38: 0 | AI38: 0 | AJ38: 0 | AK38: 0 | AL38: 0 | AM38: 0 | AN38: 0 | AO38: 0 | AP38: 0 | AQ38: 0 | AR38: 0 | BD38: Indiana | BE38: IN
B40: Operating Expenses | G40: $/kWy | H40: Inflation | BD40: Iowa | BE40: IA
C41: O&M Agreement - Preventative | F41: $/kWy | G41: =Inputs!$G73 -> 6 | H41: =Inputs!J73 -> 0.01 | J41: =IF(J$5=1,$G41,I41*(1+$H41)) -> 6 | K41: =IF(K$5=1,$G41,J41*(1+$H41)) -> 6.06 | L41: 6.1206 | M41: 6.181806 | N41: 6.24362406 | O41: 6.306060301 | P41: 6.369120904 | Q41: 6.432812113 | R41: 6.497140234 | S41: 6.562111636 | T41: 6.627732752 | U41: 6.69401008 | V41: 6.760950181 | W41: 6.828559683 | X41: 6.896845279 | Y41: 6.965813732 | Z41: 7.03547187 | AA41: 7.105826588 | AB41: 7.176884854 | AC41: 7.248653703 | AD41: 7.32114024 | AE41: 7.394351642 | AF41: 7.468295159 | AG41: 7.54297811 | AH41: 7.618407891 | AI41: 7.69459197 | AJ41: 7.77153789 | AK41: 7.849253269 | AL41: 7.927745801 | AM41: 8.007023259 | AN41: 8.087093492 | AO41: 8.167964427 | AP41: 8.249644071 | AQ41: 8.332140512 | AR41: 8.415461917 | BD41: Kansas | BE41: KS
C42: O&M Agreement - Corrective | F42: $/kWy | G42: =Inputs!$G74 -> 3 | H42: =Inputs!J74 -> 0.01 | J42: =IF(J$5=1,$G42,I42*(1+$H42)) -> 3 | K42: 3.03 | L42: 3.0603 | M42: 3.090903 | N42: 3.12181203 | O42: 3.15303015 | P42: 3.184560452 | Q42: 3.216406056 | R42: 3.248570117 | S42: 3.281055818 | T42: 3.313866376 | U42: 3.34700504 | V42: 3.38047509 | W42: 3.414279841 | X42: 3.44842264 | Y42: 3.482906866 | Z42: 3.517735935 | AA42: 3.552913294 | AB42: 3.588442427 | AC42: 3.624326851 | AD42: 3.66057012 | AE42: 3.697175821 | AF42: 3.734147579 | AG42: 3.771489055 | AH42: 3.809203946 | AI42: 3.847295985 | AJ42: 3.885768945 | AK42: 3.924626634 | AL42: 3.963872901 | AM42: 4.00351163 | AN42: 4.043546746 | AO42: 4.083982213 | AP42: 4.124822036 | AQ42: 4.166070256 | AR42: 4.207730959 | BD42: Kentucky | BE42: KY
C43: Management Fee | F43: $/kWy | G43: =Inputs!$G75 -> 2 | H43: =Inputs!J75 -> 0.01 | J43: 2 | K43: 2.02 | L43: 2.0402 | M43: 2.060602 | N43: 2.08120802 | O43: 2.1020201 | P43: 2.123040301 | Q43: 2.144270704 | R43: 2.165713411 | S43: 2.187370545 | T43: 2.209244251 | U43: 2.231336693 | V43: 2.25365006 | W43: 2.276186561 | X43: 2.298948426 | Y43: 2.321937911 | Z43: 2.34515729 | AA43: 2.368608863 | AB43: 2.392294951 | AC43: 2.416217901 | AD43: 2.44038008 | AE43: 2.464783881 | AF43: 2.48943172 | AG43: 2.514326037 | AH43: 2.539469297 | AI43: 2.56486399 | AJ43: 2.59051263 | AK43: 2.616417756 | AL43: 2.642581934 | AM43: 2.669007753 | AN43: 2.695697831 | AO43: 2.722654809 | AP43: 2.749881357 | AQ43: 2.777380171 | AR43: 2.805153972 | BD43: Louisiana | BE43: LA
C44: Insurance | F44: $/kWy | G44: =Inputs!$G76 -> 5.6 | H44: =Inputs!J76 -> 0 | J44: 5.6 | K44: 5.6 | L44: 5.6 | M44: 5.6 | N44: 5.6 | O44: 5.6 | P44: 5.6 | Q44: 5.6 | R44: 5.6 | S44: 5.6 | T44: 5.6 | U44: 5.6 | V44: 5.6 | W44: 5.6 | X44: 5.6 | Y44: 5.6 | Z44: 5.6 | AA44: 5.6 | AB44: 5.6 | AC44: 5.6 | AD44: 5.6 | AE44: 5.6 | AF44: 5.6 | AG44: 5.6 | AH44: 5.6 | AI44: 5.6 | AJ44: 5.6 | AK44: 5.6 | AL44: 5.6 | AM44: 5.6 | AN44: 5.6 | AO44: 5.6 | AP44: 5.6 | AQ44: 5.6 | AR44: 5.6 | BD44: Maine | BE44: ME
C45: Property Taxes | F45: =Inputs!J88 -> $/MWdc | G45: =Inputs!$G78 -> 0 | H45: =Inputs!J78 -> 0 | J45: 0 | K45: 0 | L45: 0 | M45: 0 | N45: 0 | O45: 0 | P45: 0 | Q45: 0 | R45: 0 | S45: 0 | T45: 0 | U45: 0 | V45: 0 | W45: 0 | X45: 0 | Y45: 0 | Z45: 0 | AA45: 0 | AB45: 0 | AC45: 0 | AD45: 0 | AE45: 0 | AF45: 0 | AG45: 0 | AH45: 0 | AI45: 0 | AJ45: 0 | AK45: 0 | AL45: 0 | AM45: 0 | AN45: 0 | AO45: 0 | AP45: 0 | AQ45: 0 | AR45: 0 | BD45: Maryland | BE45: MD
C46: Land Lease | F46: $ | G46: =Inputs!$G83 -> 35000 | H46: =Inputs!G84 -> 0 | J46: 35000 | K46: 35000 | L46: 35000 | M46: 35000 | N46: 35000 | O46: 35000 | P46: 35000 | Q46: 35000 | R46: 35000 | S46: 35000 | T46: 35000 | U46: 35000 | V46: 35000 | W46: 35000 | X46: 35000 | Y46: 35000 | Z46: 35000 | AA46: 35000 | AB46: 35000 | AC46: 35000 | AD46: 35000 | AE46: 35000 | AF46: 35000 | AG46: 35000 | AH46: 35000 | AI46: 35000 | AJ46: 35000 | AK46: 35000 | AL46: 35000 | AM46: 35000 | AN46: 35000 | AO46: 35000 | AP46: 35000 | AQ46: 35000 | AR46: 35000 | BD46: Massachusetts | BE46: MA
C47: Inverter Replacement
G48: kW
C49: O&M Exclusion | F49: Years | G49: =Inputs!G80 -> 2 | J49: =J5<=$G$49 -> TRUE | K49: =K5<=$G$49 -> TRUE | L49: FALSE | M49: FALSE | N49: FALSE | O49: FALSE | P49: FALSE | Q49: FALSE | R49: FALSE | S49: FALSE | T49: FALSE | U49: FALSE | V49: FALSE | W49: FALSE | X49: FALSE | Y49: FALSE | Z49: FALSE | AA49: FALSE | AB49: FALSE | AC49: FALSE | AD49: FALSE | AE49: FALSE | AF49: FALSE | AG49: FALSE | AH49: FALSE | AI49: FALSE | AJ49: FALSE | AK49: FALSE | AL49: FALSE | AM49: FALSE | AN49: FALSE | AO49: FALSE | AP49: FALSE | AQ49: FALSE | AR49: FALSE
C50: O&M Agreement - Preventative | F50: $ | G50: =Inputs!$G$32 -> 10000 | J50: =J41*J$9*NOT(J49) -> 0 | K50: =K41*K$9*NOT(K49) -> 0 | L50: 61206 | M50: 61818.06 | N50: 62436.2406 | O50: 63060.60301 | P50: 63691.20904 | Q50: 64328.12113 | R50: 64971.40234 | S50: 65621.11636 | T50: 66277.32752 | U50: 66940.1008 | V50: 67609.50181 | W50: 68285.59683 | X50: 68968.45279 | Y50: 69658.13732 | Z50: 70354.7187 | AA50: 71058.26588 | AB50: 71768.84854 | AC50: 72486.53703 | AD50: 73211.4024 | AE50: 73943.51642 | AF50: 74682.95159 | AG50: 75429.7811 | AH50: 76184.07891 | AI50: 0 | AJ50: 0 | AK50: 0 | AL50: 0 | AM50: 0 | AN50: 0 | AO50: 0 | AP50: 0 | AQ50: 0 | AR50: 0
C51: O&M Agreement - Corrective | F51: $ | G51: =Inputs!$G$32 -> 10000 | J51: =J42*J$9 -> 30000 | K51: 30300 | L51: 30603 | M51: 30909.03 | N51: 31218.1203 | O51: 31530.3015 | P51: 31845.60452 | Q51: 32164.06056 | R51: 32485.70117 | S51: 32810.55818 | T51: 33138.66376 | U51: 33470.0504 | V51: 33804.7509 | W51: 34142.79841 | X51: 34484.2264 | Y51: 34829.06866 | Z51: 35177.35935 | AA51: 35529.13294 | AB51: 35884.42427 | AC51: 36243.26851 | AD51: 36605.7012 | AE51: 36971.75821 | AF51: 37341.47579 | AG51: 37714.89055 | AH51: 38092.03946 | AI51: 0 | AJ51: 0 | AK51: 0 | AL51: 0 | AM51: 0 | AN51: 0 | AO51: 0 | AP51: 0 | AQ51: 0 | AR51: 0
C52: Management Fee | F52: $ | G52: =Inputs!$G$32 -> 10000 | J52: =J43*J$9 -> 20000 | K52: 20200 | L52: 20402 | M52: 20606.02 | N52: 20812.0802 | O52: 21020.201 | P52: 21230.40301 | Q52: 21442.70704 | R52: 21657.13411 | S52: 21873.70545 | T52: 22092.44251 | U52: 22313.36693 | V52: 22536.5006 | W52: 22761.86561 | X52: 22989.48426 | Y52: 23219.37911 | Z52: 23451.5729 | AA52: 23686.08863 | AB52: 23922.94951 | AC52: 24162.17901 | AD52: 24403.8008 | AE52: 24647.83881 | AF52: 24894.3172 | AG52: 25143.26037 | AH52: 25394.69297 | AI52: 0 | AJ52: 0 | AK52: 0 | AL52: 0 | AM52: 0 | AN52: 0 | AO52: 0 | AP52: 0 | AQ52: 0 | AR52: 0
C53: Insurance | F53: $ | G53: =Inputs!$G$32 -> 10000 | J53: =J44*J$9 -> 56000 | K53: 56000 | L53: 56000 | M53: 56000 | N53: 56000 | O53: 56000 | P53: 56000 | Q53: 56000 | R53: 56000 | S53: 56000 | T53: 56000 | U53: 56000 | V53: 56000 | W53: 56000 | X53: 56000 | Y53: 56000 | Z53: 56000 | AA53: 56000 | AB53: 56000 | AC53: 56000 | AD53: 56000 | AE53: 56000 | AF53: 56000 | AG53: 56000 | AH53: 56000 | AI53: 0 | AJ53: 0 | AK53: 0 | AL53: 0 | AM53: 0 | AN53: 0 | AO53: 0 | AP53: 0 | AQ53: 0 | AR53: 0
C54: Property Taxes | F54: $ | G54: 1 | H54: =Inputs!$G$77 -> 3 | J54: =J45*J6 -> 0 | K54: =CHOOSE($H$54,K45*K6,K45,K45*K9/1000) -> 0 | L54: =CHOOSE($H$54,L45*L6,L45,L45*L9/1000) -> 0 | M54: 0 | N54: 0 | O54: 0 | P54: 0 | Q54: 0 | R54: 0 | S54: 0 | T54: 0 | U54: 0 | V54: 0 | W54: 0 | X54: 0 | Y54: 0 | Z54: 0 | AA54: 0 | AB54: 0 | AC54: 0 | AD54: 0 | AE54: 0 | AF54: 0 | AG54: 0 | AH54: 0 | AI54: 0 | AJ54: 0 | AK54: 0 | AL54: 0 | AM54: 0 | AN54: 0 | AO54: 0 | AP54: 0 | AQ54: 0 | AR54: 0
C55: Land Lease | F55: $ | G55: =Inputs!$G$32 -> 10000 | J55: =J46*J6 -> 35000 | K55: =K46*K6 -> 35000 | L55: 35000 | M55: 35000 | N55: 35000 | O55: 35000 | P55: 35000 | Q55: 35000 | R55: 35000 | S55: 35000 | T55: 35000 | U55: 35000 | V55: 35000 | W55: 35000 | X55: 35000 | Y55: 35000 | Z55: 35000 | AA55: 35000 | AB55: 35000 | AC55: 35000 | AD55: 35000 | AE55: 35000 | AF55: 35000 | AG55: 35000 | AH55: 35000 | AI55: 0 | AJ55: 0 | AK55: 0 | AL55: 0 | AM55: 0 | AN55: 0 | AO55: 0 | AP55: 0 | AQ55: 0 | AR55: 0
H56: Cost/kWy
D57: Total Operating Expenses | F57: $ | G57: =Inputs!G93 -> 1 | H57: =J57/G9 -> 14.1 | J57: =SUM(J50:J55)*$G$57 -> 141000 | K57: 141500 | L57: 203211 | M57: 204333.11 | N57: 205466.4411 | O57: 206611.1055 | P57: 207767.2166 | Q57: 208934.8887 | R57: 210114.2376 | S57: 211305.38 | T57: 212508.4338 | U57: 213723.5181 | V57: 214950.7533 | W57: 216190.2608 | X57: 217442.1635 | Y57: 218706.5851 | Z57: 219983.6509 | AA57: 221273.4875 | AB57: 222576.2223 | AC57: 223891.9845 | AD57: 225220.9044 | AE57: 226563.1134 | AF57: 227918.7446 | AG57: 229287.932 | AH57: 230670.8113 | AI57: 0 | AJ57: 0 | AK57: 0 | AL57: 0 | AM57: 0 | AN57: 0 | AO57: 0 | AP57: 0 | AQ57: 0 | AR57: 0 | BD57: Michigan | BE57: MI
BD58: Minnesota | BE58: MN
C59: EBITDA (Contracted Revenues Only) | F59: $ | J59: =J30-J57+J36 -> 807169.1542 | K59: =K30-K57+K36 -> 801951.8948 | L59: 735547.1042 | M59: 729754.5559 | N59: 723974.0225 | O59: 718205.2762 | P59: 712448.0886 | Q59: 706702.2308 | R59: 700967.4734 | S59: 695243.5862 | T59: 689530.3385 | U59: 683827.4991 | V59: 678134.836 | W59: 672452.1165 | X59: 666779.1076 | Y59: 661115.5751 | Z59: 655461.2846 | AA59: 649816.0007 | AB59: 644179.4872 | AC59: 638551.5076 | AD59: -225220.9044 | AE59: -226563.1134 | AF59: -227918.7446 | AG59: -229287.932 | AH59: -230670.8113 | AI59: 0 | AJ59: 0 | AK59: 0 | AL59: 0 | AM59: 0 | AN59: 0 | AO59: 0 | AP59: 0 | AQ59: 0 | AR59: 0 | AS59: 0 | AT59: 0 | AU59: 0 | AV59: 0 | AW59: 0 | AX59: 0 | AY59: 0 | AZ59: 0 | BA59: 0 | BB59: 0 | BC59: 0 | BE59: MS
C60: EBITDA (Contracted + Uncontracted Revenues) | F60: $ | J60: =J30+J31-J57+J36 -> 807169.1542 | K60: =K30+K31-K57+K36 -> 801951.8948 | L60: 735547.1042 | M60: 729754.5559 | N60: 723974.0225 | O60: 718205.2762 | P60: 712448.0886 | Q60: 706702.2308 | R60: 700967.4734 | S60: 695243.5862 | T60: 689530.3385 | U60: 683827.4991 | V60: 678134.836 | W60: 672452.1165 | X60: 666779.1076 | Y60: 661115.5751 | Z60: 655461.2846 | AA60: 649816.0007 | AB60: 644179.4872 | AC60: 638551.5076 | AD60: -225220.9044 | AE60: -226563.1134 | AF60: -227918.7446 | AG60: -229287.932 | AH60: -230670.8113 | AI60: 0 | AJ60: 0 | AK60: 0 | AL60: 0 | AM60: 0 | AN60: 0 | AO60: 0 | AP60: 0 | AQ60: 0 | AR60: 0 | AS60: 0 | AT60: 0 | AU60: 0 | AV60: 0 | AW60: 0 | AX60: 0 | AY60: 0 | AZ60: 0 | BA60: 0 | BB60: 0 | BC60: 0
BD61: Montana | BE61: MT
C62: Inverter Replacement Flag | F62: Flag | G62: =Inputs!G85 -> 15 | H62: =Inputs!G88 -> 25 | J62: =IFERROR(IF(J5<=$H$62,MOD(J5,$G$62)=0,0),0) -> FALSE | K62: =IFERROR(IF(K5<=$H$62,MOD(K5,$G$62)=0,0),0) -> FALSE | L62: FALSE | M62: FALSE | N62: FALSE | O62: FALSE | P62: FALSE | Q62: FALSE | R62: FALSE | S62: FALSE | T62: FALSE | U62: FALSE | V62: FALSE | W62: FALSE | X62: TRUE | Y62: FALSE | Z62: FALSE | AA62: FALSE | AB62: FALSE | AC62: FALSE | AD62: FALSE | AE62: FALSE | AF62: FALSE | AG62: FALSE | AH62: FALSE | AI62: 0 | AJ62: 0 | AK62: 0 | AL62: 0 | AM62: 0 | AN62: 0 | AO62: 0 | AP62: 0 | AQ62: 0 | AR62: 0 | AS62: TRUE | AT62: TRUE | AU62: TRUE | AV62: TRUE | AW62: TRUE | AX62: TRUE | AY62: TRUE | AZ62: TRUE | BA62: TRUE | BB62: TRUE | BC62: TRUE | BD62: TRUE
C63: Inverter Inflation Index | F63: Index | G63: =Inputs!G87 -> 0 | I63: 1 | J63: =I63*(1+$G$63) -> 1 | K63: 1 | L63: 1 | M63: 1 | N63: 1 | O63: 1 | P63: 1 | Q63: 1 | R63: 1 | S63: 1 | T63: 1 | U63: 1 | V63: 1 | W63: 1 | X63: 1 | Y63: 1 | Z63: 1 | AA63: 1 | AB63: 1 | AC63: 1 | AD63: 1 | AE63: 1 | AF63: 1 | AG63: 1 | AH63: 1 | AI63: 1 | AJ63: 1 | AK63: 1 | AL63: 1 | AM63: 1 | AN63: 1 | AO63: 1 | AP63: 1 | AQ63: 1 | AR63: 1
C64: Inverter Cost | F64: $ | G64: =Inputs!G86 -> 0.055 | J64: =$G$64*J9*1000*J63*J62 -> 0 | K64: 0 | L64: 0 | M64: 0 | N64: 0 | O64: 0 | P64: 0 | Q64: 0 | R64: 0 | S64: 0 | T64: 0 | U64: 0 | V64: 0 | W64: 0 | X64: 550000 | Y64: 0 | Z64: 0 | AA64: 0 | AB64: 0 | AC64: 0 | AD64: 0 | AE64: 0 | AF64: 0 | AG64: 0 | AH64: 0 | AI64: 0 | AJ64: 0 | AK64: 0 | AL64: 0 | AM64: 0 | AN64: 0 | AO64: 0 | AP64: 0 | AQ64: 0 | AR64: 0
B66: Pre-tax Pre-Financing IRR & Yield | BD66: Oklahoma | BE66: OK
C67: Capital Expenditures | F67: $ | G67: =Inputs!G45 -> 10500000 | I67: =G67 -> 10500000
C68: Inverter Cost | J68: =J64 -> 0 | K68: 0 | L68: 0 | M68: 0 | N68: 0 | O68: 0 | P68: 0 | Q68: 0 | R68: 0 | S68: 0 | T68: 0 | U68: 0 | V68: 0 | W68: 0 | X68: 550000 | Y68: 0 | Z68: 0 | AA68: 0 | AB68: 0 | AC68: 0 | AD68: 0 | AE68: 0 | AF68: 0 | AG68: 0 | AH68: 0 | AI68: 0 | AJ68: 0 | AK68: 0 | AL68: 0 | AM68: 0 | AN68: 0 | AO68: 0 | AP68: 0 | AQ68: 0 | AR68: 0
C69: Pretax Cash Flow | I69: =-I67+I60-I68 -> -10500000 | J69: 807169.1542 | K69: 801951.8948 | L69: 735547.1042 | M69: 729754.5559 | N69: 723974.0225 | O69: 718205.2762 | P69: 712448.0886 | Q69: 706702.2308 | R69: 700967.4734 | S69: 695243.5862 | T69: 689530.3385 | U69: 683827.4991 | V69: 678134.836 | W69: 672452.1165 | X69: 116779.1076 | Y69: 661115.5751 | Z69: 655461.2846 | AA69: 649816.0007 | AB69: 644179.4872 | AC69: 638551.5076 | AD69: -225220.9044 | AE69: -226563.1134 | AF69: -227918.7446 | AG69: -229287.932 | AH69: -230670.8113 | AI69: 0 | AJ69: 0 | AK69: 0 | AL69: 0 | AM69: 0 | AN69: 0 | AO69: 0 | AP69: 0 | AQ69: 0 | AR69: 0 | BD69: Oregon | BE69: OR
C71: Pre-tax Partnership IRR | G71: =IFERROR(IRR(69:69),FALSE) -> 0.01849471153 | BD71: Rhode Island | BE71: RI
A73: Debt Financing at Partnership
C74: Debt Repayment Flag | G74: =Inputs!G194 -> 20 | J74: =(J5<=$G$74)*1 -> 1 | K74: 1 | L74: 1 | M74: 1 | N74: 1 | O74: 1 | P74: 1 | Q74: 1 | R74: 1 | S74: 1 | T74: 1 | U74: 1 | V74: 1 | W74: 1 | X74: 1 | Y74: 1 | Z74: 1 | AA74: 1 | AB74: 1 | AC74: 1 | AD74: 0 | AE74: 0 | AF74: 0 | AG74: 0 | AH74: 0 | AI74: 0 | AJ74: 0 | AK74: 0 | AL74: 0 | AM74: 0 | AN74: 0 | AO74: 0 | AP74: 0 | AQ74: 0 | AR74: 0 | BD74: Vermont | BE74: VT
C76: Uses of Funds
C77: CapEx | I77: =I67 -> 10500000
C78: Debt Service Reserve Account | G78: =Inputs!G183 -> TRUE | I78: =Inputs!G197*G78 -> 0
C79: Inverter/Equipment Replacement Reserve Acct. | G79: =Inputs!G183 -> TRUE | I79: =Inputs!G198*G79 -> 0
D80: Total | I80: =SUM(I77:I79) -> 10500000
C82: Debt Financing at LLC Partnership | I82: =H108 -> 5775000
C83: Equity Financing | I83: =I80-I82 -> 4725000
D84: Total Sources of Funds | I84: =SUM(I82:I83) -> 10500000
B86: Equity Financing in Partnership
C87: Gross Funding - Capital Expenditures | I87: =I77 -> 10500000
C88: Less: Sources - Debt @ Project Level | G88: Percent | I88: =I125 -> 5775000 | J88: =I88/I87 -> 0.55
C89: Add: Reserves | I89: =Inputs!G197+Inputs!G198 -> 0
C90: Net Funding Needs from Equity | I90: =I87-I88+I89 -> 4725000
C92: Sources - Tax Equity | G92: Contribution | H92: =Inputs!G152 -> 1.15 | I92: =I96*H92 -> 3139500
C93: Sources - Sponsor | G93: Percent | I93: =I90-I92 -> 1585500
D94: Total | I94: =SUM(I92:I93) -> 4725000
C96: ITC (Mainly Used by Tax Equity) | I96: =I177 -> 2730000
B99: Debt Sizing
C100: Cash Flow for Debt Service (EBITDA) | J100: =J74*J59 -> 807169.1542 | K100: 801951.8948 | L100: 735547.1042 | M100: 729754.5559 | N100: 723974.0225 | O100: 718205.2762 | P100: 712448.0886 | Q100: 706702.2308 | R100: 700967.4734 | S100: 695243.5862 | T100: 689530.3385 | U100: 683827.4991 | V100: 678134.836 | W100: 672452.1165 | X100: 666779.1076 | Y100: 661115.5751 | Z100: 655461.2846 | AA100: 649816.0007 | AB100: 644179.4872 | AC100: 638551.5076 | AD100: 0 | AE100: 0 | AF100: 0 | AG100: 0 | AH100: 0 | AI100: 0 | AJ100: 0 | AK100: 0 | AL100: 0 | AM100: 0 | AN100: 0 | AO100: 0 | AP100: 0 | AQ100: 0 | AR100: 0 | BD100: Virginia | BE100: VA
C101: Target DSCR | G101: =Inputs!G187 -> 1.25 | J101: =$G$101 -> 1.25 | K101: =$G$101 -> 1.25 | L101: 1.25 | M101: 1.25 | N101: 1.25 | O101: 1.25 | P101: 1.25 | Q101: 1.25 | R101: 1.25 | S101: 1.25 | T101: 1.25 | U101: 1.25 | V101: 1.25 | W101: 1.25 | X101: 1.25 | Y101: 1.25 | Z101: 1.25 | AA101: 1.25 | AB101: 1.25 | AC101: 1.25 | AD101: 1.25 | AE101: 1.25 | AF101: 1.25 | AG101: 1.25 | AH101: 1.25 | AI101: 1.25 | AJ101: 1.25 | AK101: 1.25 | AL101: 1.25 | AM101: 1.25 | AN101: 1.25 | AO101: 1.25 | AP101: 1.25 | AQ101: 1.25 | AR101: 1.25 | BD101: Washington | BE101: WA
C102: Debt Service from Target DSCR | J102: =J100/Inputs!$G$187 -> 645735.3234 | K102: =K100/Inputs!$G$187 -> 641561.5158 | L102: =L100/Inputs!$G$187 -> 588437.6834 | M102: =M100/Inputs!$G$187 -> 583803.6447 | N102: =N100/Inputs!$G$187 -> 579179.218 | O102: =O100/Inputs!$G$187 -> 574564.2209 | P102: =P100/Inputs!$G$187 -> 569958.4709 | Q102: =Q100/Inputs!$G$187 -> 565361.7847 | R102: =R100/Inputs!$G$187 -> 560773.9787 | S102: =S100/Inputs!$G$187 -> 556194.8689 | T102: =T100/Inputs!$G$187 -> 551624.2708 | U102: =U100/Inputs!$G$187 -> 547061.9993 | V102: =V100/Inputs!$G$187 -> 542507.8688 | W102: =W100/Inputs!$G$187 -> 537961.6932 | X102: =X100/Inputs!$G$187 -> 533423.2861 | Y102: =Y100/Inputs!$G$187 -> 528892.4601 | Z102: =Z100/Inputs!$G$187 -> 524369.0277 | AA102: =AA100/Inputs!$G$187 -> 519852.8005 | AB102: =AB100/Inputs!$G$187 -> 515343.5898 | AC102: =AC100/Inputs!$G$187 -> 510841.206 | AD102: =AD100/Inputs!$G$187 -> 0 | AE102: =AE100/Inputs!$G$187 -> 0 | AF102: =AF100/Inputs!$G$187 -> 0 | AG102: =AG100/Inputs!$G$187 -> 0 | AH102: =AH100/Inputs!$G$187 -> 0 | AI102: =AI100/Inputs!$G$187 -> 0 | AJ102: =AJ100/Inputs!$G$187 -> 0 | AK102: =AK100/Inputs!$G$187 -> 0 | AL102: =AL100/Inputs!$G$187 -> 0 | AM102: =AM100/Inputs!$G$187 -> 0 | AN102: =AN100/Inputs!$G$187 -> 0 | AO102: =AO100/Inputs!$G$187 -> 0 | AP102: =AP100/Inputs!$G$187 -> 0 | AQ102: =AQ100/Inputs!$G$187 -> 0 | AR102: =AR100/Inputs!$G$187 -> 0 | BD102: West Virginia | BE102: WV
C104: Debt Size from DSCR (NPV of Debt Service) | G104: =NPV(G126,102:102) -> 7114363.69 | BD104: Wyoming | BE104: WY
C105: Debt Size from Debt to Capital | E105: Debt/Cap | F105: =Inputs!G188 -> 0.55 | G105: =F105*I80 -> 5775000
C106: Fixed Debt Inputs | G106: =Inputs!G189 -> 1787000
C107: Final Debt Applied from DSCR or Debt to Capital | E107: Debt Method | F107: =Inputs!G190 -> 2 | G107: =INDEX(G104:G106,F107) -> 5775000
C108: Debt Applied at Partnership | G108: =Inputs!G183 -> TRUE | H108: =G108*G107 -> 5775000
C110: Total Capital Expenditure and Reserves | G110: =Inputs!G45+I78+I79 -> 10500000
C111: Debt to Capital from Sculpting | G111: =G104/G110 -> 0.6775584466
B113: Alternative Debt Service Calculations for Repayment Calculation
C114: Sculpted Debt Service
C115: Mortgage (Flat) Debt Service
C116: Debt Service from Flat Repayment
C118: Total Mortgage (repayment/flat) Debt Service | F118: =Inputs!$G$192 -> 0.0495 | G118: =Inputs!$K$195 -> 20 | H118: =H108 -> 5775000 | I118: =PMT($F$118,$G$118,-$H$118)*I74 -> 0 | J118: 461438.3812 | K118: 461438.3812 | L118: 461438.3812 | M118: 461438.3812 | N118: 461438.3812 | O118: 461438.3812 | P118: 461438.3812 | Q118: 461438.3812 | R118: 461438.3812 | S118: 461438.3812 | T118: 461438.3812 | U118: 461438.3812 | V118: 461438.3812 | W118: 461438.3812 | X118: 461438.3812 | Y118: 461438.3812 | Z118: 461438.3812 | AA118: 461438.3812 | AB118: 461438.3812 | AC118: 461438.3812 | AD118: 0 | AE118: 0 | AF118: 0 | AG118: 0 | AH118: 0 | AI118: 0 | AJ118: 0 | AK118: 0 | AL118: 0 | AM118: 0 | AN118: 0 | AO118: 0 | AP118: 0 | AQ118: 0 | AR118: 0
C119: Total Sculpted Debt Service | J119: =J102 -> 645735.3234 | K119: 641561.5158 | L119: 588437.6834 | M119: 583803.6447 | N119: 579179.218 | O119: 574564.2209 | P119: 569958.4709 | Q119: 565361.7847 | R119: 560773.9787 | S119: 556194.8689 | T119: 551624.2708 | U119: 547061.9993 | V119: 542507.8688 | W119: 537961.6932 | X119: 533423.2861 | Y119: 528892.4601 | Z119: 524369.0277 | AA119: 519852.8005 | AB119: 515343.5898 | AC119: 510841.206 | AD119: 0 | AE119: 0 | AF119: 0 | AG119: 0 | AH119: 0 | AI119: 0 | AJ119: 0 | AK119: 0 | AL119: 0 | AM119: 0 | AN119: 0 | AO119: 0 | AP119: 0 | AQ119: 0 | AR119: 0
C120: Applied Debt Service | E120: DSCR or Debt to Capital | G120: =F107 -> 2 | H120: =IF(G120=2,"Mortgage","Sculpted") -> Mortgage | J120: =IF($G$120=1,J119,J118) -> 461438.3812 | K120: 461438.3812 | L120: 461438.3812 | M120: 461438.3812 | N120: 461438.3812 | O120: 461438.3812 | P120: 461438.3812 | Q120: 461438.3812 | R120: 461438.3812 | S120: 461438.3812 | T120: 461438.3812 | U120: 461438.3812 | V120: 461438.3812 | W120: 461438.3812 | X120: 461438.3812 | Y120: 461438.3812 | Z120: 461438.3812 | AA120: 461438.3812 | AB120: 461438.3812 | AC120: 461438.3812 | AD120: 0 | AE120: 0 | AF120: 0 | AG120: 0 | AH120: 0 | AI120: 0 | AJ120: 0 | AK120: 0 | AL120: 0 | AM120: 0 | AN120: 0 | AO120: 0 | AP120: 0 | AQ120: 0 | AR120: 0
B122: Debt Balance at Partnership
C123: Open Balance | J123: =I125 -> 5775000 | K123: 5599424.119 | L123: 5415157.232 | M123: 5221769.133 | N123: 5018808.324 | O123: 4805800.955 | P123: 4582249.721 | Q123: 4347632.701 | R123: 4101402.139 | S123: 3842983.163 | T123: 3571772.449 | U123: 3287136.804 | V123: 2988411.694 | W123: 2674899.692 | X123: 2345868.846 | Y123: 2000550.972 | Z123: 1638139.864 | AA123: 1257789.406 | AB123: 858611.6007 | AC123: 439674.4937 | AD123: 2.037268132e-09 | AE123: 2.138112905e-09 | AF123: 2.243949493e-09 | AG123: 2.355024993e-09 | AH123: 2.47159873e-09 | AI123: 2.593942868e-09 | AJ123: 2.722343039e-09 | AK123: 2.85709902e-09 | AL123: 2.998525421e-09 | AM123: 3.14695243e-09 | AN123: 3.302726575e-09 | AO123: 3.46621154e-09 | AP123: 3.637789012e-09 | AQ123: 3.817859568e-09 | AR123: 4.006843616e-09
C124: Repayment | G124: =G108 -> TRUE | J124: =(J120-J126)*$G$124 -> 175575.8812 | K124: =(K120-K126)*$G$124 -> 184266.8873 | L124: 193388.0982 | M124: 202960.8091 | N124: 213007.3691 | O124: 223551.2339 | P124: 234617.02 | Q124: 246230.5625 | R124: 258418.9753 | S124: 271210.7146 | T124: 284635.645 | U124: 298725.1094 | V124: 313512.0023 | W124: 329030.8464 | X124: 345317.8733 | Y124: 362411.1081 | Z124: 380350.4579 | AA124: 399177.8056 | AB124: 418937.107 | AC124: 439674.4937 | AD124: -1.008447725e-10 | AE124: -1.058365888e-10 | AF124: -1.110754999e-10 | AG124: -1.165737372e-10 | AH124: -1.223441372e-10 | AI124: -1.284001719e-10 | AJ124: -1.347559805e-10 | AK124: -1.414264015e-10 | AL124: -1.484270084e-10 | AM124: -1.557741453e-10 | AN124: -1.634849655e-10 | AO124: -1.715774713e-10 | AP124: -1.800705561e-10 | AQ124: -1.889840486e-10 | AR124: -1.98338759e-10
C125: Closing Balance | I125: =H108 -> 5775000 | J125: =J123-J124 -> 5599424.119 | K125: =K123-K124 -> 5415157.232 | L125: 5221769.133 | M125: 5018808.324 | N125: 4805800.955 | O125: 4582249.721 | P125: 4347632.701 | Q125: 4101402.139 | R125: 3842983.163 | S125: 3571772.449 | T125: 3287136.804 | U125: 2988411.694 | V125: 2674899.692 | W125: 2345868.846 | X125: 2000550.972 | Y125: 1638139.864 | Z125: 1257789.406 | AA125: 858611.6007 | AB125: 439674.4937 | AC125: 2.037268132e-09 | AD125: 2.138112905e-09 | AE125: 2.243949493e-09 | AF125: 2.355024993e-09 | AG125: 2.47159873e-09 | AH125: 2.593942868e-09 | AI125: 2.722343039e-09 | AJ125: 2.85709902e-09 | AK125: 2.998525421e-09 | AL125: 3.14695243e-09 | AM125: 3.302726575e-09 | AN125: 3.46621154e-09 | AO125: 3.637789012e-09 | AP125: 3.817859568e-09 | AQ125: 4.006843616e-09 | AR125: 4.205182375e-09
C126: Interest | E126: Interest Rate | G126: =Inputs!G192 -> 0.0495 | J126: =J123*$G$126 -> 285862.5 | K126: =K123*$G$126 -> 277171.4939 | L126: 268050.283 | M126: 258477.5721 | N126: 248431.012 | O126: 237887.1473 | P126: 226821.3612 | Q126: 215207.8187 | R126: 203019.4059 | S126: 190227.6666 | T126: 176802.7362 | U126: 162713.2718 | V126: 147926.3789 | W126: 132407.5348 | X126: 116120.5079 | Y126: 99027.27313 | Z126: 81087.92328 | AA126: 62260.57561 | AB126: 42501.27423 | AC126: 21763.88744 | AD126: 1.008447725e-10 | AE126: 1.058365888e-10 | AF126: 1.110754999e-10 | AG126: 1.165737372e-10 | AH126: 1.223441372e-10 | AI126: 1.284001719e-10 | AJ126: 1.347559805e-10 | AK126: 1.414264015e-10 | AL126: 1.484270084e-10 | AM126: 1.557741453e-10 | AN126: 1.634849655e-10 | AO126: 1.715774713e-10 | AP126: 1.800705561e-10 | AQ126: 1.889840486e-10 | AR126: 1.98338759e-10
B128: Debt Check | E128: Debt Tenor | G128: =G118 -> 20 | H128: =ROUND(LOOKUP(G128,5:5,125:125),0)=0 -> TRUE
C130: Defaulted Debt
D131: Opening Balance | J131: =I134 -> 0 | K131: =J134 -> 0 | L131: 0 | M131: 0 | N131: 0 | O131: 0 | P131: 0 | Q131: 0 | R131: 0 | S131: 0 | T131: 0 | U131: 0 | V131: 0 | W131: 0 | X131: 0 | Y131: 344659.2736 | Z131: 162042.7137 | AA131: 0 | AB131: 0 | AC131: 0 | AD131: 0 | AE131: 225220.9044 | AF131: 462932.4526 | AG131: 713766.3536 | AH131: 978385.7201 | AI131: 1257486.625 | AJ131: 1319732.212 | AK131: 1385058.957 | AL131: 1453619.375 | AM131: 1525573.534 | AN131: 1601089.424 | AO131: 1680343.351 | AP131: 1763520.347 | AQ131: 1850814.604 | AR131: 1942429.927
D132: Add: Default | J132: =J156 -> 0 | K132: =K156 -> 0 | L132: 0 | M132: 0 | N132: 0 | O132: 0 | P132: 0 | Q132: 0 | R132: 0 | S132: 0 | T132: 0 | U132: 0 | V132: 0 | W132: 0 | X132: 344659.2736 | Y132: 0 | Z132: 0 | AA132: 0 | AB132: 0 | AC132: 0 | AD132: 225220.9044 | AE132: 237711.5482 | AF132: 250833.901 | AG132: 264619.3665 | AH132: 279100.9045 | AI132: 62245.58792 | AJ132: 65326.74452 | AK132: 68560.41837 | AL132: 71954.15908 | AM132: 75515.88996 | AN132: 79253.92651 | AO132: 83176.99587 | AP132: 87294.25717 | AQ132: 91615.3229 | AR132: 96150.28138
D133: Less: Repayment of Default | J133: =J157 -> 0 | K133: =K157 -> 0 | L133: 0 | M133: 0 | N133: 0 | O133: 0 | P133: 0 | Q133: 0 | R133: 0 | S133: 0 | T133: 0 | U133: 0 | V133: 0 | W133: 0 | X133: 0 | Y133: 182616.5599 | Z133: 162042.7137 | AA133: 0 | AB133: 0 | AC133: 0 | AD133: 0 | AE133: 0 | AF133: 0 | AG133: 0 | AH133: 0 | AI133: 0 | AJ133: 0 | AK133: 0 | AL133: 0 | AM133: 0 | AN133: 0 | AO133: 0 | AP133: 0 | AQ133: 0 | AR133: 0
D134: Closing Balance | J134: =J131+J132-J133 -> 0 | K134: =K131+K132-K133 -> 0 | L134: 0 | M134: 0 | N134: 0 | O134: 0 | P134: 0 | Q134: 0 | R134: 0 | S134: 0 | T134: 0 | U134: 0 | V134: 0 | W134: 0 | X134: 344659.2736 | Y134: 162042.7137 | Z134: 0 | AA134: 0 | AB134: 0 | AC134: 0 | AD134: 225220.9044 | AE134: 462932.4526 | AF134: 713766.3536 | AG134: 978385.7201 | AH134: 1257486.625 | AI134: 1319732.212 | AJ134: 1385058.957 | AK134: 1453619.375 | AL134: 1525573.534 | AM134: 1601089.424 | AN134: 1680343.351 | AO134: 1763520.347 | AP134: 1850814.604 | AQ134: 1942429.927 | AR134: 2038580.208
D135: Interest on Default | F135: =F118 -> 0.0495 | J135: =$F$135*J131 -> 0 | K135: =$F$135*K131 -> 0 | L135: 0 | M135: 0 | N135: 0 | O135: 0 | P135: 0 | Q135: 0 | R135: 0 | S135: 0 | T135: 0 | U135: 0 | V135: 0 | W135: 0 | X135: 0 | Y135: 17060.63404 | Z135: 8021.114328 | AA135: 0 | AB135: 0 | AC135: 0 | AD135: 0 | AE135: 11148.43477 | AF135: 22915.1564 | AG135: 35331.4345 | AH135: 48430.09314 | AI135: 62245.58792 | AJ135: 65326.74452 | AK135: 68560.41837 | AL135: 71954.15908 | AM135: 75515.88996 | AN135: 79253.92651 | AO135: 83176.99587 | AP135: 87294.25717 | AQ135: 91615.3229 | AR135: 96150.28138
B137: Reserve Accounts
C138: Inverter Replacement Account
D139: Opening Balance | J139: =I142 -> 0 | K139: =J142 -> 0 | L139: 0 | M139: 0 | N139: 0 | O139: 0 | P139: 0 | Q139: 0 | R139: 0 | S139: 0 | T139: 0 | U139: 0 | V139: 0 | W139: 0 | X139: 0 | Y139: 0 | Z139: 0 | AA139: 0 | AB139: 0 | AC139: 0 | AD139: 0 | AE139: 0 | AF139: 0 | AG139: 0 | AH139: 0 | AI139: 0 | AJ139: 0 | AK139: 0 | AL139: 0 | AM139: 0 | AN139: 0 | AO139: 0 | AP139: 0 | AQ139: 0 | AR139: 0
D140: Add Additional Funding
D141: Less Reserve Used for Inverter Replacement | J141: =MIN(J68,J139) -> 0 | K141: 0 | L141: 0 | M141: 0 | N141: 0 | O141: 0 | P141: 0 | Q141: 0 | R141: 0 | S141: 0 | T141: 0 | U141: 0 | V141: 0 | W141: 0 | X141: 0 | Y141: 0 | Z141: 0 | AA141: 0 | AB141: 0 | AC141: 0 | AD141: 0 | AE141: 0 | AF141: 0 | AG141: 0 | AH141: 0 | AI141: 0 | AJ141: 0 | AK141: 0 | AL141: 0 | AM141: 0 | AN141: 0 | AO141: 0 | AP141: 0 | AQ141: 0 | AR141: 0
D142: Closing Balance | I142: =I79 -> 0 | J142: =J139+J140-J141 -> 0 | K142: =K139+K140-K141 -> 0 | L142: 0 | M142: 0 | N142: 0 | O142: 0 | P142: 0 | Q142: 0 | R142: 0 | S142: 0 | T142: 0 | U142: 0 | V142: 0 | W142: 0 | X142: 0 | Y142: 0 | Z142: 0 | AA142: 0 | AB142: 0 | AC142: 0 | AD142: 0 | AE142: 0 | AF142: 0 | AG142: 0 | AH142: 0 | AI142: 0 | AJ142: 0 | AK142: 0 | AL142: 0 | AM142: 0 | AN142: 0 | AO142: 0 | AP142: 0 | AQ142: 0 | AR142: 0
C144: Debt Service Reserve Required Balance | I144: =$I$78 -> 0 | J144: =$I$144*J74 -> 0 | K144: 0 | L144: 0 | M144: 0 | N144: 0 | O144: 0 | P144: 0 | Q144: 0 | R144: 0 | S144: 0 | T144: 0 | U144: 0 | V144: 0 | W144: 0 | X144: 0 | Y144: 0 | Z144: 0 | AA144: 0 | AB144: 0 | AC144: 0 | AD144: 0 | AE144: 0 | AF144: 0 | AG144: 0 | AH144: 0 | AI144: 0 | AJ144: 0 | AK144: 0 | AL144: 0 | AM144: 0 | AN144: 0 | AO144: 0 | AP144: 0 | AQ144: 0 | AR144: 0
D145: Opening Balance | J145: =I147 -> 0 | K145: =J147 -> 0 | L145: 0 | M145: 0 | N145: 0 | O145: 0 | P145: 0 | Q145: 0 | R145: 0 | S145: 0 | T145: 0 | U145: 0 | V145: 0 | W145: 0 | X145: 0 | Y145: 0 | Z145: 0 | AA145: 0 | AB145: 0 | AC145: 0 | AD145: 0 | AE145: 0 | AF145: 0 | AG145: 0 | AH145: 0 | AI145: 0 | AJ145: 0 | AK145: 0 | AL145: 0 | AM145: 0 | AN145: 0 | AO145: 0 | AP145: 0 | AQ145: 0 | AR145: 0
D146: Change in Reserve Account | J146: =J144-I144 -> 0 | K146: =K144-J144 -> 0 | L146: 0 | M146: 0 | N146: 0 | O146: 0 | P146: 0 | Q146: 0 | R146: 0 | S146: 0 | T146: 0 | U146: 0 | V146: 0 | W146: 0 | X146: 0 | Y146: 0 | Z146: 0 | AA146: 0 | AB146: 0 | AC146: 0 | AD146: 0 | AE146: 0 | AF146: 0 | AG146: 0 | AH146: 0 | AI146: 0 | AJ146: 0 | AK146: 0 | AL146: 0 | AM146: 0 | AN146: 0 | AO146: 0 | AP146: 0 | AQ146: 0 | AR146: 0
D147: Closing Balance | I147: =I78 -> 0 | J147: =J145+J146 -> 0 | K147: =K145+K146 -> 0 | L147: 0 | M147: 0 | N147: 0 | O147: 0 | P147: 0 | Q147: 0 | R147: 0 | S147: 0 | T147: 0 | U147: 0 | V147: 0 | W147: 0 | X147: 0 | Y147: 0 | Z147: 0 | AA147: 0 | AB147: 0 | AC147: 0 | AD147: 0 | AE147: 0 | AF147: 0 | AG147: 0 | AH147: 0 | AI147: 0 | AJ147: 0 | AK147: 0 | AL147: 0 | AM147: 0 | AN147: 0 | AO147: 0 | AP147: 0 | AQ147: 0 | AR147: 0
C149: Equity Cash Flow
D150: EBITDA of Partnership | I150: =I60 -> 0 | J150: 807169.1542 | K150: 801951.8948 | L150: 735547.1042 | M150: 729754.5559 | N150: 723974.0225 | O150: 718205.2762 | P150: 712448.0886 | Q150: 706702.2308 | R150: 700967.4734 | S150: 695243.5862 | T150: 689530.3385 | U150: 683827.4991 | V150: 678134.836 | W150: 672452.1165 | X150: 666779.1076 | Y150: 661115.5751 | Z150: 655461.2846 | AA150: 649816.0007 | AB150: 644179.4872 | AC150: 638551.5076 | AD150: -225220.9044 | AE150: -226563.1134 | AF150: -227918.7446 | AG150: -229287.932 | AH150: -230670.8113 | AI150: 0 | AJ150: 0 | AK150: 0 | AL150: 0 | AM150: 0 | AN150: 0 | AO150: 0 | AP150: 0 | AQ150: 0 | AR150: 0
D151: Less: Debt Service | I151: =I126+I124+I135 -> 0 | J151: =J126+J124+J135 -> 461438.3812 | K151: =K126+K124+K135 -> 461438.3812 | L151: 461438.3812 | M151: 461438.3812 | N151: 461438.3812 | O151: 461438.3812 | P151: 461438.3812 | Q151: 461438.3812 | R151: 461438.3812 | S151: 461438.3812 | T151: 461438.3812 | U151: 461438.3812 | V151: 461438.3812 | W151: 461438.3812 | X151: 461438.3812 | Y151: 478499.0152 | Z151: 469459.4955 | AA151: 461438.3812 | AB151: 461438.3812 | AC151: 461438.3812 | AD151: 0 | AE151: 11148.43477 | AF151: 22915.1564 | AG151: 35331.4345 | AH151: 48430.09314 | AI151: 62245.58792 | AJ151: 65326.74452 | AK151: 68560.41837 | AL151: 71954.15908 | AM151: 75515.88996 | AN151: 79253.92651 | AO151: 83176.99587 | AP151: 87294.25717 | AQ151: 91615.3229 | AR151: 96150.28138
D152: Add: Release of Debt Service Reserve Account | I152: =-I146 -> 0 | J152: 0 | K152: 0 | L152: 0 | M152: 0 | N152: 0 | O152: 0 | P152: 0 | Q152: 0 | R152: 0 | S152: 0 | T152: 0 | U152: 0 | V152: 0 | W152: 0 | X152: 0 | Y152: 0 | Z152: 0 | AA152: 0 | AB152: 0 | AC152: 0 | AD152: 0 | AE152: 0 | AF152: 0 | AG152: 0 | AH152: 0 | AI152: 0 | AJ152: 0 | AK152: 0 | AL152: 0 | AM152: 0 | AN152: 0 | AO152: 0 | AP152: 0 | AQ152: 0 | AR152: 0
D153: Less Inverter Replacement Cost | I153: =I68 -> 0 | J153: 0 | K153: 0 | L153: 0 | M153: 0 | N153: 0 | O153: 0 | P153: 0 | Q153: 0 | R153: 0 | S153: 0 | T153: 0 | U153: 0 | V153: 0 | W153: 0 | X153: 550000 | Y153: 0 | Z153: 0 | AA153: 0 | AB153: 0 | AC153: 0 | AD153: 0 | AE153: 0 | AF153: 0 | AG153: 0 | AH153: 0 | AI153: 0 | AJ153: 0 | AK153: 0 | AL153: 0 | AM153: 0 | AN153: 0 | AO153: 0 | AP153: 0 | AQ153: 0 | AR153: 0
D154: Add: Release of Inverter Reserve Account | I154: =I141 -> 0 | J154: 0 | K154: 0 | L154: 0 | M154: 0 | N154: 0 | O154: 0 | P154: 0 | Q154: 0 | R154: 0 | S154: 0 | T154: 0 | U154: 0 | V154: 0 | W154: 0 | X154: 0 | Y154: 0 | Z154: 0 | AA154: 0 | AB154: 0 | AC154: 0 | AD154: 0 | AE154: 0 | AF154: 0 | AG154: 0 | AH154: 0 | AI154: 0 | AJ154: 0 | AK154: 0 | AL154: 0 | AM154: 0 | AN154: 0 | AO154: 0 | AP154: 0 | AQ154: 0 | AR154: 0
D155: Net Cash Flow Before Default | J155: =J150-J151+J152-J153+J154 -> 345730.773 | K155: =K150-K151+K152-K153+K154 -> 340513.5136 | L155: 274108.723 | M155: 268316.1747 | N155: 262535.6413 | O155: 256766.895 | P155: 251009.7074 | Q155: 245263.8496 | R155: 239529.0922 | S155: 233805.205 | T155: 228091.9573 | U155: 222389.1179 | V155: 216696.4548 | W155: 211013.7354 | X155: -344659.2736 | Y155: 182616.5599 | Z155: 186001.7891 | AA155: 188377.6195 | AB155: 182741.1061 | AC155: 177113.1264 | AD155: -225220.9044 | AE155: -237711.5482 | AF155: -250833.901 | AG155: -264619.3665 | AH155: -279100.9045 | AI155: -62245.58792 | AJ155: -65326.74452 | AK155: -68560.41837 | AL155: -71954.15908 | AM155: -75515.88996 | AN155: -79253.92651 | AO155: -83176.99587 | AP155: -87294.25717 | AQ155: -91615.3229 | AR155: -96150.28138
D156: Add: Default | J156: =MAX(-J155,0) -> 0 | K156: =MAX(-K155,0) -> 0 | L156: 0 | M156: 0 | N156: 0 | O156: 0 | P156: 0 | Q156: 0 | R156: 0 | S156: 0 | T156: 0 | U156: 0 | V156: 0 | W156: 0 | X156: 344659.2736 | Y156: 0 | Z156: 0 | AA156: 0 | AB156: 0 | AC156: 0 | AD156: 225220.9044 | AE156: 237711.5482 | AF156: 250833.901 | AG156: 264619.3665 | AH156: 279100.9045 | AI156: 62245.58792 | AJ156: 65326.74452 | AK156: 68560.41837 | AL156: 71954.15908 | AM156: 75515.88996 | AN156: 79253.92651 | AO156: 83176.99587 | AP156: 87294.25717 | AQ156: 91615.3229 | AR156: 96150.28138
D157: Less: Repayment of Default | J157: =MIN(J131,MAX(J155,0)) -> 0 | K157: =MIN(K131,MAX(K155,0)) -> 0 | L157: 0 | M157: 0 | N157: 0 | O157: 0 | P157: 0 | Q157: 0 | R157: 0 | S157: 0 | T157: 0 | U157: 0 | V157: 0 | W157: 0 | X157: 0 | Y157: 182616.5599 | Z157: 162042.7137 | AA157: 0 | AB157: 0 | AC157: 0 | AD157: 0 | AE157: 0 | AF157: 0 | AG157: 0 | AH157: 0 | AI157: 0 | AJ157: 0 | AK157: 0 | AL157: 0 | AM157: 0 | AN157: 0 | AO157: 0 | AP157: 0 | AQ157: 0 | AR157: 0
D158: Equity Cash Flow After Default | I158: =-I83 -> -4725000 | J158: =J155+J156-J157 -> 345730.773 | K158: =K155+K156-K157 -> 340513.5136 | L158: 274108.723 | M158: 268316.1747 | N158: 262535.6413 | O158: 256766.895 | P158: 251009.7074 | Q158: 245263.8496 | R158: 239529.0922 | S158: 233805.205 | T158: 228091.9573 | U158: 222389.1179 | V158: 216696.4548 | W158: 211013.7354 | X158: 0 | Y158: 0 | Z158: 23959.07539 | AA158: 188377.6195 | AB158: 182741.1061 | AC158: 177113.1264 | AD158: 0 | AE158: 0 | AF158: 0 | AG158: 0 | AH158: 0 | AI158: 0 | AJ158: 0 | AK158: 0 | AL158: 0 | AM158: 0 | AN158: 0 | AO158: 0 | AP158: 0 | AQ158: 0 | AR158: 0
D160: DSCR Problem Test | G160: =AND(J160:AR160) -> FALSE | J160: =J155>-0.1 -> TRUE | K160: =K155>-0.1 -> TRUE | L160: TRUE | M160: TRUE | N160: TRUE | O160: TRUE | P160: TRUE | Q160: TRUE | R160: TRUE | S160: TRUE | T160: TRUE | U160: TRUE | V160: TRUE | W160: TRUE | X160: FALSE | Y160: TRUE | Z160: TRUE | AA160: TRUE | AB160: TRUE | AC160: TRUE | AD160: FALSE | AE160: FALSE | AF160: FALSE | AG160: FALSE | AH160: FALSE | AI160: FALSE | AJ160: FALSE | AK160: FALSE | AL160: FALSE | AM160: FALSE | AN160: FALSE | AO160: FALSE | AP160: FALSE | AQ160: FALSE | AR160: FALSE
C162: Equity at Partnership without Tax | G162: =IFERROR(IRR(158:158),FALSE) -> -0.01414740906
A164: Partnership Income and Tax Analysis
B166: Qualifying and Non-Qualifying costs
C167: Total Capital Expenditures | H167: =Inputs!G45 -> 10500000
C168: Non-Qualifying Capital Expenditures | H168: =Inputs!G129 -> 0
C169: Qualifying Capital Expenditures | H169: =H167-H168 -> 10500000
B171: ITC and Tax Depreciation
C172: ITC Rate | E172: ITC Rate | G172: =Inputs!G113 -> 0.26
C173: =Inputs!B123 -> MACRS - 5 year | J173: =LOOKUP(J5,Inputs!122:122,Inputs!125:125) -> 0.2 | K173: =LOOKUP(K5,Inputs!122:122,Inputs!125:125) -> 0.32 | L173: =LOOKUP(L5,Inputs!122:122,Inputs!125:125) -> 0.192 | M173: =LOOKUP(M5,Inputs!122:122,Inputs!125:125) -> 0.1152 | N173: =LOOKUP(N5,Inputs!122:122,Inputs!125:125) -> 0.1152 | O173: =LOOKUP(O5,Inputs!122:122,Inputs!125:125) -> 0.0576 | P173: =LOOKUP(P5,Inputs!122:122,Inputs!125:125) -> 0 | Q173: =LOOKUP(Q5,Inputs!122:122,Inputs!125:125) -> 0 | R173: =LOOKUP(R5,Inputs!122:122,Inputs!125:125) -> 0 | S173: =LOOKUP(S5,Inputs!122:122,Inputs!125:125) -> 0 | T173: =LOOKUP(T5,Inputs!122:122,Inputs!125:125) -> 0 | U173: =LOOKUP(U5,Inputs!122:122,Inputs!125:125) -> 0 | V173: =LOOKUP(V5,Inputs!122:122,Inputs!125:125) -> 0 | W173: =LOOKUP(W5,Inputs!122:122,Inputs!125:125) -> 0 | X173: =LOOKUP(X5,Inputs!122:122,Inputs!125:125) -> 0 | Y173: =LOOKUP(Y5,Inputs!122:122,Inputs!125:125) -> 0 | Z173: =LOOKUP(Z5,Inputs!122:122,Inputs!125:125) -> 0 | AA173: =LOOKUP(AA5,Inputs!122:122,Inputs!125:125) -> 0 | AB173: =LOOKUP(AB5,Inputs!122:122,Inputs!125:125) -> 0 | AC173: =LOOKUP(AC5,Inputs!122:122,Inputs!125:125) -> 0 | AD173: =LOOKUP(AD5,Inputs!122:122,Inputs!125:125) -> 0 | AE173: =LOOKUP(AE5,Inputs!122:122,Inputs!125:125) -> 0 | AF173: =LOOKUP(AF5,Inputs!122:122,Inputs!125:125) -> 0 | AG173: =LOOKUP(AG5,Inputs!122:122,Inputs!125:125) -> 0 | AH173: =LOOKUP(AH5,Inputs!122:122,Inputs!125:125) -> 0 | AI173: =LOOKUP(AI5,Inputs!122:122,Inputs!125:125) -> 0 | AJ173: =LOOKUP(AJ5,Inputs!122:122,Inputs!125:125) -> 0 | AK173: =LOOKUP(AK5,Inputs!122:122,Inputs!125:125) -> 0 | AL173: =LOOKUP(AL5,Inputs!122:122,Inputs!125:125) -> 0 | AM173: =LOOKUP(AM5,Inputs!122:122,Inputs!125:125) -> 0 | AN173: =LOOKUP(AN5,Inputs!122:122,Inputs!125:125) -> 0 | AO173: =LOOKUP(AO5,Inputs!122:122,Inputs!125:125) -> 0 | AP173: =LOOKUP(AP5,Inputs!122:122,Inputs!125:125) -> 0 | AQ173: =LOOKUP(AQ5,Inputs!122:122,Inputs!125:125) -> 0 | AR173: =LOOKUP(AR5,Inputs!122:122,Inputs!125:125) -> 0
C174: Tax Basis, Qualifying Assets for Federal Taxes | E174: Basis Deduction | G174: =(1-Inputs!G113/2) -> 0.87 | H174: =H169 -> 10500000 | J174: =$H$174*$G$174 -> 9135000 | K174: =$H$174*$G$174 -> 9135000 | L174: 9135000 | M174: 9135000 | N174: 9135000 | O174: 9135000 | P174: 9135000 | Q174: 9135000 | R174: 9135000 | S174: 9135000 | T174: 9135000 | U174: 9135000 | V174: 9135000 | W174: 9135000 | X174: 9135000 | Y174: 9135000 | Z174: 9135000 | AA174: 9135000 | AB174: 9135000 | AC174: 9135000 | AD174: 9135000 | AE174: 9135000 | AF174: 9135000 | AG174: 9135000 | AH174: 9135000 | AI174: 9135000 | AJ174: 9135000 | AK174: 9135000 | AL174: 9135000 | AM174: 9135000 | AN174: 9135000 | AO174: 9135000 | AP174: 9135000 | AQ174: 9135000 | AR174: 9135000
C175: Tax Basis, Qualifying Assets for State Taxes | G175: =H174 -> 10500000 | J175: =$G$175 -> 10500000 | K175: =$G$175 -> 10500000 | L175: 10500000 | M175: 10500000 | N175: 10500000 | O175: 10500000 | P175: 10500000 | Q175: 10500000 | R175: 10500000 | S175: 10500000 | T175: 10500000 | U175: 10500000 | V175: 10500000 | W175: 10500000 | X175: 10500000 | Y175: 10500000 | Z175: 10500000 | AA175: 10500000 | AB175: 10500000 | AC175: 10500000 | AD175: 10500000 | AE175: 10500000 | AF175: 10500000 | AG175: 10500000 | AH175: 10500000 | AI175: 10500000 | AJ175: 10500000 | AK175: 10500000 | AL175: 10500000 | AM175: 10500000 | AN175: 10500000 | AO175: 10500000 | AP175: 10500000 | AQ175: 10500000 | AR175: 10500000
C177: Investment Tax Credit for Partnership | E177: ITC Percent | G177: =Inputs!G113 -> 0.26 | H177: =H169 -> 10500000 | I177: =G177*H177 -> 2730000
C179: Tax Basis Adjustment from ITC | E179: Basis Adjustment Percent | G179: =Inputs!G117 -> 0.5 | I179: =G179*I177 -> 1365000
C180: Federal Tax Depreciation | J180: =J174*J173 -> 1827000 | K180: 2923200 | L180: 1753920 | M180: 1052352 | N180: 1052352 | O180: 526176 | P180: 0 | Q180: 0 | R180: 0 | S180: 0 | T180: 0 | U180: 0 | V180: 0 | W180: 0 | X180: 0 | Y180: 0 | Z180: 0 | AA180: 0 | AB180: 0 | AC180: 0 | AD180: 0 | AE180: 0 | AF180: 0 | AG180: 0 | AH180: 0 | AI180: 0 | AJ180: 0 | AK180: 0 | AL180: 0 | AM180: 0 | AN180: 0 | AO180: 0 | AP180: 0 | AQ180: 0 | AR180: 0
C181: State Tax Depreciation (without ITC Basis Adjustment) | J181: =J173*J175 -> 2100000 | K181: 3360000 | L181: 2016000 | M181: 1209600 | N181: 1209600 | O181: 604800 | P181: 0 | Q181: 0 | R181: 0 | S181: 0 | T181: 0 | U181: 0 | V181: 0 | W181: 0 | X181: 0 | Y181: 0 | Z181: 0 | AA181: 0 | AB181: 0 | AC181: 0 | AD181: 0 | AE181: 0 | AF181: 0 | AG181: 0 | AH181: 0 | AI181: 0 | AJ181: 0 | AK181: 0 | AL181: 0 | AM181: 0 | AN181: 0 | AO181: 0 | AP181: 0 | AQ181: 0 | AR181: 0
C182: Additional State Tax Depreciation | J182: =J181-J180 -> 273000 | K182: =K181-K180 -> 436800 | L182: 262080 | M182: 157248 | N182: 157248 | O182: 78624 | P182: 0 | Q182: 0 | R182: 0 | S182: 0 | T182: 0 | U182: 0 | V182: 0 | W182: 0 | X182: 0 | Y182: 0 | Z182: 0 | AA182: 0 | AB182: 0 | AC182: 0 | AD182: 0 | AE182: 0 | AF182: 0 | AG182: 0 | AH182: 0 | AI182: 0 | AJ182: 0 | AK182: 0 | AL182: 0 | AM182: 0 | AN182: 0 | AO182: 0 | AP182: 0 | AQ182: 0 | AR182: 0
B184: Depreciation on Non-Qualifying Assets
C185: Depreciation Rate | J185: =LOOKUP(J5,Inputs!122:122,Inputs!130:130) -> 0.3 | K185: =LOOKUP(K5,Inputs!122:122,Inputs!130:130) -> 0.21 | L185: =LOOKUP(L5,Inputs!122:122,Inputs!130:130) -> 0.1633333333 | M185: =LOOKUP(M5,Inputs!122:122,Inputs!130:130) -> 0.1633333333 | N185: =LOOKUP(N5,Inputs!122:122,Inputs!130:130) -> 0.1633333333 | O185: =LOOKUP(O5,Inputs!122:122,Inputs!130:130) -> 0 | P185: =LOOKUP(P5,Inputs!122:122,Inputs!130:130) -> 0 | Q185: =LOOKUP(Q5,Inputs!122:122,Inputs!130:130) -> 0 | R185: =LOOKUP(R5,Inputs!122:122,Inputs!130:130) -> 0 | S185: =LOOKUP(S5,Inputs!122:122,Inputs!130:130) -> 0 | T185: =LOOKUP(T5,Inputs!122:122,Inputs!130:130) -> 0 | U185: =LOOKUP(U5,Inputs!122:122,Inputs!130:130) -> 0 | V185: =LOOKUP(V5,Inputs!122:122,Inputs!130:130) -> 0 | W185: =LOOKUP(W5,Inputs!122:122,Inputs!130:130) -> 0 | X185: =LOOKUP(X5,Inputs!122:122,Inputs!130:130) -> 0 | Y185: =LOOKUP(Y5,Inputs!122:122,Inputs!130:130) -> 0 | Z185: =LOOKUP(Z5,Inputs!122:122,Inputs!130:130) -> 0 | AA185: =LOOKUP(AA5,Inputs!122:122,Inputs!130:130) -> 0 | AB185: =LOOKUP(AB5,Inputs!122:122,Inputs!130:130) -> 0 | AC185: =LOOKUP(AC5,Inputs!122:122,Inputs!130:130) -> 0 | AD185: =LOOKUP(AD5,Inputs!122:122,Inputs!130:130) -> 0 | AE185: =LOOKUP(AE5,Inputs!122:122,Inputs!130:130) -> 0 | AF185: =LOOKUP(AF5,Inputs!122:122,Inputs!130:130) -> 0 | AG185: =LOOKUP(AG5,Inputs!122:122,Inputs!130:130) -> 0 | AH185: =LOOKUP(AH5,Inputs!122:122,Inputs!130:130) -> 0 | AI185: =LOOKUP(AI5,Inputs!122:122,Inputs!130:130) -> 0 | AJ185: =LOOKUP(AJ5,Inputs!122:122,Inputs!130:130) -> 0 | AK185: =LOOKUP(AK5,Inputs!122:122,Inputs!130:130) -> 0 | AL185: =LOOKUP(AL5,Inputs!122:122,Inputs!130:130) -> 0 | AM185: =LOOKUP(AM5,Inputs!122:122,Inputs!130:130) -> 0 | AN185: =LOOKUP(AN5,Inputs!122:122,Inputs!130:130) -> 0 | AO185: =LOOKUP(AO5,Inputs!122:122,Inputs!130:130) -> 0 | AP185: =LOOKUP(AP5,Inputs!122:122,Inputs!130:130) -> 0 | AQ185: =LOOKUP(AQ5,Inputs!122:122,Inputs!130:130) -> 0 | AR185: =LOOKUP(AR5,Inputs!122:122,Inputs!130:130) -> 0
C186: Depreciation Amount | H186: =H168 -> 0 | J186: =$H$186*J185 -> 0 | K186: =$H$186*K185 -> 0 | L186: 0 | M186: 0 | N186: 0 | O186: 0 | P186: 0 | Q186: 0 | R186: 0 | S186: 0 | T186: 0 | U186: 0 | V186: 0 | W186: 0 | X186: 0 | Y186: 0 | Z186: 0 | AA186: 0 | AB186: 0 | AC186: 0 | AD186: 0 | AE186: 0 | AF186: 0 | AG186: 0 | AH186: 0 | AI186: 0 | AJ186: 0 | AK186: 0 | AL186: 0 | AM186: 0 | AN186: 0 | AO186: 0 | AP186: 0 | AQ186: 0 | AR186: 0
B188: Depreciation on Replacement of Inverter
C189: Inverter Replacement Period | J189: =I189+J62 -> 0 | K189: 0 | L189: 0 | M189: 0 | N189: 0 | O189: 0 | P189: 0 | Q189: 0 | R189: 0 | S189: 0 | T189: 0 | U189: 0 | V189: 0 | W189: 0 | X189: 1 | Y189: 1 | Z189: 1 | AA189: 1 | AB189: 1 | AC189: 1 | AD189: 1 | AE189: 1 | AF189: 1 | AG189: 1 | AH189: 1 | AI189: 1 | AJ189: 1 | AK189: 1 | AL189: 1 | AM189: 1 | AN189: 1 | AO189: 1 | AP189: 1 | AQ189: 1 | AR189: 1
C191: Inverter Replacement 1 Life | J191: =IF(J189=1,I191+1)*1 -> 0 | K191: =IF(K189=1,J191+1)*1 -> 0 | L191: 0 | M191: 0 | N191: 0 | O191: 0 | P191: 0 | Q191: 0 | R191: 0 | S191: 0 | T191: 0 | U191: 0 | V191: 0 | W191: 0 | X191: 1 | Y191: 2 | Z191: 3 | AA191: 4 | AB191: 5 | AC191: 6 | AD191: 7 | AE191: 8 | AF191: 9 | AG191: 10 | AH191: 11 | AI191: 12 | AJ191: 13 | AK191: 14 | AL191: 15 | AM191: 16 | AN191: 17 | AO191: 18 | AP191: 19 | AQ191: 20 | AR191: 21
C192: Depreciation Rate | J192: =LOOKUP(J191,Inputs!122:122,Inputs!123:123) -> 0 | K192: =LOOKUP(K191,Inputs!122:122,Inputs!123:123) -> 0 | L192: =LOOKUP(L191,Inputs!122:122,Inputs!123:123) -> 0 | M192: =LOOKUP(M191,Inputs!122:122,Inputs!123:123) -> 0 | N192: =LOOKUP(N191,Inputs!122:122,Inputs!123:123) -> 0 | O192: =LOOKUP(O191,Inputs!122:122,Inputs!123:123) -> 0 | P192: =LOOKUP(P191,Inputs!122:122,Inputs!123:123) -> 0 | Q192: =LOOKUP(Q191,Inputs!122:122,Inputs!123:123) -> 0 | R192: =LOOKUP(R191,Inputs!122:122,Inputs!123:123) -> 0 | S192: =LOOKUP(S191,Inputs!122:122,Inputs!123:123) -> 0 | T192: =LOOKUP(T191,Inputs!122:122,Inputs!123:123) -> 0 | U192: =LOOKUP(U191,Inputs!122:122,Inputs!123:123) -> 0 | V192: =LOOKUP(V191,Inputs!122:122,Inputs!123:123) -> 0 | W192: =LOOKUP(W191,Inputs!122:122,Inputs!123:123) -> 0 | X192: =LOOKUP(X191,Inputs!122:122,Inputs!123:123) -> 0.3 | Y192: =LOOKUP(Y191,Inputs!122:122,Inputs!123:123) -> 0.21 | Z192: =LOOKUP(Z191,Inputs!122:122,Inputs!123:123) -> 0.1633333333 | AA192: =LOOKUP(AA191,Inputs!122:122,Inputs!123:123) -> 0.1633333333 | AB192: =LOOKUP(AB191,Inputs!122:122,Inputs!123:123) -> 0.1633333333 | AC192: =LOOKUP(AC191,Inputs!122:122,Inputs!123:123) -> 0 | AD192: =LOOKUP(AD191,Inputs!122:122,Inputs!123:123) -> 0 | AE192: =LOOKUP(AE191,Inputs!122:122,Inputs!123:123) -> 0 | AF192: =LOOKUP(AF191,Inputs!122:122,Inputs!123:123) -> 0 | AG192: =LOOKUP(AG191,Inputs!122:122,Inputs!123:123) -> 0 | AH192: =LOOKUP(AH191,Inputs!122:122,Inputs!123:123) -> 0 | AI192: =LOOKUP(AI191,Inputs!122:122,Inputs!123:123) -> 0 | AJ192: =LOOKUP(AJ191,Inputs!122:122,Inputs!123:123) -> 0 | AK192: =LOOKUP(AK191,Inputs!122:122,Inputs!123:123) -> 0 | AL192: =LOOKUP(AL191,Inputs!122:122,Inputs!123:123) -> 0 | AM192: =LOOKUP(AM191,Inputs!122:122,Inputs!123:123) -> 0 | AN192: =LOOKUP(AN191,Inputs!122:122,Inputs!123:123) -> 0 | AO192: =LOOKUP(AO191,Inputs!122:122,Inputs!123:123) -> 0 | AP192: =LOOKUP(AP191,Inputs!122:122,Inputs!123:123) -> 0 | AQ192: =LOOKUP(AQ191,Inputs!122:122,Inputs!123:123) -> 0 | AR192: =LOOKUP(AR191,Inputs!122:122,Inputs!123:123) -> 0
C193: Accumulated Inverter Cost | J193: =IF(J189=1,I193+J64)*1 -> 0 | K193: 0 | L193: 0 | M193: 0 | N193: 0 | O193: 0 | P193: 0 | Q193: 0 | R193: 0 | S193: 0 | T193: 0 | U193: 0 | V193: 0 | W193: 0 | X193: 550000 | Y193: 550000 | Z193: 550000 | AA193: 550000 | AB193: 550000 | AC193: 550000 | AD193: 550000 | AE193: 550000 | AF193: 550000 | AG193: 550000 | AH193: 550000 | AI193: 550000 | AJ193: 550000 | AK193: 550000 | AL193: 550000 | AM193: 550000 | AN193: 550000 | AO193: 550000 | AP193: 550000 | AQ193: 550000 | AR193: 550000
C194: Depreciation on First Inverter | J194: =J193*J192 -> 0 | K194: =K193*K192 -> 0 | L194: 0 | M194: 0 | N194: 0 | O194: 0 | P194: 0 | Q194: 0 | R194: 0 | S194: 0 | T194: 0 | U194: 0 | V194: 0 | W194: 0 | X194: 165000 | Y194: 115500 | Z194: 89833.33333 | AA194: 89833.33333 | AB194: 89833.33333 | AC194: 0 | AD194: 0 | AE194: 0 | AF194: 0 | AG194: 0 | AH194: 0 | AI194: 0 | AJ194: 0 | AK194: 0 | AL194: 0 | AM194: 0 | AN194: 0 | AO194: 0 | AP194: 0 | AQ194: 0 | AR194: 0
C196: Inverter Replacement 2 Life | J196: =IF(J189=2,I196+1)*1 -> 0 | K196: =IF(K189=2,J196+1)*1 -> 0 | L196: 0 | M196: 0 | N196: 0 | O196: 0 | P196: 0 | Q196: 0 | R196: 0 | S196: 0 | T196: 0 | U196: 0 | V196: 0 | W196: 0 | X196: 0 | Y196: 0 | Z196: 0 | AA196: 0 | AB196: 0 | AC196: 0 | AD196: 0 | AE196: 0 | AF196: 0 | AG196: 0 | AH196: 0 | AI196: 0 | AJ196: 0 | AK196: 0 | AL196: 0 | AM196: 0 | AN196: 0 | AO196: 0 | AP196: 0 | AQ196: 0 | AR196: 0
C197: Depreciation Rate | J197: =LOOKUP(J196,Inputs!122:122,Inputs!123:123) -> 0 | K197: =LOOKUP(K196,Inputs!122:122,Inputs!123:123) -> 0 | L197: =LOOKUP(L196,Inputs!122:122,Inputs!123:123) -> 0 | M197: =LOOKUP(M196,Inputs!122:122,Inputs!123:123) -> 0 | N197: =LOOKUP(N196,Inputs!122:122,Inputs!123:123) -> 0 | O197: =LOOKUP(O196,Inputs!122:122,Inputs!123:123) -> 0 | P197: =LOOKUP(P196,Inputs!122:122,Inputs!123:123) -> 0 | Q197: =LOOKUP(Q196,Inputs!122:122,Inputs!123:123) -> 0 | R197: =LOOKUP(R196,Inputs!122:122,Inputs!123:123) -> 0 | S197: =LOOKUP(S196,Inputs!122:122,Inputs!123:123) -> 0 | T197: =LOOKUP(T196,Inputs!122:122,Inputs!123:123) -> 0 | U197: =LOOKUP(U196,Inputs!122:122,Inputs!123:123) -> 0 | V197: =LOOKUP(V196,Inputs!122:122,Inputs!123:123) -> 0 | W197: =LOOKUP(W196,Inputs!122:122,Inputs!123:123) -> 0 | X197: =LOOKUP(X196,Inputs!122:122,Inputs!123:123) -> 0 | Y197: =LOOKUP(Y196,Inputs!122:122,Inputs!123:123) -> 0 | Z197: =LOOKUP(Z196,Inputs!122:122,Inputs!123:123) -> 0 | AA197: =LOOKUP(AA196,Inputs!122:122,Inputs!123:123) -> 0 | AB197: =LOOKUP(AB196,Inputs!122:122,Inputs!123:123) -> 0 | AC197: =LOOKUP(AC196,Inputs!122:122,Inputs!123:123) -> 0 | AD197: =LOOKUP(AD196,Inputs!122:122,Inputs!123:123) -> 0 | AE197: =LOOKUP(AE196,Inputs!122:122,Inputs!123:123) -> 0 | AF197: =LOOKUP(AF196,Inputs!122:122,Inputs!123:123) -> 0 | AG197: =LOOKUP(AG196,Inputs!122:122,Inputs!123:123) -> 0 | AH197: =LOOKUP(AH196,Inputs!122:122,Inputs!123:123) -> 0 | AI197: =LOOKUP(AI196,Inputs!122:122,Inputs!123:123) -> 0 | AJ197: =LOOKUP(AJ196,Inputs!122:122,Inputs!123:123) -> 0 | AK197: =LOOKUP(AK196,Inputs!122:122,Inputs!123:123) -> 0 | AL197: =LOOKUP(AL196,Inputs!122:122,Inputs!123:123) -> 0 | AM197: =LOOKUP(AM196,Inputs!122:122,Inputs!123:123) -> 0 | AN197: =LOOKUP(AN196,Inputs!122:122,Inputs!123:123) -> 0 | AO197: =LOOKUP(AO196,Inputs!122:122,Inputs!123:123) -> 0 | AP197: =LOOKUP(AP196,Inputs!122:122,Inputs!123:123) -> 0 | AQ197: =LOOKUP(AQ196,Inputs!122:122,Inputs!123:123) -> 0 | AR197: =LOOKUP(AR196,Inputs!122:122,Inputs!123:123) -> 0
C198: Accumulated Inverter Cost | J198: =IF(J189=2,I198+J64)*1 -> 0 | K198: 0 | L198: 0 | M198: 0 | N198: 0 | O198: 0 | P198: 0 | Q198: 0 | R198: 0 | S198: 0 | T198: 0 | U198: 0 | V198: 0 | W198: 0 | X198: 0 | Y198: 0 | Z198: 0 | AA198: 0 | AB198: 0 | AC198: 0 | AD198: 0 | AE198: 0 | AF198: 0 | AG198: 0 | AH198: 0 | AI198: 0 | AJ198: 0 | AK198: 0 | AL198: 0 | AM198: 0 | AN198: 0 | AO198: 0 | AP198: 0 | AQ198: 0 | AR198: 0
C199: Depreciation on Second Inverter | J199: =J198*J197 -> 0 | K199: =K198*K197 -> 0 | L199: 0 | M199: 0 | N199: 0 | O199: 0 | P199: 0 | Q199: 0 | R199: 0 | S199: 0 | T199: 0 | U199: 0 | V199: 0 | W199: 0 | X199: 0 | Y199: 0 | Z199: 0 | AA199: 0 | AB199: 0 | AC199: 0 | AD199: 0 | AE199: 0 | AF199: 0 | AG199: 0 | AH199: 0 | AI199: 0 | AJ199: 0 | AK199: 0 | AL199: 0 | AM199: 0 | AN199: 0 | AO199: 0 | AP199: 0 | AQ199: 0 | AR199: 0
B201: Partnership Income for Federal Taxes
C202: EBITDA | J202: =J60 -> 807169.1542 | K202: 801951.8948 | L202: 735547.1042 | M202: 729754.5559 | N202: 723974.0225 | O202: 718205.2762 | P202: 712448.0886 | Q202: 706702.2308 | R202: 700967.4734 | S202: 695243.5862 | T202: 689530.3385 | U202: 683827.4991 | V202: 678134.836 | W202: 672452.1165 | X202: 666779.1076 | Y202: 661115.5751 | Z202: 655461.2846 | AA202: 649816.0007 | AB202: 644179.4872 | AC202: 638551.5076 | AD202: -225220.9044 | AE202: -226563.1134 | AF202: -227918.7446 | AG202: -229287.932 | AH202: -230670.8113 | AI202: 0 | AJ202: 0 | AK202: 0 | AL202: 0 | AM202: 0 | AN202: 0 | AO202: 0 | AP202: 0 | AQ202: 0 | AR202: 0
C203: Less Federal Tax Depreciation | J203: =J180+J199+J194+J186 -> 1827000 | K203: 2923200 | L203: 1753920 | M203: 1052352 | N203: 1052352 | O203: 526176 | P203: 0 | Q203: 0 | R203: 0 | S203: 0 | T203: 0 | U203: 0 | V203: 0 | W203: 0 | X203: 165000 | Y203: 115500 | Z203: 89833.33333 | AA203: 89833.33333 | AB203: 89833.33333 | AC203: 0 | AD203: 0 | AE203: 0 | AF203: 0 | AG203: 0 | AH203: 0 | AI203: 0 | AJ203: 0 | AK203: 0 | AL203: 0 | AM203: 0 | AN203: 0 | AO203: 0 | AP203: 0 | AQ203: 0 | AR203: 0
C204: Less Interest | J204: =J126+J135 -> 285862.5 | K204: =K126+K135 -> 277171.4939 | L204: 268050.283 | M204: 258477.5721 | N204: 248431.012 | O204: 237887.1473 | P204: 226821.3612 | Q204: 215207.8187 | R204: 203019.4059 | S204: 190227.6666 | T204: 176802.7362 | U204: 162713.2718 | V204: 147926.3789 | W204: 132407.5348 | X204: 116120.5079 | Y204: 116087.9072 | Z204: 89109.03761 | AA204: 62260.57561 | AB204: 42501.27423 | AC204: 21763.88744 | AD204: 1.008447725e-10 | AE204: 11148.43477 | AF204: 22915.1564 | AG204: 35331.4345 | AH204: 48430.09314 | AI204: 62245.58792 | AJ204: 65326.74452 | AK204: 68560.41837 | AL204: 71954.15908 | AM204: 75515.88996 | AN204: 79253.92651 | AO204: 83176.99587 | AP204: 87294.25717 | AQ204: 91615.3229 | AR204: 96150.28138
D205: Partnership Income for Federal Taxes | J205: =J202-J203-J204 -> -1305693.346 | K205: =K202-K203-K204 -> -2398419.599 | L205: -1286423.179 | M205: -581075.0162 | N205: -576808.9896 | O205: -45857.87111 | P205: 485626.7274 | Q205: 491494.4121 | R205: 497948.0675 | S205: 505015.9196 | T205: 512727.6023 | U205: 521114.2273 | V205: 530208.4571 | W205: 540044.5818 | X205: 385658.5997 | Y205: 429527.668 | Z205: 476518.9137 | AA205: 497722.0917 | AB205: 511844.8797 | AC205: 616787.6201 | AD205: -225220.9044 | AE205: -237711.5482 | AF205: -250833.901 | AG205: -264619.3665 | AH205: -279100.9045 | AI205: -62245.58792 | AJ205: -65326.74452 | AK205: -68560.41837 | AL205: -71954.15908 | AM205: -75515.88996 | AN205: -79253.92651 | AO205: -83176.99587 | AP205: -87294.25717 | AQ205: -91615.3229 | AR205: -96150.28138
B207: Partnership Income for State Taxes with Alternative Depreciation)
C208: EBITDA | J208: =J202 -> 807169.1542 | K208: 801951.8948 | L208: 735547.1042 | M208: 729754.5559 | N208: 723974.0225 | O208: 718205.2762 | P208: 712448.0886 | Q208: 706702.2308 | R208: 700967.4734 | S208: 695243.5862 | T208: 689530.3385 | U208: 683827.4991 | V208: 678134.836 | W208: 672452.1165 | X208: 666779.1076 | Y208: 661115.5751 | Z208: 655461.2846 | AA208: 649816.0007 | AB208: 644179.4872 | AC208: 638551.5076 | AD208: -225220.9044 | AE208: -226563.1134 | AF208: -227918.7446 | AG208: -229287.932 | AH208: -230670.8113 | AI208: 0 | AJ208: 0 | AK208: 0 | AL208: 0 | AM208: 0 | AN208: 0 | AO208: 0 | AP208: 0 | AQ208: 0 | AR208: 0
C209: Less Depreciation for State Taxes | J209: =J181 -> 2100000 | K209: 3360000 | L209: 2016000 | M209: 1209600 | N209: 1209600 | O209: 604800 | P209: 0 | Q209: 0 | R209: 0 | S209: 0 | T209: 0 | U209: 0 | V209: 0 | W209: 0 | X209: 0 | Y209: 0 | Z209: 0 | AA209: 0 | AB209: 0 | AC209: 0 | AD209: 0 | AE209: 0 | AF209: 0 | AG209: 0 | AH209: 0 | AI209: 0 | AJ209: 0 | AK209: 0 | AL209: 0 | AM209: 0 | AN209: 0 | AO209: 0 | AP209: 0 | AQ209: 0 | AR209: 0
C210: Less Interest | J210: =J204 -> 285862.5 | K210: =K204 -> 277171.4939 | L210: 268050.283 | M210: 258477.5721 | N210: 248431.012 | O210: 237887.1473 | P210: 226821.3612 | Q210: 215207.8187 | R210: 203019.4059 | S210: 190227.6666 | T210: 176802.7362 | U210: 162713.2718 | V210: 147926.3789 | W210: 132407.5348 | X210: 116120.5079 | Y210: 116087.9072 | Z210: 89109.03761 | AA210: 62260.57561 | AB210: 42501.27423 | AC210: 21763.88744 | AD210: 1.008447725e-10 | AE210: 11148.43477 | AF210: 22915.1564 | AG210: 35331.4345 | AH210: 48430.09314 | AI210: 62245.58792 | AJ210: 65326.74452 | AK210: 68560.41837 | AL210: 71954.15908 | AM210: 75515.88996 | AN210: 79253.92651 | AO210: 83176.99587 | AP210: 87294.25717 | AQ210: 91615.3229 | AR210: 96150.28138
D211: Partnership Income for State Taxes | J211: =J208-J209-J210 -> -1578693.346 | K211: =K208-K209-K210 -> -2835219.599 | L211: -1548503.179 | M211: -738323.0162 | N211: -734056.9896 | O211: -124481.8711 | P211: 485626.7274 | Q211: 491494.4121 | R211: 497948.0675 | S211: 505015.9196 | T211: 512727.6023 | U211: 521114.2273 | V211: 530208.4571 | W211: 540044.5818 | X211: 550658.5997 | Y211: 545027.668 | Z211: 566352.247 | AA211: 587555.4251 | AB211: 601678.213 | AC211: 616787.6201 | AD211: -225220.9044 | AE211: -237711.5482 | AF211: -250833.901 | AG211: -264619.3665 | AH211: -279100.9045 | AI211: -62245.58792 | AJ211: -65326.74452 | AK211: -68560.41837 | AL211: -71954.15908 | AM211: -75515.88996 | AN211: -79253.92651 | AO211: -83176.99587 | AP211: -87294.25717 | AQ211: -91615.3229 | AR211: -96150.28138
A213: Partnership Balance Sheet
B215: Assets
C216: Plant Balance | I216: =H216+I67 -> 10500000 | J216: =I216+J64 -> 10500000 | K216: 10500000 | L216: 10500000 | M216: 10500000 | N216: 10500000 | O216: 10500000 | P216: 10500000 | Q216: 10500000 | R216: 10500000 | S216: 10500000 | T216: 10500000 | U216: 10500000 | V216: 10500000 | W216: 10500000 | X216: 11050000 | Y216: 11050000 | Z216: 11050000 | AA216: 11050000 | AB216: 11050000 | AC216: 11050000 | AD216: 11050000 | AE216: 11050000 | AF216: 11050000 | AG216: 11050000 | AH216: 11050000 | AI216: 11050000 | AJ216: 11050000 | AK216: 11050000 | AL216: 11050000 | AM216: 11050000 | AN216: 11050000 | AO216: 11050000 | AP216: 11050000 | AQ216: 11050000 | AR216: 11050000
C217: Accumulated Depreciation | I217: =H217+I180 -> 0 | J217: =I217+J180+J194+J199+J186 -> 1827000 | K217: 4750200 | L217: 6504120 | M217: 7556472 | N217: 8608824 | O217: 9135000 | P217: 9135000 | Q217: 9135000 | R217: 9135000 | S217: 9135000 | T217: 9135000 | U217: 9135000 | V217: 9135000 | W217: 9135000 | X217: 9300000 | Y217: 9415500 | Z217: 9505333.333 | AA217: 9595166.667 | AB217: 9685000 | AC217: 9685000 | AD217: 9685000 | AE217: 9685000 | AF217: 9685000 | AG217: 9685000 | AH217: 9685000 | AI217: 9685000 | AJ217: 9685000 | AK217: 9685000 | AL217: 9685000 | AM217: 9685000 | AN217: 9685000 | AO217: 9685000 | AP217: 9685000 | AQ217: 9685000 | AR217: 9685000
C218: Less: ITC Tax Basis (Accumulated Depreciation) | I218: =I179 -> 1365000 | J218: =I218+J179 -> 1365000 | K218: 1365000 | L218: 1365000 | M218: 1365000 | N218: 1365000 | O218: 1365000 | P218: 1365000 | Q218: 1365000 | R218: 1365000 | S218: 1365000 | T218: 1365000 | U218: 1365000 | V218: 1365000 | W218: 1365000 | X218: 1365000 | Y218: 1365000 | Z218: 1365000 | AA218: 1365000 | AB218: 1365000 | AC218: 1365000 | AD218: 1365000 | AE218: 1365000 | AF218: 1365000 | AG218: 1365000 | AH218: 1365000 | AI218: 1365000 | AJ218: 1365000 | AK218: 1365000 | AL218: 1365000 | AM218: 1365000 | AN218: 1365000 | AO218: 1365000 | AP218: 1365000 | AQ218: 1365000 | AR218: 1365000
D219: Net Plant | I219: =I216-I217-I218 -> 9135000 | J219: =J216-J217-J218 -> 7308000 | K219: 4384800 | L219: 2630880 | M219: 1578528 | N219: 526176 | O219: 0 | P219: 0 | Q219: 0 | R219: 0 | S219: 0 | T219: 0 | U219: 0 | V219: 0 | W219: 0 | X219: 385000 | Y219: 269500 | Z219: 179666.6667 | AA219: 89833.33333 | AB219: -1.862645149e-09 | AC219: -1.862645149e-09 | AD219: -1.862645149e-09 | AE219: -1.862645149e-09 | AF219: -1.862645149e-09 | AG219: -1.862645149e-09 | AH219: -1.862645149e-09 | AI219: -1.862645149e-09 | AJ219: -1.862645149e-09 | AK219: -1.862645149e-09 | AL219: -1.862645149e-09 | AM219: -1.862645149e-09 | AN219: -1.862645149e-09 | AO219: -1.862645149e-09 | AP219: -1.862645149e-09 | AQ219: -1.862645149e-09 | AR219: -1.862645149e-09
C221: Debt Service Reserve Account | I221: =I147 -> 0 | J221: 0 | K221: 0 | L221: 0 | M221: 0 | N221: 0 | O221: 0 | P221: 0 | Q221: 0 | R221: 0 | S221: 0 | T221: 0 | U221: 0 | V221: 0 | W221: 0 | X221: 0 | Y221: 0 | Z221: 0 | AA221: 0 | AB221: 0 | AC221: 0 | AD221: 0 | AE221: 0 | AF221: 0 | AG221: 0 | AH221: 0 | AI221: 0 | AJ221: 0 | AK221: 0 | AL221: 0 | AM221: 0 | AN221: 0 | AO221: 0 | AP221: 0 | AQ221: 0 | AR221: 0
C222: Inverter Replacement Account | I222: =I142 -> 0 | J222: 0 | K222: 0 | L222: 0 | M222: 0 | N222: 0 | O222: 0 | P222: 0 | Q222: 0 | R222: 0 | S222: 0 | T222: 0 | U222: 0 | V222: 0 | W222: 0 | X222: 0 | Y222: 0 | Z222: 0 | AA222: 0 | AB222: 0 | AC222: 0 | AD222: 0 | AE222: 0 | AF222: 0 | AG222: 0 | AH222: 0 | AI222: 0 | AJ222: 0 | AK222: 0 | AL222: 0 | AM222: 0 | AN222: 0 | AO222: 0 | AP222: 0 | AQ222: 0 | AR222: 0
D224: Net Assets | I224: =I219+I221+I222 -> 9135000 | J224: =J219+J221+J222 -> 7308000 | K224: 4384800 | L224: 2630880 | M224: 1578528 | N224: 526176 | O224: 0 | P224: 0 | Q224: 0 | R224: 0 | S224: 0 | T224: 0 | U224: 0 | V224: 0 | W224: 0 | X224: 385000 | Y224: 269500 | Z224: 179666.6667 | AA224: 89833.33333 | AB224: -1.862645149e-09 | AC224: -1.862645149e-09 | AD224: -1.862645149e-09 | AE224: -1.862645149e-09 | AF224: -1.862645149e-09 | AG224: -1.862645149e-09 | AH224: -1.862645149e-09 | AI224: -1.862645149e-09 | AJ224: -1.862645149e-09 | AK224: -1.862645149e-09 | AL224: -1.862645149e-09 | AM224: -1.862645149e-09 | AN224: -1.862645149e-09 | AO224: -1.862645149e-09 | AP224: -1.862645149e-09 | AQ224: -1.862645149e-09 | AR224: -1.862645149e-09
C226: Debt at SPV/LLC Level | I226: =I125 -> 5775000 | J226: 5599424.119 | K226: 5415157.232 | L226: 5221769.133 | M226: 5018808.324 | N226: 4805800.955 | O226: 4582249.721 | P226: 4347632.701 | Q226: 4101402.139 | R226: 3842983.163 | S226: 3571772.449 | T226: 3287136.804 | U226: 2988411.694 | V226: 2674899.692 | W226: 2345868.846 | X226: 2000550.972 | Y226: 1638139.864 | Z226: 1257789.406 | AA226: 858611.6007 | AB226: 439674.4937 | AC226: 2.037268132e-09 | AD226: 2.138112905e-09 | AE226: 2.243949493e-09 | AF226: 2.355024993e-09 | AG226: 2.47159873e-09 | AH226: 2.593942868e-09 | AI226: 2.722343039e-09 | AJ226: 2.85709902e-09 | AK226: 2.998525421e-09 | AL226: 3.14695243e-09 | AM226: 3.302726575e-09 | AN226: 3.46621154e-09 | AO226: 3.637789012e-09 | AP226: 3.817859568e-09 | AQ226: 4.006843616e-09 | AR226: 4.205182375e-09
C227: Defaulted Debt | I227: =I134 -> 0 | J227: =J134 -> 0 | K227: 0 | L227: 0 | M227: 0 | N227: 0 | O227: 0 | P227: 0 | Q227: 0 | R227: 0 | S227: 0 | T227: 0 | U227: 0 | V227: 0 | W227: 0 | X227: 344659.2736 | Y227: 162042.7137 | Z227: 0 | AA227: 0 | AB227: 0 | AC227: 0 | AD227: 225220.9044 | AE227: 462932.4526 | AF227: 713766.3536 | AG227: 978385.7201 | AH227: 1257486.625 | AI227: 1319732.212 | AJ227: 1385058.957 | AK227: 1453619.375 | AL227: 1525573.534 | AM227: 1601089.424 | AN227: 1680343.351 | AO227: 1763520.347 | AP227: 1850814.604 | AQ227: 1942429.927 | AR227: 2038580.208
C229: Equity Balance
D230: Opening Balance | I230: =H234 -> 0 | J230: 4725000 | K230: 3073575.881 | L230: 334642.7685 | M230: -1225889.133 | N230: -2075280.324 | O230: -2914624.955 | P230: -3217249.721 | Q230: -2982632.701 | R230: -2736402.139 | S230: -2477983.163 | T230: -2206772.449 | U230: -1922136.804 | V230: -1623411.694 | W230: -1309899.692 | X230: -980868.8456 | Y230: -595210.2459 | Z230: -165682.5779 | AA230: 286877.2604 | AB230: 596221.7326 | AC230: 925325.5063 | AD230: 1365000 | AE230: 1139779.096 | AF230: 902067.5474 | AG230: 651233.6464 | AH230: 386614.2799 | AI230: 107513.3754 | AJ230: 45267.7875 | AK230: -20058.95702 | AL230: -88619.37539 | AM230: -160573.5345 | AN230: -236089.4244 | AO230: -315343.3509 | AP230: -398520.3468 | AQ230: -485814.604 | AR230: -577429.9269
D231: Add: Paid In Capital | I231: =I90 -> 4725000 | J231: 0 | K231: 0 | L231: 0 | M231: 0 | N231: 0 | O231: 0 | P231: 0 | Q231: 0 | R231: 0 | S231: 0 | T231: 0 | U231: 0 | V231: 0 | W231: 0 | X231: 0 | Y231: 0 | Z231: 0 | AA231: 0 | AB231: 0 | AC231: 0 | AD231: 0 | AE231: 0 | AF231: 0 | AG231: 0 | AH231: 0 | AI231: 0 | AJ231: 0 | AK231: 0 | AL231: 0 | AM231: 0 | AN231: 0 | AO231: 0 | AP231: 0 | AQ231: 0 | AR231: 0
D232: Add: Income | I232: =I205 -> 0 | J232: -1305693.346 | K232: -2398419.599 | L232: -1286423.179 | M232: -581075.0162 | N232: -576808.9896 | O232: -45857.87111 | P232: 485626.7274 | Q232: 491494.4121 | R232: 497948.0675 | S232: 505015.9196 | T232: 512727.6023 | U232: 521114.2273 | V232: 530208.4571 | W232: 540044.5818 | X232: 385658.5997 | Y232: 429527.668 | Z232: 476518.9137 | AA232: 497722.0917 | AB232: 511844.8797 | AC232: 616787.6201 | AD232: -225220.9044 | AE232: -237711.5482 | AF232: -250833.901 | AG232: -264619.3665 | AH232: -279100.9045 | AI232: -62245.58792 | AJ232: -65326.74452 | AK232: -68560.41837 | AL232: -71954.15908 | AM232: -75515.88996 | AN232: -79253.92651 | AO232: -83176.99587 | AP232: -87294.25717 | AQ232: -91615.3229 | AR232: -96150.28138
D233: Less: Dividends (EBITDA-DS) | I233: =I150 -> 0 | J233: =J158 -> 345730.773 | K233: =K158 -> 340513.5136 | L233: 274108.723 | M233: 268316.1747 | N233: 262535.6413 | O233: 256766.895 | P233: 251009.7074 | Q233: 245263.8496 | R233: 239529.0922 | S233: 233805.205 | T233: 228091.9573 | U233: 222389.1179 | V233: 216696.4548 | W233: 211013.7354 | X233: 0 | Y233: 0 | Z233: 23959.07539 | AA233: 188377.6195 | AB233: 182741.1061 | AC233: 177113.1264 | AD233: 0 | AE233: 0 | AF233: 0 | AG233: 0 | AH233: 0 | AI233: 0 | AJ233: 0 | AK233: 0 | AL233: 0 | AM233: 0 | AN233: 0 | AO233: 0 | AP233: 0 | AQ233: 0 | AR233: 0
D234: Closing Balance | I234: =I230+I231+I232-I233 -> 4725000 | J234: =J230+J231+J232-J233 -> 3073575.881 | K234: 334642.7685 | L234: -1225889.133 | M234: -2075280.324 | N234: -2914624.955 | O234: -3217249.721 | P234: -2982632.701 | Q234: -2736402.139 | R234: -2477983.163 | S234: -2206772.449 | T234: -1922136.804 | U234: -1623411.694 | V234: -1309899.692 | W234: -980868.8456 | X234: -595210.2459 | Y234: -165682.5779 | Z234: 286877.2604 | AA234: 596221.7326 | AB234: 925325.5063 | AC234: 1365000 | AD234: 1139779.096 | AE234: 902067.5474 | AF234: 651233.6464 | AG234: 386614.2799 | AH234: 107513.3754 | AI234: 45267.7875 | AJ234: -20058.95702 | AK234: -88619.37539 | AL234: -160573.5345 | AM234: -236089.4244 | AN234: -315343.3509 | AO234: -398520.3468 | AP234: -485814.604 | AQ234: -577429.9269 | AR234: -673580.2082
D235: Less: ITC Basis Adjustment | I235: =I218 -> 1365000 | J235: 1365000 | K235: 1365000 | L235: 1365000 | M235: 1365000 | N235: 1365000 | O235: 1365000 | P235: 1365000 | Q235: 1365000 | R235: 1365000 | S235: 1365000 | T235: 1365000 | U235: 1365000 | V235: 1365000 | W235: 1365000 | X235: 1365000 | Y235: 1365000 | Z235: 1365000 | AA235: 1365000 | AB235: 1365000 | AC235: 1365000 | AD235: 1365000 | AE235: 1365000 | AF235: 1365000 | AG235: 1365000 | AH235: 1365000 | AI235: 1365000 | AJ235: 1365000 | AK235: 1365000 | AL235: 1365000 | AM235: 1365000 | AN235: 1365000 | AO235: 1365000 | AP235: 1365000 | AQ235: 1365000 | AR235: 1365000
D236: Debt and Equity Capital at Partnership | I236: =I234+I226-I235+I227 -> 9135000 | J236: =J234+J226-J235+J227 -> 7308000 | K236: 4384800 | L236: 2630880 | M236: 1578528 | N236: 526176 | O236: 9.313225746e-10 | P236: 4.656612873e-10 | Q236: 4.656612873e-10 | R236: 4.656612873e-10 | S236: 4.656612873e-10 | T236: 4.656612873e-10 | U236: 4.656612873e-10 | V236: 4.656612873e-10 | W236: 2.328306437e-10 | X236: 385000 | Y236: 269500 | Z236: 179666.6667 | AA236: 89833.33333 | AB236: 4.656612873e-10 | AC236: 4.656612873e-10 | AD236: 4.074536264e-10 | AE236: 0 | AF236: 0 | AG236: 0 | AH236: 0 | AI236: 0 | AJ236: 0 | AK236: 0 | AL236: 0 | AM236: 0 | AN236: 0 | AO236: 0 | AP236: 0 | AQ236: 0 | AR236: 0
C238: Difference | I238: =I236-I224 -> 0 | J238: 0 | K238: 0 | L238: 0 | M238: 0 | N238: 9.313225746e-10 | O238: 9.313225746e-10 | P238: 4.656612873e-10 | Q238: 4.656612873e-10 | R238: 4.656612873e-10 | S238: 4.656612873e-10 | T238: 4.656612873e-10 | U238: 4.656612873e-10 | V238: 4.656612873e-10 | W238: 2.328306437e-10 | X238: 0 | Y238: 0 | Z238: 9.313225746e-10 | AA238: 1.629814506e-09 | AB238: 2.328306437e-09 | AC238: 2.328306437e-09 | AD238: 2.270098776e-09 | AE238: 1.862645149e-09 | AF238: 1.862645149e-09 | AG238: 1.862645149e-09 | AH238: 1.862645149e-09 | AI238: 1.862645149e-09 | AJ238: 1.862645149e-09 | AK238: 1.862645149e-09 | AL238: 1.862645149e-09 | AM238: 1.862645149e-09 | AN238: 1.862645149e-09 | AO238: 1.862645149e-09 | AP238: 1.862645149e-09 | AQ238: 1.862645149e-09 | AR238: 1.862645149e-09
C239: Test | F239: =AND(I239:AR239) -> TRUE | I239: =ROUND(I238,2)=0 -> TRUE | J239: =ROUND(J238,2)=0 -> TRUE | K239: TRUE | L239: TRUE | M239: TRUE | N239: TRUE | O239: TRUE | P239: TRUE | Q239: TRUE | R239: TRUE | S239: TRUE | T239: TRUE | U239: TRUE | V239: TRUE | W239: TRUE | X239: TRUE | Y239: TRUE | Z239: TRUE | AA239: TRUE | AB239: TRUE | AC239: TRUE | AD239: TRUE | AE239: TRUE | AF239: TRUE | AG239: TRUE | AH239: TRUE | AI239: TRUE | AJ239: TRUE | AK239: TRUE | AL239: TRUE | AM239: TRUE | AN239: TRUE | AO239: TRUE | AP239: TRUE | AQ239: TRUE | AR239: TRUE
A241: Hypothetical Cash Flow and Return From Efficient Tax
B243: Operating Taxes without Interest
C244: EBITDA | I244: =I202 -> 0 | J244: 807169.1542 | K244: 801951.8948 | L244: 735547.1042 | M244: 729754.5559 | N244: 723974.0225 | O244: 718205.2762 | P244: 712448.0886 | Q244: 706702.2308 | R244: 700967.4734 | S244: 695243.5862 | T244: 689530.3385 | U244: 683827.4991 | V244: 678134.836 | W244: 672452.1165 | X244: 666779.1076 | Y244: 661115.5751 | Z244: 655461.2846 | AA244: 649816.0007 | AB244: 644179.4872 | AC244: 638551.5076 | AD244: -225220.9044 | AE244: -226563.1134 | AF244: -227918.7446 | AG244: -229287.932 | AH244: -230670.8113 | AI244: 0 | AJ244: 0 | AK244: 0 | AL244: 0 | AM244: 0 | AN244: 0 | AO244: 0 | AP244: 0 | AQ244: 0 | AR244: 0
C245: Less Depreciation | I245: =I203 -> 0 | J245: 1827000 | K245: 2923200 | L245: 1753920 | M245: 1052352 | N245: 1052352 | O245: 526176 | P245: 0 | Q245: 0 | R245: 0 | S245: 0 | T245: 0 | U245: 0 | V245: 0 | W245: 0 | X245: 165000 | Y245: 115500 | Z245: 89833.33333 | AA245: 89833.33333 | AB245: 89833.33333 | AC245: 0 | AD245: 0 | AE245: 0 | AF245: 0 | AG245: 0 | AH245: 0 | AI245: 0 | AJ245: 0 | AK245: 0 | AL245: 0 | AM245: 0 | AN245: 0 | AO245: 0 | AP245: 0 | AQ245: 0 | AR245: 0
C246: Partnership Operating Income - Federal | I246: =I244-I245 -> 0 | J246: -1019830.846 | K246: -2121248.105 | L246: -1018372.896 | M246: -322597.4441 | N246: -328377.9775 | O246: 192029.2762 | P246: 712448.0886 | Q246: 706702.2308 | R246: 700967.4734 | S246: 695243.5862 | T246: 689530.3385 | U246: 683827.4991 | V246: 678134.836 | W246: 672452.1165 | X246: 501779.1076 | Y246: 545615.5751 | Z246: 565627.9513 | AA246: 559982.6673 | AB246: 554346.1539 | AC246: 638551.5076 | AD246: -225220.9044 | AE246: -226563.1134 | AF246: -227918.7446 | AG246: -229287.932 | AH246: -230670.8113 | AI246: 0 | AJ246: 0 | AK246: 0 | AL246: 0 | AM246: 0 | AN246: 0 | AO246: 0 | AP246: 0 | AQ246: 0 | AR246: 0
C248: Operating Taxes before ITC | G248: =Inputs!G110 -> 0.21 | J248: =J205*$G$248 -> -274195.6026 | K248: -503668.1158 | L248: -270148.8675 | M248: -122025.7534 | N248: -121129.8878 | O248: -9630.152933 | P248: 101981.6128 | Q248: 103213.8265 | R248: 104569.0942 | S248: 106053.3431 | T248: 107672.7965 | U248: 109433.9877 | V248: 111343.776 | W248: 113409.3622 | X248: 80988.30594 | Y248: 90200.81027 | Z248: 100068.9719 | AA248: 104521.6393 | AB248: 107487.4247 | AC248: 129525.4002 | AD248: -47296.38992 | AE248: -49919.42512 | AF248: -52675.11921 | AG248: -55570.06697 | AH248: -58611.18994 | AI248: -13071.57346 | AJ248: -13718.61635 | AK248: -14397.68786 | AL248: -15110.37341 | AM248: -15858.33689 | AN248: -16643.32457 | AO248: -17467.16913 | AP248: -18331.79401 | AQ248: -19239.21781 | AR248: -20191.55909
C249: Less ITC | I249: =I177 -> 2730000
... 441 more rows

Sheet Stranded Tax Diagram
T2: Contribution Ratio | U2: =Inputs!G152 -> 1.15 | AD2: Tax Investor IRR with ability to use all tax deductions and credits
T3: Deficit Restoration | U3: =Inputs!G158 -> 0.7
N5: Yes
AD6: Start with Tax Investor IRR as if there were no limits from | AJ6: ='Financial Model'!D435 -> IRR without any Stranded Tax | AN6: ='Financial Model'!G435 -> 0.893767324
AD7: =AD6&CHAR(10)&AJ6&TEXT(AN6," 0.00%") -> Start with Tax Investor IRR as if there were no limits from IRR without any Stranded Tax 89.38%
AD9: With a deficit in the Inside Basis (704(b)), there is a potential exposure to loss in tax benefits. | AN9: If there is no DRO, the IRR is reduced to | AS9: ='Financial Model'!G439 -> 0.3788706235
H10: 734 (a) | AD10: =AD9&AN9&TEXT(AS9," 0.00%") -> With a deficit in the Inside Basis (704(b)), there is a potential exposure to loss in tax benefits. If there is no DRO, the IRR is reduced to 37.89%
K11: No
AD12: If the DRO is used to limit the exposure to taxable income increase, the IRR after the re-allocation of income and use of the DRO is | AR12: ='Financial Model'!G508 -> 0.8828380355
AD13: =AD12&TEXT(AR12," 0.00%") -> If the DRO is used to limit the exposure to taxable income increase, the IRR after the re-allocation of income and use of the DRO is 88.28%
AD16: ='Financial Model'!D560 -> Tax Equity IRR After 731(a) Income from Deemed Sale | AL16: ='Financial Model'!G560 -> 0.8811510422
G17: Yes | AD17: =AD16&TEXT(AL16," 0.00%") -> Tax Equity IRR After 731(a) Income from Deemed Sale 88.12%
AD20: ='Financial Model'!D566 -> Tax Equity IRR After Suspended Losses -- Final Tax Eqity IRR | AL20: ='Financial Model'!G566 -> 0.8779057499
AD21: =AD20&TEXT(AL20," 0.00%") -> Tax Equity IRR After Suspended Losses -- Final Tax Eqity IRR 87.79%
L22: No
P46: Deficit Reduction Account | Q46: =Inputs!G158 -> 0.7
P48: Contribution Ratio | Q48: =Inputs!G152 -> 1.15
O51: Total Stranded Tax from Income Re-allocation | T51: =SUM('Financial Model'!I738:AR738) -> 398841.917
O52: Total Stranded Tax from Suspended Loss | T52: =SUM('Financial Model'!I739:AR739) -> 59392.18324
O53: Total Stranded Tax from Suspended Loss | T53: =SUM('Financial Model'!I740:AR740) -> 0
O54: Grand Total | T54: =SUM(T51:T53) -> 458234.1003
O57: IRR without Stranded Tax | T57: ='Financial Model'!G435 -> 0.893767324
O58: IRR with Income Re-allocation | T58: ='Financial Model'!G508 -> 0.8828380355
O59: IRR with Re-Allocation and Excess Dividends | T59: ='Financial Model'!G560 -> 0.8811510422
O60: Final IRR with Above and Suspended Loss | T60: ='Financial Model'!G566 -> 0.8779057499
O73: Discount Rate | T73: ='Financial Model'!$G$752 -> 0.07
O75: NPV of Cash Flow Pre-Flip | T75: ='Financial Model'!$G$754 -> 414398.0817
O76: NPV of Tax Taxes Pre-Flip | T76: ='Financial Model'!$G$757 -> 1006046.923
O77: NPV of Net Proceeds from Sale | T77: ='Financial Model'!$G$760 -> 115686.5721
O79: NPV of Cash Flow Post-Flip | T79: ='Financial Model'!$G$755 -> 0
O80: NPV of Taxes Post Flip | T80: ='Financial Model'!$G$758 -> 42923.67028
O82: Total NPV | T82: =SUM(T75:T80) -> 1579055.247
O84: IRR without Stranded Tax | T84: =T57 -> 0.893767324
O85: IRR with Income Re-allocation | T85: =T58 -> 0.8828380355
O86: IRR with Re-Allocation and Excess Dividends | T86: =T59 -> 0.8811510422
O87: Final IRR with Above and Suspended Loss | T87: =T60 -> 0.8779057499

Sheet Periodic Model
A1: Timing | E1: Units | F1: Driver 1 | G1: Driver 2 | H1: Sum | J1: 1 | K1: 2 | L1: 3 | M1: 4 | N1: 5 | O1: 6 | P1: 7 | Q1: 8 | R1: 9 | S1: 10 | T1: 11 | U1: 12 | V1: 13 | W1: 14 | X1: 15 | Y1: 16 | Z1: 17 | AA1: 18 | AB1: 19 | AC1: 20 | AD1: 21 | AE1: 22 | AF1: 23 | AG1: 24 | AH1: 25 | AI1: 26 | AJ1: 27 | AK1: 28 | AL1: 29 | AM1: 30 | AN1: 31 | AO1: 32 | AP1: 33 | AQ1: 34 | AR1: 35 | AS1: 36 | AT1: 37 | AU1: 38 | AV1: 39 | AW1: 40 | AX1: 41 | AY1: 42 | AZ1: 43 | BA1: 44 | BB1: 45 | BC1: 46 | BD1: 47 | BE1: 48 | BF1: 49 | BG1: 50 | BH1: 51 | BI1: 52 | BJ1: 53 | BK1: 54 | BL1: 55 | BM1: 56 | BN1: 57 | BO1: 58 | BP1: 59 | BQ1: 60 | BR1: 61 | BS1: 62 | BT1: 63 | BU1: 64 | BV1: 65 | BW1: 66 | BX1: 67 | BY1: 68 | BZ1: 69 | CA1: 70 | CB1: 71 | CC1: 72 | CD1: 73 | CE1: 74 | CF1: 75 | CG1: 76 | CH1: 77 | CI1: 78 | CJ1: 79 | CK1: 80 | CL1: 81 | CM1: 82 | CN1: 83 | CO1: 84 | CP1: 85 | CQ1: 86 | CR1: 87 | CS1: 88 | CT1: 89 | CU1: 90 | CV1: 91 | CW1: 92 | CX1: 93 | CY1: 94 | CZ1: 95 | DA1: 96 | DB1: 97 | DC1: 98 | DD1: 99 | DE1: 100 | DF1: 101 | DG1: 102 | DH1: 103 | DI1: 104 | DJ1: 105 | DK1: 106 | DL1: 107 | DM1: 108 | DN1: 109 | DO1: 110 | DP1: 111 | DQ1: 112 | DR1: 113 | DS1: 113 | DT1: 113 | DU1: 113 | DV1: 113 | DW1: 113 | DX1: 113 | DY1: 113 | DZ1: 113 | EA1: 113 | EB1: 113 | EC1: 113 | ED1: 113 | EE1: 113 | EF1: 113 | EG1: 113 | EH1: 113 | EI1: 113 | EJ1: 113 | EK1: 113 | EL1: 113 | EM1: 113 | EN1: 113 | EO1: 113 | EP1: 113 | EQ1: 113 | ER1: 113 | ES1: 113 | ET1: 113 | EU1: 113 | EV1: 113 | EW1: 113 | EX1: 113 | EY1: 113 | EZ1: 113 | FA1: 113 | FB1: 113 | FC1: 113 | FD1: 113 | FE1: 113 | FF1: 113 | FG1: 113 | FH1: 113 | FI1: 113 | FJ1: 113 | FK1: 113 | FL1: 113 | FM1: 113 | FN1: 113 | FO1: 113 | FP1: 113
B2: Pre-COD Period | E2: Flag | F2: =Inputs!G16 -> 11 | H2: =SUM(J2:DE2) -> 11 | J2: =(J1<=$F$2)*1 -> 1 | K2: =(K1<=$F$2)*1 -> 1 | L2: 1 | M2: 1 | N2: 1 | O2: 1 | P2: 1 | Q2: 1 | R2: 1 | S2: 1 | T2: 1 | U2: 0 | V2: 0 | W2: 0 | X2: 0 | Y2: 0 | Z2: 0 | AA2: 0 | AB2: 0 | AC2: 0 | AD2: 0 | AE2: 0 | AF2: 0 | AG2: 0 | AH2: 0 | AI2: 0 | AJ2: 0 | AK2: 0 | AL2: 0 | AM2: 0 | AN2: 0 | AO2: 0 | AP2: 0 | AQ2: 0 | AR2: 0 | AS2: 0 | AT2: 0 | AU2: 0 | AV2: 0 | AW2: 0 | AX2: 0 | AY2: 0 | AZ2: 0 | BA2: 0 | BB2: 0 | BC2: 0 | BD2: 0 | BE2: 0 | BF2: 0 | BG2: 0 | BH2: 0 | BI2: 0 | BJ2: 0 | BK2: 0 | BL2: 0 | BM2: 0 | BN2: 0 | BO2: 0 | BP2: 0 | BQ2: 0 | BR2: 0 | BS2: 0 | BT2: 0 | BU2: 0 | BV2: 0 | BW2: =(BW1<=$F$2)*1 -> 0 | BX2: 0 | BY2: 0 | BZ2: 0 | CA2: 0 | CB2: 0 | CC2: 0 | CD2: 0 | CE2: 0 | CF2: 0 | CG2: 0 | CH2: 0 | CI2: 0 | CJ2: 0 | CK2: 0 | CL2: 0 | CM2: 0 | CN2: 0 | CO2: 0 | CP2: 0 | CQ2: 0 | CR2: 0 | CS2: 0 | CT2: 0 | CU2: 0 | CV2: 0 | CW2: 0 | CX2: 0 | CY2: 0 | CZ2: 0 | DA2: 0 | DB2: 0 | DC2: 0 | DD2: 0 | DE2: 0 | DF2: =(DF1<=$F$2)*1 -> 0 | DG2: =(DG1<=$F$2)*1 -> 0 | DH2: =(DH1<=$F$2)*1 -> 0 | DI2: =(DI1<=$F$2)*1 -> 0 | DJ2: =(DJ1<=$F$2)*1 -> 0 | DK2: =(DK1<=$F$2)*1 -> 0 | DL2: =(DL1<=$F$2)*1 -> 0 | DM2: =(DM1<=$F$2)*1 -> 0 | DN2: =(DN1<=$F$2)*1 -> 0 | DO2: =(DO1<=$F$2)*1 -> 0 | DP2: =(DP1<=$F$2)*1 -> 0 | DQ2: =(DQ1<=$F$2)*1 -> 0 | DR2: =(DR1<=$F$2)*1 -> 0 | DS2: =(DS1<=$F$2)*1 -> 0 | DT2: =(DT1<=$F$2)*1 -> 0 | DU2: =(DU1<=$F$2)*1 -> 0 | DV2: =(DV1<=$F$2)*1 -> 0 | DW2: =(DW1<=$F$2)*1 -> 0 | DX2: =(DX1<=$F$2)*1 -> 0 | DY2: =(DY1<=$F$2)*1 -> 0 | DZ2: =(DZ1<=$F$2)*1 -> 0 | EA2: =(EA1<=$F$2)*1 -> 0 | EB2: =(EB1<=$F$2)*1 -> 0 | EC2: =(EC1<=$F$2)*1 -> 0 | ED2: =(ED1<=$F$2)*1 -> 0 | EE2: =(EE1<=$F$2)*1 -> 0 | EF2: =(EF1<=$F$2)*1 -> 0 | EG2: =(EG1<=$F$2)*1 -> 0 | EH2: =(EH1<=$F$2)*1 -> 0 | EI2: =(EI1<=$F$2)*1 -> 0 | EJ2: =(EJ1<=$F$2)*1 -> 0 | EK2: =(EK1<=$F$2)*1 -> 0 | EL2: =(EL1<=$F$2)*1 -> 0 | EM2: =(EM1<=$F$2)*1 -> 0 | EN2: =(EN1<=$F$2)*1 -> 0 | EO2: =(EO1<=$F$2)*1 -> 0 | EP2: =(EP1<=$F$2)*1 -> 0 | EQ2: =(EQ1<=$F$2)*1 -> 0 | ER2: =(ER1<=$F$2)*1 -> 0 | ES2: =(ES1<=$F$2)*1 -> 0 | ET2: =(ET1<=$F$2)*1 -> 0 | EU2: =(EU1<=$F$2)*1 -> 0 | EV2: =(EV1<=$F$2)*1 -> 0 | EW2: =(EW1<=$F$2)*1 -> 0 | EX2: =(EX1<=$F$2)*1 -> 0 | EY2: =(EY1<=$F$2)*1 -> 0 | EZ2: =(EZ1<=$F$2)*1 -> 0 | FA2: =(FA1<=$F$2)*1 -> 0 | FB2: =(FB1<=$F$2)*1 -> 0 | FC2: =(FC1<=$F$2)*1 -> 0 | FD2: =(FD1<=$F$2)*1 -> 0 | FE2: =(FE1<=$F$2)*1 -> 0 | FF2: =(FF1<=$F$2)*1 -> 0 | FG2: =(FG1<=$F$2)*1 -> 0 | FH2: =(FH1<=$F$2)*1 -> 0 | FI2: =(FI1<=$F$2)*1 -> 0 | FJ2: =(FJ1<=$F$2)*1 -> 0 | FK2: =(FK1<=$F$2)*1 -> 0 | FL2: =(FL1<=$F$2)*1 -> 0 | FM2: =(FM1<=$F$2)*1 -> 0 | FN2: =(FN1<=$F$2)*1 -> 0 | FO2: =(FO1<=$F$2)*1 -> 0 | FP2: =(FP1<=$F$2)*1 -> 0
B3: Months in Period | E3: Months | F3: =Inputs!G25 -> 1 | G3: =Inputs!G26 -> 3 | J3: =IF(J2,$F$3,$G$3) -> 1 | K3: =IF(K2,$F$3,$G$3) -> 1 | L3: 1 | M3: 1 | N3: 1 | O3: 1 | P3: 1 | Q3: 1 | R3: 1 | S3: 1 | T3: 1 | U3: 3 | V3: 3 | W3: 3 | X3: 3 | Y3: 3 | Z3: 3 | AA3: 3 | AB3: 3 | AC3: 3 | AD3: 3 | AE3: 3 | AF3: 3 | AG3: 3 | AH3: 3 | AI3: 3 | AJ3: 3 | AK3: 3 | AL3: 3 | AM3: 3 | AN3: 3 | AO3: 3 | AP3: 3 | AQ3: 3 | AR3: 3 | AS3: 3 | AT3: 3 | AU3: 3 | AV3: 3 | AW3: 3 | AX3: 3 | AY3: 3 | AZ3: 3 | BA3: 3 | BB3: 3 | BC3: 3 | BD3: 3 | BE3: 3 | BF3: 3 | BG3: 3 | BH3: 3 | BI3: 3 | BJ3: 3 | BK3: 3 | BL3: 3 | BM3: 3 | BN3: 3 | BO3: 3 | BP3: 3 | BQ3: 3 | BR3: 3 | BS3: 3 | BT3: 3 | BU3: 3 | BV3: 3 | BW3: =IF(BW2,$F$3,$G$3) -> 3 | BX3: 3 | BY3: 3 | BZ3: 3 | CA3: 3 | CB3: 3 | CC3: 3 | CD3: 3 | CE3: 3 | CF3: 3 | CG3: 3 | CH3: 3 | CI3: 3 | CJ3: 3 | CK3: 3 | CL3: 3 | CM3: 3 | CN3: 3 | CO3: 3 | CP3: 3 | CQ3: 3 | CR3: 3 | CS3: 3 | CT3: 3 | CU3: 3 | CV3: 3 | CW3: 3 | CX3: 3 | CY3: 3 | CZ3: 3 | DA3: 3 | DB3: 3 | DC3: 3 | DD3: 3 | DE3: 3 | DF3: =IF(DF2,$F$3,$G$3) -> 3 | DG3: =IF(DG2,$F$3,$G$3) -> 3 | DH3: =IF(DH2,$F$3,$G$3) -> 3 | DI3: =IF(DI2,$F$3,$G$3) -> 3 | DJ3: =IF(DJ2,$F$3,$G$3) -> 3 | DK3: =IF(DK2,$F$3,$G$3) -> 3 | DL3: =IF(DL2,$F$3,$G$3) -> 3 | DM3: =IF(DM2,$F$3,$G$3) -> 3 | DN3: =IF(DN2,$F$3,$G$3) -> 3 | DO3: =IF(DO2,$F$3,$G$3) -> 3 | DP3: =IF(DP2,$F$3,$G$3) -> 3 | DQ3: =IF(DQ2,$F$3,$G$3) -> 3 | DR3: =IF(DR2,$F$3,$G$3) -> 3 | DS3: =IF(DS2,$F$3,$G$3) -> 3 | DT3: =IF(DT2,$F$3,$G$3) -> 3 | DU3: =IF(DU2,$F$3,$G$3) -> 3 | DV3: =IF(DV2,$F$3,$G$3) -> 3 | DW3: =IF(DW2,$F$3,$G$3) -> 3 | DX3: =IF(DX2,$F$3,$G$3) -> 3 | DY3: =IF(DY2,$F$3,$G$3) -> 3 | DZ3: =IF(DZ2,$F$3,$G$3) -> 3 | EA3: =IF(EA2,$F$3,$G$3) -> 3 | EB3: =IF(EB2,$F$3,$G$3) -> 3 | EC3: =IF(EC2,$F$3,$G$3) -> 3 | ED3: =IF(ED2,$F$3,$G$3) -> 3 | EE3: =IF(EE2,$F$3,$G$3) -> 3 | EF3: =IF(EF2,$F$3,$G$3) -> 3 | EG3: =IF(EG2,$F$3,$G$3) -> 3 | EH3: =IF(EH2,$F$3,$G$3) -> 3 | EI3: =IF(EI2,$F$3,$G$3) -> 3 | EJ3: =IF(EJ2,$F$3,$G$3) -> 3 | EK3: =IF(EK2,$F$3,$G$3) -> 3 | EL3: =IF(EL2,$F$3,$G$3) -> 3 | EM3: =IF(EM2,$F$3,$G$3) -> 3 | EN3: =IF(EN2,$F$3,$G$3) -> 3 | EO3: =IF(EO2,$F$3,$G$3) -> 3 | EP3: =IF(EP2,$F$3,$G$3) -> 3 | EQ3: =IF(EQ2,$F$3,$G$3) -> 3 | ER3: =IF(ER2,$F$3,$G$3) -> 3 | ES3: =IF(ES2,$F$3,$G$3) -> 3 | ET3: =IF(ET2,$F$3,$G$3) -> 3 | EU3: =IF(EU2,$F$3,$G$3) -> 3 | EV3: =IF(EV2,$F$3,$G$3) -> 3 | EW3: =IF(EW2,$F$3,$G$3) -> 3 | EX3: =IF(EX2,$F$3,$G$3) -> 3 | EY3: =IF(EY2,$F$3,$G$3) -> 3 | EZ3: =IF(EZ2,$F$3,$G$3) -> 3 | FA3: =IF(FA2,$F$3,$G$3) -> 3 | FB3: =IF(FB2,$F$3,$G$3) -> 3 | FC3: =IF(FC2,$F$3,$G$3) -> 3 | FD3: =IF(FD2,$F$3,$G$3) -> 3 | FE3: =IF(FE2,$F$3,$G$3) -> 3 | FF3: =IF(FF2,$F$3,$G$3) -> 3 | FG3: =IF(FG2,$F$3,$G$3) -> 3 | FH3: =IF(FH2,$F$3,$G$3) -> 3 | FI3: =IF(FI2,$F$3,$G$3) -> 3 | FJ3: =IF(FJ2,$F$3,$G$3) -> 3 | FK3: =IF(FK2,$F$3,$G$3) -> 3 | FL3: =IF(FL2,$F$3,$G$3) -> 3 | FM3: =IF(FM2,$F$3,$G$3) -> 3 | FN3: =IF(FN2,$F$3,$G$3) -> 3 | FO3: =IF(FO2,$F$3,$G$3) -> 3 | FP3: =IF(FP2,$F$3,$G$3) -> 3
B4: Start of Period | J4: =I5+1 -> 2019-12-01 | K4: =J5+1 -> 2020-01-01 | L4: =K5+1 -> 2020-02-01 | M4: 2020-03-01 | N4: 2020-04-01 | O4: 2020-05-01 | P4: 2020-06-01 | Q4: 2020-07-01 | R4: 2020-08-01 | S4: 2020-09-01 | T4: 2020-10-01 | U4: 2020-11-01 | V4: 2021-02-01 | W4: 2021-05-01 | X4: 2021-08-01 | Y4: 2021-11-01 | Z4: 2022-02-01 | AA4: 2022-05-01 | AB4: 2022-08-01 | AC4: 2022-11-01 | AD4: 2023-02-01 | AE4: 2023-05-01 | AF4: 2023-08-01 | AG4: 2023-11-01 | AH4: 2024-02-01 | AI4: 2024-05-01 | AJ4: 2024-08-01 | AK4: 2024-11-01 | AL4: 2025-02-01 | AM4: 2025-05-01 | AN4: 2025-08-01 | AO4: 2025-11-01 | AP4: 2026-02-01 | AQ4: 2026-05-01 | AR4: 2026-08-01 | AS4: 2026-11-01 | AT4: 2027-02-01 | AU4: 2027-05-01 | AV4: 2027-08-01 | AW4: 2027-11-01 | AX4: 2028-02-01 | AY4: 2028-05-01 | AZ4: 2028-08-01 | BA4: 2028-11-01 | BB4: 2029-02-01 | BC4: 2029-05-01 | BD4: 2029-08-01 | BE4: 2029-11-01 | BF4: 2030-02-01 | BG4: 2030-05-01 | BH4: 2030-08-01 | BI4: 2030-11-01 | BJ4: 2031-02-01 | BK4: 2031-05-01 | BL4: 2031-08-01 | BM4: 2031-11-01 | BN4: 2032-02-01 | BO4: 2032-05-01 | BP4: 2032-08-01 | BQ4: 2032-11-01 | BR4: 2033-02-01 | BS4: 2033-05-01 | BT4: 2033-08-01 | BU4: 2033-11-01 | BV4: 2034-02-01 | BW4: 2034-05-01 | BX4: =BW5+1 -> 2034-08-01 | BY4: 2034-11-01 | BZ4: 2035-02-01 | CA4: 2035-05-01 | CB4: 2035-08-01 | CC4: 2035-11-01 | CD4: 2036-02-01 | CE4: 2036-05-01 | CF4: 2036-08-01 | CG4: 2036-11-01 | CH4: 2037-02-01 | CI4: 2037-05-01 | CJ4: 2037-08-01 | CK4: 2037-11-01 | CL4: 2038-02-01 | CM4: 2038-05-01 | CN4: 2038-08-01 | CO4: 2038-11-01 | CP4: 2039-02-01 | CQ4: 2039-05-01 | CR4: 2039-08-01 | CS4: 2039-11-01 | CT4: 2040-02-01 | CU4: 2040-05-01 | CV4: 2040-08-01 | CW4: 2040-11-01 | CX4: 2041-02-01 | CY4: 2041-05-01 | CZ4: 2041-08-01 | DA4: 2041-11-01 | DB4: 2042-02-01 | DC4: 2042-05-01 | DD4: 2042-08-01 | DE4: 2042-11-01 | DF4: 2043-02-01 | DG4: 2043-05-01 | DH4: 2043-08-01 | DI4: 2043-11-01 | DJ4: 2044-02-01 | DK4: 2044-05-01 | DL4: 2044-08-01 | DM4: 2044-11-01 | DN4: 2045-02-01 | DO4: 2045-05-01 | DP4: 2045-08-01 | DQ4: 2045-11-01 | DR4: 2046-02-01 | DS4: 2046-05-01 | DT4: 2046-08-01 | DU4: 2046-11-01 | DV4: 2047-02-01 | DW4: 2047-05-01 | DX4: 2047-08-01 | DY4: 2047-11-01 | DZ4: 2048-02-01 | EA4: 2048-05-01 | EB4: 2048-08-01 | EC4: 2048-11-01 | ED4: 2049-02-01 | EE4: 2049-05-01 | EF4: 2049-08-01 | EG4: 2049-11-01 | EH4: 2050-02-01 | EI4: 2050-05-01 | EJ4: =EI5+1 -> 2050-08-01 | EK4: 2050-11-01 | EL4: 2051-02-01 | EM4: 2051-05-01 | EN4: 2051-08-01 | EO4: 2051-11-01 | EP4: 2052-02-01 | EQ4: 2052-05-01 | ER4: 2052-08-01 | ES4: 2052-11-01 | ET4: 2053-02-01 | EU4: 2053-05-01 | EV4: 2053-08-01 | EW4: 2053-11-01 | EX4: 2054-02-01 | EY4: 2054-05-01 | EZ4: 2054-08-01 | FA4: 2054-11-01 | FB4: 2055-02-01 | FC4: 2055-05-01 | FD4: 2055-08-01 | FE4: 2055-11-01 | FF4: 2056-02-01 | FG4: 2056-05-01 | FH4: 2056-08-01 | FI4: 2056-11-01 | FJ4: 2057-02-01 | FK4: 2057-05-01 | FL4: 2057-08-01 | FM4: 2057-11-01 | FN4: 2058-02-01 | FO4: 2058-05-01 | FP4: 2058-08-01
B5: End of Period | I5: =Inputs!G15-1 -> 2019-11-30 | J5: =EOMONTH(J4,J3-1) -> 2019-12-31 | K5: =EOMONTH(K4,K3-1) -> 2020-01-31 | L5: 2020-02-29 | M5: 2020-03-31 | N5: 2020-04-30 | O5: 2020-05-31 | P5: 2020-06-30 | Q5: 2020-07-31 | R5: 2020-08-31 | S5: 2020-09-30 | T5: 2020-10-31 | U5: 2021-01-31 | V5: 2021-04-30 | W5: 2021-07-31 | X5: 2021-10-31 | Y5: 2022-01-31 | Z5: 2022-04-30 | AA5: 2022-07-31 | AB5: 2022-10-31 | AC5: 2023-01-31 | AD5: 2023-04-30 | AE5: 2023-07-31 | AF5: 2023-10-31 | AG5: 2024-01-31 | AH5: 2024-04-30 | AI5: 2024-07-31 | AJ5: 2024-10-31 | AK5: 2025-01-31 | AL5: 2025-04-30 | AM5: 2025-07-31 | AN5: 2025-10-31 | AO5: 2026-01-31 | AP5: 2026-04-30 | AQ5: 2026-07-31 | AR5: 2026-10-31 | AS5: 2027-01-31 | AT5: 2027-04-30 | AU5: 2027-07-31 | AV5: 2027-10-31 | AW5: 2028-01-31 | AX5: 2028-04-30 | AY5: 2028-07-31 | AZ5: 2028-10-31 | BA5: 2029-01-31 | BB5: 2029-04-30 | BC5: 2029-07-31 | BD5: 2029-10-31 | BE5: 2030-01-31 | BF5: 2030-04-30 | BG5: 2030-07-31 | BH5: 2030-10-31 | BI5: 2031-01-31 | BJ5: 2031-04-30 | BK5: 2031-07-31 | BL5: 2031-10-31 | BM5: 2032-01-31 | BN5: 2032-04-30 | BO5: 2032-07-31 | BP5: 2032-10-31 | BQ5: 2033-01-31 | BR5: 2033-04-30 | BS5: 2033-07-31 | BT5: 2033-10-31 | BU5: 2034-01-31 | BV5: 2034-04-30 | BW5: =EOMONTH(BW4,BW3-1) -> 2034-07-31 | BX5: 2034-10-31 | BY5: 2035-01-31 | BZ5: 2035-04-30 | CA5: 2035-07-31 | CB5: 2035-10-31 | CC5: 2036-01-31 | CD5: 2036-04-30 | CE5: 2036-07-31 | CF5: 2036-10-31 | CG5: 2037-01-31 | CH5: 2037-04-30 | CI5: 2037-07-31 | CJ5: 2037-10-31 | CK5: 2038-01-31 | CL5: 2038-04-30 | CM5: 2038-07-31 | CN5: 2038-10-31 | CO5: 2039-01-31 | CP5: 2039-04-30 | CQ5: 2039-07-31 | CR5: 2039-10-31 | CS5: 2040-01-31 | CT5: 2040-04-30 | CU5: 2040-07-31 | CV5: 2040-10-31 | CW5: 2041-01-31 | CX5: 2041-04-30 | CY5: 2041-07-31 | CZ5: 2041-10-31 | DA5: 2042-01-31 | DB5: 2042-04-30 | DC5: 2042-07-31 | DD5: 2042-10-31 | DE5: 2043-01-31 | DF5: =EOMONTH(DF4,DF3-1) -> 2043-04-30 | DG5: =EOMONTH(DG4,DG3-1) -> 2043-07-31 | DH5: =EOMONTH(DH4,DH3-1) -> 2043-10-31 | DI5: =EOMONTH(DI4,DI3-1) -> 2044-01-31 | DJ5: =EOMONTH(DJ4,DJ3-1) -> 2044-04-30 | DK5: =EOMONTH(DK4,DK3-1) -> 2044-07-31 | DL5: =EOMONTH(DL4,DL3-1) -> 2044-10-31 | DM5: =EOMONTH(DM4,DM3-1) -> 2045-01-31 | DN5: =EOMONTH(DN4,DN3-1) -> 2045-04-30 | DO5: =EOMONTH(DO4,DO3-1) -> 2045-07-31 | DP5: =EOMONTH(DP4,DP3-1) -> 2045-10-31 | DQ5: =EOMONTH(DQ4,DQ3-1) -> 2046-01-31 | DR5: =EOMONTH(DR4,DR3-1) -> 2046-04-30 | DS5: =EOMONTH(DS4,DS3-1) -> 2046-07-31 | DT5: =EOMONTH(DT4,DT3-1) -> 2046-10-31 | DU5: =EOMONTH(DU4,DU3-1) -> 2047-01-31 | DV5: =EOMONTH(DV4,DV3-1) -> 2047-04-30 | DW5: =EOMONTH(DW4,DW3-1) -> 2047-07-31 | DX5: =EOMONTH(DX4,DX3-1) -> 2047-10-31 | DY5: =EOMONTH(DY4,DY3-1) -> 2048-01-31 | DZ5: =EOMONTH(DZ4,DZ3-1) -> 2048-04-30 | EA5: =EOMONTH(EA4,EA3-1) -> 2048-07-31 | EB5: =EOMONTH(EB4,EB3-1) -> 2048-10-31 | EC5: =EOMONTH(EC4,EC3-1) -> 2049-01-31 | ED5: =EOMONTH(ED4,ED3-1) -> 2049-04-30 | EE5: =EOMONTH(EE4,EE3-1) -> 2049-07-31 | EF5: =EOMONTH(EF4,EF3-1) -> 2049-10-31 | EG5: =EOMONTH(EG4,EG3-1) -> 2050-01-31 | EH5: =EOMONTH(EH4,EH3-1) -> 2050-04-30 | EI5: =EOMONTH(EI4,EI3-1) -> 2050-07-31 | EJ5: =EOMONTH(EJ4,EJ3-1) -> 2050-10-31 | EK5: =EOMONTH(EK4,EK3-1) -> 2051-01-31 | EL5: =EOMONTH(EL4,EL3-1) -> 2051-04-30 | EM5: =EOMONTH(EM4,EM3-1) -> 2051-07-31 | EN5: =EOMONTH(EN4,EN3-1) -> 2051-10-31 | EO5: =EOMONTH(EO4,EO3-1) -> 2052-01-31 | EP5: =EOMONTH(EP4,EP3-1) -> 2052-04-30 | EQ5: =EOMONTH(EQ4,EQ3-1) -> 2052-07-31 | ER5: =EOMONTH(ER4,ER3-1) -> 2052-10-31 | ES5: =EOMONTH(ES4,ES3-1) -> 2053-01-31 | ET5: =EOMONTH(ET4,ET3-1) -> 2053-04-30 | EU5: =EOMONTH(EU4,EU3-1) -> 2053-07-31 | EV5: =EOMONTH(EV4,EV3-1) -> 2053-10-31 | EW5: =EOMONTH(EW4,EW3-1) -> 2054-01-31 | EX5: =EOMONTH(EX4,EX3-1) -> 2054-04-30 | EY5: =EOMONTH(EY4,EY3-1) -> 2054-07-31 | EZ5: =EOMONTH(EZ4,EZ3-1) -> 2054-10-31 | FA5: =EOMONTH(FA4,FA3-1) -> 2055-01-31 | FB5: =EOMONTH(FB4,FB3-1) -> 2055-04-30 | FC5: =EOMONTH(FC4,FC3-1) -> 2055-07-31 | FD5: =EOMONTH(FD4,FD3-1) -> 2055-10-31 | FE5: =EOMONTH(FE4,FE3-1) -> 2056-01-31 | FF5: =EOMONTH(FF4,FF3-1) -> 2056-04-30 | FG5: =EOMONTH(FG4,FG3-1) -> 2056-07-31 | FH5: =EOMONTH(FH4,FH3-1) -> 2056-10-31 | FI5: =EOMONTH(FI4,FI3-1) -> 2057-01-31 | FJ5: =EOMONTH(FJ4,FJ3-1) -> 2057-04-30 | FK5: =EOMONTH(FK4,FK3-1) -> 2057-07-31 | FL5: =EOMONTH(FL4,FL3-1) -> 2057-10-31 | FM5: =EOMONTH(FM4,FM3-1) -> 2058-01-31 | FN5: =EOMONTH(FN4,FN3-1) -> 2058-04-30 | FO5: =EOMONTH(FO4,FO3-1) -> 2058-07-31 | FP5: =EOMONTH(FP4,FP3-1) -> 2058-10-31
B6: Model Year | J6: =YEAR(J4) -> 2019 | K6: 2020 | L6: 2020 | M6: 2020 | N6: 2020 | O6: 2020 | P6: 2020 | Q6: 2020 | R6: 2020 | S6: 2020 | T6: 2020 | U6: 2020 | V6: 2021 | W6: 2021 | X6: 2021 | Y6: 2021 | Z6: 2022 | AA6: 2022 | AB6: 2022 | AC6: 2022 | AD6: 2023 | AE6: 2023 | AF6: 2023 | AG6: 2023 | AH6: 2024 | AI6: 2024 | AJ6: 2024 | AK6: 2024 | AL6: 2025 | AM6: 2025 | AN6: 2025 | AO6: 2025 | AP6: =YEAR(AP4) -> 2026 | AQ6: 2026 | AR6: 2026 | AS6: 2026 | AT6: 2027 | AU6: 2027 | AV6: 2027 | AW6: 2027 | AX6: 2028 | AY6: 2028 | AZ6: 2028 | BA6: 2028 | BB6: 2029 | BC6: 2029 | BD6: 2029 | BE6: 2029 | BF6: 2030 | BG6: 2030 | BH6: 2030 | BI6: 2030 | BJ6: 2031 | BK6: 2031 | BL6: 2031 | BM6: 2031 | BN6: 2032 | BO6: 2032 | BP6: 2032 | BQ6: 2032 | BR6: 2033 | BS6: 2033 | BT6: 2033 | BU6: 2033 | BV6: =YEAR(BV4) -> 2034 | BW6: 2034 | BX6: 2034 | BY6: 2034 | BZ6: 2035 | CA6: 2035 | CB6: 2035 | CC6: 2035 | CD6: 2036 | CE6: 2036 | CF6: 2036 | CG6: 2036 | CH6: 2037 | CI6: 2037 | CJ6: 2037 | CK6: 2037 | CL6: 2038 | CM6: 2038 | CN6: 2038 | CO6: 2038 | CP6: 2039 | CQ6: 2039 | CR6: 2039 | CS6: 2039 | CT6: 2040 | CU6: 2040 | CV6: 2040 | CW6: 2040 | CX6: 2041 | CY6: 2041 | CZ6: 2041 | DA6: 2041 | DB6: 2042 | DC6: 2042 | DD6: 2042 | DE6: 2042 | DF6: =YEAR(DF4) -> 2043 | DG6: 2043 | DH6: 2043 | DI6: 2043 | DJ6: 2044 | DK6: 2044 | DL6: 2044 | DM6: 2044 | DN6: 2045 | DO6: 2045 | DP6: 2045 | DQ6: 2045 | DR6: 2046 | DS6: =YEAR(DS4) -> 2046 | DT6: 2046 | DU6: 2046 | DV6: 2047 | DW6: 2047 | DX6: 2047 | DY6: 2047 | DZ6: 2048 | EA6: 2048 | EB6: 2048 | EC6: 2048 | ED6: 2049 | EE6: 2049 | EF6: 2049 | EG6: 2049 | EH6: 2050 | EI6: 2050 | EJ6: 2050 | EK6: 2050 | EL6: 2051 | EM6: 2051 | EN6: 2051 | EO6: 2051 | EP6: 2052 | EQ6: 2052 | ER6: 2052 | ES6: 2052 | ET6: 2053 | EU6: 2053 | EV6: 2053 | EW6: 2053 | EX6: 2054 | EY6: 2054 | EZ6: 2054 | FA6: 2054 | FB6: 2055 | FC6: 2055 | FD6: 2055 | FE6: 2055 | FF6: 2056 | FG6: 2056 | FH6: 2056 | FI6: 2056 | FJ6: 2057 | FK6: 2057 | FL6: 2057 | FM6: 2057 | FN6: 2058 | FO6: 2058 | FP6: 2058
B7: Operation Period | F7: =Inputs!G18 -> 2020-11-01 | G7: =Inputs!G23 -> 2045-11-01 | H7: =SUM(J7:FP7)/4 -> 25 | J7: =AND(J5>=$F$7,J5<$G$7)*1 -> 0 | K7: =AND(K5>=$F$7,K5<$G$7)*1 -> 0 | L7: 0 | M7: 0 | N7: 0 | O7: 0 | P7: 0 | Q7: 0 | R7: 0 | S7: 0 | T7: 0 | U7: 1 | V7: 1 | W7: 1 | X7: 1 | Y7: 1 | Z7: 1 | AA7: 1 | AB7: 1 | AC7: 1 | AD7: 1 | AE7: 1 | AF7: 1 | AG7: 1 | AH7: 1 | AI7: 1 | AJ7: 1 | AK7: 1 | AL7: 1 | AM7: 1 | AN7: 1 | AO7: 1 | AP7: 1 | AQ7: 1 | AR7: 1 | AS7: 1 | AT7: 1 | AU7: 1 | AV7: 1 | AW7: 1 | AX7: 1 | AY7: 1 | AZ7: 1 | BA7: 1 | BB7: 1 | BC7: 1 | BD7: 1 | BE7: 1 | BF7: 1 | BG7: 1 | BH7: 1 | BI7: 1 | BJ7: 1 | BK7: 1 | BL7: 1 | BM7: 1 | BN7: 1 | BO7: 1 | BP7: 1 | BQ7: 1 | BR7: 1 | BS7: 1 | BT7: 1 | BU7: 1 | BV7: 1 | BW7: =AND(BW5>=$F$7,BW5<$G$7)*1 -> 1 | BX7: 1 | BY7: 1 | BZ7: 1 | CA7: 1 | CB7: 1 | CC7: 1 | CD7: 1 | CE7: 1 | CF7: 1 | CG7: 1 | CH7: 1 | CI7: 1 | CJ7: 1 | CK7: 1 | CL7: 1 | CM7: 1 | CN7: 1 | CO7: 1 | CP7: 1 | CQ7: 1 | CR7: 1 | CS7: 1 | CT7: 1 | CU7: 1 | CV7: 1 | CW7: 1 | CX7: 1 | CY7: 1 | CZ7: 1 | DA7: 1 | DB7: 1 | DC7: 1 | DD7: 1 | DE7: 1 | DF7: 1 | DG7: 1 | DH7: 1 | DI7: 1 | DJ7: 1 | DK7: 1 | DL7: 1 | DM7: 1 | DN7: 1 | DO7: 1 | DP7: 1 | DQ7: 0 | DR7: 0 | DS7: 0 | DT7: 0 | DU7: 0 | DV7: 0 | DW7: 0 | DX7: 0 | DY7: 0 | DZ7: 0 | EA7: 0 | EB7: 0 | EC7: 0 | ED7: 0 | EE7: 0 | EF7: 0 | EG7: 0 | EH7: 0 | EI7: =AND(EI5>=$F$7,EI5<$G$7)*1 -> 0 | EJ7: 0 | EK7: 0 | EL7: 0 | EM7: 0 | EN7: 0 | EO7: 0 | EP7: 0 | EQ7: 0 | ER7: 0 | ES7: 0 | ET7: 0 | EU7: 0 | EV7: 0 | EW7: 0 | EX7: 0 | EY7: 0 | EZ7: 0 | FA7: 0 | FB7: 0 | FC7: 0 | FD7: 0 | FE7: 0 | FF7: 0 | FG7: 0 | FH7: 0 | FI7: 0 | FJ7: 0 | FK7: 0 | FL7: 0 | FM7: 0 | FN7: 0 | FO7: 0 | FP7: 0
A9: Production
B10: Capacity (kWp) | E10: kWp | F10: =Inputs!G32 -> 10000 | J10: =$F$10*J7 -> 0 | K10: 0 | L10: 0 | M10: 0 | N10: 0 | O10: 0 | P10: 0 | Q10: 0 | R10: 0 | S10: 0 | T10: 0 | U10: 10000 | V10: 10000 | W10: 10000 | X10: 10000 | Y10: 10000 | Z10: 10000 | AA10: 10000 | AB10: 10000 | AC10: 10000 | AD10: 10000 | AE10: 10000 | AF10: 10000 | AG10: 10000 | AH10: 10000 | AI10: 10000 | AJ10: 10000 | AK10: 10000 | AL10: 10000 | AM10: 10000 | AN10: 10000 | AO10: 10000 | AP10: 10000 | AQ10: 10000 | AR10: 10000 | AS10: 10000 | AT10: 10000 | AU10: 10000 | AV10: 10000 | AW10: 10000 | AX10: 10000 | AY10: 10000 | AZ10: 10000 | BA10: 10000 | BB10: 10000 | BC10: 10000 | BD10: 10000 | BE10: 10000 | BF10: 10000 | BG10: 10000 | BH10: 10000 | BI10: 10000 | BJ10: 10000 | BK10: 10000 | BL10: 10000 | BM10: 10000 | BN10: 10000 | BO10: 10000 | BP10: 10000 | BQ10: 10000 | BR10: 10000 | BS10: 10000 | BT10: 10000 | BU10: 10000 | BV10: 10000 | BW10: =$F$10*BW7 -> 10000 | BX10: 10000 | BY10: 10000 | BZ10: 10000 | CA10: 10000 | CB10: 10000 | CC10: 10000 | CD10: 10000 | CE10: 10000 | CF10: 10000 | CG10: 10000 | CH10: 10000 | CI10: 10000 | CJ10: 10000 | CK10: 10000 | CL10: 10000 | CM10: 10000 | CN10: 10000 | CO10: 10000 | CP10: 10000 | CQ10: 10000 | CR10: 10000 | CS10: 10000 | CT10: 10000 | CU10: 10000 | CV10: 10000 | CW10: 10000 | CX10: 10000 | CY10: 10000 | CZ10: 10000 | DA10: 10000 | DB10: 10000 | DC10: 10000 | DD10: 10000 | DE10: 10000 | DF10: 10000 | DG10: 10000 | DH10: 10000 | DI10: 10000 | DJ10: 10000 | DK10: 10000 | DL10: 10000 | DM10: 10000 | DN10: 10000 | DO10: 10000 | DP10: 10000 | DQ10: 0 | DR10: 0 | DS10: 0 | DT10: 0 | DU10: 0 | DV10: 0 | DW10: 0 | DX10: 0 | DY10: 0 | DZ10: 0 | EA10: 0 | EB10: 0 | EC10: 0 | ED10: 0 | EE10: 0 | EF10: 0 | EG10: 0 | EH10: 0 | EI10: =$F$10*EI7 -> 0 | EJ10: 0 | EK10: 0 | EL10: 0 | EM10: 0 | EN10: 0 | EO10: 0 | EP10: 0 | EQ10: 0 | ER10: 0 | ES10: 0 | ET10: 0 | EU10: 0 | EV10: 0 | EW10: 0 | EX10: 0 | EY10: 0 | EZ10: 0 | FA10: 0 | FB10: 0 | FC10: 0 | FD10: 0 | FE10: 0 | FF10: 0 | FG10: 0 | FH10: 0 | FI10: 0 | FJ10: 0 | FK10: 0 | FL10: 0 | FM10: 0 | FN10: 0 | FO10: 0 | FP10: 0
B11: Annual Yield Before Degradation | E11: kWh/kWp | F11: =Inputs!G33 -> 1361.3 | J11: =$F$11*J7 -> 0 | K11: =$F$11*K7 -> 0 | L11: 0 | M11: 0 | N11: 0 | O11: 0 | P11: 0 | Q11: 0 | R11: 0 | S11: 0 | T11: 0 | U11: 1361.3 | V11: 1361.3 | W11: 1361.3 | X11: 1361.3 | Y11: 1361.3 | Z11: 1361.3 | AA11: 1361.3 | AB11: 1361.3 | AC11: 1361.3 | AD11: 1361.3 | AE11: 1361.3 | AF11: 1361.3 | AG11: 1361.3 | AH11: 1361.3 | AI11: 1361.3 | AJ11: 1361.3 | AK11: 1361.3 | AL11: 1361.3 | AM11: 1361.3 | AN11: 1361.3 | AO11: 1361.3 | AP11: 1361.3 | AQ11: 1361.3 | AR11: 1361.3 | AS11: 1361.3 | AT11: 1361.3 | AU11: 1361.3 | AV11: 1361.3 | AW11: 1361.3 | AX11: 1361.3 | AY11: 1361.3 | AZ11: 1361.3 | BA11: 1361.3 | BB11: 1361.3 | BC11: 1361.3 | BD11: 1361.3 | BE11: 1361.3 | BF11: 1361.3 | BG11: 1361.3 | BH11: 1361.3 | BI11: 1361.3 | BJ11: 1361.3 | BK11: 1361.3 | BL11: 1361.3 | BM11: 1361.3 | BN11: 1361.3 | BO11: 1361.3 | BP11: 1361.3 | BQ11: 1361.3 | BR11: 1361.3 | BS11: 1361.3 | BT11: 1361.3 | BU11: 1361.3 | BV11: 1361.3 | BW11: =$F$11*BW7 -> 1361.3 | BX11: 1361.3 | BY11: 1361.3 | BZ11: 1361.3 | CA11: 1361.3 | CB11: 1361.3 | CC11: 1361.3 | CD11: 1361.3 | CE11: 1361.3 | CF11: 1361.3 | CG11: 1361.3 | CH11: 1361.3 | CI11: 1361.3 | CJ11: 1361.3 | CK11: 1361.3 | CL11: 1361.3 | CM11: 1361.3 | CN11: 1361.3 | CO11: 1361.3 | CP11: 1361.3 | CQ11: 1361.3 | CR11: 1361.3 | CS11: 1361.3 | CT11: 1361.3 | CU11: 1361.3 | CV11: 1361.3 | CW11: 1361.3 | CX11: 1361.3 | CY11: 1361.3 | CZ11: 1361.3 | DA11: 1361.3 | DB11: 1361.3 | DC11: 1361.3 | DD11: 1361.3 | DE11: 1361.3 | DF11: 1361.3 | DG11: 1361.3 | DH11: 1361.3 | DI11: 1361.3 | DJ11: 1361.3 | DK11: 1361.3 | DL11: 1361.3 | DM11: 1361.3 | DN11: 1361.3 | DO11: 1361.3 | DP11: 1361.3 | DQ11: 0 | DR11: 0 | DS11: 0 | DT11: 0 | DU11: 0 | DV11: 0 | DW11: 0 | DX11: 0 | DY11: 0 | DZ11: 0 | EA11: 0 | EB11: 0 | EC11: 0 | ED11: 0 | EE11: 0 | EF11: 0 | EG11: 0 | EH11: 0 | EI11: =$F$11*EI7 -> 0 | EJ11: 0 | EK11: 0 | EL11: 0 | EM11: 0 | EN11: 0 | EO11: 0 | EP11: 0 | EQ11: 0 | ER11: 0 | ES11: 0 | ET11: 0 | EU11: 0 | EV11: 0 | EW11: 0 | EX11: 0 | EY11: 0 | EZ11: 0 | FA11: 0 | FB11: 0 | FC11: 0 | FD11: 0 | FE11: 0 | FF11: 0 | FG11: 0 | FH11: 0 | FI11: 0 | FJ11: 0 | FK11: 0 | FL11: 0 | FM11: 0 | FN11: 0 | FO11: 0 | FP11: 0
B12: Hours in Period | J12: =(J5-J4+1)*24 -> 744 | K12: =(K5-K4+1)*24 -> 744 | L12: 696 | M12: 744 | N12: 720 | O12: 744 | P12: 720 | Q12: 744 | R12: 744 | S12: 720 | T12: 744 | U12: 2208 | V12: 2136 | W12: 2208 | X12: 2208 | Y12: 2208 | Z12: 2136 | AA12: 2208 | AB12: 2208 | AC12: 2208 | AD12: 2136 | AE12: 2208 | AF12: 2208 | AG12: 2208 | AH12: 2160 | AI12: 2208 | AJ12: 2208 | AK12: 2208 | AL12: 2136 | AM12: 2208 | AN12: 2208 | AO12: 2208 | AP12: 2136 | AQ12: 2208 | AR12: 2208 | AS12: 2208 | AT12: 2136 | AU12: 2208 | AV12: 2208 | AW12: 2208 | AX12: 2160 | AY12: 2208 | AZ12: 2208 | BA12: 2208 | BB12: 2136 | BC12: 2208 | BD12: 2208 | BE12: 2208 | BF12: 2136 | BG12: 2208 | BH12: 2208 | BI12: 2208 | BJ12: 2136 | BK12: 2208 | BL12: 2208 | BM12: 2208 | BN12: 2160 | BO12: 2208 | BP12: 2208 | BQ12: 2208 | BR12: 2136 | BS12: 2208 | BT12: 2208 | BU12: 2208 | BV12: 2136 | BW12: =(BW5-BW4+1)*24 -> 2208 | BX12: 2208 | BY12: 2208 | BZ12: 2136 | CA12: 2208 | CB12: 2208 | CC12: 2208 | CD12: 2160 | CE12: 2208 | CF12: 2208 | CG12: 2208 | CH12: 2136 | CI12: 2208 | CJ12: 2208 | CK12: 2208 | CL12: 2136 | CM12: 2208 | CN12: 2208 | CO12: 2208 | CP12: 2136 | CQ12: 2208 | CR12: 2208 | CS12: 2208 | CT12: 2160 | CU12: 2208 | CV12: 2208 | CW12: 2208 | CX12: 2136 | CY12: 2208 | CZ12: 2208 | DA12: 2208 | DB12: 2136 | DC12: 2208 | DD12: 2208 | DE12: 2208 | DF12: 2136 | DG12: 2208 | DH12: 2208 | DI12: 2208 | DJ12: 2160 | DK12: 2208 | DL12: 2208 | DM12: 2208 | DN12: 2136 | DO12: 2208 | DP12: 2208 | DQ12: 2208 | DR12: 2136 | DS12: 2208 | DT12: 2208 | DU12: 2208 | DV12: 2136 | DW12: 2208 | DX12: 2208 | DY12: 2208 | DZ12: 2160 | EA12: 2208 | EB12: 2208 | EC12: 2208 | ED12: 2136 | EE12: 2208 | EF12: 2208 | EG12: 2208 | EH12: 2136 | EI12: =(EI5-EI4+1)*24 -> 2208 | EJ12: 2208 | EK12: 2208 | EL12: 2136 | EM12: 2208 | EN12: 2208 | EO12: 2208 | EP12: 2160 | EQ12: 2208 | ER12: 2208 | ES12: 2208 | ET12: 2136 | EU12: 2208 | EV12: 2208 | EW12: 2208 | EX12: 2136 | EY12: 2208 | EZ12: 2208 | FA12: 2208 | FB12: 2136 | FC12: 2208 | FD12: 2208 | FE12: 2208 | FF12: 2160 | FG12: 2208 | FH12: 2208 | FI12: 2208 | FJ12: 2136 | FK12: 2208 | FL12: 2208 | FM12: 2208 | FN12: 2136 | FO12: 2208 | FP12: 2208
B13: Seasonality Factor | J13: =J12/8760 -> 0.08493150685 | K13: =K12/8760 -> 0.08493150685 | L13: 0.07945205479 | M13: 0.08493150685 | N13: 0.08219178082 | O13: 0.08493150685 | P13: 0.08219178082 | Q13: 0.08493150685 | R13: 0.08493150685 | S13: 0.08219178082 | T13: 0.08493150685 | U13: 0.2520547945 | V13: 0.2438356164 | W13: 0.2520547945 | X13: 0.2520547945 | Y13: 0.2520547945 | Z13: 0.2438356164 | AA13: 0.2520547945 | AB13: 0.2520547945 | AC13: 0.2520547945 | AD13: 0.2438356164 | AE13: 0.2520547945 | AF13: 0.2520547945 | AG13: 0.2520547945 | AH13: 0.2465753425 | AI13: 0.2520547945 | AJ13: 0.2520547945 | AK13: 0.2520547945 | AL13: 0.2438356164 | AM13: 0.2520547945 | AN13: 0.2520547945 | AO13: 0.2520547945 | AP13: 0.2438356164 | AQ13: 0.2520547945 | AR13: 0.2520547945 | AS13: 0.2520547945 | AT13: 0.2438356164 | AU13: 0.2520547945 | AV13: 0.2520547945 | AW13: 0.2520547945 | AX13: 0.2465753425 | AY13: 0.2520547945 | AZ13: 0.2520547945 | BA13: 0.2520547945 | BB13: 0.2438356164 | BC13: 0.2520547945 | BD13: 0.2520547945 | BE13: 0.2520547945 | BF13: 0.2438356164 | BG13: 0.2520547945 | BH13: 0.2520547945 | BI13: 0.2520547945 | BJ13: 0.2438356164 | BK13: 0.2520547945 | BL13: 0.2520547945 | BM13: 0.2520547945 | BN13: 0.2465753425 | BO13: 0.2520547945 | BP13: 0.2520547945 | BQ13: 0.2520547945 | BR13: 0.2438356164 | BS13: 0.2520547945 | BT13: 0.2520547945 | BU13: 0.2520547945 | BV13: 0.2438356164 | BW13: =BW12/8760 -> 0.2520547945 | BX13: 0.2520547945 | BY13: 0.2520547945 | BZ13: 0.2438356164 | CA13: 0.2520547945 | CB13: 0.2520547945 | CC13: 0.2520547945 | CD13: 0.2465753425 | CE13: 0.2520547945 | CF13: 0.2520547945 | CG13: 0.2520547945 | CH13: 0.2438356164 | CI13: 0.2520547945 | CJ13: 0.2520547945 | CK13: 0.2520547945 | CL13: 0.2438356164 | CM13: 0.2520547945 | CN13: 0.2520547945 | CO13: 0.2520547945 | CP13: 0.2438356164 | CQ13: 0.2520547945 | CR13: 0.2520547945 | CS13: 0.2520547945 | CT13: 0.2465753425 | CU13: 0.2520547945 | CV13: 0.2520547945 | CW13: 0.2520547945 | CX13: 0.2438356164 | CY13: 0.2520547945 | CZ13: 0.2520547945 | DA13: 0.2520547945 | DB13: 0.2438356164 | DC13: 0.2520547945 | DD13: 0.2520547945 | DE13: 0.2520547945 | DF13: 0.2438356164 | DG13: 0.2520547945 | DH13: 0.2520547945 | DI13: 0.2520547945 | DJ13: 0.2465753425 | DK13: 0.2520547945 | DL13: 0.2520547945 | DM13: 0.2520547945 | DN13: 0.2438356164 | DO13: 0.2520547945 | DP13: 0.2520547945 | DQ13: 0.2520547945 | DR13: 0.2438356164 | DS13: 0.2520547945 | DT13: 0.2520547945 | DU13: 0.2520547945 | DV13: 0.2438356164 | DW13: 0.2520547945 | DX13: 0.2520547945 | DY13: 0.2520547945 | DZ13: 0.2465753425 | EA13: 0.2520547945 | EB13: 0.2520547945 | EC13: 0.2520547945 | ED13: 0.2438356164 | EE13: 0.2520547945 | EF13: 0.2520547945 | EG13: 0.2520547945 | EH13: 0.2438356164 | EI13: =EI12/8760 -> 0.2520547945 | EJ13: 0.2520547945 | EK13: 0.2520547945 | EL13: 0.2438356164 | EM13: 0.2520547945 | EN13: 0.2520547945 | EO13: 0.2520547945 | EP13: 0.2465753425 | EQ13: 0.2520547945 | ER13: 0.2520547945 | ES13: 0.2520547945 | ET13: 0.2438356164 | EU13: 0.2520547945 | EV13: 0.2520547945 | EW13: 0.2520547945 | EX13: 0.2438356164 | EY13: 0.2520547945 | EZ13: 0.2520547945 | FA13: 0.2520547945 | FB13: 0.2438356164 | FC13: 0.2520547945 | FD13: 0.2520547945 | FE13: 0.2520547945 | FF13: 0.2465753425 | FG13: 0.2520547945 | FH13: 0.2520547945 | FI13: 0.2520547945 | FJ13: 0.2438356164 | FK13: 0.2520547945 | FL13: 0.2520547945 | FM13: 0.2520547945 | FN13: 0.2438356164 | FO13: 0.2520547945 | FP13: 0.2520547945
B14: Energy Output before Degradaton | E14: kWh | J14: =J10*J11*J13 -> 0 | K14: =K10*K11*K13 -> 0 | L14: 0 | M14: 0 | N14: 0 | O14: 0 | P14: 0 | Q14: 0 | R14: 0 | S14: 0 | T14: 0 | U14: 3431221.918 | V14: 3319334.247 | W14: 3431221.918 | X14: 3431221.918 | Y14: 3431221.918 | Z14: 3319334.247 | AA14: 3431221.918 | AB14: 3431221.918 | AC14: 3431221.918 | AD14: 3319334.247 | AE14: 3431221.918 | AF14: 3431221.918 | AG14: 3431221.918 | AH14: 3356630.137 | AI14: 3431221.918 | AJ14: 3431221.918 | AK14: 3431221.918 | AL14: 3319334.247 | AM14: 3431221.918 | AN14: 3431221.918 | AO14: 3431221.918 | AP14: 3319334.247 | AQ14: 3431221.918 | AR14: 3431221.918 | AS14: 3431221.918 | AT14: 3319334.247 | AU14: 3431221.918 | AV14: 3431221.918 | AW14: 3431221.918 | AX14: 3356630.137 | AY14: 3431221.918 | AZ14: 3431221.918 | BA14: 3431221.918 | BB14: 3319334.247 | BC14: 3431221.918 | BD14: 3431221.918 | BE14: 3431221.918 | BF14: 3319334.247 | BG14: 3431221.918 | BH14: 3431221.918 | BI14: 3431221.918 | BJ14: 3319334.247 | BK14: 3431221.918 | BL14: 3431221.918 | BM14: 3431221.918 | BN14: 3356630.137 | BO14: 3431221.918 | BP14: 3431221.918 | BQ14: 3431221.918 | BR14: 3319334.247 | BS14: 3431221.918 | BT14: 3431221.918 | BU14: 3431221.918 | BV14: 3319334.247 | BW14: =BW10*BW11*BW13 -> 3431221.918 | BX14: 3431221.918 | BY14: 3431221.918 | BZ14: 3319334.247 | CA14: 3431221.918 | CB14: 3431221.918 | CC14: 3431221.918 | CD14: 3356630.137 | CE14: 3431221.918 | CF14: 3431221.918 | CG14: 3431221.918 | CH14: 3319334.247 | CI14: 3431221.918 | CJ14: 3431221.918 | CK14: 3431221.918 | CL14: 3319334.247 | CM14: 3431221.918 | CN14: 3431221.918 | CO14: 3431221.918 | CP14: 3319334.247 | CQ14: 3431221.918 | CR14: 3431221.918 | CS14: 3431221.918 | CT14: 3356630.137 | CU14: 3431221.918 | CV14: 3431221.918 | CW14: 3431221.918 | CX14: 3319334.247 | CY14: 3431221.918 | CZ14: 3431221.918 | DA14: 3431221.918 | DB14: 3319334.247 | DC14: 3431221.918 | DD14: 3431221.918 | DE14: 3431221.918 | DF14: 3319334.247 | DG14: 3431221.918 | DH14: 3431221.918 | DI14: 3431221.918 | DJ14: 3356630.137 | DK14: 3431221.918 | DL14: 3431221.918 | DM14: 3431221.918 | DN14: 3319334.247 | DO14: 3431221.918 | DP14: 3431221.918 | DQ14: 0 | DR14: 0 | DS14: 0 | DT14: 0 | DU14: 0 | DV14: 0 | DW14: 0 | DX14: 0 | DY14: 0 | DZ14: 0 | EA14: 0 | EB14: 0 | EC14: 0 | ED14: 0 | EE14: 0 | EF14: 0 | EG14: 0 | EH14: 0 | EI14: =EI10*EI11*EI13 -> 0 | EJ14: 0 | EK14: 0 | EL14: 0 | EM14: 0 | EN14: 0 | EO14: 0 | EP14: 0 | EQ14: 0 | ER14: 0 | ES14: 0 | ET14: 0 | EU14: 0 | EV14: 0 | EW14: 0 | EX14: 0 | EY14: 0 | EZ14: 0 | FA14: 0 | FB14: 0 | FC14: 0 | FD14: 0 | FE14: 0 | FF14: 0 | FG14: 0 | FH14: 0 | FI14: 0 | FJ14: 0 | FK14: 0 | FL14: 0 | FM14: 0 | FN14: 0 | FO14: 0 | FP14: 0
B15: Capacity Factor | E15: % | J15: =IF(J10,(J14/(J12*J10))) -> FALSE | K15: =IF(K10,(K14/(K12*K10))) -> FALSE | L15: FALSE | M15: FALSE | N15: FALSE | O15: FALSE | P15: FALSE | Q15: FALSE | R15: FALSE | S15: FALSE | T15: FALSE | U15: 0.1553995434 | V15: 0.1553995434 | W15: 0.1553995434 | X15: 0.1553995434 | Y15: 0.1553995434 | Z15: 0.1553995434 | AA15: 0.1553995434 | AB15: 0.1553995434 | AC15: 0.1553995434 | AD15: 0.1553995434 | AE15: 0.1553995434 | AF15: 0.1553995434 | AG15: 0.1553995434 | AH15: 0.1553995434 | AI15: 0.1553995434 | AJ15: 0.1553995434 | AK15: 0.1553995434 | AL15: 0.1553995434 | AM15: 0.1553995434 | AN15: 0.1553995434 | AO15: 0.1553995434 | AP15: 0.1553995434 | AQ15: 0.1553995434 | AR15: 0.1553995434 | AS15: 0.1553995434 | AT15: 0.1553995434 | AU15: 0.1553995434 | AV15: 0.1553995434 | AW15: 0.1553995434 | AX15: 0.1553995434 | AY15: 0.1553995434 | AZ15: 0.1553995434 | BA15: 0.1553995434 | BB15: 0.1553995434 | BC15: 0.1553995434 | BD15: 0.1553995434 | BE15: 0.1553995434 | BF15: 0.1553995434 | BG15: 0.1553995434 | BH15: 0.1553995434 | BI15: 0.1553995434 | BJ15: 0.1553995434 | BK15: 0.1553995434 | BL15: 0.1553995434 | BM15: 0.1553995434 | BN15: 0.1553995434 | BO15: 0.1553995434 | BP15: 0.1553995434 | BQ15: 0.1553995434 | BR15: 0.1553995434 | BS15: 0.1553995434 | BT15: 0.1553995434 | BU15: 0.1553995434 | BV15: 0.1553995434 | BW15: =IF(BW10,(BW14/(BW12*BW10))) -> 0.1553995434 | BX15: 0.1553995434 | BY15: 0.1553995434 | BZ15: 0.1553995434 | CA15: 0.1553995434 | CB15: 0.1553995434 | CC15: 0.1553995434 | CD15: 0.1553995434 | CE15: 0.1553995434 | CF15: 0.1553995434 | CG15: 0.1553995434 | CH15: 0.1553995434 | CI15: 0.1553995434 | CJ15: 0.1553995434 | CK15: 0.1553995434 | CL15: 0.1553995434 | CM15: 0.1553995434 | CN15: 0.1553995434 | CO15: 0.1553995434 | CP15: 0.1553995434 | CQ15: 0.1553995434 | CR15: 0.1553995434 | CS15: 0.1553995434 | CT15: 0.1553995434 | CU15: 0.1553995434 | CV15: 0.1553995434 | CW15: 0.1553995434 | CX15: 0.1553995434 | CY15: 0.1553995434 | CZ15: 0.1553995434 | DA15: 0.1553995434 | DB15: 0.1553995434 | DC15: 0.1553995434 | DD15: 0.1553995434 | DE15: 0.1553995434 | DF15: 0.1553995434 | DG15: 0.1553995434 | DH15: 0.1553995434 | DI15: 0.1553995434 | DJ15: 0.1553995434 | DK15: 0.1553995434 | DL15: 0.1553995434 | DM15: 0.1553995434 | DN15: 0.1553995434 | DO15: 0.1553995434 | DP15: 0.1553995434 | DQ15: FALSE | DR15: FALSE | DS15: FALSE | DT15: FALSE | DU15: FALSE | DV15: FALSE | DW15: FALSE | DX15: FALSE | DY15: FALSE | DZ15: FALSE | EA15: FALSE | EB15: FALSE | EC15: FALSE | ED15: FALSE | EE15: FALSE | EF15: FALSE | EG15: FALSE | EH15: FALSE | EI15: =IF(EI10,(EI14/(EI12*EI10))) -> FALSE | EJ15: FALSE | EK15: FALSE | EL15: FALSE | EM15: FALSE | EN15: FALSE | EO15: FALSE | EP15: FALSE | EQ15: FALSE | ER15: FALSE | ES15: FALSE | ET15: FALSE | EU15: FALSE | EV15: FALSE | EW15: FALSE | EX15: FALSE | EY15: FALSE | EZ15: FALSE | FA15: FALSE | FB15: FALSE | FC15: FALSE | FD15: FALSE | FE15: FALSE | FF15: FALSE | FG15: FALSE | FH15: FALSE | FI15: FALSE | FJ15: FALSE | FK15: FALSE | FL15: FALSE | FM15: FALSE | FN15: FALSE | FO15: FALSE | FP15: FALSE
B17: Operating Period | E17: Period | J17: =I17+J7 -> 0 | K17: 0 | L17: 0 | M17: 0 | N17: 0 | O17: 0 | P17: 0 | Q17: 0 | R17: 0 | S17: 0 | T17: 0 | U17: 1 | V17: 2 | W17: 3 | X17: 4 | Y17: 5 | Z17: 6 | AA17: 7 | AB17: 8 | AC17: 9 | AD17: 10 | AE17: 11 | AF17: 12 | AG17: 13 | AH17: 14 | AI17: 15 | AJ17: 16 | AK17: 17 | AL17: 18 | AM17: 19 | AN17: 20 | AO17: 21 | AP17: =AO17+AP7 -> 22 | AQ17: 23 | AR17: 24 | AS17: 25 | AT17: 26 | AU17: 27 | AV17: 28 | AW17: 29 | AX17: 30 | AY17: 31 | AZ17: 32 | BA17: 33 | BB17: 34 | BC17: 35 | BD17: 36 | BE17: 37 | BF17: 38 | BG17: 39 | BH17: 40 | BI17: 41 | BJ17: 42 | BK17: 43 | BL17: 44 | BM17: 45 | BN17: 46 | BO17: 47 | BP17: 48 | BQ17: 49 | BR17: 50 | BS17: 51 | BT17: 52 | BU17: 53 | BV17: =BU17+BV7 -> 54 | BW17: 55 | BX17: 56 | BY17: 57 | BZ17: 58 | CA17: 59 | CB17: 60 | CC17: 61 | CD17: 62 | CE17: 63 | CF17: 64 | CG17: 65 | CH17: 66 | CI17: 67 | CJ17: 68 | CK17: 69 | CL17: 70 | CM17: 71 | CN17: 72 | CO17: 73 | CP17: 74 | CQ17: 75 | CR17: 76 | CS17: 77 | CT17: 78 | CU17: 79 | CV17: 80 | CW17: 81 | CX17: 82 | CY17: 83 | CZ17: 84 | DA17: 85 | DB17: =DA17+DB7 -> 86 | DC17: 87 | DD17: 88 | DE17: 89 | DF17: 90 | DG17: 91 | DH17: 92 | DI17: 93 | DJ17: 94 | DK17: 95 | DL17: 96 | DM17: 97 | DN17: 98 | DO17: 99 | DP17: 100 | DQ17: 100 | DR17: 100 | DS17: 100 | DT17: 100 | DU17: 100 | DV17: 100 | DW17: 100 | DX17: 100 | DY17: 100 | DZ17: 100 | EA17: 100 | EB17: 100 | EC17: 100 | ED17: 100 | EE17: 100 | EF17: 100 | EG17: 100 | EH17: =EG17+EH7 -> 100 | EI17: 100 | EJ17: 100 | EK17: 100 | EL17: 100 | EM17: 100 | EN17: 100 | EO17: 100 | EP17: 100 | EQ17: 100 | ER17: 100 | ES17: 100 | ET17: 100 | EU17: 100 | EV17: 100 | EW17: 100 | EX17: 100 | EY17: 100 | EZ17: 100 | FA17: 100 | FB17: 100 | FC17: 100 | FD17: 100 | FE17: 100 | FF17: 100 | FG17: 100 | FH17: 100 | FI17: 100 | FJ17: 100 | FK17: 100 | FL17: 100 | FM17: 100 | FN17: 100 | FO17: 100 | FP17: 100
B18: Operating Year | E18: Year | F18: =12/G3 -> 4 | J18: =ROUNDUP(J17/$F$18,0) -> 0 | K18: =ROUNDUP(K17/$F$18,0) -> 0 | L18: 0 | M18: 0 | N18: 0 | O18: 0 | P18: 0 | Q18: 0 | R18: 0 | S18: 0 | T18: 0 | U18: 1 | V18: 1 | W18: 1 | X18: 1 | Y18: 2 | Z18: 2 | AA18: 2 | AB18: 2 | AC18: 3 | AD18: 3 | AE18: 3 | AF18: 3 | AG18: 4 | AH18: 4 | AI18: 4 | AJ18: 4 | AK18: 5 | AL18: 5 | AM18: 5 | AN18: 5 | AO18: 6 | AP18: 6 | AQ18: 6 | AR18: 6 | AS18: 7 | AT18: 7 | AU18: 7 | AV18: 7 | AW18: 8 | AX18: 8 | AY18: 8 | AZ18: 8 | BA18: 9 | BB18: 9 | BC18: 9 | BD18: 9 | BE18: 10 | BF18: 10 | BG18: 10 | BH18: 10 | BI18: 11 | BJ18: 11 | BK18: 11 | BL18: 11 | BM18: 12 | BN18: 12 | BO18: 12 | BP18: 12 | BQ18: 13 | BR18: 13 | BS18: 13 | BT18: 13 | BU18: 14 | BV18: 14 | BW18: =ROUNDUP(BW17/$F$18,0) -> 14 | BX18: 14 | BY18: 15 | BZ18: 15 | CA18: 15 | CB18: 15 | CC18: 16 | CD18: 16 | CE18: 16 | CF18: 16 | CG18: 17 | CH18: 17 | CI18: 17 | CJ18: 17 | CK18: 18 | CL18: 18 | CM18: 18 | CN18: 18 | CO18: 19 | CP18: 19 | CQ18: 19 | CR18: 19 | CS18: 20 | CT18: 20 | CU18: 20 | CV18: 20 | CW18: 21 | CX18: 21 | CY18: 21 | CZ18: 21 | DA18: 22 | DB18: 22 | DC18: 22 | DD18: 22 | DE18: 23 | DF18: 23 | DG18: 23 | DH18: 23 | DI18: 24 | DJ18: 24 | DK18: 24 | DL18: 24 | DM18: 25 | DN18: 25 | DO18: 25 | DP18: 25 | DQ18: 25 | DR18: 25 | DS18: 25 | DT18: 25 | DU18: 25 | DV18: 25 | DW18: 25 | DX18: 25 | DY18: 25 | DZ18: 25 | EA18: 25 | EB18: 25 | EC18: 25 | ED18: 25 | EE18: 25 | EF18: 25 | EG18: 25 | EH18: 25 | EI18: =ROUNDUP(EI17/$F$18,0) -> 25 | EJ18: 25 | EK18: 25 | EL18: 25 | EM18: 25 | EN18: 25 | EO18: 25 | EP18: 25 | EQ18: 25 | ER18: 25 | ES18: 25 | ET18: 25 | EU18: 25 | EV18: 25 | EW18: 25 | EX18: 25 | EY18: 25 | EZ18: 25 | FA18: 25 | FB18: 25 | FC18: 25 | FD18: 25 | FE18: 25 | FF18: 25 | FG18: 25 | FH18: 25 | FI18: 25 | FJ18: 25 | FK18: 25 | FL18: 25 | FM18: 25 | FN18: 25 | FO18: 25 | FP18: 25
B19: Degradation Percent | E19: % p.a. | J19: =LOOKUP(J18,Inputs!37:37,Inputs!38:38) -> 0 | K19: =LOOKUP(K18,Inputs!37:37,Inputs!38:38) -> 0 | L19: =LOOKUP(L18,Inputs!37:37,Inputs!38:38) -> 0 | M19: =LOOKUP(M18,Inputs!37:37,Inputs!38:38) -> 0 | N19: =LOOKUP(N18,Inputs!37:37,Inputs!38:38) -> 0 | O19: =LOOKUP(O18,Inputs!37:37,Inputs!38:38) -> 0 | P19: =LOOKUP(P18,Inputs!37:37,Inputs!38:38) -> 0 | Q19: =LOOKUP(Q18,Inputs!37:37,Inputs!38:38) -> 0 | R19: =LOOKUP(R18,Inputs!37:37,Inputs!38:38) -> 0 | S19: =LOOKUP(S18,Inputs!37:37,Inputs!38:38) -> 0 | T19: =LOOKUP(T18,Inputs!37:37,Inputs!38:38) -> 0 | U19: =LOOKUP(U18,Inputs!37:37,Inputs!38:38) -> 0.005 | V19: =LOOKUP(V18,Inputs!37:37,Inputs!38:38) -> 0.005 | W19: =LOOKUP(W18,Inputs!37:37,Inputs!38:38) -> 0.005 | X19: =LOOKUP(X18,Inputs!37:37,Inputs!38:38) -> 0.005 | Y19: =LOOKUP(Y18,Inputs!37:37,Inputs!38:38) -> 0.005 | Z19: =LOOKUP(Z18,Inputs!37:37,Inputs!38:38) -> 0.005 | AA19: =LOOKUP(AA18,Inputs!37:37,Inputs!38:38) -> 0.005 | AB19: =LOOKUP(AB18,Inputs!37:37,Inputs!38:38) -> 0.005 | AC19: =LOOKUP(AC18,Inputs!37:37,Inputs!38:38) -> 0.005 | AD19: =LOOKUP(AD18,Inputs!37:37,Inputs!38:38) -> 0.005 | AE19: =LOOKUP(AE18,Inputs!37:37,Inputs!38:38) -> 0.005 | AF19: =LOOKUP(AF18,Inputs!37:37,Inputs!38:38) -> 0.005 | AG19: =LOOKUP(AG18,Inputs!37:37,Inputs!38:38) -> 0.005 | AH19: =LOOKUP(AH18,Inputs!37:37,Inputs!38:38) -> 0.005 | AI19: =LOOKUP(AI18,Inputs!37:37,Inputs!38:38) -> 0.005 | AJ19: =LOOKUP(AJ18,Inputs!37:37,Inputs!38:38) -> 0.005 | AK19: =LOOKUP(AK18,Inputs!37:37,Inputs!38:38) -> 0.005 | AL19: =LOOKUP(AL18,Inputs!37:37,Inputs!38:38) -> 0.005 | AM19: =LOOKUP(AM18,Inputs!37:37,Inputs!38:38) -> 0.005 | AN19: =LOOKUP(AN18,Inputs!37:37,Inputs!38:38) -> 0.005 | AO19: =LOOKUP(AO18,Inputs!37:37,Inputs!38:38) -> 0.005 | AP19: =LOOKUP(AP18,Inputs!37:37,Inputs!38:38) -> 0.005 | AQ19: =LOOKUP(AQ18,Inputs!37:37,Inputs!38:38) -> 0.005 | AR19: =LOOKUP(AR18,Inputs!37:37,Inputs!38:38) -> 0.005 | AS19: =LOOKUP(AS18,Inputs!37:37,Inputs!38:38) -> 0.005 | AT19: =LOOKUP(AT18,Inputs!37:37,Inputs!38:38) -> 0.005 | AU19: =LOOKUP(AU18,Inputs!37:37,Inputs!38:38) -> 0.005 | AV19: =LOOKUP(AV18,Inputs!37:37,Inputs!38:38) -> 0.005 | AW19: =LOOKUP(AW18,Inputs!37:37,Inputs!38:38) -> 0.005 | AX19: =LOOKUP(AX18,Inputs!37:37,Inputs!38:38) -> 0.005 | AY19: =LOOKUP(AY18,Inputs!37:37,Inputs!38:38) -> 0.005 | AZ19: =LOOKUP(AZ18,Inputs!37:37,Inputs!38:38) -> 0.005 | BA19: =LOOKUP(BA18,Inputs!37:37,Inputs!38:38) -> 0.005 | BB19: =LOOKUP(BB18,Inputs!37:37,Inputs!38:38) -> 0.005 | BC19: =LOOKUP(BC18,Inputs!37:37,Inputs!38:38) -> 0.005 | BD19: =LOOKUP(BD18,Inputs!37:37,Inputs!38:38) -> 0.005 | BE19: =LOOKUP(BE18,Inputs!37:37,Inputs!38:38) -> 0.005 | BF19: =LOOKUP(BF18,Inputs!37:37,Inputs!38:38) -> 0.005 | BG19: =LOOKUP(BG18,Inputs!37:37,Inputs!38:38) -> 0.005 | BH19: =LOOKUP(BH18,Inputs!37:37,Inputs!38:38) -> 0.005 | BI19: =LOOKUP(BI18,Inputs!37:37,Inputs!38:38) -> 0.005 | BJ19: =LOOKUP(BJ18,Inputs!37:37,Inputs!38:38) -> 0.005 | BK19: =LOOKUP(BK18,Inputs!37:37,Inputs!38:38) -> 0.005 | BL19: =LOOKUP(BL18,Inputs!37:37,Inputs!38:38) -> 0.005 | BM19: =LOOKUP(BM18,Inputs!37:37,Inputs!38:38) -> 0.005 | BN19: =LOOKUP(BN18,Inputs!37:37,Inputs!38:38) -> 0.005 | BO19: =LOOKUP(BO18,Inputs!37:37,Inputs!38:38) -> 0.005 | BP19: =LOOKUP(BP18,Inputs!37:37,Inputs!38:38) -> 0.005 | BQ19: =LOOKUP(BQ18,Inputs!37:37,Inputs!38:38) -> 0.005 | BR19: =LOOKUP(BR18,Inputs!37:37,Inputs!38:38) -> 0.005 | BS19: =LOOKUP(BS18,Inputs!37:37,Inputs!38:38) -> 0.005 | BT19: =LOOKUP(BT18,Inputs!37:37,Inputs!38:38) -> 0.005 | BU19: =LOOKUP(BU18,Inputs!37:37,Inputs!38:38) -> 0.005 | BV19: =LOOKUP(BV18,Inputs!37:37,Inputs!38:38) -> 0.005 | BW19: =LOOKUP(BW18,Inputs!37:37,Inputs!38:38) -> 0.005 | BX19: =LOOKUP(BX18,Inputs!37:37,Inputs!38:38) -> 0.005 | BY19: =LOOKUP(BY18,Inputs!37:37,Inputs!38:38) -> 0.005 | BZ19: =LOOKUP(BZ18,Inputs!37:37,Inputs!38:38) -> 0.005 | CA19: =LOOKUP(CA18,Inputs!37:37,Inputs!38:38) -> 0.005 | CB19: =LOOKUP(CB18,Inputs!37:37,Inputs!38:38) -> 0.005 | CC19: =LOOKUP(CC18,Inputs!37:37,Inputs!38:38) -> 0.005 | CD19: =LOOKUP(CD18,Inputs!37:37,Inputs!38:38) -> 0.005 | CE19: =LOOKUP(CE18,Inputs!37:37,Inputs!38:38) -> 0.005 | CF19: =LOOKUP(CF18,Inputs!37:37,Inputs!38:38) -> 0.005 | CG19: =LOOKUP(CG18,Inputs!37:37,Inputs!38:38) -> 0.005 | CH19: =LOOKUP(CH18,Inputs!37:37,Inputs!38:38) -> 0.005 | CI19: =LOOKUP(CI18,Inputs!37:37,Inputs!38:38) -> 0.005 | CJ19: =LOOKUP(CJ18,Inputs!37:37,Inputs!38:38) -> 0.005 | CK19: =LOOKUP(CK18,Inputs!37:37,Inputs!38:38) -> 0.005 | CL19: =LOOKUP(CL18,Inputs!37:37,Inputs!38:38) -> 0.005 | CM19: =LOOKUP(CM18,Inputs!37:37,Inputs!38:38) -> 0.005 | CN19: =LOOKUP(CN18,Inputs!37:37,Inputs!38:38) -> 0.005 | CO19: =LOOKUP(CO18,Inputs!37:37,Inputs!38:38) -> 0.005 | CP19: =LOOKUP(CP18,Inputs!37:37,Inputs!38:38) -> 0.005 | CQ19: =LOOKUP(CQ18,Inputs!37:37,Inputs!38:38) -> 0.005 | CR19: =LOOKUP(CR18,Inputs!37:37,Inputs!38:38) -> 0.005 | CS19: =LOOKUP(CS18,Inputs!37:37,Inputs!38:38) -> 0.005 | CT19: =LOOKUP(CT18,Inputs!37:37,Inputs!38:38) -> 0.005 | CU19: =LOOKUP(CU18,Inputs!37:37,Inputs!38:38) -> 0.005 | CV19: =LOOKUP(CV18,Inputs!37:37,Inputs!38:38) -> 0.005 | CW19: =LOOKUP(CW18,Inputs!37:37,Inputs!38:38) -> 0.005 | CX19: =LOOKUP(CX18,Inputs!37:37,Inputs!38:38) -> 0.005 | CY19: =LOOKUP(CY18,Inputs!37:37,Inputs!38:38) -> 0.005 | CZ19: =LOOKUP(CZ18,Inputs!37:37,Inputs!38:38) -> 0.005 | DA19: =LOOKUP(DA18,Inputs!37:37,Inputs!38:38) -> 0.005 | DB19: =LOOKUP(DB18,Inputs!37:37,Inputs!38:38) -> 0.005 | DC19: =LOOKUP(DC18,Inputs!37:37,Inputs!38:38) -> 0.005 | DD19: =LOOKUP(DD18,Inputs!37:37,Inputs!38:38) -> 0.005 | DE19: =LOOKUP(DE18,Inputs!37:37,Inputs!38:38) -> 0.005 | DF19: =LOOKUP(DF18,Inputs!37:37,Inputs!38:38) -> 0.005 | DG19: =LOOKUP(DG18,Inputs!37:37,Inputs!38:38) -> 0.005 | DH19: =LOOKUP(DH18,Inputs!37:37,Inputs!38:38) -> 0.005 | DI19: =LOOKUP(DI18,Inputs!37:37,Inputs!38:38) -> 0.005 | DJ19: =LOOKUP(DJ18,Inputs!37:37,Inputs!38:38) -> 0.005 | DK19: =LOOKUP(DK18,Inputs!37:37,Inputs!38:38) -> 0.005 | DL19: =LOOKUP(DL18,Inputs!37:37,Inputs!38:38) -> 0.005 | DM19: =LOOKUP(DM18,Inputs!37:37,Inputs!38:38) -> 0.005 | DN19: =LOOKUP(DN18,Inputs!37:37,Inputs!38:38) -> 0.005 | DO19: =LOOKUP(DO18,Inputs!37:37,Inputs!38:38) -> 0.005 | DP19: =LOOKUP(DP18,Inputs!37:37,Inputs!38:38) -> 0.005 | DQ19: =LOOKUP(DQ18,Inputs!37:37,Inputs!38:38) -> 0.005 | DR19: =LOOKUP(DR18,Inputs!37:37,Inputs!38:38) -> 0.005 | DS19: =LOOKUP(DS18,Inputs!37:37,Inputs!38:38) -> 0.005 | DT19: =LOOKUP(DT18,Inputs!37:37,Inputs!38:38) -> 0.005 | DU19: =LOOKUP(DU18,Inputs!37:37,Inputs!38:38) -> 0.005 | DV19: =LOOKUP(DV18,Inputs!37:37,Inputs!38:38) -> 0.005 | DW19: =LOOKUP(DW18,Inputs!37:37,Inputs!38:38) -> 0.005 | DX19: =LOOKUP(DX18,Inputs!37:37,Inputs!38:38) -> 0.005 | DY19: =LOOKUP(DY18,Inputs!37:37,Inputs!38:38) -> 0.005 | DZ19: =LOOKUP(DZ18,Inputs!37:37,Inputs!38:38) -> 0.005 | EA19: =LOOKUP(EA18,Inputs!37:37,Inputs!38:38) -> 0.005 | EB19: =LOOKUP(EB18,Inputs!37:37,Inputs!38:38) -> 0.005 | EC19: =LOOKUP(EC18,Inputs!37:37,Inputs!38:38) -> 0.005 | ED19: =LOOKUP(ED18,Inputs!37:37,Inputs!38:38) -> 0.005 | EE19: =LOOKUP(EE18,Inputs!37:37,Inputs!38:38) -> 0.005 | EF19: =LOOKUP(EF18,Inputs!37:37,Inputs!38:38) -> 0.005 | EG19: =LOOKUP(EG18,Inputs!37:37,Inputs!38:38) -> 0.005 | EH19: =LOOKUP(EH18,Inputs!37:37,Inputs!38:38) -> 0.005 | EI19: =LOOKUP(EI18,Inputs!37:37,Inputs!38:38) -> 0.005 | EJ19: =LOOKUP(EJ18,Inputs!37:37,Inputs!38:38) -> 0.005 | EK19: =LOOKUP(EK18,Inputs!37:37,Inputs!38:38) -> 0.005 | EL19: =LOOKUP(EL18,Inputs!37:37,Inputs!38:38) -> 0.005 | EM19: =LOOKUP(EM18,Inputs!37:37,Inputs!38:38) -> 0.005 | EN19: =LOOKUP(EN18,Inputs!37:37,Inputs!38:38) -> 0.005 | EO19: =LOOKUP(EO18,Inputs!37:37,Inputs!38:38) -> 0.005 | EP19: =LOOKUP(EP18,Inputs!37:37,Inputs!38:38) -> 0.005 | EQ19: =LOOKUP(EQ18,Inputs!37:37,Inputs!38:38) -> 0.005 | ER19: =LOOKUP(ER18,Inputs!37:37,Inputs!38:38) -> 0.005 | ES19: =LOOKUP(ES18,Inputs!37:37,Inputs!38:38) -> 0.005 | ET19: =LOOKUP(ET18,Inputs!37:37,Inputs!38:38) -> 0.005 | EU19: =LOOKUP(EU18,Inputs!37:37,Inputs!38:38) -> 0.005 | EV19: =LOOKUP(EV18,Inputs!37:37,Inputs!38:38) -> 0.005 | EW19: =LOOKUP(EW18,Inputs!37:37,Inputs!38:38) -> 0.005 | EX19: =LOOKUP(EX18,Inputs!37:37,Inputs!38:38) -> 0.005 | EY19: =LOOKUP(EY18,Inputs!37:37,Inputs!38:38) -> 0.005 | EZ19: =LOOKUP(EZ18,Inputs!37:37,Inputs!38:38) -> 0.005 | FA19: =LOOKUP(FA18,Inputs!37:37,Inputs!38:38) -> 0.005 | FB19: =LOOKUP(FB18,Inputs!37:37,Inputs!38:38) -> 0.005 | FC19: =LOOKUP(FC18,Inputs!37:37,Inputs!38:38) -> 0.005 | FD19: =LOOKUP(FD18,Inputs!37:37,Inputs!38:38) -> 0.005 | FE19: =LOOKUP(FE18,Inputs!37:37,Inputs!38:38) -> 0.005 | FF19: =LOOKUP(FF18,Inputs!37:37,Inputs!38:38) -> 0.005 | FG19: =LOOKUP(FG18,Inputs!37:37,Inputs!38:38) -> 0.005 | FH19: =LOOKUP(FH18,Inputs!37:37,Inputs!38:38) -> 0.005 | FI19: =LOOKUP(FI18,Inputs!37:37,Inputs!38:38) -> 0.005 | FJ19: =LOOKUP(FJ18,Inputs!37:37,Inputs!38:38) -> 0.005 | FK19: =LOOKUP(FK18,Inputs!37:37,Inputs!38:38) -> 0.005 | FL19: =LOOKUP(FL18,Inputs!37:37,Inputs!38:38) -> 0.005 | FM19: =LOOKUP(FM18,Inputs!37:37,Inputs!38:38) -> 0.005 | FN19: =LOOKUP(FN18,Inputs!37:37,Inputs!38:38) -> 0.005 | FO19: =LOOKUP(FO18,Inputs!37:37,Inputs!38:38) -> 0.005 | FP19: =LOOKUP(FP18,Inputs!37:37,Inputs!38:38) -> 0.005
B20: Degradation Percent | E20: % p.p. | J20: =(1+J19)^(J3/12)-1 -> 0 | K20: =(1+K19)^(K3/12)-1 -> 0 | L20: 0 | M20: 0 | N20: 0 | O20: 0 | P20: 0 | Q20: 0 | R20: 0 | S20: 0 | T20: 0 | U20: 0.001247663063 | V20: 0.001247663063 | W20: 0.001247663063 | X20: 0.001247663063 | Y20: 0.001247663063 | Z20: 0.001247663063 | AA20: 0.001247663063 | AB20: 0.001247663063 | AC20: 0.001247663063 | AD20: 0.001247663063 | AE20: 0.001247663063 | AF20: 0.001247663063 | AG20: 0.001247663063 | AH20: 0.001247663063 | AI20: 0.001247663063 | AJ20: 0.001247663063 | AK20: 0.001247663063 | AL20: 0.001247663063 | AM20: 0.001247663063 | AN20: 0.001247663063 | AO20: 0.001247663063 | AP20: 0.001247663063 | AQ20: 0.001247663063 | AR20: 0.001247663063 | AS20: 0.001247663063 | AT20: 0.001247663063 | AU20: 0.001247663063 | AV20: 0.001247663063 | AW20: 0.001247663063 | AX20: 0.001247663063 | AY20: 0.001247663063 | AZ20: 0.001247663063 | BA20: 0.001247663063 | BB20: 0.001247663063 | BC20: 0.001247663063 | BD20: 0.001247663063 | BE20: 0.001247663063 | BF20: 0.001247663063 | BG20: 0.001247663063 | BH20: 0.001247663063 | BI20: 0.001247663063 | BJ20: 0.001247663063 | BK20: 0.001247663063 | BL20: 0.001247663063 | BM20: 0.001247663063 | BN20: 0.001247663063 | BO20: 0.001247663063 | BP20: 0.001247663063 | BQ20: 0.001247663063 | BR20: 0.001247663063 | BS20: 0.001247663063 | BT20: 0.001247663063 | BU20: 0.001247663063 | BV20: 0.001247663063 | BW20: =(1+BW19)^(BW3/12)-1 -> 0.001247663063 | BX20: 0.001247663063 | BY20: 0.001247663063 | BZ20: 0.001247663063 | CA20: 0.001247663063 | CB20: 0.001247663063 | CC20: 0.001247663063 | CD20: 0.001247663063 | CE20: 0.001247663063 | CF20: 0.001247663063 | CG20: 0.001247663063 | CH20: 0.001247663063 | CI20: 0.001247663063 | CJ20: 0.001247663063 | CK20: 0.001247663063 | CL20: 0.001247663063 | CM20: 0.001247663063 | CN20: 0.001247663063 | CO20: 0.001247663063 | CP20: 0.001247663063 | CQ20: 0.001247663063 | CR20: 0.001247663063 | CS20: 0.001247663063 | CT20: 0.001247663063 | CU20: 0.001247663063 | CV20: 0.001247663063 | CW20: 0.001247663063 | CX20: 0.001247663063 | CY20: 0.001247663063 | CZ20: 0.001247663063 | DA20: 0.001247663063 | DB20: 0.001247663063 | DC20: 0.001247663063 | DD20: 0.001247663063 | DE20: 0.001247663063 | DF20: 0.001247663063 | DG20: 0.001247663063 | DH20: 0.001247663063 | DI20: 0.001247663063 | DJ20: 0.001247663063 | DK20: 0.001247663063 | DL20: 0.001247663063 | DM20: 0.001247663063 | DN20: 0.001247663063 | DO20: 0.001247663063 | DP20: 0.001247663063 | DQ20: 0.001247663063 | DR20: 0.001247663063 | DS20: 0.001247663063 | DT20: 0.001247663063 | DU20: 0.001247663063 | DV20: 0.001247663063 | DW20: 0.001247663063 | DX20: 0.001247663063 | DY20: 0.001247663063 | DZ20: 0.001247663063 | EA20: 0.001247663063 | EB20: 0.001247663063 | EC20: 0.001247663063 | ED20: 0.001247663063 | EE20: 0.001247663063 | EF20: 0.001247663063 | EG20: 0.001247663063 | EH20: 0.001247663063 | EI20: =(1+EI19)^(EI3/12)-1 -> 0.001247663063 | EJ20: 0.001247663063 | EK20: 0.001247663063 | EL20: 0.001247663063 | EM20: 0.001247663063 | EN20: 0.001247663063 | EO20: 0.001247663063 | EP20: 0.001247663063 | EQ20: 0.001247663063 | ER20: 0.001247663063 | ES20: 0.001247663063 | ET20: 0.001247663063 | EU20: 0.001247663063 | EV20: 0.001247663063 | EW20: 0.001247663063 | EX20: 0.001247663063 | EY20: 0.001247663063 | EZ20: 0.001247663063 | FA20: 0.001247663063 | FB20: 0.001247663063 | FC20: 0.001247663063 | FD20: 0.001247663063 | FE20: 0.001247663063 | FF20: 0.001247663063 | FG20: 0.001247663063 | FH20: 0.001247663063 | FI20: 0.001247663063 | FJ20: 0.001247663063 | FK20: 0.001247663063 | FL20: 0.001247663063 | FM20: 0.001247663063 | FN20: 0.001247663063 | FO20: 0.001247663063 | FP20: 0.001247663063
B21: Degradation Index | I21: 1 | J21: =I21*(1+J20) -> 1 | K21: =J21*(1+K20) -> 1 | L21: 1 | M21: 1 | N21: 1 | O21: 1 | P21: 1 | Q21: 1 | R21: 1 | S21: 1 | T21: 1 | U21: 1.001247663 | V21: 1.002496883 | W21: 1.003747661 | X21: 1.005 | Y21: 1.006253901 | Z21: 1.007509367 | AA21: 1.008766399 | AB21: 1.010025 | AC21: 1.011285171 | AD21: 1.012546914 | AE21: 1.013810231 | AF21: 1.015075125 | AG21: 1.016341597 | AH21: 1.017609649 | AI21: 1.018879283 | AJ21: 1.020150501 | AK21: 1.021423305 | AL21: 1.022697697 | AM21: 1.023973679 | AN21: 1.025251253 | AO21: 1.026530421 | AP21: 1.027811185 | AQ21: 1.029093547 | AR21: 1.030377509 | AS21: 1.031663073 | AT21: 1.032950241 | AU21: 1.034239015 | AV21: 1.035529397 | AW21: 1.036821389 | AX21: 1.038114992 | AY21: 1.03941021 | AZ21: 1.040707044 | BA21: 1.042005496 | BB21: 1.043305567 | BC21: 1.044607261 | BD21: 1.045910579 | BE21: 1.047215523 | BF21: 1.048522095 | BG21: 1.049830298 | BH21: 1.051140132 | BI21: 1.052451601 | BJ21: 1.053764706 | BK21: 1.055079449 | BL21: 1.056395833 | BM21: 1.057713859 | BN21: 1.059033529 | BO21: 1.060354846 | BP21: 1.061677812 | BQ21: 1.063002428 | BR21: 1.064328697 | BS21: 1.065656621 | BT21: 1.066986201 | BU21: 1.06831744 | BV21: 1.06965034 | BW21: =BV21*(1+BW20) -> 1.070984904 | BX21: 1.072321132 | BY21: 1.073659027 | BZ21: 1.074998592 | CA21: 1.076339828 | CB21: 1.077682738 | CC21: 1.079027323 | CD21: 1.080373585 | CE21: 1.081721527 | CF21: 1.083071151 | CG21: 1.084422459 | CH21: 1.085775453 | CI21: 1.087130135 | CJ21: 1.088486507 | CK21: 1.089844571 | CL21: 1.09120433 | CM21: 1.092565786 | CN21: 1.09392894 | CO21: 1.095293794 | CP21: 1.096660352 | CQ21: 1.098028615 | CR21: 1.099398584 | CS21: 1.100770263 | CT21: 1.102143654 | CU21: 1.103518758 | CV21: 1.104895577 | CW21: 1.106274115 | CX21: 1.107654372 | CY21: 1.109036351 | CZ21: 1.110420055 | DA21: 1.111805485 | DB21: 1.113192644 | DC21: 1.114581533 | DD21: 1.115972155 | DE21: 1.117364513 | DF21: 1.118758607 | DG21: 1.120154441 | DH21: 1.121552016 | DI21: 1.122951335 | DJ21: 1.1243524 | DK21: 1.125755213 | DL21: 1.127159776 | DM21: 1.128566092 | DN21: 1.129974162 | DO21: 1.131383989 | DP21: 1.132795575 | DQ21: 1.134208922 | DR21: 1.135624033 | DS21: 1.137040909 | DT21: 1.138459553 | DU21: 1.139879967 | DV21: 1.141302153 | DW21: 1.142726114 | DX21: 1.144151851 | DY21: 1.145579367 | DZ21: 1.147008664 | EA21: 1.148439744 | EB21: 1.14987261 | EC21: 1.151307264 | ED21: 1.152743707 | EE21: 1.154181943 | EF21: 1.155621973 | EG21: 1.1570638 | EH21: 1.158507426 | EI21: =EH21*(1+EI20) -> 1.159952853 | EJ21: 1.161400083 | EK21: 1.162849119 | EL21: 1.164299963 | EM21: 1.165752617 | EN21: 1.167207083 | EO21: 1.168663364 | EP21: 1.170121463 | EQ21: 1.17158138 | ER21: 1.173043119 | ES21: 1.174506681 | ET21: 1.17597207 | EU21: 1.177439287 | EV21: 1.178908334 | EW21: 1.180379215 | EX21: 1.18185193 | EY21: 1.183326483 | EZ21: 1.184802876 | FA21: 1.186281111 | FB21: 1.18776119 | FC21: 1.189243116 | FD21: 1.19072689 | FE21: 1.192212516 | FF21: 1.193699996 | FG21: 1.195189331 | FH21: 1.196680525 | FI21: 1.198173579 | FJ21: 1.199668496 | FK21: 1.201165278 | FL21: 1.202663927 | FM21: 1.204164447 | FN21: 1.205666838 | FO21: 1.207171104 | FP21: 1.208677247
C22: Energy Output after Degradaton | E22: kWh | J22: =J14/J21 -> 0 | K22: =K14/K21 -> 0 | L22: 0 | M22: 0 | N22: 0 | O22: 0 | P22: 0 | Q22: 0 | R22: 0 | S22: 0 | T22: 0 | U22: 3426946.244 | V22: 3311066.901 | W22: 3418410.872 | X22: 3414151.162 | Y22: 3409896.76 | Z22: 3294593.931 | AA22: 3401403.853 | AB22: 3397165.335 | AC22: 3392932.099 | AD22: 3278202.916 | AE22: 3384481.446 | AF22: 3380264.015 | AG22: 3376051.84 | AH22: 3298543.937 | AI22: 3367643.23 | AJ22: 3363446.781 | AK22: 3359255.562 | AL22: 3245665.124 | AM22: 3350888.786 | AN22: 3346713.215 | AO22: 3342542.848 | AP22: 3229517.536 | AQ22: 3334217.697 | AR22: 3330062.901 | AS22: 3325913.282 | AT22: 3213450.284 | AU22: 3317629.549 | AV22: 3313495.424 | AW22: 3309366.449 | AX22: 3233389.52 | AY22: 3301123.93 | AZ22: 3297010.372 | BA22: 3292901.94 | BB22: 3181555.194 | BC22: 3284700.428 | BD22: 3280607.335 | BE22: 3276519.343 | BF22: 3165726.561 | BG22: 3268358.635 | BH22: 3264285.906 | BI22: 3260218.252 | BJ22: 3149976.677 | BK22: 3252098.144 | BL22: 3248045.677 | BM22: 3243998.26 | BN22: 3169522.063 | BO22: 3235918.551 | BP22: 3231886.246 | BQ22: 3227858.966 | BR22: 3118711.594 | BS22: 3219819.454 | BT22: 3215807.21 | BU22: 3211799.966 | BV22: 3103195.616 | BW22: =BW14/BW21 -> 3203800.452 | BX22: 3199808.169 | BY22: 3195820.861 | BZ22: 3087756.831 | CA22: 3187861.146 | CB22: 3183888.725 | CC22: 3179921.255 | CD22: 3106916.148 | CE22: 3172001.14 | CF22: 3168048.483 | CG22: 3164100.751 | CH22: 3057109.311 | CI22: 3156220.04 | CJ22: 3152287.048 | CK22: 3148358.957 | CL22: 3041899.812 | CM22: 3140517.453 | CN22: 3136604.028 | CO22: 3132695.479 | CP22: 3026765.982 | CQ22: 3124892.988 | CR22: 3120999.032 | CS22: 3117109.93 | CT22: 3045546.854 | CU22: 3109346.256 | CV22: 3105471.674 | CW22: 3101601.92 | CX22: 2996723.825 | CY22: 3093876.872 | CZ22: 3090021.566 | DA22: 3086171.065 | DB22: 2981814.752 | DC22: 3078484.45 | DD22: 3074648.325 | DE22: 3070816.98 | DF22: 2966979.852 | DG22: 3063168.607 | DH22: 3059351.567 | DI22: 3055539.283 | DJ22: 2985389.756 | DK22: 3047928.962 | DL22: 3044130.912 | DM22: 3040337.595 | DN22: 2937531.103 | DO22: 3032765.136 | DP22: 3028985.982 | DQ22: 0 | DR22: 0 | DS22: 0 | DT22: 0 | DU22: 0 | DV22: 0 | DW22: 0 | DX22: 0 | DY22: 0 | DZ22: 0 | EA22: 0 | EB22: 0 | EC22: 0 | ED22: 0 | EE22: 0 | EF22: 0 | EG22: 0 | EH22: 0 | EI22: =EI14/EI21 -> 0 | EJ22: 0 | EK22: 0 | EL22: 0 | EM22: 0 | EN22: 0 | EO22: 0 | EP22: 0 | EQ22: 0 | ER22: 0 | ES22: 0 | ET22: 0 | EU22: 0 | EV22: 0 | EW22: 0 | EX22: 0 | EY22: 0 | EZ22: 0 | FA22: 0 | FB22: 0 | FC22: 0 | FD22: 0 | FE22: 0 | FF22: 0 | FG22: 0 | FH22: 0 | FI22: 0 | FJ22: 0 | FK22: 0 | FL22: 0 | FM22: 0 | FN22: 0 | FO22: 0 | FP22: 0
A24: Revenue
B25: PPA Price without Inflation | E25: $/kWh | F25: =Inputs!$G$52 -> 0.07 | J25: =$F$25 -> 0.07 | K25: =$F$25 -> 0.07 | L25: 0.07 | M25: 0.07 | N25: 0.07 | O25: 0.07 | P25: 0.07 | Q25: 0.07 | R25: 0.07 | S25: 0.07 | T25: 0.07 | U25: 0.07 | V25: 0.07 | W25: 0.07 | X25: 0.07 | Y25: 0.07 | Z25: 0.07 | AA25: 0.07 | AB25: 0.07 | AC25: 0.07 | AD25: 0.07 | AE25: 0.07 | AF25: 0.07 | AG25: 0.07 | AH25: 0.07 | AI25: 0.07 | AJ25: 0.07 | AK25: 0.07 | AL25: 0.07 | AM25: 0.07 | AN25: 0.07 | AO25: 0.07 | AP25: 0.07 | AQ25: 0.07 | AR25: 0.07 | AS25: 0.07 | AT25: 0.07 | AU25: 0.07 | AV25: 0.07 | AW25: 0.07 | AX25: 0.07 | AY25: 0.07 | AZ25: 0.07 | BA25: 0.07 | BB25: 0.07 | BC25: 0.07 | BD25: 0.07 | BE25: 0.07 | BF25: 0.07 | BG25: 0.07 | BH25: 0.07 | BI25: 0.07 | BJ25: 0.07 | BK25: 0.07 | BL25: 0.07 | BM25: 0.07 | BN25: 0.07 | BO25: 0.07 | BP25: 0.07 | BQ25: 0.07 | BR25: 0.07 | BS25: 0.07 | BT25: 0.07 | BU25: 0.07 | BV25: 0.07 | BW25: =$F$25 -> 0.07 | BX25: 0.07 | BY25: 0.07 | BZ25: 0.07 | CA25: 0.07 | CB25: 0.07 | CC25: 0.07 | CD25: 0.07 | CE25: 0.07 | CF25: 0.07 | CG25: 0.07 | CH25: 0.07 | CI25: 0.07 | CJ25: 0.07 | CK25: 0.07 | CL25: 0.07 | CM25: 0.07 | CN25: 0.07 | CO25: 0.07 | CP25: 0.07 | CQ25: 0.07 | CR25: 0.07 | CS25: 0.07 | CT25: 0.07 | CU25: 0.07 | CV25: 0.07 | CW25: 0.07 | CX25: 0.07 | CY25: 0.07 | CZ25: 0.07 | DA25: 0.07 | DB25: 0.07 | DC25: 0.07 | DD25: 0.07 | DE25: 0.07 | DF25: 0.07 | DG25: 0.07 | DH25: 0.07 | DI25: 0.07 | DJ25: 0.07 | DK25: 0.07 | DL25: 0.07 | DM25: 0.07 | DN25: 0.07 | DO25: 0.07 | DP25: 0.07 | DQ25: 0.07 | DR25: 0.07 | DS25: 0.07 | DT25: 0.07 | DU25: 0.07 | DV25: 0.07 | DW25: 0.07 | DX25: 0.07 | DY25: 0.07 | DZ25: 0.07 | EA25: 0.07 | EB25: 0.07 | EC25: 0.07 | ED25: 0.07 | EE25: 0.07 | EF25: 0.07 | EG25: 0.07 | EH25: 0.07 | EI25: =$F$25 -> 0.07 | EJ25: 0.07 | EK25: 0.07 | EL25: 0.07 | EM25: 0.07 | EN25: 0.07 | EO25: 0.07 | EP25: 0.07 | EQ25: 0.07 | ER25: 0.07 | ES25: 0.07 | ET25: 0.07 | EU25: 0.07 | EV25: 0.07 | EW25: 0.07 | EX25: 0.07 | EY25: 0.07 | EZ25: 0.07 | FA25: 0.07 | FB25: 0.07 | FC25: 0.07 | FD25: 0.07 | FE25: 0.07 | FF25: 0.07 | FG25: 0.07 | FH25: 0.07 | FI25: 0.07 | FJ25: 0.07 | FK25: 0.07 | FL25: 0.07 | FM25: 0.07 | FN25: 0.07 | FO25: 0.07 | FP25: 0.07
B26: PPA Inflation Flag | E26: Years | F26: =Inputs!$G$55 -> 1 | J26: =(MOD(J18,$F$26)=0)*1 -> 1 | K26: =(MOD(K18,$F$26)=0)*1 -> 1 | L26: 1 | M26: 1 | N26: 1 | O26: 1 | P26: 1 | Q26: 1 | R26: 1 | S26: 1 | T26: 1 | U26: 1 | V26: 1 | W26: 1 | X26: 1 | Y26: 1 | Z26: 1 | AA26: 1 | AB26: 1 | AC26: 1 | AD26: 1 | AE26: 1 | AF26: 1 | AG26: 1 | AH26: 1 | AI26: 1 | AJ26: 1 | AK26: 1 | AL26: 1 | AM26: 1 | AN26: 1 | AO26: 1 | AP26: 1 | AQ26: 1 | AR26: 1 | AS26: 1 | AT26: 1 | AU26: 1 | AV26: 1 | AW26: 1 | AX26: 1 | AY26: 1 | AZ26: 1 | BA26: 1 | BB26: 1 | BC26: 1 | BD26: 1 | BE26: 1 | BF26: 1 | BG26: 1 | BH26: 1 | BI26: 1 | BJ26: 1 | BK26: 1 | BL26: 1 | BM26: 1 | BN26: 1 | BO26: 1 | BP26: 1 | BQ26: 1 | BR26: 1 | BS26: 1 | BT26: 1 | BU26: 1 | BV26: 1 | BW26: =(MOD(BW18,$F$26)=0)*1 -> 1 | BX26: 1 | BY26: 1 | BZ26: 1 | CA26: 1 | CB26: 1 | CC26: 1 | CD26: 1 | CE26: 1 | CF26: 1 | CG26: 1 | CH26: 1 | CI26: 1 | CJ26: 1 | CK26: 1 | CL26: 1 | CM26: 1 | CN26: 1 | CO26: 1 | CP26: 1 | CQ26: 1 | CR26: 1 | CS26: 1 | CT26: 1 | CU26: 1 | CV26: 1 | CW26: 1 | CX26: 1 | CY26: 1 | CZ26: 1 | DA26: 1 | DB26: 1 | DC26: 1 | DD26: 1 | DE26: 1 | DF26: 1 | DG26: 1 | DH26: 1 | DI26: 1 | DJ26: 1 | DK26: 1 | DL26: 1 | DM26: 1 | DN26: 1 | DO26: 1 | DP26: 1 | DQ26: 1 | DR26: 1 | DS26: 1 | DT26: 1 | DU26: 1 | DV26: 1 | DW26: 1 | DX26: 1 | DY26: 1 | DZ26: 1 | EA26: 1 | EB26: 1 | EC26: 1 | ED26: 1 | EE26: 1 | EF26: 1 | EG26: 1 | EH26: 1 | EI26: =(MOD(EI18,$F$26)=0)*1 -> 1 | EJ26: 1 | EK26: 1 | EL26: 1 | EM26: 1 | EN26: 1 | EO26: 1 | EP26: 1 | EQ26: 1 | ER26: 1 | ES26: 1 | ET26: 1 | EU26: 1 | EV26: 1 | EW26: 1 | EX26: 1 | EY26: 1 | EZ26: 1 | FA26: 1 | FB26: 1 | FC26: 1 | FD26: 1 | FE26: 1 | FF26: 1 | FG26: 1 | FH26: 1 | FI26: 1 | FJ26: 1 | FK26: 1 | FL26: 1 | FM26: 1 | FN26: 1 | FO26: 1 | FP26: 1
B27: Inflation Period | E27: Years | J27: =AND(I26,NOT(J26))*1 -> 0 | K27: =AND(J26,NOT(K26))*1 -> 0 | L27: 0 | M27: 0 | N27: 0 | O27: 0 | P27: 0 | Q27: 0 | R27: 0 | S27: 0 | T27: 0 | U27: 0 | V27: 0 | W27: 0 | X27: 0 | Y27: 0 | Z27: 0 | AA27: 0 | AB27: 0 | AC27: 0 | AD27: 0 | AE27: 0 | AF27: 0 | AG27: 0 | AH27: 0 | AI27: 0 | AJ27: 0 | AK27: 0 | AL27: 0 | AM27: 0 | AN27: 0 | AO27: 0 | AP27: 0 | AQ27: 0 | AR27: 0 | AS27: 0 | AT27: 0 | AU27: 0 | AV27: 0 | AW27: 0 | AX27: 0 | AY27: 0 | AZ27: 0 | BA27: 0 | BB27: 0 | BC27: 0 | BD27: 0 | BE27: 0 | BF27: 0 | BG27: 0 | BH27: 0 | BI27: 0 | BJ27: 0 | BK27: 0 | BL27: 0 | BM27: 0 | BN27: 0 | BO27: 0 | BP27: 0 | BQ27: 0 | BR27: 0 | BS27: 0 | BT27: 0 | BU27: 0 | BV27: 0 | BW27: =AND(BV26,NOT(BW26))*1 -> 0 | BX27: 0 | BY27: 0 | BZ27: 0 | CA27: 0 | CB27: 0 | CC27: 0 | CD27: 0 | CE27: 0 | CF27: 0 | CG27: 0 | CH27: 0 | CI27: 0 | CJ27: 0 | CK27: 0 | CL27: 0 | CM27: 0 | CN27: 0 | CO27: 0 | CP27: 0 | CQ27: 0 | CR27: 0 | CS27: 0 | CT27: 0 | CU27: 0 | CV27: 0 | CW27: 0 | CX27: 0 | CY27: 0 | CZ27: 0 | DA27: 0 | DB27: 0 | DC27: 0 | DD27: 0 | DE27: 0 | DF27: 0 | DG27: 0 | DH27: 0 | DI27: 0 | DJ27: 0 | DK27: 0 | DL27: 0 | DM27: 0 | DN27: 0 | DO27: 0 | DP27: 0 | DQ27: 0 | DR27: 0 | DS27: 0 | DT27: 0 | DU27: 0 | DV27: 0 | DW27: 0 | DX27: 0 | DY27: 0 | DZ27: 0 | EA27: 0 | EB27: 0 | EC27: 0 | ED27: 0 | EE27: 0 | EF27: 0 | EG27: 0 | EH27: 0 | EI27: =AND(EH26,NOT(EI26))*1 -> 0 | EJ27: 0 | EK27: 0 | EL27: 0 | EM27: 0 | EN27: 0 | EO27: 0 | EP27: 0 | EQ27: 0 | ER27: 0 | ES27: 0 | ET27: 0 | EU27: 0 | EV27: 0 | EW27: 0 | EX27: 0 | EY27: 0 | EZ27: 0 | FA27: 0 | FB27: 0 | FC27: 0 | FD27: 0 | FE27: 0 | FF27: 0 | FG27: 0 | FH27: 0 | FI27: 0 | FJ27: 0 | FK27: 0 | FL27: 0 | FM27: 0 | FN27: 0 | FO27: 0 | FP27: 0
B28: PPA Inflaton Rate | E28: % p.a. | F28: =Inputs!$G$58 -> 0 | J28: =$F$28*J27 -> 0 | K28: =$F$28*K27 -> 0 | L28: 0 | M28: 0 | N28: 0 | O28: 0 | P28: 0 | Q28: 0 | R28: 0 | S28: 0 | T28: 0 | U28: 0 | V28: 0 | W28: 0 | X28: 0 | Y28: 0 | Z28: 0 | AA28: 0 | AB28: 0 | AC28: 0 | AD28: 0 | AE28: 0 | AF28: 0 | AG28: 0 | AH28: 0 | AI28: 0 | AJ28: 0 | AK28: 0 | AL28: 0 | AM28: 0 | AN28: 0 | AO28: 0 | AP28: 0 | AQ28: 0 | AR28: 0 | AS28: 0 | AT28: 0 | AU28: 0 | AV28: 0 | AW28: 0 | AX28: 0 | AY28: 0 | AZ28: 0 | BA28: 0 | BB28: 0 | BC28: 0 | BD28: 0 | BE28: 0 | BF28: 0 | BG28: 0 | BH28: 0 | BI28: 0 | BJ28: 0 | BK28: 0 | BL28: 0 | BM28: 0 | BN28: 0 | BO28: 0 | BP28: 0 | BQ28: 0 | BR28: 0 | BS28: 0 | BT28: 0 | BU28: 0 | BV28: 0 | BW28: =$F$28*BW27 -> 0 | BX28: 0 | BY28: 0 | BZ28: 0 | CA28: 0 | CB28: 0 | CC28: 0 | CD28: 0 | CE28: 0 | CF28: 0 | CG28: 0 | CH28: 0 | CI28: 0 | CJ28: 0 | CK28: 0 | CL28: 0 | CM28: 0 | CN28: 0 | CO28: 0 | CP28: 0 | CQ28: 0 | CR28: 0 | CS28: 0 | CT28: 0 | CU28: 0 | CV28: 0 | CW28: 0 | CX28: 0 | CY28: 0 | CZ28: 0 | DA28: 0 | DB28: 0 | DC28: 0 | DD28: 0 | DE28: 0 | DF28: 0 | DG28: 0 | DH28: 0 | DI28: 0 | DJ28: 0 | DK28: 0 | DL28: 0 | DM28: 0 | DN28: 0 | DO28: 0 | DP28: 0 | DQ28: 0 | DR28: 0 | DS28: 0 | DT28: 0 | DU28: 0 | DV28: 0 | DW28: 0 | DX28: 0 | DY28: 0 | DZ28: 0 | EA28: 0 | EB28: 0 | EC28: 0 | ED28: 0 | EE28: 0 | EF28: 0 | EG28: 0 | EH28: 0 | EI28: =$F$28*EI27 -> 0 | EJ28: 0 | EK28: 0 | EL28: 0 | EM28: 0 | EN28: 0 | EO28: 0 | EP28: 0 | EQ28: 0 | ER28: 0 | ES28: 0 | ET28: 0 | EU28: 0 | EV28: 0 | EW28: 0 | EX28: 0 | EY28: 0 | EZ28: 0 | FA28: 0 | FB28: 0 | FC28: 0 | FD28: 0 | FE28: 0 | FF28: 0 | FG28: 0 | FH28: 0 | FI28: 0 | FJ28: 0 | FK28: 0 | FL28: 0 | FM28: 0 | FN28: 0 | FO28: 0 | FP28: 0
B29: PPA Inflaton Index | E29: Index | I29: 1 | J29: =I29*(1+J28) -> 1 | K29: =J29*(1+K28) -> 1 | L29: 1 | M29: 1 | N29: 1 | O29: 1 | P29: 1 | Q29: 1 | R29: 1 | S29: 1 | T29: 1 | U29: 1 | V29: 1 | W29: 1 | X29: 1 | Y29: 1 | Z29: 1 | AA29: 1 | AB29: 1 | AC29: 1 | AD29: 1 | AE29: 1 | AF29: 1 | AG29: 1 | AH29: 1 | AI29: 1 | AJ29: 1 | AK29: 1 | AL29: 1 | AM29: 1 | AN29: 1 | AO29: 1 | AP29: 1 | AQ29: 1 | AR29: 1 | AS29: 1 | AT29: 1 | AU29: 1 | AV29: 1 | AW29: 1 | AX29: 1 | AY29: 1 | AZ29: 1 | BA29: 1 | BB29: 1 | BC29: 1 | BD29: 1 | BE29: 1 | BF29: 1 | BG29: 1 | BH29: 1 | BI29: 1 | BJ29: 1 | BK29: 1 | BL29: 1 | BM29: 1 | BN29: 1 | BO29: 1 | BP29: 1 | BQ29: 1 | BR29: 1 | BS29: 1 | BT29: 1 | BU29: 1 | BV29: 1 | BW29: =BV29*(1+BW28) -> 1 | BX29: 1 | BY29: 1 | BZ29: 1 | CA29: 1 | CB29: 1 | CC29: 1 | CD29: 1 | CE29: 1 | CF29: 1 | CG29: 1 | CH29: 1 | CI29: 1 | CJ29: 1 | CK29: 1 | CL29: 1 | CM29: 1 | CN29: 1 | CO29: 1 | CP29: 1 | CQ29: 1 | CR29: 1 | CS29: 1 | CT29: 1 | CU29: 1 | CV29: 1 | CW29: 1 | CX29: 1 | CY29: 1 | CZ29: 1 | DA29: 1 | DB29: 1 | DC29: 1 | DD29: 1 | DE29: 1 | DF29: 1 | DG29: 1 | DH29: 1 | DI29: 1 | DJ29: 1 | DK29: 1 | DL29: 1 | DM29: 1 | DN29: 1 | DO29: 1 | DP29: 1 | DQ29: 1 | DR29: 1 | DS29: 1 | DT29: 1 | DU29: 1 | DV29: 1 | DW29: 1 | DX29: 1 | DY29: 1 | DZ29: 1 | EA29: 1 | EB29: 1 | EC29: 1 | ED29: 1 | EE29: 1 | EF29: 1 | EG29: 1 | EH29: 1 | EI29: =EH29*(1+EI28) -> 1 | EJ29: 1 | EK29: 1 | EL29: 1 | EM29: 1 | EN29: 1 | EO29: 1 | EP29: 1 | EQ29: 1 | ER29: 1 | ES29: 1 | ET29: 1 | EU29: 1 | EV29: 1 | EW29: 1 | EX29: 1 | EY29: 1 | EZ29: 1 | FA29: 1 | FB29: 1 | FC29: 1 | FD29: 1 | FE29: 1 | FF29: 1 | FG29: 1 | FH29: 1 | FI29: 1 | FJ29: 1 | FK29: 1 | FL29: 1 | FM29: 1 | FN29: 1 | FO29: 1 | FP29: 1
B30: PPA with Inflation | E30: $/kWh | J30: =J25*J29 -> 0.07 | K30: =K25*K29 -> 0.07 | L30: 0.07 | M30: 0.07 | N30: 0.07 | O30: 0.07 | P30: 0.07 | Q30: 0.07 | R30: 0.07 | S30: 0.07 | T30: 0.07 | U30: 0.07 | V30: 0.07 | W30: 0.07 | X30: 0.07 | Y30: 0.07 | Z30: 0.07 | AA30: 0.07 | AB30: 0.07 | AC30: 0.07 | AD30: 0.07 | AE30: 0.07 | AF30: 0.07 | AG30: 0.07 | AH30: 0.07 | AI30: 0.07 | AJ30: 0.07 | AK30: 0.07 | AL30: 0.07 | AM30: 0.07 | AN30: 0.07 | AO30: 0.07 | AP30: 0.07 | AQ30: 0.07 | AR30: 0.07 | AS30: 0.07 | AT30: 0.07 | AU30: 0.07 | AV30: 0.07 | AW30: 0.07 | AX30: 0.07 | AY30: 0.07 | AZ30: 0.07 | BA30: 0.07 | BB30: 0.07 | BC30: 0.07 | BD30: 0.07 | BE30: 0.07 | BF30: 0.07 | BG30: 0.07 | BH30: 0.07 | BI30: 0.07 | BJ30: 0.07 | BK30: 0.07 | BL30: 0.07 | BM30: 0.07 | BN30: 0.07 | BO30: 0.07 | BP30: 0.07 | BQ30: 0.07 | BR30: 0.07 | BS30: 0.07 | BT30: 0.07 | BU30: 0.07 | BV30: 0.07 | BW30: =BW25*BW29 -> 0.07 | BX30: 0.07 | BY30: 0.07 | BZ30: 0.07 | CA30: 0.07 | CB30: 0.07 | CC30: 0.07 | CD30: 0.07 | CE30: 0.07 | CF30: 0.07 | CG30: 0.07 | CH30: 0.07 | CI30: 0.07 | CJ30: 0.07 | CK30: 0.07 | CL30: 0.07 | CM30: 0.07 | CN30: 0.07 | CO30: 0.07 | CP30: 0.07 | CQ30: 0.07 | CR30: 0.07 | CS30: 0.07 | CT30: 0.07 | CU30: 0.07 | CV30: 0.07 | CW30: 0.07 | CX30: 0.07 | CY30: 0.07 | CZ30: 0.07 | DA30: 0.07 | DB30: 0.07 | DC30: 0.07 | DD30: 0.07 | DE30: 0.07 | DF30: 0.07 | DG30: 0.07 | DH30: 0.07 | DI30: 0.07 | DJ30: 0.07 | DK30: 0.07 | DL30: 0.07 | DM30: 0.07 | DN30: 0.07 | DO30: 0.07 | DP30: 0.07 | DQ30: 0.07 | DR30: 0.07 | DS30: 0.07 | DT30: 0.07 | DU30: 0.07 | DV30: 0.07 | DW30: 0.07 | DX30: 0.07 | DY30: 0.07 | DZ30: 0.07 | EA30: 0.07 | EB30: 0.07 | EC30: 0.07 | ED30: 0.07 | EE30: 0.07 | EF30: 0.07 | EG30: 0.07 | EH30: 0.07 | EI30: =EI25*EI29 -> 0.07 | EJ30: 0.07 | EK30: 0.07 | EL30: 0.07 | EM30: 0.07 | EN30: 0.07 | EO30: 0.07 | EP30: 0.07 | EQ30: 0.07 | ER30: 0.07 | ES30: 0.07 | ET30: 0.07 | EU30: 0.07 | EV30: 0.07 | EW30: 0.07 | EX30: 0.07 | EY30: 0.07 | EZ30: 0.07 | FA30: 0.07 | FB30: 0.07 | FC30: 0.07 | FD30: 0.07 | FE30: 0.07 | FF30: 0.07 | FG30: 0.07 | FH30: 0.07 | FI30: 0.07 | FJ30: 0.07 | FK30: 0.07 | FL30: 0.07 | FM30: 0.07 | FN30: 0.07 | FO30: 0.07 | FP30: 0.07
B32: Contracted Revenue | E32: $ | J32: =J30*J22 -> 0 | K32: =K30*K22 -> 0 | L32: 0 | M32: 0 | N32: 0 | O32: 0 | P32: 0 | Q32: 0 | R32: 0 | S32: 0 | T32: 0 | U32: 239886.237 | V32: 231774.683 | W32: 239288.7611 | X32: 238990.5813 | Y32: 238692.7732 | Z32: 230621.5752 | AA32: 238098.2697 | AB32: 237801.5735 | AC32: 237505.2469 | AD32: 229474.2041 | AE32: 236913.7012 | AF32: 236618.4811 | AG32: 236323.6288 | AH32: 230898.0756 | AI32: 235735.0261 | AJ32: 235441.2747 | AK32: 235147.8894 | AL32: 227196.5586 | AM32: 234562.215 | AN32: 234269.9251 | AO32: 233977.9994 | AP32: 226066.2275 | AQ32: 233395.2388 | AR32: 233104.4031 | AS32: 232813.9297 | AT32: 224941.5199 | AU32: 232234.0685 | AV32: 231944.6797 | AW32: 231655.6515 | AX32: 226337.2664 | AY32: 231078.6751 | AZ32: 230790.726 | BA32: 230503.1358 | BB32: 222708.8636 | BC32: 229929.0299 | BD32: 229642.5135 | BE32: 229356.354 | BF32: 221600.8593 | BG32: 228785.1044 | BH32: 228500.0134 | BI32: 228215.2776 | BJ32: 220498.3674 | BK32: 227646.8701 | BL32: 227363.1974 | BM32: 227079.8782 | BN32: 221866.5444 | BO32: 226514.2986 | BP32: 226232.0372 | BQ32: 225950.1276 | BR32: 218309.8116 | BS32: 225387.3618 | BT32: 225106.5047 | BU32: 224825.9976 | BV32: 217223.6931 | BW32: =BW30*BW22 -> 224266.0316 | BX32: 223986.5718 | BY32: 223707.4603 | BZ32: 216142.9782 | CA32: 223150.2802 | CB32: 222872.2108 | CC32: 222594.4879 | CD32: 217484.1303 | CE32: 222040.0798 | CF32: 221763.3938 | CG32: 221487.0526 | CH32: 213997.6517 | CI32: 220935.4028 | CJ32: 220660.0933 | CK32: 220385.127 | CL32: 212932.9868 | CM32: 219836.2217 | CN32: 219562.2819 | CO32: 219288.6835 | CP32: 211873.6187 | CQ32: 218742.5091 | CR32: 218469.9323 | CS32: 218197.6951 | CT32: 213188.2798 | CU32: 217654.2379 | CV32: 217383.0172 | CW32: 217112.1344 | CX32: 209770.6678 | CY32: 216571.381 | CZ32: 216301.5096 | DA32: 216031.9745 | DB32: 208727.0326 | DC32: 215493.9115 | DD32: 215225.3827 | DE32: 214957.1886 | DF32: 207688.5897 | DG32: 214421.8025 | DH32: 214154.6097 | DI32: 213887.7498 | DJ32: 208977.2829 | DK32: 213355.0273 | DL32: 213089.1639 | DM32: 212823.6317 | DN32: 205627.1772 | DO32: 212293.5595 | DP32: 212029.0188 | DQ32: 0 | DR32: 0 | DS32: 0 | DT32: 0 | DU32: 0 | DV32: 0 | DW32: 0 | DX32: 0 | DY32: 0 | DZ32: 0 | EA32: 0 | EB32: 0 | EC32: 0 | ED32: 0 | EE32: 0 | EF32: 0 | EG32: 0 | EH32: 0 | EI32: =EI30*EI22 -> 0 | EJ32: 0 | EK32: 0 | EL32: 0 | EM32: 0 | EN32: 0 | EO32: 0 | EP32: 0 | EQ32: 0 | ER32: 0 | ES32: 0 | ET32: 0 | EU32: 0 | EV32: 0 | EW32: 0 | EX32: 0 | EY32: 0 | EZ32: 0 | FA32: 0 | FB32: 0 | FC32: 0 | FD32: 0 | FE32: 0 | FF32: 0 | FG32: 0 | FH32: 0 | FI32: 0 | FJ32: 0 | FK32: 0 | FL32: 0 | FM32: 0 | FN32: 0 | FO32: 0 | FP32: 0
B33: Uncontracted Revenue | E33: $
C34: Total Revenues | E34: $ | J34: =J32+J33 -> 0 | K34: =K32+K33 -> 0 | L34: 0 | M34: 0 | N34: 0 | O34: 0 | P34: 0 | Q34: 0 | R34: 0 | S34: 0 | T34: 0 | U34: 239886.237 | V34: 231774.683 | W34: 239288.7611 | X34: 238990.5813 | Y34: 238692.7732 | Z34: 230621.5752 | AA34: 238098.2697 | AB34: 237801.5735 | AC34: 237505.2469 | AD34: 229474.2041 | AE34: 236913.7012 | AF34: 236618.4811 | AG34: 236323.6288 | AH34: 230898.0756 | AI34: 235735.0261 | AJ34: 235441.2747 | AK34: 235147.8894 | AL34: 227196.5586 | AM34: 234562.215 | AN34: 234269.9251 | AO34: 233977.9994 | AP34: 226066.2275 | AQ34: 233395.2388 | AR34: 233104.4031 | AS34: 232813.9297 | AT34: 224941.5199 | AU34: 232234.0685 | AV34: 231944.6797 | AW34: 231655.6515 | AX34: 226337.2664 | AY34: 231078.6751 | AZ34: 230790.726 | BA34: 230503.1358 | BB34: 222708.8636 | BC34: 229929.0299 | BD34: 229642.5135 | BE34: 229356.354 | BF34: 221600.8593 | BG34: 228785.1044 | BH34: 228500.0134 | BI34: 228215.2776 | BJ34: 220498.3674 | BK34: 227646.8701 | BL34: 227363.1974 | BM34: 227079.8782 | BN34: 221866.5444 | BO34: 226514.2986 | BP34: 226232.0372 | BQ34: 225950.1276 | BR34: 218309.8116 | BS34: 225387.3618 | BT34: 225106.5047 | BU34: 224825.9976 | BV34: 217223.6931 | BW34: =BW32+BW33 -> 224266.0316 | BX34: 223986.5718 | BY34: 223707.4603 | BZ34: 216142.9782 | CA34: 223150.2802 | CB34: 222872.2108 | CC34: 222594.4879 | CD34: 217484.1303 | CE34: 222040.0798 | CF34: 221763.3938 | CG34: 221487.0526 | CH34: 213997.6517 | CI34: 220935.4028 | CJ34: 220660.0933 | CK34: 220385.127 | CL34: 212932.9868 | CM34: 219836.2217 | CN34: 219562.2819 | CO34: 219288.6835 | CP34: 211873.6187 | CQ34: 218742.5091 | CR34: 218469.9323 | CS34: 218197.6951 | CT34: 213188.2798 | CU34: 217654.2379 | CV34: 217383.0172 | CW34: 217112.1344 | CX34: 209770.6678 | CY34: 216571.381 | CZ34: 216301.5096 | DA34: 216031.9745 | DB34: 208727.0326 | DC34: 215493.9115 | DD34: 215225.3827 | DE34: 214957.1886 | DF34: 207688.5897 | DG34: 214421.8025 | DH34: 214154.6097 | DI34: 213887.7498 | DJ34: 208977.2829 | DK34: 213355.0273 | DL34: 213089.1639 | DM34: 212823.6317 | DN34: 205627.1772 | DO34: 212293.5595 | DP34: 212029.0188 | DQ34: 0 | DR34: 0 | DS34: 0 | DT34: 0 | DU34: 0 | DV34: 0 | DW34: 0 | DX34: 0 | DY34: 0 | DZ34: 0 | EA34: 0 | EB34: 0 | EC34: 0 | ED34: 0 | EE34: 0 | EF34: 0 | EG34: 0 | EH34: 0 | EI34: =EI32+EI33 -> 0 | EJ34: 0 | EK34: 0 | EL34: 0 | EM34: 0 | EN34: 0 | EO34: 0 | EP34: 0 | EQ34: 0 | ER34: 0 | ES34: 0 | ET34: 0 | EU34: 0 | EV34: 0 | EW34: 0 | EX34: 0 | EY34: 0 | EZ34: 0 | FA34: 0 | FB34: 0 | FC34: 0 | FD34: 0 | FE34: 0 | FF34: 0 | FG34: 0 | FH34: 0 | FI34: 0 | FJ34: 0 | FK34: 0 | FL34: 0 | FM34: 0 | FN34: 0 | FO34: 0 | FP34: 0
A36: Operating Expenses
B37: Inflation Index
C38: O&M Agreement - Preventative | E38: Index | F38: =Inputs!J73 -> 0.01 | I38: 1 | J38: =(I38+(1+J$7*$F38)^(J$3/12)-1) -> 1 | K38: =(J38+(1+K$7*$F38)^(K$3/12)-1) -> 1 | L38: 1 | M38: 1 | N38: 1 | O38: 1 | P38: 1 | Q38: 1 | R38: 1 | S38: 1 | T38: 1 | U38: 1.002490679 | V38: 1.004981359 | W38: 1.007472038 | X38: 1.009962717 | Y38: 1.012453397 | Z38: 1.014944076 | AA38: 1.017434755 | AB38: 1.019925435 | AC38: 1.022416114 | AD38: 1.024906793 | AE38: 1.027397472 | AF38: 1.029888152 | AG38: 1.032378831 | AH38: 1.03486951 | AI38: 1.03736019 | AJ38: 1.039850869 | AK38: 1.042341548 | AL38: 1.044832228 | AM38: 1.047322907 | AN38: 1.049813586 | AO38: 1.052304266 | AP38: 1.054794945 | AQ38: 1.057285624 | AR38: 1.059776304 | AS38: 1.062266983 | AT38: 1.064757662 | AU38: 1.067248341 | AV38: 1.069739021 | AW38: 1.0722297 | AX38: 1.074720379 | AY38: 1.077211059 | AZ38: 1.079701738 | BA38: 1.082192417 | BB38: 1.084683097 | BC38: 1.087173776 | BD38: 1.089664455 | BE38: 1.092155135 | BF38: 1.094645814 | BG38: 1.097136493 | BH38: 1.099627173 | BI38: 1.102117852 | BJ38: 1.104608531 | BK38: 1.107099211 | BL38: 1.10958989 | BM38: 1.112080569 | BN38: 1.114571248 | BO38: 1.117061928 | BP38: 1.119552607 | BQ38: 1.122043286 | BR38: 1.124533966 | BS38: 1.127024645 | BT38: 1.129515324 | BU38: 1.132006004 | BV38: 1.134496683 | BW38: =(BV38+(1+BW$7*$F38)^(BW$3/12)-1) -> 1.136987362 | BX38: 1.139478042 | BY38: 1.141968721 | BZ38: 1.1444594 | CA38: 1.14695008 | CB38: 1.149440759 | CC38: 1.151931438 | CD38: 1.154422117 | CE38: 1.156912797 | CF38: 1.159403476 | CG38: 1.161894155 | CH38: 1.164384835 | CI38: 1.166875514 | CJ38: 1.169366193 | CK38: 1.171856873 | CL38: 1.174347552 | CM38: 1.176838231 | CN38: 1.179328911 | CO38: 1.18181959 | CP38: 1.184310269 | CQ38: 1.186800949 | CR38: 1.189291628 | CS38: 1.191782307 | CT38: 1.194272987 | CU38: 1.196763666 | CV38: 1.199254345 | CW38: 1.201745024 | CX38: 1.204235704 | CY38: 1.206726383 | CZ38: 1.209217062 | DA38: 1.211707742 | DB38: 1.214198421 | DC38: 1.2166891 | DD38: 1.21917978 | DE38: 1.221670459 | DF38: 1.224161138 | DG38: 1.226651818 | DH38: 1.229142497 | DI38: 1.231633176 | DJ38: 1.234123856 | DK38: 1.236614535 | DL38: 1.239105214 | DM38: 1.241595893 | DN38: 1.244086573 | DO38: 1.246577252 | DP38: 1.249067931 | DQ38: 1.249067931 | DR38: 1.249067931 | DS38: 1.249067931 | DT38: 1.249067931 | DU38: 1.249067931 | DV38: 1.249067931 | DW38: 1.249067931 | DX38: 1.249067931 | DY38: 1.249067931 | DZ38: 1.249067931 | EA38: 1.249067931 | EB38: 1.249067931 | EC38: 1.249067931 | ED38: 1.249067931 | EE38: 1.249067931 | EF38: 1.249067931 | EG38: 1.249067931 | EH38: 1.249067931 | EI38: =(EH38+(1+EI$7*$F38)^(EI$3/12)-1) -> 1.249067931 | EJ38: 1.249067931 | EK38: 1.249067931 | EL38: 1.249067931 | EM38: 1.249067931 | EN38: 1.249067931 | EO38: 1.249067931 | EP38: 1.249067931 | EQ38: 1.249067931 | ER38: 1.249067931 | ES38: 1.249067931 | ET38: 1.249067931 | EU38: 1.249067931 | EV38: 1.249067931 | EW38: 1.249067931 | EX38: 1.249067931 | EY38: 1.249067931 | EZ38: 1.249067931 | FA38: 1.249067931 | FB38: 1.249067931 | FC38: 1.249067931 | FD38: 1.249067931 | FE38: 1.249067931 | FF38: 1.249067931 | FG38: 1.249067931 | FH38: 1.249067931 | FI38: 1.249067931 | FJ38: 1.249067931 | FK38: 1.249067931 | FL38: 1.249067931 | FM38: 1.249067931 | FN38: 1.249067931 | FO38: 1.249067931 | FP38: 1.249067931
C39: O&M Agreement - Corrective | E39: Index | F39: =Inputs!J74 -> 0.01 | I39: 1 | J39: =(I39+(1+J$7*$F39)^(J$3/12)-1) -> 1 | K39: 1 | L39: 1 | M39: 1 | N39: 1 | O39: 1 | P39: 1 | Q39: 1 | R39: 1 | S39: 1 | T39: 1 | U39: 1.002490679 | V39: 1.004981359 | W39: 1.007472038 | X39: 1.009962717 | Y39: 1.012453397 | Z39: 1.014944076 | AA39: 1.017434755 | AB39: 1.019925435 | AC39: 1.022416114 | AD39: 1.024906793 | AE39: 1.027397472 | AF39: 1.029888152 | AG39: 1.032378831 | AH39: 1.03486951 | AI39: 1.03736019 | AJ39: 1.039850869 | AK39: 1.042341548 | AL39: 1.044832228 | AM39: 1.047322907 | AN39: 1.049813586 | AO39: 1.052304266 | AP39: 1.054794945 | AQ39: 1.057285624 | AR39: 1.059776304 | AS39: 1.062266983 | AT39: 1.064757662 | AU39: 1.067248341 | AV39: 1.069739021 | AW39: 1.0722297 | AX39: 1.074720379 | AY39: 1.077211059 | AZ39: 1.079701738 | BA39: 1.082192417 | BB39: 1.084683097 | BC39: 1.087173776 | BD39: 1.089664455 | BE39: 1.092155135 | BF39: 1.094645814 | BG39: 1.097136493 | BH39: 1.099627173 | BI39: 1.102117852 | BJ39: 1.104608531 | BK39: 1.107099211 | BL39: 1.10958989 | BM39: 1.112080569 | BN39: 1.114571248 | BO39: 1.117061928 | BP39: 1.119552607 | BQ39: 1.122043286 | BR39: 1.124533966 | BS39: 1.127024645 | BT39: 1.129515324 | BU39: 1.132006004 | BV39: 1.134496683 | BW39: 1.136987362 | BX39: 1.139478042 | BY39: 1.141968721 | BZ39: 1.1444594 | CA39: 1.14695008 | CB39: 1.149440759 | CC39: 1.151931438 | CD39: 1.154422117 | CE39: 1.156912797 | CF39: 1.159403476 | CG39: 1.161894155 | CH39: 1.164384835 | CI39: 1.166875514 | CJ39: 1.169366193 | CK39: 1.171856873 | CL39: 1.174347552 | CM39: 1.176838231 | CN39: 1.179328911 | CO39: 1.18181959 | CP39: 1.184310269 | CQ39: 1.186800949 | CR39: 1.189291628 | CS39: 1.191782307 | CT39: 1.194272987 | CU39: 1.196763666 | CV39: 1.199254345 | CW39: 1.201745024 | CX39: 1.204235704 | CY39: 1.206726383 | CZ39: 1.209217062 | DA39: 1.211707742 | DB39: 1.214198421 | DC39: 1.2166891 | DD39: 1.21917978 | DE39: 1.221670459 | DF39: 1.224161138 | DG39: 1.226651818 | DH39: 1.229142497 | DI39: 1.231633176 | DJ39: 1.234123856 | DK39: 1.236614535 | DL39: 1.239105214 | DM39: 1.241595893 | DN39: 1.244086573 | DO39: 1.246577252 | DP39: 1.249067931 | DQ39: 1.249067931 | DR39: 1.249067931 | DS39: 1.249067931 | DT39: 1.249067931 | DU39: 1.249067931 | DV39: 1.249067931 | DW39: 1.249067931 | DX39: 1.249067931 | DY39: 1.249067931 | DZ39: 1.249067931 | EA39: 1.249067931 | EB39: 1.249067931 | EC39: 1.249067931 | ED39: 1.249067931 | EE39: 1.249067931 | EF39: 1.249067931 | EG39: 1.249067931 | EH39: 1.249067931 | EI39: 1.249067931 | EJ39: 1.249067931 | EK39: 1.249067931 | EL39: 1.249067931 | EM39: 1.249067931 | EN39: 1.249067931 | EO39: 1.249067931 | EP39: 1.249067931 | EQ39: 1.249067931 | ER39: 1.249067931 | ES39: 1.249067931 | ET39: 1.249067931 | EU39: 1.249067931 | EV39: 1.249067931 | EW39: 1.249067931 | EX39: 1.249067931 | EY39: 1.249067931 | EZ39: 1.249067931 | FA39: 1.249067931 | FB39: 1.249067931 | FC39: 1.249067931 | FD39: 1.249067931 | FE39: 1.249067931 | FF39: 1.249067931 | FG39: 1.249067931 | FH39: 1.249067931 | FI39: 1.249067931 | FJ39: 1.249067931 | FK39: 1.249067931 | FL39: 1.249067931 | FM39: 1.249067931 | FN39: 1.249067931 | FO39: 1.249067931 | FP39: 1.249067931
C40: Management Fee | E40: Index | F40: =Inputs!J75 -> 0.01 | I40: 1 | J40: 1 | K40: 1 | L40: 1 | M40: 1 | N40: 1 | O40: 1 | P40: 1 | Q40: 1 | R40: 1 | S40: 1 | T40: 1 | U40: 1.002490679 | V40: 1.004981359 | W40: 1.007472038 | X40: 1.009962717 | Y40: 1.012453397 | Z40: 1.014944076 | AA40: 1.017434755 | AB40: 1.019925435 | AC40: 1.022416114 | AD40: 1.024906793 | AE40: 1.027397472 | AF40: 1.029888152 | AG40: 1.032378831 | AH40: 1.03486951 | AI40: 1.03736019 | AJ40: 1.039850869 | AK40: 1.042341548 | AL40: 1.044832228 | AM40: 1.047322907 | AN40: 1.049813586 | AO40: 1.052304266 | AP40: 1.054794945 | AQ40: 1.057285624 | AR40: 1.059776304 | AS40: 1.062266983 | AT40: 1.064757662 | AU40: 1.067248341 | AV40: 1.069739021 | AW40: 1.0722297 | AX40: 1.074720379 | AY40: 1.077211059 | AZ40: 1.079701738 | BA40: 1.082192417 | BB40: 1.084683097 | BC40: 1.087173776 | BD40: 1.089664455 | BE40: 1.092155135 | BF40: 1.094645814 | BG40: 1.097136493 | BH40: 1.099627173 | BI40: 1.102117852 | BJ40: 1.104608531 | BK40: 1.107099211 | BL40: 1.10958989 | BM40: 1.112080569 | BN40: 1.114571248 | BO40: 1.117061928 | BP40: 1.119552607 | BQ40: 1.122043286 | BR40: 1.124533966 | BS40: 1.127024645 | BT40: 1.129515324 | BU40: 1.132006004 | BV40: 1.134496683 | BW40: 1.136987362 | BX40: 1.139478042 | BY40: 1.141968721 | BZ40: 1.1444594 | CA40: 1.14695008 | CB40: 1.149440759 | CC40: 1.151931438 | CD40: 1.154422117 | CE40: 1.156912797 | CF40: 1.159403476 | CG40: 1.161894155 | CH40: 1.164384835 | CI40: 1.166875514 | CJ40: 1.169366193 | CK40: 1.171856873 | CL40: 1.174347552 | CM40: 1.176838231 | CN40: 1.179328911 | CO40: 1.18181959 | CP40: 1.184310269 | CQ40: 1.186800949 | CR40: 1.189291628 | CS40: 1.191782307 | CT40: 1.194272987 | CU40: 1.196763666 | CV40: 1.199254345 | CW40: 1.201745024 | CX40: 1.204235704 | CY40: 1.206726383 | CZ40: 1.209217062 | DA40: 1.211707742 | DB40: 1.214198421 | DC40: 1.2166891 | DD40: 1.21917978 | DE40: 1.221670459 | DF40: 1.224161138 | DG40: 1.226651818 | DH40: 1.229142497 | DI40: 1.231633176 | DJ40: 1.234123856 | DK40: 1.236614535 | DL40: 1.239105214 | DM40: 1.241595893 | DN40: 1.244086573 | DO40: 1.246577252 | DP40: 1.249067931 | DQ40: 1.249067931 | DR40: 1.249067931 | DS40: 1.249067931 | DT40: 1.249067931 | DU40: 1.249067931 | DV40: 1.249067931 | DW40: 1.249067931 | DX40: 1.249067931 | DY40: 1.249067931 | DZ40: 1.249067931 | EA40: 1.249067931 | EB40: 1.249067931 | EC40: 1.249067931 | ED40: 1.249067931 | EE40: 1.249067931 | EF40: 1.249067931 | EG40: 1.249067931 | EH40: 1.249067931 | EI40: 1.249067931 | EJ40: 1.249067931 | EK40: 1.249067931 | EL40: 1.249067931 | EM40: 1.249067931 | EN40: 1.249067931 | EO40: 1.249067931 | EP40: 1.249067931 | EQ40: 1.249067931 | ER40: 1.249067931 | ES40: 1.249067931 | ET40: 1.249067931 | EU40: 1.249067931 | EV40: 1.249067931 | EW40: 1.249067931 | EX40: 1.249067931 | EY40: 1.249067931 | EZ40: 1.249067931 | FA40: 1.249067931 | FB40: 1.249067931 | FC40: 1.249067931 | FD40: 1.249067931 | FE40: 1.249067931 | FF40: 1.249067931 | FG40: 1.249067931 | FH40: 1.249067931 | FI40: 1.249067931 | FJ40: 1.249067931 | FK40: 1.249067931 | FL40: 1.249067931 | FM40: 1.249067931 | FN40: 1.249067931 | FO40: 1.249067931 | FP40: 1.249067931
C41: Insurance | E41: Index | F41: =Inputs!J76 -> 0 | I41: 1 | J41: 1 | K41: 1 | L41: 1 | M41: 1 | N41: 1 | O41: 1 | P41: 1 | Q41: 1 | R41: 1 | S41: 1 | T41: 1 | U41: 1 | V41: 1 | W41: 1 | X41: 1 | Y41: 1 | Z41: 1 | AA41: 1 | AB41: 1 | AC41: 1 | AD41: 1 | AE41: 1 | AF41: 1 | AG41: 1 | AH41: 1 | AI41: 1 | AJ41: 1 | AK41: 1 | AL41: 1 | AM41: 1 | AN41: 1 | AO41: 1 | AP41: 1 | AQ41: 1 | AR41: 1 | AS41: 1 | AT41: 1 | AU41: 1 | AV41: 1 | AW41: 1 | AX41: 1 | AY41: 1 | AZ41: 1 | BA41: 1 | BB41: 1 | BC41: 1 | BD41: 1 | BE41: 1 | BF41: 1 | BG41: 1 | BH41: 1 | BI41: 1 | BJ41: 1 | BK41: 1 | BL41: 1 | BM41: 1 | BN41: 1 | BO41: 1 | BP41: 1 | BQ41: 1 | BR41: 1 | BS41: 1 | BT41: 1 | BU41: 1 | BV41: 1 | BW41: 1 | BX41: 1 | BY41: 1 | BZ41: 1 | CA41: 1 | CB41: 1 | CC41: 1 | CD41: 1 | CE41: 1 | CF41: 1 | CG41: 1 | CH41: 1 | CI41: 1 | CJ41: 1 | CK41: 1 | CL41: 1 | CM41: 1 | CN41: 1 | CO41: 1 | CP41: 1 | CQ41: 1 | CR41: 1 | CS41: 1 | CT41: 1 | CU41: 1 | CV41: 1 | CW41: 1 | CX41: 1 | CY41: 1 | CZ41: 1 | DA41: 1 | DB41: 1 | DC41: 1 | DD41: 1 | DE41: 1 | DF41: 1 | DG41: 1 | DH41: 1 | DI41: 1 | DJ41: 1 | DK41: 1 | DL41: 1 | DM41: 1 | DN41: 1 | DO41: 1 | DP41: 1 | DQ41: 1 | DR41: 1 | DS41: 1 | DT41: 1 | DU41: 1 | DV41: 1 | DW41: 1 | DX41: 1 | DY41: 1 | DZ41: 1 | EA41: 1 | EB41: 1 | EC41: 1 | ED41: 1 | EE41: 1 | EF41: 1 | EG41: 1 | EH41: =(EG41+(1+EH$7*$F41)^(EH$3/12)-1) -> 1 | EI41: 1 | EJ41: 1 | EK41: 1 | EL41: 1 | EM41: 1 | EN41: 1 | EO41: 1 | EP41: 1 | EQ41: 1 | ER41: 1 | ES41: 1 | ET41: 1 | EU41: 1 | EV41: 1 | EW41: 1 | EX41: 1 | EY41: 1 | EZ41: 1 | FA41: 1 | FB41: 1 | FC41: 1 | FD41: 1 | FE41: 1 | FF41: 1 | FG41: 1 | FH41: 1 | FI41: 1 | FJ41: 1 | FK41: 1 | FL41: 1 | FM41: 1 | FN41: 1 | FO41: 1 | FP41: 1
C42: Production Taxes | E42: Index | F42: =Inputs!J78 -> 0 | I42: 1 | J42: 1 | K42: 1 | L42: 1 | M42: 1 | N42: 1 | O42: 1 | P42: 1 | Q42: 1 | R42: 1 | S42: 1 | T42: 1 | U42: 1 | V42: 1 | W42: 1 | X42: 1 | Y42: 1 | Z42: 1 | AA42: 1 | AB42: 1 | AC42: 1 | AD42: 1 | AE42: 1 | AF42: 1 | AG42: 1 | AH42: 1 | AI42: 1 | AJ42: 1 | AK42: 1 | AL42: 1 | AM42: 1 | AN42: 1 | AO42: 1 | AP42: 1 | AQ42: 1 | AR42: 1 | AS42: 1 | AT42: 1 | AU42: 1 | AV42: 1 | AW42: 1 | AX42: 1 | AY42: 1 | AZ42: 1 | BA42: 1 | BB42: 1 | BC42: 1 | BD42: 1 | BE42: 1 | BF42: 1 | BG42: 1 | BH42: 1 | BI42: 1 | BJ42: 1 | BK42: 1 | BL42: 1 | BM42: 1 | BN42: 1 | BO42: 1 | BP42: 1 | BQ42: 1 | BR42: =(BQ42+(1+BR$7*$F42)^(BR$3/12)-1) -> 1 | BS42: 1 | BT42: 1 | BU42: 1 | BV42: 1 | BW42: 1 | BX42: 1 | BY42: 1 | BZ42: 1 | CA42: 1 | CB42: 1 | CC42: 1 | CD42: 1 | CE42: 1 | CF42: 1 | CG42: 1 | CH42: 1 | CI42: 1 | CJ42: 1 | CK42: 1 | CL42: 1 | CM42: 1 | CN42: 1 | CO42: 1 | CP42: 1 | CQ42: 1 | CR42: 1 | CS42: 1 | CT42: 1 | CU42: 1 | CV42: 1 | CW42: 1 | CX42: 1 | CY42: 1 | CZ42: 1 | DA42: 1 | DB42: 1 | DC42: 1 | DD42: 1 | DE42: 1 | DF42: 1 | DG42: 1 | DH42: 1 | DI42: 1 | DJ42: 1 | DK42: 1 | DL42: 1 | DM42: 1 | DN42: 1 | DO42: 1 | DP42: 1 | DQ42: 1 | DR42: 1 | DS42: 1 | DT42: 1 | DU42: 1 | DV42: 1 | DW42: 1 | DX42: 1 | DY42: 1 | DZ42: 1 | EA42: 1 | EB42: 1 | EC42: 1 | ED42: =(EC42+(1+ED$7*$F42)^(ED$3/12)-1) -> 1 | EE42: 1 | EF42: 1 | EG42: 1 | EH42: 1 | EI42: 1 | EJ42: 1 | EK42: 1 | EL42: 1 | EM42: 1 | EN42: 1 | EO42: 1 | EP42: 1 | EQ42: 1 | ER42: 1 | ES42: 1 | ET42: 1 | EU42: 1 | EV42: 1 | EW42: 1 | EX42: 1 | EY42: 1 | EZ42: 1 | FA42: 1 | FB42: 1 | FC42: 1 | FD42: 1 | FE42: 1 | FF42: 1 | FG42: 1 | FH42: 1 | FI42: 1 | FJ42: 1 | FK42: 1 | FL42: 1 | FM42: 1 | FN42: 1 | FO42: 1 | FP42: 1
C43: Other Expense | E43: Index | F43: =Inputs!G84 -> 0 | I43: 1 | J43: 1 | K43: 1 | L43: 1 | M43: 1 | N43: 1 | O43: 1 | P43: 1 | Q43: 1 | R43: 1 | S43: 1 | T43: 1 | U43: 1 | V43: 1 | W43: 1 | X43: 1 | Y43: 1 | Z43: =(Y43+(1+Z$7*$F43)^(Z$3/12)-1) -> 1 | AA43: 1 | AB43: 1 | AC43: 1 | AD43: 1 | AE43: 1 | AF43: 1 | AG43: 1 | AH43: 1 | AI43: 1 | AJ43: 1 | AK43: 1 | AL43: 1 | AM43: 1 | AN43: 1 | AO43: 1 | AP43: 1 | AQ43: 1 | AR43: 1 | AS43: 1 | AT43: 1 | AU43: 1 | AV43: 1 | AW43: 1 | AX43: 1 | AY43: 1 | AZ43: 1 | BA43: 1 | BB43: 1 | BC43: 1 | BD43: 1 | BE43: 1 | BF43: 1 | BG43: 1 | BH43: 1 | BI43: 1 | BJ43: 1 | BK43: 1 | BL43: 1 | BM43: 1 | BN43: 1 | BO43: 1 | BP43: 1 | BQ43: 1 | BR43: 1 | BS43: 1 | BT43: 1 | BU43: 1 | BV43: 1 | BW43: 1 | BX43: 1 | BY43: 1 | BZ43: 1 | CA43: 1 | CB43: 1 | CC43: 1 | CD43: 1 | CE43: 1 | CF43: 1 | CG43: 1 | CH43: 1 | CI43: 1 | CJ43: 1 | CK43: 1 | CL43: 1 | CM43: 1 | CN43: 1 | CO43: 1 | CP43: 1 | CQ43: 1 | CR43: 1 | CS43: 1 | CT43: 1 | CU43: 1 | CV43: 1 | CW43: 1 | CX43: 1 | CY43: 1 | CZ43: 1 | DA43: 1 | DB43: 1 | DC43: 1 | DD43: 1 | DE43: 1 | DF43: 1 | DG43: 1 | DH43: 1 | DI43: 1 | DJ43: 1 | DK43: 1 | DL43: 1 | DM43: 1 | DN43: 1 | DO43: 1 | DP43: 1 | DQ43: 1 | DR43: 1 | DS43: 1 | DT43: 1 | DU43: 1 | DV43: 1 | DW43: 1 | DX43: 1 | DY43: 1 | DZ43: 1 | EA43: 1 | EB43: 1 | EC43: 1 | ED43: 1 | EE43: 1 | EF43: 1 | EG43: 1 | EH43: 1 | EI43: 1 | EJ43: 1 | EK43: 1 | EL43: 1 | EM43: 1 | EN43: 1 | EO43: 1 | EP43: 1 | EQ43: 1 | ER43: 1 | ES43: 1 | ET43: 1 | EU43: 1 | EV43: 1 | EW43: 1 | EX43: 1 | EY43: 1 | EZ43: 1 | FA43: 1 | FB43: 1 | FC43: 1 | FD43: 1 | FE43: 1 | FF43: 1 | FG43: 1 | FH43: 1 | FI43: 1 | FJ43: 1 | FK43: 1 | FL43: 1 | FM43: 1 | FN43: 1 | FO43: 1 | FP43: 1
F45: $/kWy
C46: O&M Agreement - Preventative | E46: $/kWy | F46: =Inputs!G73 -> 6 | J46: =$F46/12*J$3*J$7 -> 0 | K46: =$F46/12*K$3*K$7 -> 0 | L46: 0 | M46: 0 | N46: 0 | O46: 0 | P46: 0 | Q46: 0 | R46: 0 | S46: 0 | T46: 0 | U46: 1.5 | V46: 1.5 | W46: 1.5 | X46: 1.5 | Y46: 1.5 | Z46: 1.5 | AA46: 1.5 | AB46: 1.5 | AC46: 1.5 | AD46: 1.5 | AE46: 1.5 | AF46: 1.5 | AG46: 1.5 | AH46: 1.5 | AI46: 1.5 | AJ46: 1.5 | AK46: 1.5 | AL46: 1.5 | AM46: 1.5 | AN46: 1.5 | AO46: 1.5 | AP46: 1.5 | AQ46: 1.5 | AR46: 1.5 | AS46: 1.5 | AT46: 1.5 | AU46: 1.5 | AV46: 1.5 | AW46: 1.5 | AX46: 1.5 | AY46: 1.5 | AZ46: 1.5 | BA46: 1.5 | BB46: 1.5 | BC46: 1.5 | BD46: 1.5 | BE46: 1.5 | BF46: 1.5 | BG46: 1.5 | BH46: 1.5 | BI46: 1.5 | BJ46: 1.5 | BK46: 1.5 | BL46: 1.5 | BM46: 1.5 | BN46: 1.5 | BO46: 1.5 | BP46: 1.5 | BQ46: 1.5 | BR46: 1.5 | BS46: 1.5 | BT46: 1.5 | BU46: 1.5 | BV46: 1.5 | BW46: =$F46/12*BW$3*BW$7 -> 1.5 | BX46: 1.5 | BY46: 1.5 | BZ46: 1.5 | CA46: 1.5 | CB46: 1.5 | CC46: 1.5 | CD46: 1.5 | CE46: 1.5 | CF46: 1.5 | CG46: 1.5 | CH46: 1.5 | CI46: 1.5 | CJ46: 1.5 | CK46: 1.5 | CL46: 1.5 | CM46: 1.5 | CN46: 1.5 | CO46: 1.5 | CP46: 1.5 | CQ46: 1.5 | CR46: 1.5 | CS46: 1.5 | CT46: 1.5 | CU46: 1.5 | CV46: 1.5 | CW46: 1.5 | CX46: 1.5 | CY46: 1.5 | CZ46: 1.5 | DA46: 1.5 | DB46: 1.5 | DC46: 1.5 | DD46: 1.5 | DE46: 1.5 | DF46: 1.5 | DG46: 1.5 | DH46: 1.5 | DI46: 1.5 | DJ46: 1.5 | DK46: 1.5 | DL46: 1.5 | DM46: 1.5 | DN46: 1.5 | DO46: 1.5 | DP46: 1.5 | DQ46: 0 | DR46: 0 | DS46: 0 | DT46: 0 | DU46: 0 | DV46: 0 | DW46: 0 | DX46: 0 | DY46: 0 | DZ46: 0 | EA46: 0 | EB46: 0 | EC46: 0 | ED46: 0 | EE46: 0 | EF46: 0 | EG46: 0 | EH46: 0 | EI46: =$F46/12*EI$3*EI$7 -> 0 | EJ46: 0 | EK46: 0 | EL46: 0 | EM46: 0 | EN46: 0 | EO46: 0 | EP46: 0 | EQ46: 0 | ER46: 0 | ES46: 0 | ET46: 0 | EU46: 0 | EV46: 0 | EW46: 0 | EX46: 0 | EY46: 0 | EZ46: 0 | FA46: 0 | FB46: 0 | FC46: 0 | FD46: 0 | FE46: 0 | FF46: 0 | FG46: 0 | FH46: 0 | FI46: 0 | FJ46: 0 | FK46: 0 | FL46: 0 | FM46: 0 | FN46: 0 | FO46: 0 | FP46: 0
C47: O&M Agreement - Corrective | E47: $/kWy | F47: =Inputs!G74 -> 3 | J47: =$F47/12*J$3*J$7 -> 0 | K47: 0 | L47: 0 | M47: 0 | N47: 0 | O47: 0 | P47: 0 | Q47: 0 | R47: 0 | S47: 0 | T47: 0 | U47: 0.75 | V47: 0.75 | W47: 0.75 | X47: 0.75 | Y47: 0.75 | Z47: 0.75 | AA47: 0.75 | AB47: 0.75 | AC47: 0.75 | AD47: 0.75 | AE47: 0.75 | AF47: 0.75 | AG47: 0.75 | AH47: 0.75 | AI47: 0.75 | AJ47: 0.75 | AK47: 0.75 | AL47: 0.75 | AM47: 0.75 | AN47: 0.75 | AO47: 0.75 | AP47: 0.75 | AQ47: 0.75 | AR47: 0.75 | AS47: 0.75 | AT47: 0.75 | AU47: 0.75 | AV47: 0.75 | AW47: 0.75 | AX47: 0.75 | AY47: 0.75 | AZ47: 0.75 | BA47: 0.75 | BB47: 0.75 | BC47: 0.75 | BD47: 0.75 | BE47: 0.75 | BF47: 0.75 | BG47: 0.75 | BH47: 0.75 | BI47: 0.75 | BJ47: 0.75 | BK47: 0.75 | BL47: 0.75 | BM47: 0.75 | BN47: 0.75 | BO47: 0.75 | BP47: 0.75 | BQ47: 0.75 | BR47: 0.75 | BS47: 0.75 | BT47: 0.75 | BU47: 0.75 | BV47: 0.75 | BW47: 0.75 | BX47: 0.75 | BY47: 0.75 | BZ47: 0.75 | CA47: 0.75 | CB47: 0.75 | CC47: 0.75 | CD47: 0.75 | CE47: 0.75 | CF47: 0.75 | CG47: 0.75 | CH47: 0.75 | CI47: 0.75 | CJ47: 0.75 | CK47: 0.75 | CL47: 0.75 | CM47: 0.75 | CN47: 0.75 | CO47: 0.75 | CP47: 0.75 | CQ47: 0.75 | CR47: 0.75 | CS47: 0.75 | CT47: 0.75 | CU47: 0.75 | CV47: 0.75 | CW47: 0.75 | CX47: 0.75 | CY47: 0.75 | CZ47: 0.75 | DA47: 0.75 | DB47: 0.75 | DC47: 0.75 | DD47: 0.75 | DE47: 0.75 | DF47: 0.75 | DG47: 0.75 | DH47: 0.75 | DI47: 0.75 | DJ47: 0.75 | DK47: 0.75 | DL47: 0.75 | DM47: 0.75 | DN47: 0.75 | DO47: 0.75 | DP47: 0.75 | DQ47: 0 | DR47: 0 | DS47: 0 | DT47: 0 | DU47: 0 | DV47: 0 | DW47: 0 | DX47: 0 | DY47: 0 | DZ47: 0 | EA47: 0 | EB47: 0 | EC47: 0 | ED47: 0 | EE47: 0 | EF47: 0 | EG47: 0 | EH47: 0 | EI47: 0 | EJ47: 0 | EK47: 0 | EL47: 0 | EM47: 0 | EN47: 0 | EO47: 0 | EP47: 0 | EQ47: 0 | ER47: 0 | ES47: 0 | ET47: 0 | EU47: 0 | EV47: 0 | EW47: 0 | EX47: 0 | EY47: 0 | EZ47: 0 | FA47: 0 | FB47: 0 | FC47: 0 | FD47: 0 | FE47: 0 | FF47: 0 | FG47: 0 | FH47: 0 | FI47: 0 | FJ47: 0 | FK47: 0 | FL47: 0 | FM47: 0 | FN47: 0 | FO47: 0 | FP47: 0
C48: Management Fee | E48: $/kWy | F48: =Inputs!G75 -> 2 | J48: 0 | K48: 0 | L48: 0 | M48: 0 | N48: 0 | O48: 0 | P48: 0 | Q48: 0 | R48: 0 | S48: 0 | T48: 0 | U48: 0.5 | V48: 0.5 | W48: 0.5 | X48: 0.5 | Y48: 0.5 | Z48: 0.5 | AA48: 0.5 | AB48: 0.5 | AC48: 0.5 | AD48: 0.5 | AE48: 0.5 | AF48: 0.5 | AG48: 0.5 | AH48: 0.5 | AI48: 0.5 | AJ48: 0.5 | AK48: 0.5 | AL48: 0.5 | AM48: 0.5 | AN48: 0.5 | AO48: 0.5 | AP48: 0.5 | AQ48: 0.5 | AR48: 0.5 | AS48: 0.5 | AT48: 0.5 | AU48: 0.5 | AV48: 0.5 | AW48: 0.5 | AX48: 0.5 | AY48: 0.5 | AZ48: 0.5 | BA48: 0.5 | BB48: 0.5 | BC48: 0.5 | BD48: 0.5 | BE48: 0.5 | BF48: 0.5 | BG48: 0.5 | BH48: 0.5 | BI48: 0.5 | BJ48: 0.5 | BK48: 0.5 | BL48: 0.5 | BM48: 0.5 | BN48: 0.5 | BO48: 0.5 | BP48: 0.5 | BQ48: 0.5 | BR48: 0.5 | BS48: 0.5 | BT48: 0.5 | BU48: 0.5 | BV48: 0.5 | BW48: 0.5 | BX48: 0.5 | BY48: 0.5 | BZ48: 0.5 | CA48: 0.5 | CB48: 0.5 | CC48: 0.5 | CD48: 0.5 | CE48: 0.5 | CF48: 0.5 | CG48: 0.5 | CH48: 0.5 | CI48: 0.5 | CJ48: 0.5 | CK48: 0.5 | CL48: 0.5 | CM48: 0.5 | CN48: 0.5 | CO48: 0.5 | CP48: 0.5 | CQ48: 0.5 | CR48: 0.5 | CS48: 0.5 | CT48: 0.5 | CU48: 0.5 | CV48: 0.5 | CW48: 0.5 | CX48: 0.5 | CY48: 0.5 | CZ48: 0.5 | DA48: 0.5 | DB48: 0.5 | DC48: 0.5 | DD48: 0.5 | DE48: 0.5 | DF48: 0.5 | DG48: 0.5 | DH48: 0.5 | DI48: 0.5 | DJ48: 0.5 | DK48: 0.5 | DL48: 0.5 | DM48: 0.5 | DN48: 0.5 | DO48: 0.5 | DP48: 0.5 | DQ48: 0 | DR48: 0 | DS48: 0 | DT48: 0 | DU48: 0 | DV48: 0 | DW48: 0 | DX48: 0 | DY48: 0 | DZ48: 0 | EA48: 0 | EB48: 0 | EC48: 0 | ED48: 0 | EE48: 0 | EF48: 0 | EG48: 0 | EH48: 0 | EI48: 0 | EJ48: 0 | EK48: 0 | EL48: 0 | EM48: 0 | EN48: 0 | EO48: 0 | EP48: 0 | EQ48: 0 | ER48: 0 | ES48: 0 | ET48: 0 | EU48: 0 | EV48: 0 | EW48: 0 | EX48: 0 | EY48: 0 | EZ48: 0 | FA48: 0 | FB48: 0 | FC48: 0 | FD48: 0 | FE48: 0 | FF48: 0 | FG48: 0 | FH48: 0 | FI48: 0 | FJ48: 0 | FK48: 0 | FL48: 0 | FM48: 0 | FN48: 0 | FO48: 0 | FP48: 0
C49: Insurance | E49: $/kWy | F49: =Inputs!G76 -> 5.6 | J49: 0 | K49: 0 | L49: 0 | M49: 0 | N49: 0 | O49: 0 | P49: 0 | Q49: 0 | R49: 0 | S49: 0 | T49: 0 | U49: 1.4 | V49: 1.4 | W49: 1.4 | X49: 1.4 | Y49: 1.4 | Z49: 1.4 | AA49: 1.4 | AB49: 1.4 | AC49: 1.4 | AD49: 1.4 | AE49: 1.4 | AF49: 1.4 | AG49: 1.4 | AH49: 1.4 | AI49: 1.4 | AJ49: 1.4 | AK49: 1.4 | AL49: 1.4 | AM49: 1.4 | AN49: 1.4 | AO49: 1.4 | AP49: 1.4 | AQ49: 1.4 | AR49: 1.4 | AS49: 1.4 | AT49: 1.4 | AU49: 1.4 | AV49: 1.4 | AW49: 1.4 | AX49: 1.4 | AY49: 1.4 | AZ49: 1.4 | BA49: 1.4 | BB49: 1.4 | BC49: 1.4 | BD49: 1.4 | BE49: 1.4 | BF49: 1.4 | BG49: 1.4 | BH49: 1.4 | BI49: 1.4 | BJ49: 1.4 | BK49: 1.4 | BL49: 1.4 | BM49: 1.4 | BN49: 1.4 | BO49: 1.4 | BP49: 1.4 | BQ49: 1.4 | BR49: 1.4 | BS49: 1.4 | BT49: 1.4 | BU49: 1.4 | BV49: 1.4 | BW49: 1.4 | BX49: 1.4 | BY49: 1.4 | BZ49: 1.4 | CA49: 1.4 | CB49: 1.4 | CC49: 1.4 | CD49: 1.4 | CE49: 1.4 | CF49: 1.4 | CG49: 1.4 | CH49: 1.4 | CI49: 1.4 | CJ49: 1.4 | CK49: 1.4 | CL49: 1.4 | CM49: 1.4 | CN49: 1.4 | CO49: 1.4 | CP49: 1.4 | CQ49: 1.4 | CR49: 1.4 | CS49: 1.4 | CT49: 1.4 | CU49: 1.4 | CV49: 1.4 | CW49: 1.4 | CX49: 1.4 | CY49: 1.4 | CZ49: 1.4 | DA49: 1.4 | DB49: 1.4 | DC49: 1.4 | DD49: 1.4 | DE49: 1.4 | DF49: 1.4 | DG49: 1.4 | DH49: 1.4 | DI49: 1.4 | DJ49: 1.4 | DK49: 1.4 | DL49: 1.4 | DM49: 1.4 | DN49: 1.4 | DO49: 1.4 | DP49: 1.4 | DQ49: 0 | DR49: 0 | DS49: 0 | DT49: 0 | DU49: 0 | DV49: 0 | DW49: 0 | DX49: 0 | DY49: 0 | DZ49: 0 | EA49: 0 | EB49: 0 | EC49: 0 | ED49: 0 | EE49: 0 | EF49: 0 | EG49: 0 | EH49: =$F49/12*EH$3*EH$7 -> 0 | EI49: 0 | EJ49: 0 | EK49: 0 | EL49: 0 | EM49: 0 | EN49: 0 | EO49: 0 | EP49: 0 | EQ49: 0 | ER49: 0 | ES49: 0 | ET49: 0 | EU49: 0 | EV49: 0 | EW49: 0 | EX49: 0 | EY49: 0 | EZ49: 0 | FA49: 0 | FB49: 0 | FC49: 0 | FD49: 0 | FE49: 0 | FF49: 0 | FG49: 0 | FH49: 0 | FI49: 0 | FJ49: 0 | FK49: 0 | FL49: 0 | FM49: 0 | FN49: 0 | FO49: 0 | FP49: 0
C50: Production Taxes | E50: $/kWy | F50: =Inputs!G78 -> 0 | J50: 0 | K50: 0 | L50: 0 | M50: 0 | N50: 0 | O50: 0 | P50: 0 | Q50: 0 | R50: 0 | S50: 0 | T50: 0 | U50: 0 | V50: 0 | W50: 0 | X50: 0 | Y50: 0 | Z50: 0 | AA50: 0 | AB50: 0 | AC50: 0 | AD50: 0 | AE50: 0 | AF50: 0 | AG50: 0 | AH50: 0 | AI50: 0 | AJ50: 0 | AK50: 0 | AL50: 0 | AM50: 0 | AN50: 0 | AO50: 0 | AP50: 0 | AQ50: 0 | AR50: 0 | AS50: 0 | AT50: 0 | AU50: 0 | AV50: 0 | AW50: 0 | AX50: 0 | AY50: 0 | AZ50: 0 | BA50: 0 | BB50: 0 | BC50: 0 | BD50: 0 | BE50: 0 | BF50: 0 | BG50: 0 | BH50: 0 | BI50: 0 | BJ50: 0 | BK50: 0 | BL50: 0 | BM50: 0 | BN50: 0 | BO50: 0 | BP50: 0 | BQ50: 0 | BR50: =$F50/12*BR$3*BR$7 -> 0 | BS50: 0 | BT50: 0 | BU50: 0 | BV50: 0 | BW50: 0 | BX50: 0 | BY50: 0 | BZ50: 0 | CA50: 0 | CB50: 0 | CC50: 0 | CD50: 0 | CE50: 0 | CF50: 0 | CG50: 0 | CH50: 0 | CI50: 0 | CJ50: 0 | CK50: 0 | CL50: 0 | CM50: 0 | CN50: 0 | CO50: 0 | CP50: 0 | CQ50: 0 | CR50: 0 | CS50: 0 | CT50: 0 | CU50: 0 | CV50: 0 | CW50: 0 | CX50: 0 | CY50: 0 | CZ50: 0 | DA50: 0 | DB50: 0 | DC50: 0 | DD50: 0 | DE50: 0 | DF50: 0 | DG50: 0 | DH50: 0 | DI50: 0 | DJ50: 0 | DK50: 0 | DL50: 0 | DM50: 0 | DN50: 0 | DO50: 0 | DP50: 0 | DQ50: 0 | DR50: 0 | DS50: 0 | DT50: 0 | DU50: 0 | DV50: 0 | DW50: 0 | DX50: 0 | DY50: 0 | DZ50: 0 | EA50: 0 | EB50: 0 | EC50: 0 | ED50: =$F50/12*ED$3*ED$7 -> 0 | EE50: 0 | EF50: 0 | EG50: 0 | EH50: 0 | EI50: 0 | EJ50: 0 | EK50: 0 | EL50: 0 | EM50: 0 | EN50: 0 | EO50: 0 | EP50: 0 | EQ50: 0 | ER50: 0 | ES50: 0 | ET50: 0 | EU50: 0 | EV50: 0 | EW50: 0 | EX50: 0 | EY50: 0 | EZ50: 0 | FA50: 0 | FB50: 0 | FC50: 0 | FD50: 0 | FE50: 0 | FF50: 0 | FG50: 0 | FH50: 0 | FI50: 0 | FJ50: 0 | FK50: 0 | FL50: 0 | FM50: 0 | FN50: 0 | FO50: 0 | FP50: 0
C51: Other Expense | E51: $/kWy | F51: =Inputs!G83 -> 35000 | J51: 0 | K51: 0 | L51: 0 | M51: 0 | N51: 0 | O51: 0 | P51: 0 | Q51: 0 | R51: 0 | S51: 0 | T51: 0 | U51: 8750 | V51: 8750 | W51: 8750 | X51: 8750 | Y51: 8750 | Z51: =$F51/12*Z$3*Z$7 -> 8750 | AA51: 8750 | AB51: 8750 | AC51: 8750 | AD51: 8750 | AE51: 8750 | AF51: 8750 | AG51: 8750 | AH51: 8750 | AI51: 8750 | AJ51: 8750 | AK51: 8750 | AL51: 8750 | AM51: 8750 | AN51: 8750 | AO51: 8750 | AP51: 8750 | AQ51: 8750 | AR51: 8750 | AS51: 8750 | AT51: 8750 | AU51: 8750 | AV51: 8750 | AW51: 8750 | AX51: 8750 | AY51: 8750 | AZ51: 8750 | BA51: 8750 | BB51: 8750 | BC51: 8750 | BD51: 8750 | BE51: 8750 | BF51: 8750 | BG51: 8750 | BH51: 8750 | BI51: 8750 | BJ51: 8750 | BK51: 8750 | BL51: 8750 | BM51: 8750 | BN51: 8750 | BO51: 8750 | BP51: 8750 | BQ51: 8750 | BR51: 8750 | BS51: 8750 | BT51: 8750 | BU51: 8750 | BV51: 8750 | BW51: 8750 | BX51: 8750 | BY51: 8750 | BZ51: 8750 | CA51: 8750 | CB51: 8750 | CC51: 8750 | CD51: 8750 | CE51: 8750 | CF51: 8750 | CG51: 8750 | CH51: 8750 | CI51: 8750 | CJ51: 8750 | CK51: 8750 | CL51: 8750 | CM51: 8750 | CN51: 8750 | CO51: 8750 | CP51: 8750 | CQ51: 8750 | CR51: 8750 | CS51: 8750 | CT51: 8750 | CU51: 8750 | CV51: 8750 | CW51: 8750 | CX51: 8750 | CY51: 8750 | CZ51: 8750 | DA51: 8750 | DB51: 8750 | DC51: 8750 | DD51: 8750 | DE51: 8750 | DF51: 8750 | DG51: 8750 | DH51: 8750 | DI51: 8750 | DJ51: 8750 | DK51: 8750 | DL51: 8750 | DM51: 8750 | DN51: 8750 | DO51: 8750 | DP51: 8750 | DQ51: 0 | DR51: 0 | DS51: 0 | DT51: 0 | DU51: 0 | DV51: 0 | DW51: 0 | DX51: 0 | DY51: 0 | DZ51: 0 | EA51: 0 | EB51: 0 | EC51: 0 | ED51: 0 | EE51: 0 | EF51: 0 | EG51: 0 | EH51: 0 | EI51: 0 | EJ51: 0 | EK51: 0 | EL51: 0 | EM51: 0 | EN51: 0 | EO51: 0 | EP51: 0 | EQ51: 0 | ER51: 0 | ES51: 0 | ET51: 0 | EU51: 0 | EV51: 0 | EW51: 0 | EX51: 0 | EY51: 0 | EZ51: 0 | FA51: 0 | FB51: 0 | FC51: 0 | FD51: 0 | FE51: 0 | FF51: 0 | FG51: 0 | FH51: 0 | FI51: 0 | FJ51: 0 | FK51: 0 | FL51: 0 | FM51: 0 | FN51: 0 | FO51: 0 | FP51: 0
F53: kW
C54: O&M Agreement - Preventative | E54: $ | F54: =Inputs!$G$32 -> 10000 | J54: =J46*J38*J$10 -> 0 | K54: =K46*K38*K$10 -> 0 | L54: 0 | M54: 0 | N54: 0 | O54: 0 | P54: 0 | Q54: 0 | R54: 0 | S54: 0 | T54: 0 | U54: 15037.36019 | V54: 15074.72038 | W54: 15112.08057 | X54: 15149.44076 | Y54: 15186.80095 | Z54: 15224.16114 | AA54: 15261.52133 | AB54: 15298.88152 | AC54: 15336.24171 | AD54: 15373.6019 | AE54: 15410.96209 | AF54: 15448.32228 | AG54: 15485.68247 | AH54: 15523.04266 | AI54: 15560.40285 | AJ54: 15597.76304 | AK54: 15635.12323 | AL54: 15672.48341 | AM54: 15709.8436 | AN54: 15747.20379 | AO54: 15784.56398 | AP54: 15821.92417 | AQ54: 15859.28436 | AR54: 15896.64455 | AS54: 15934.00474 | AT54: 15971.36493 | AU54: 16008.72512 | AV54: 16046.08531 | AW54: 16083.4455 | AX54: 16120.80569 | AY54: 16158.16588 | AZ54: 16195.52607 | BA54: 16232.88626 | BB54: 16270.24645 | BC54: 16307.60664 | BD54: 16344.96683 | BE54: 16382.32702 | BF54: 16419.68721 | BG54: 16457.0474 | BH54: 16494.40759 | BI54: 16531.76778 | BJ54: 16569.12797 | BK54: 16606.48816 | BL54: 16643.84835 | BM54: 16681.20854 | BN54: 16718.56873 | BO54: 16755.92892 | BP54: 16793.28911 | BQ54: 16830.6493 | BR54: 16868.00949 | BS54: 16905.36968 | BT54: 16942.72987 | BU54: 16980.09005 | BV54: 17017.45024 | BW54: =BW46*BW38*BW$10 -> 17054.81043 | BX54: 17092.17062 | BY54: 17129.53081 | BZ54: 17166.891 | CA54: 17204.25119 | CB54: 17241.61138 | CC54: 17278.97157 | CD54: 17316.33176 | CE54: 17353.69195 | CF54: 17391.05214 | CG54: 17428.41233 | CH54: 17465.77252 | CI54: 17503.13271 | CJ54: 17540.4929 | CK54: 17577.85309 | CL54: 17615.21328 | CM54: 17652.57347 | CN54: 17689.93366 | CO54: 17727.29385 | CP54: 17764.65404 | CQ54: 17802.01423 | CR54: 17839.37442 | CS54: 17876.73461 | CT54: 17914.0948 | CU54: 17951.45499 | CV54: 17988.81518 | CW54: 18026.17537 | CX54: 18063.53556 | CY54: 18100.89575 | CZ54: 18138.25594 | DA54: 18175.61613 | DB54: 18212.97632 | DC54: 18250.33651 | DD54: 18287.69669 | DE54: 18325.05688 | DF54: 18362.41707 | DG54: 18399.77726 | DH54: 18437.13745 | DI54: 18474.49764 | DJ54: 18511.85783 | DK54: 18549.21802 | DL54: 18586.57821 | DM54: 18623.9384 | DN54: 18661.29859 | DO54: 18698.65878 | DP54: 18736.01897 | DQ54: 0 | DR54: 0 | DS54: 0 | DT54: 0 | DU54: 0 | DV54: 0 | DW54: 0 | DX54: 0 | DY54: 0 | DZ54: 0 | EA54: 0 | EB54: 0 | EC54: 0 | ED54: 0 | EE54: 0 | EF54: 0 | EG54: 0 | EH54: 0 | EI54: =EI46*EI38*EI$10 -> 0 | EJ54: 0 | EK54: 0 | EL54: 0 | EM54: 0 | EN54: 0 | EO54: 0 | EP54: 0 | EQ54: 0 | ER54: 0 | ES54: 0 | ET54: 0 | EU54: 0 | EV54: 0 | EW54: 0 | EX54: 0 | EY54: 0 | EZ54: 0 | FA54: 0 | FB54: 0 | FC54: 0 | FD54: 0 | FE54: 0 | FF54: 0 | FG54: 0 | FH54: 0 | FI54: 0 | FJ54: 0 | FK54: 0 | FL54: 0 | FM54: 0 | FN54: 0 | FO54: 0 | FP54: 0
C55: O&M Agreement - Corrective | E55: $ | F55: =Inputs!$G$32 -> 10000 | J55: =J47*J39*J$10 -> 0 | K55: 0 | L55: 0 | M55: 0 | N55: 0 | O55: 0 | P55: 0 | Q55: 0 | R55: 0 | S55: 0 | T55: 0 | U55: 7518.680095 | V55: 7537.36019 | W55: 7556.040285 | X55: 7574.720379 | Y55: 7593.400474 | Z55: 7612.080569 | AA55: 7630.760664 | AB55: 7649.440759 | AC55: 7668.120854 | AD55: 7686.800949 | AE55: 7705.481043 | AF55: 7724.161138 | AG55: 7742.841233 | AH55: 7761.521328 | AI55: 7780.201423 | AJ55: 7798.881518 | AK55: 7817.561613 | AL55: 7836.241707 | AM55: 7854.921802 | AN55: 7873.601897 | AO55: 7892.281992 | AP55: 7910.962087 | AQ55: 7929.642182 | AR55: 7948.322277 | AS55: 7967.002371 | AT55: 7985.682466 | AU55: 8004.362561 | AV55: 8023.042656 | AW55: 8041.722751 | AX55: 8060.402846 | AY55: 8079.082941 | AZ55: 8097.763035 | BA55: 8116.44313 | BB55: 8135.123225 | BC55: 8153.80332 | BD55: 8172.483415 | BE55: 8191.16351 | BF55: 8209.843605 | BG55: 8228.523699 | BH55: 8247.203794 | BI55: 8265.883889 | BJ55: 8284.563984 | BK55: 8303.244079 | BL55: 8321.924174 | BM55: 8340.604269 | BN55: 8359.284363 | BO55: 8377.964458 | BP55: 8396.644553 | BQ55: 8415.324648 | BR55: 8434.004743 | BS55: 8452.684838 | BT55: 8471.364933 | BU55: 8490.045027 | BV55: 8508.725122 | BW55: 8527.405217 | BX55: 8546.085312 | BY55: 8564.765407 | BZ55: 8583.445502 | CA55: 8602.125597 | CB55: 8620.805691 | CC55: 8639.485786 | CD55: 8658.165881 | CE55: 8676.845976 | CF55: 8695.526071 | CG55: 8714.206166 | CH55: 8732.886261 | CI55: 8751.566355 | CJ55: 8770.24645 | CK55: 8788.926545 | CL55: 8807.60664 | CM55: 8826.286735 | CN55: 8844.96683 | CO55: 8863.646925 | CP55: 8882.327019 | CQ55: 8901.007114 | CR55: 8919.687209 | CS55: 8938.367304 | CT55: 8957.047399 | CU55: 8975.727494 | CV55: 8994.407589 | CW55: 9013.087683 | CX55: 9031.767778 | CY55: 9050.447873 | CZ55: 9069.127968 | DA55: 9087.808063 | DB55: 9106.488158 | DC55: 9125.168253 | DD55: 9143.848347 | DE55: 9162.528442 | DF55: 9181.208537 | DG55: 9199.888632 | DH55: 9218.568727 | DI55: 9237.248822 | DJ55: 9255.928917 | DK55: 9274.609011 | DL55: 9293.289106 | DM55: 9311.969201 | DN55: 9330.649296 | DO55: 9349.329391 | DP55: 9368.009486 | DQ55: 0 | DR55: 0 | DS55: 0 | DT55: 0 | DU55: 0 | DV55: 0 | DW55: 0 | DX55: 0 | DY55: 0 | DZ55: 0 | EA55: 0 | EB55: 0 | EC55: 0 | ED55: 0 | EE55: 0 | EF55: 0 | EG55: 0 | EH55: 0 | EI55: 0 | EJ55: 0 | EK55: 0 | EL55: 0 | EM55: 0 | EN55: 0 | EO55: 0 | EP55: 0 | EQ55: 0 | ER55: 0 | ES55: 0 | ET55: 0 | EU55: 0 | EV55: 0 | EW55: 0 | EX55: 0 | EY55: 0 | EZ55: 0 | FA55: 0 | FB55: 0 | FC55: 0 | FD55: 0 | FE55: 0 | FF55: 0 | FG55: 0 | FH55: 0 | FI55: 0 | FJ55: 0 | FK55: 0 | FL55: 0 | FM55: 0 | FN55: 0 | FO55: 0 | FP55: 0
C56: Management Fee | E56: $ | F56: =Inputs!$G$32 -> 10000 | J56: 0 | K56: 0 | L56: 0 | M56: 0 | N56: 0 | O56: 0 | P56: 0 | Q56: 0 | R56: 0 | S56: 0 | T56: 0 | U56: 5012.453397 | V56: 5024.906793 | W56: 5037.36019 | X56: 5049.813586 | Y56: 5062.266983 | Z56: 5074.720379 | AA56: 5087.173776 | AB56: 5099.627173 | AC56: 5112.080569 | AD56: 5124.533966 | AE56: 5136.987362 | AF56: 5149.440759 | AG56: 5161.894155 | AH56: 5174.347552 | AI56: 5186.800949 | AJ56: 5199.254345 | AK56: 5211.707742 | AL56: 5224.161138 | AM56: 5236.614535 | AN56: 5249.067931 | AO56: 5261.521328 | AP56: 5273.974725 | AQ56: 5286.428121 | AR56: 5298.881518 | AS56: 5311.334914 | AT56: 5323.788311 | AU56: 5336.241707 | AV56: 5348.695104 | AW56: 5361.148501 | AX56: 5373.601897 | AY56: 5386.055294 | AZ56: 5398.50869 | BA56: 5410.962087 | BB56: 5423.415483 | BC56: 5435.86888 | BD56: 5448.322277 | BE56: 5460.775673 | BF56: 5473.22907 | BG56: 5485.682466 | BH56: 5498.135863 | BI56: 5510.589259 | BJ56: 5523.042656 | BK56: 5535.496053 | BL56: 5547.949449 | BM56: 5560.402846 | BN56: 5572.856242 | BO56: 5585.309639 | BP56: 5597.763035 | BQ56: 5610.216432 | BR56: 5622.669829 | BS56: 5635.123225 | BT56: 5647.576622 | BU56: 5660.030018 | BV56: 5672.483415 | BW56: 5684.936811 | BX56: 5697.390208 | BY56: 5709.843605 | BZ56: 5722.297001 | CA56: 5734.750398 | CB56: 5747.203794 | CC56: 5759.657191 | CD56: 5772.110587 | CE56: 5784.563984 | CF56: 5797.017381 | CG56: 5809.470777 | CH56: 5821.924174 | CI56: 5834.37757 | CJ56: 5846.830967 | CK56: 5859.284363 | CL56: 5871.73776 | CM56: 5884.191157 | CN56: 5896.644553 | CO56: 5909.09795 | CP56: 5921.551346 | CQ56: 5934.004743 | CR56: 5946.458139 | CS56: 5958.911536 | CT56: 5971.364933 | CU56: 5983.818329 | CV56: 5996.271726 | CW56: 6008.725122 | CX56: 6021.178519 | CY56: 6033.631915 | CZ56: 6046.085312 | DA56: 6058.538709 | DB56: 6070.992105 | DC56: 6083.445502 | DD56: 6095.898898 | DE56: 6108.352295 | DF56: 6120.805691 | DG56: 6133.259088 | DH56: 6145.712485 | DI56: 6158.165881 | DJ56: 6170.619278 | DK56: 6183.072674 | DL56: 6195.526071 | DM56: 6207.979467 | DN56: 6220.432864 | DO56: 6232.886261 | DP56: 6245.339657 | DQ56: 0 | DR56: 0 | DS56: 0 | DT56: 0 | DU56: 0 | DV56: 0 | DW56: 0 | DX56: 0 | DY56: 0 | DZ56: 0 | EA56: 0 | EB56: 0 | EC56: 0 | ED56: 0 | EE56: 0 | EF56: 0 | EG56: 0 | EH56: 0 | EI56: 0 | EJ56: 0 | EK56: 0 | EL56: 0 | EM56: 0 | EN56: 0 | EO56: 0 | EP56: 0 | EQ56: 0 | ER56: 0 | ES56: 0 | ET56: 0 | EU56: 0 | EV56: 0 | EW56: 0 | EX56: 0 | EY56: 0 | EZ56: 0 | FA56: 0 | FB56: 0 | FC56: 0 | FD56: 0 | FE56: 0 | FF56: 0 | FG56: 0 | FH56: 0 | FI56: 0 | FJ56: 0 | FK56: 0 | FL56: 0 | FM56: 0 | FN56: 0 | FO56: 0 | FP56: 0
C57: Insurance | E57: $ | F57: =Inputs!$G$32 -> 10000 | J57: 0 | K57: 0 | L57: 0 | M57: 0 | N57: 0 | O57: 0 | P57: 0 | Q57: 0 | R57: 0 | S57: 0 | T57: 0 | U57: 14000 | V57: 14000 | W57: 14000 | X57: 14000 | Y57: 14000 | Z57: 14000 | AA57: 14000 | AB57: 14000 | AC57: 14000 | AD57: 14000 | AE57: 14000 | AF57: 14000 | AG57: 14000 | AH57: 14000 | AI57: 14000 | AJ57: 14000 | AK57: 14000 | AL57: 14000 | AM57: 14000 | AN57: 14000 | AO57: 14000 | AP57: 14000 | AQ57: 14000 | AR57: 14000 | AS57: 14000 | AT57: 14000 | AU57: 14000 | AV57: 14000 | AW57: 14000 | AX57: 14000 | AY57: 14000 | AZ57: 14000 | BA57: 14000 | BB57: 14000 | BC57: 14000 | BD57: 14000 | BE57: 14000 | BF57: 14000 | BG57: 14000 | BH57: 14000 | BI57: 14000 | BJ57: 14000 | BK57: 14000 | BL57: 14000 | BM57: 14000 | BN57: 14000 | BO57: 14000 | BP57: 14000 | BQ57: 14000 | BR57: 14000 | BS57: 14000 | BT57: 14000 | BU57: 14000 | BV57: 14000 | BW57: 14000 | BX57: 14000 | BY57: 14000 | BZ57: 14000 | CA57: 14000 | CB57: 14000 | CC57: 14000 | CD57: 14000 | CE57: 14000 | CF57: 14000 | CG57: 14000 | CH57: 14000 | CI57: 14000 | CJ57: 14000 | CK57: 14000 | CL57: 14000 | CM57: 14000 | CN57: 14000 | CO57: 14000 | CP57: 14000 | CQ57: 14000 | CR57: 14000 | CS57: 14000 | CT57: 14000 | CU57: 14000 | CV57: 14000 | CW57: 14000 | CX57: 14000 | CY57: 14000 | CZ57: 14000 | DA57: 14000 | DB57: 14000 | DC57: 14000 | DD57: 14000 | DE57: 14000 | DF57: 14000 | DG57: 14000 | DH57: 14000 | DI57: 14000 | DJ57: 14000 | DK57: 14000 | DL57: 14000 | DM57: 14000 | DN57: 14000 | DO57: 14000 | DP57: 14000 | DQ57: 0 | DR57: 0 | DS57: 0 | DT57: 0 | DU57: 0 | DV57: 0 | DW57: 0 | DX57: 0 | DY57: 0 | DZ57: 0 | EA57: 0 | EB57: 0 | EC57: 0 | ED57: 0 | EE57: 0 | EF57: 0 | EG57: 0 | EH57: =EH49*EH41*EH$10 -> 0 | EI57: 0 | EJ57: 0 | EK57: 0 | EL57: 0 | EM57: 0 | EN57: 0 | EO57: 0 | EP57: 0 | EQ57: 0 | ER57: 0 | ES57: 0 | ET57: 0 | EU57: 0 | EV57: 0 | EW57: 0 | EX57: 0 | EY57: 0 | EZ57: 0 | FA57: 0 | FB57: 0 | FC57: 0 | FD57: 0 | FE57: 0 | FF57: 0 | FG57: 0 | FH57: 0 | FI57: 0 | FJ57: 0 | FK57: 0 | FL57: 0 | FM57: 0 | FN57: 0 | FO57: 0 | FP57: 0
C58: Production Taxes | E58: $ | F58: =Inputs!$G$32 -> 10000 | J58: 0 | K58: 0 | L58: 0 | M58: 0 | N58: 0 | O58: 0 | P58: 0 | Q58: 0 | R58: 0 | S58: 0 | T58: 0 | U58: 0 | V58: 0 | W58: 0 | X58: 0 | Y58: 0 | Z58: 0 | AA58: 0 | AB58: 0 | AC58: 0 | AD58: 0 | AE58: 0 | AF58: 0 | AG58: 0 | AH58: 0 | AI58: 0 | AJ58: 0 | AK58: 0 | AL58: 0 | AM58: 0 | AN58: 0 | AO58: 0 | AP58: 0 | AQ58: 0 | AR58: 0 | AS58: 0 | AT58: 0 | AU58: 0 | AV58: 0 | AW58: 0 | AX58: 0 | AY58: 0 | AZ58: 0 | BA58: 0 | BB58: 0 | BC58: 0 | BD58: 0 | BE58: 0 | BF58: 0 | BG58: 0 | BH58: 0 | BI58: 0 | BJ58: 0 | BK58: 0 | BL58: 0 | BM58: 0 | BN58: 0 | BO58: 0 | BP58: 0 | BQ58: 0 | BR58: =BR50*BR42*BR$10 -> 0 | BS58: 0 | BT58: 0 | BU58: 0 | BV58: 0 | BW58: 0 | BX58: 0 | BY58: 0 | BZ58: 0 | CA58: 0 | CB58: 0 | CC58: 0 | CD58: 0 | CE58: 0 | CF58: 0 | CG58: 0 | CH58: 0 | CI58: 0 | CJ58: 0 | CK58: 0 | CL58: 0 | CM58: 0 | CN58: 0 | CO58: 0 | CP58: 0 | CQ58: 0 | CR58: 0 | CS58: 0 | CT58: 0 | CU58: 0 | CV58: 0 | CW58: 0 | CX58: 0 | CY58: 0 | CZ58: 0 | DA58: 0 | DB58: 0 | DC58: 0 | DD58: 0 | DE58: 0 | DF58: 0 | DG58: 0 | DH58: 0 | DI58: 0 | DJ58: 0 | DK58: 0 | DL58: 0 | DM58: 0 | DN58: 0 | DO58: 0 | DP58: 0 | DQ58: 0 | DR58: 0 | DS58: 0 | DT58: 0 | DU58: 0 | DV58: 0 | DW58: 0 | DX58: 0 | DY58: 0 | DZ58: 0 | EA58: 0 | EB58: 0 | EC58: 0 | ED58: =ED50*ED42*ED$10 -> 0 | EE58: 0 | EF58: 0 | EG58: 0 | EH58: 0 | EI58: 0 | EJ58: 0 | EK58: 0 | EL58: 0 | EM58: 0 | EN58: 0 | EO58: 0 | EP58: 0 | EQ58: 0 | ER58: 0 | ES58: 0 | ET58: 0 | EU58: 0 | EV58: 0 | EW58: 0 | EX58: 0 | EY58: 0 | EZ58: 0 | FA58: 0 | FB58: 0 | FC58: 0 | FD58: 0 | FE58: 0 | FF58: 0 | FG58: 0 | FH58: 0 | FI58: 0 | FJ58: 0 | FK58: 0 | FL58: 0 | FM58: 0 | FN58: 0 | FO58: 0 | FP58: 0
C59: Other Expense | E59: $ | F59: =Inputs!$G$32 -> 10000 | J59: 0 | K59: 0 | L59: 0 | M59: 0 | N59: 0 | O59: 0 | P59: 0 | Q59: 0 | R59: 0 | S59: 0 | T59: 0 | U59: 87500000 | V59: 87500000 | W59: 87500000 | X59: 87500000 | Y59: 87500000 | Z59: =Z51*Z43*Z$10 -> 87500000 | AA59: 87500000 | AB59: 87500000 | AC59: 87500000 | AD59: 87500000 | AE59: 87500000 | AF59: 87500000 | AG59: 87500000 | AH59: 87500000 | AI59: 87500000 | AJ59: 87500000 | AK59: 87500000 | AL59: 87500000 | AM59: 87500000 | AN59: 87500000 | AO59: 87500000 | AP59: 87500000 | AQ59: 87500000 | AR59: 87500000 | AS59: 87500000 | AT59: 87500000 | AU59: 87500000 | AV59: 87500000 | AW59: 87500000 | AX59: 87500000 | AY59: 87500000 | AZ59: 87500000 | BA59: 87500000 | BB59: 87500000 | BC59: 87500000 | BD59: 87500000 | BE59: 87500000 | BF59: 87500000 | BG59: 87500000 | BH59: 87500000 | BI59: 87500000 | BJ59: 87500000 | BK59: 87500000 | BL59: 87500000 | BM59: 87500000 | BN59: 87500000 | BO59: 87500000 | BP59: 87500000 | BQ59: 87500000 | BR59: 87500000 | BS59: 87500000 | BT59: 87500000 | BU59: 87500000 | BV59: 87500000 | BW59: 87500000 | BX59: 87500000 | BY59: 87500000 | BZ59: 87500000 | CA59: 87500000 | CB59: 87500000 | CC59: 87500000 | CD59: 87500000 | CE59: 87500000 | CF59: 87500000 | CG59: 87500000 | CH59: 87500000 | CI59: 87500000 | CJ59: 87500000 | CK59: 87500000 | CL59: 87500000 | CM59: 87500000 | CN59: 87500000 | CO59: 87500000 | CP59: 87500000 | CQ59: 87500000 | CR59: 87500000 | CS59: 87500000 | CT59: 87500000 | CU59: 87500000 | CV59: 87500000 | CW59: 87500000 | CX59: 87500000 | CY59: 87500000 | CZ59: 87500000 | DA59: 87500000 | DB59: 87500000 | DC59: 87500000 | DD59: 87500000 | DE59: 87500000 | DF59: 87500000 | DG59: 87500000 | DH59: 87500000 | DI59: 87500000 | DJ59: 87500000 | DK59: 87500000 | DL59: 87500000 | DM59: 87500000 | DN59: 87500000 | DO59: 87500000 | DP59: 87500000 | DQ59: 0 | DR59: 0 | DS59: 0 | DT59: 0 | DU59: 0 | DV59: 0 | DW59: 0 | DX59: 0 | DY59: 0 | DZ59: 0 | EA59: 0 | EB59: 0 | EC59: 0 | ED59: 0 | EE59: 0 | EF59: 0 | EG59: 0 | EH59: 0 | EI59: 0 | EJ59: 0 | EK59: 0 | EL59: 0 | EM59: 0 | EN59: 0 | EO59: 0 | EP59: 0 | EQ59: 0 | ER59: 0 | ES59: 0 | ET59: 0 | EU59: 0 | EV59: 0 | EW59: 0 | EX59: 0 | EY59: 0 | EZ59: 0 | FA59: 0 | FB59: 0 | FC59: 0 | FD59: 0 | FE59: 0 | FF59: 0 | FG59: 0 | FH59: 0 | FI59: 0 | FJ59: 0 | FK59: 0 | FL59: 0 | FM59: 0 | FN59: 0 | FO59: 0 | FP59: 0
D60: Total Operating Expenses | E60: % | F60: =Inputs!G93 -> 1 | J60: =SUM(J54:J59)*$F$60 -> 0 | K60: =SUM(K54:K59)*$F$60 -> 0 | L60: 0 | M60: 0 | N60: 0 | O60: 0 | P60: 0 | Q60: 0 | R60: 0 | S60: 0 | T60: 0 | U60: 87541568.49 | V60: 87541636.99 | W60: 87541705.48 | X60: 87541773.97 | Y60: 87541842.47 | Z60: 87541910.96 | AA60: 87541979.46 | AB60: 87542047.95 | AC60: 87542116.44 | AD60: 87542184.94 | AE60: 87542253.43 | AF60: 87542321.92 | AG60: 87542390.42 | AH60: 87542458.91 | AI60: 87542527.41 | AJ60: 87542595.9 | AK60: 87542664.39 | AL60: 87542732.89 | AM60: 87542801.38 | AN60: 87542869.87 | AO60: 87542938.37 | AP60: 87543006.86 | AQ60: 87543075.35 | AR60: 87543143.85 | AS60: 87543212.34 | AT60: 87543280.84 | AU60: 87543349.33 | AV60: 87543417.82 | AW60: 87543486.32 | AX60: 87543554.81 | AY60: 87543623.3 | AZ60: 87543691.8 | BA60: 87543760.29 | BB60: 87543828.79 | BC60: 87543897.28 | BD60: 87543965.77 | BE60: 87544034.27 | BF60: 87544102.76 | BG60: 87544171.25 | BH60: 87544239.75 | BI60: 87544308.24 | BJ60: 87544376.73 | BK60: 87544445.23 | BL60: 87544513.72 | BM60: 87544582.22 | BN60: 87544650.71 | BO60: 87544719.2 | BP60: 87544787.7 | BQ60: 87544856.19 | BR60: 87544924.68 | BS60: 87544993.18 | BT60: 87545061.67 | BU60: 87545130.17 | BV60: 87545198.66 | BW60: =SUM(BW54:BW59)*$F$60 -> 87545267.15 | BX60: 87545335.65 | BY60: 87545404.14 | BZ60: 87545472.63 | CA60: 87545541.13 | CB60: 87545609.62 | CC60: 87545678.11 | CD60: 87545746.61 | CE60: 87545815.1 | CF60: 87545883.6 | CG60: 87545952.09 | CH60: 87546020.58 | CI60: 87546089.08 | CJ60: 87546157.57 | CK60: 87546226.06 | CL60: 87546294.56 | CM60: 87546363.05 | CN60: 87546431.55 | CO60: 87546500.04 | CP60: 87546568.53 | CQ60: 87546637.03 | CR60: 87546705.52 | CS60: 87546774.01 | CT60: 87546842.51 | CU60: 87546911 | CV60: 87546979.49 | CW60: 87547047.99 | CX60: 87547116.48 | CY60: 87547184.98 | CZ60: 87547253.47 | DA60: 87547321.96 | DB60: 87547390.46 | DC60: 87547458.95 | DD60: 87547527.44 | DE60: 87547595.94 | DF60: 87547664.43 | DG60: 87547732.92 | DH60: 87547801.42 | DI60: 87547869.91 | DJ60: 87547938.41 | DK60: 87548006.9 | DL60: 87548075.39 | DM60: 87548143.89 | DN60: 87548212.38 | DO60: 87548280.87 | DP60: 87548349.37 | DQ60: 0 | DR60: 0 | DS60: 0 | DT60: 0 | DU60: 0 | DV60: 0 | DW60: 0 | DX60: 0 | DY60: 0 | DZ60: 0 | EA60: 0 | EB60: 0 | EC60: 0 | ED60: 0 | EE60: 0 | EF60: 0 | EG60: 0 | EH60: 0 | EI60: =SUM(EI54:EI59)*$F$60 -> 0 | EJ60: 0 | EK60: 0 | EL60: 0 | EM60: 0 | EN60: 0 | EO60: 0 | EP60: 0 | EQ60: 0 | ER60: 0 | ES60: 0 | ET60: 0 | EU60: 0 | EV60: 0 | EW60: 0 | EX60: 0 | EY60: 0 | EZ60: 0 | FA60: 0 | FB60: 0 | FC60: 0 | FD60: 0 | FE60: 0 | FF60: 0 | FG60: 0 | FH60: 0 | FI60: 0 | FJ60: 0 | FK60: 0 | FL60: 0 | FM60: 0 | FN60: 0 | FO60: 0 | FP60: 0
C62: EBITDA | J62: =J34-J60 -> 0 | K62: =K34-K60 -> 0 | L62: 0 | M62: 0 | N62: 0 | O62: 0 | P62: 0 | Q62: 0 | R62: 0 | S62: 0 | T62: 0 | U62: -87301682.26 | V62: -87309862.3 | W62: -87302416.72 | X62: -87302783.39 | Y62: -87303149.7 | Z62: -87311289.39 | AA62: -87303881.19 | AB62: -87304246.38 | AC62: -87304611.2 | AD62: -87312710.73 | AE62: -87305339.73 | AF62: -87305703.44 | AG62: -87306066.79 | AH62: -87311560.84 | AI62: -87306792.38 | AJ62: -87307154.62 | AK62: -87307516.5 | AL62: -87315536.33 | AM62: -87308239.16 | AN62: -87308599.95 | AO62: -87308960.37 | AP62: -87316940.63 | AQ62: -87309680.12 | AR62: -87310039.45 | AS62: -87310398.41 | AT62: -87318339.32 | AU62: -87311115.26 | AV62: -87311473.14 | AW62: -87311830.67 | AX62: -87317217.54 | AY62: -87312544.63 | AZ62: -87312901.07 | BA62: -87313257.16 | BB62: -87321119.92 | BC62: -87313968.25 | BD62: -87314323.26 | BE62: -87314677.91 | BF62: -87322501.9 | BG62: -87315386.15 | BH62: -87315739.73 | BI62: -87316092.96 | BJ62: -87323878.37 | BK62: -87316798.36 | BL62: -87317150.52 | BM62: -87317502.34 | BN62: -87322784.16 | BO62: -87318204.9 | BP62: -87318555.66 | BQ62: -87318906.06 | BR62: -87326614.87 | BS62: -87319605.82 | BT62: -87319955.17 | BU62: -87320304.17 | BV62: -87327974.97 | BW62: =BW34-BW60 -> -87321001.12 | BX62: -87321349.07 | BY62: -87321696.68 | BZ62: -87329329.66 | CA62: -87322390.85 | CB62: -87322737.41 | CC62: -87323083.63 | CD62: -87328262.48 | CE62: -87323775.02 | CF62: -87324120.2 | CG62: -87324465.04 | CH62: -87332022.93 | CI62: -87325153.67 | CJ62: -87325497.48 | CK62: -87325840.94 | CL62: -87333361.57 | CM62: -87326526.83 | CN62: -87326869.26 | CO62: -87327211.36 | CP62: -87334694.91 | CQ62: -87327894.52 | CR62: -87328235.59 | CS62: -87328576.32 | CT62: -87333654.23 | CU62: -87329256.76 | CV62: -87329596.48 | CW62: -87329935.85 | CX62: -87337345.81 | CY62: -87330613.59 | CZ62: -87330951.96 | DA62: -87331289.99 | DB62: -87338663.42 | DC62: -87331965.04 | DD62: -87332302.06 | DE62: -87332638.75 | DF62: -87339975.84 | DG62: -87333311.12 | DH62: -87333646.81 | DI62: -87333982.16 | DJ62: -87338961.12 | DK62: -87334651.87 | DL62: -87334986.23 | DM62: -87335320.26 | DN62: -87342585.2 | DO62: -87335987.31 | DP62: -87336320.35 | DQ62: 0 | DR62: 0 | DS62: 0 | DT62: 0 | DU62: 0 | DV62: 0 | DW62: 0 | DX62: 0 | DY62: 0 | DZ62: 0 | EA62: 0 | EB62: 0 | EC62: 0 | ED62: 0 | EE62: 0 | EF62: 0 | EG62: 0 | EH62: 0 | EI62: =EI34-EI60 -> 0 | EJ62: 0 | EK62: 0 | EL62: 0 | EM62: 0 | EN62: 0 | EO62: 0 | EP62: 0 | EQ62: 0 | ER62: 0 | ES62: 0 | ET62: 0 | EU62: 0 | EV62: 0 | EW62: 0 | EX62: 0 | EY62: 0 | EZ62: 0 | FA62: 0 | FB62: 0 | FC62: 0 | FD62: 0 | FE62: 0 | FF62: 0 | FG62: 0 | FH62: 0 | FI62: 0 | FJ62: 0 | FK62: 0 | FL62: 0 | FM62: 0 | FN62: 0 | FO62: 0 | FP62: 0
C64: Inverter Replacement Flag | E64: Flag
C65: Inverter Inflation Index | E65: Index
C66: Inverter Cost | E66: $
A68: Capital Expenditures Excluding Financing Expenditures
C70: Development Costs | E70: % p.p.
D71: All-In Development Expenses | E71: % p.p.
D72: Ag Exemption | E72: % p.p.
D73: Real Estate | E73: % p.p.
D74: Title Insurance | E74: % p.p.
D75: Financing Legal | E75: % p.p.
D76: Financing Reports | E76: % p.p.
D77: Financing Admin | E77: % p.p.
D78: Structuring Commitments | E78: % p.p.
D79: Structuring Sponsor Costs | E79: % p.p.
D80: Structuring TE Costs | E80: % p.p.
D81: Hedge and Transmission LC Fees | E81: % p.p.
D82: Misc | E82: % p.p.
D83: Upfront Land Lease Costs | E83: % p.p.
D84: MOMA Fees During Construction | E84: % p.p.
D85: O&M Fees During Construction | E85: % p.p.
D86: Land Lease and Property Tax | E86: % p.p.
D87: Total Development Cost | E87: % p.p.
C89: Construction Costs | E89: % p.p.
D90: All-In Build Costs | E90: % p.p.
D91: Miscelaneous 1 | E91: % p.p.
D92: Miscellaneous 2 | E92: % p.p.
D93: Other Costs | E93: % p.p.
D94: Contingency | E94: % p.p.
D95: Total Construction Costs | E95: % p.p.
C97: Other
D98: Development Fee
D99: Transaction Costs
D100: Total Other Costs
C102: Financing Costs
D103: Agency Fee
D104: IDC
D105: Commitment Fee
D106: Construction Loan Upfront Fee
D107: LC Upfront Fees
D108: LC Ticking Fees
D109: Collar Premium
D110: Construction Loan Counsel
D113: Total Project Costs | E113: % p.p. | F113: =Inputs!G16 -> 11 | J113: =1/$F$113*J2 -> 0.09090909091 | K113: 0.09090909091 | L113: 0.09090909091 | M113: 0.09090909091 | N113: 0.09090909091 | O113: 0.09090909091 | P113: 0.09090909091 | Q113: 0.09090909091 | R113: 0.09090909091 | S113: 0.09090909091 | T113: 0.09090909091 | U113: 0 | V113: 0 | W113: 0 | X113: 0 | Y113: 0 | Z113: 0 | AA113: 0 | AB113: 0 | AC113: 0 | AD113: 0 | AE113: 0 | AF113: 0 | AG113: 0 | AH113: 0 | AI113: 0 | AJ113: 0 | AK113: 0 | AL113: 0 | AM113: 0 | AN113: 0 | AO113: 0 | AP113: =1/$F$113*AP2 -> 0 | AQ113: 0 | AR113: 0 | AS113: 0 | AT113: 0 | AU113: 0 | AV113: 0 | AW113: 0 | AX113: 0 | AY113: 0 | AZ113: 0 | BA113: 0 | BB113: 0 | BC113: 0 | BD113: 0 | BE113: 0 | BF113: 0 | BG113: 0 | BH113: 0 | BI113: 0 | BJ113: 0 | BK113: 0 | BL113: 0 | BM113: 0 | BN113: 0 | BO113: 0 | BP113: 0 | BQ113: 0 | BR113: 0 | BS113: 0 | BT113: 0 | BU113: 0 | BV113: =1/$F$113*BV2 -> 0 | BW113: 0 | BX113: 0 | BY113: 0 | BZ113: 0 | CA113: 0 | CB113: 0 | CC113: 0 | CD113: 0 | CE113: 0 | CF113: 0 | CG113: 0 | CH113: 0 | CI113: 0 | CJ113: 0 | CK113: 0 | CL113: 0 | CM113: 0 | CN113: 0 | CO113: 0 | CP113: 0 | CQ113: 0 | CR113: 0 | CS113: 0 | CT113: 0 | CU113: 0 | CV113: 0 | CW113: 0 | CX113: 0 | CY113: 0 | CZ113: 0 | DA113: 0 | DB113: =1/$F$113*DB2 -> 0 | DC113: 0 | DD113: 0 | DE113: 0 | DF113: 0 | DG113: 0 | DH113: 0 | DI113: 0 | DJ113: 0 | DK113: 0 | DL113: 0 | DM113: 0 | DN113: 0 | DO113: 0 | DP113: 0 | DQ113: 0 | DR113: 0 | DS113: 0 | DT113: 0 | DU113: 0 | DV113: 0 | DW113: 0 | DX113: 0 | DY113: 0 | DZ113: 0 | EA113: 0 | EB113: 0 | EC113: 0 | ED113: 0 | EE113: 0 | EF113: 0 | EG113: 0 | EH113: =1/$F$113*EH2 -> 0 | EI113: 0 | EJ113: 0 | EK113: 0 | EL113: 0 | EM113: 0 | EN113: 0 | EO113: 0 | EP113: 0 | EQ113: 0 | ER113: 0 | ES113: 0 | ET113: 0 | EU113: 0 | EV113: 0 | EW113: 0 | EX113: 0 | EY113: 0 | EZ113: 0 | FA113: 0 | FB113: 0 | FC113: 0 | FD113: 0 | FE113: 0 | FF113: 0 | FG113: 0 | FH113: 0 | FI113: 0 | FJ113: 0 | FK113: 0 | FL113: 0 | FM113: 0 | FN113: 0 | FO113: 0 | FP113: 0
D115: Total Capital Expenditures | E115: $ | F115: =Inputs!G45 -> 10500000 | H115: =SUM(J115:FP115) -> 10500000 | J115: =$F$115*J113 -> 954545.4545 | K115: =$F$115*K113 -> 954545.4545 | L115: 954545.4545 | M115: 954545.4545 | N115: 954545.4545 | O115: 954545.4545 | P115: 954545.4545 | Q115: 954545.4545 | R115: 954545.4545 | S115: 954545.4545 | T115: 954545.4545 | U115: 0 | V115: 0 | W115: 0 | X115: 0 | Y115: 0 | Z115: 0 | AA115: 0 | AB115: 0 | AC115: 0 | AD115: 0 | AE115: 0 | AF115: 0 | AG115: 0 | AH115: 0 | AI115: 0 | AJ115: 0 | AK115: 0 | AL115: 0 | AM115: 0 | AN115: 0 | AO115: 0 | AP115: 0 | AQ115: 0 | AR115: 0 | AS115: 0 | AT115: 0 | AU115: 0 | AV115: 0 | AW115: 0 | AX115: 0 | AY115: 0 | AZ115: 0 | BA115: 0 | BB115: 0 | BC115: 0 | BD115: 0 | BE115: 0 | BF115: 0 | BG115: 0 | BH115: 0 | BI115: 0 | BJ115: 0 | BK115: 0 | BL115: 0 | BM115: 0 | BN115: 0 | BO115: 0 | BP115: 0 | BQ115: 0 | BR115: 0 | BS115: 0 | BT115: 0 | BU115: 0 | BV115: 0 | BW115: =$F$115*BW113 -> 0 | BX115: 0 | BY115: 0 | BZ115: 0 | CA115: 0 | CB115: 0 | CC115: 0 | CD115: 0 | CE115: 0 | CF115: 0 | CG115: 0 | CH115: 0 | CI115: 0 | CJ115: 0 | CK115: 0 | CL115: 0 | CM115: 0 | CN115: 0 | CO115: 0 | CP115: 0 | CQ115: 0 | CR115: 0 | CS115: 0 | CT115: 0 | CU115: 0 | CV115: 0 | CW115: 0 | CX115: 0 | CY115: 0 | CZ115: 0 | DA115: 0 | DB115: 0 | DC115: 0 | DD115: 0 | DE115: 0 | DF115: 0 | DG115: 0 | DH115: 0 | DI115: 0 | DJ115: 0 | DK115: 0 | DL115: 0 | DM115: 0 | DN115: 0 | DO115: 0 | DP115: 0 | DQ115: 0 | DR115: 0 | DS115: 0 | DT115: 0 | DU115: 0 | DV115: 0 | DW115: 0 | DX115: 0 | DY115: 0 | DZ115: 0 | EA115: 0 | EB115: 0 | EC115: 0 | ED115: 0 | EE115: 0 | EF115: 0 | EG115: 0 | EH115: 0 | EI115: =$F$115*EI113 -> 0 | EJ115: 0 | EK115: 0 | EL115: 0 | EM115: 0 | EN115: 0 | EO115: 0 | EP115: 0 | EQ115: 0 | ER115: 0 | ES115: 0 | ET115: 0 | EU115: 0 | EV115: 0 | EW115: 0 | EX115: 0 | EY115: 0 | EZ115: 0 | FA115: 0 | FB115: 0 | FC115: 0 | FD115: 0 | FE115: 0 | FF115: 0 | FG115: 0 | FH115: 0 | FI115: 0 | FJ115: 0 | FK115: 0 | FL115: 0 | FM115: 0 | FN115: 0 | FO115: 0 | FP115: 0
D117: Pre-tax, Pre-Financing Cash Flow | J117: =J62-J115 -> -954545.4545 | K117: -954545.4545 | L117: -954545.4545 | M117: -954545.4545 | N117: -954545.4545 | O117: -954545.4545 | P117: -954545.4545 | Q117: -954545.4545 | R117: -954545.4545 | S117: -954545.4545 | T117: -954545.4545 | U117: -87301682.26 | V117: -87309862.3 | W117: -87302416.72 | X117: -87302783.39 | Y117: -87303149.7 | Z117: -87311289.39 | AA117: -87303881.19 | AB117: -87304246.38 | AC117: -87304611.2 | AD117: -87312710.73 | AE117: -87305339.73 | AF117: -87305703.44 | AG117: -87306066.79 | AH117: -87311560.84 | AI117: -87306792.38 | AJ117: -87307154.62 | AK117: -87307516.5 | AL117: -87315536.33 | AM117: -87308239.16 | AN117: -87308599.95 | AO117: -87308960.37 | AP117: =AP62-AP115 -> -87316940.63 | AQ117: -87309680.12 | AR117: -87310039.45 | AS117: -87310398.41 | AT117: -87318339.32 | AU117: -87311115.26 | AV117: -87311473.14 | AW117: -87311830.67 | AX117: -87317217.54 | AY117: -87312544.63 | AZ117: -87312901.07 | BA117: -87313257.16 | BB117: -87321119.92 | BC117: -87313968.25 | BD117: -87314323.26 | BE117: -87314677.91 | BF117: -87322501.9 | BG117: -87315386.15 | BH117: -87315739.73 | BI117: -87316092.96 | BJ117: -87323878.37 | BK117: -87316798.36 | BL117: -87317150.52 | BM117: -87317502.34 | BN117: -87322784.16 | BO117: -87318204.9 | BP117: -87318555.66 | BQ117: -87318906.06 | BR117: -87326614.87 | BS117: -87319605.82 | BT117: -87319955.17 | BU117: -87320304.17 | BV117: =BV62-BV115 -> -87327974.97 | BW117: -87321001.12 | BX117: -87321349.07 | BY117: -87321696.68 | BZ117: -87329329.66 | CA117: -87322390.85 | CB117: -87322737.41 | CC117: -87323083.63 | CD117: -87328262.48 | CE117: -87323775.02 | CF117: -87324120.2 | CG117: -87324465.04 | CH117: -87332022.93 | CI117: -87325153.67 | CJ117: -87325497.48 | CK117: -87325840.94 | CL117: -87333361.57 | CM117: -87326526.83 | CN117: -87326869.26 | CO117: -87327211.36 | CP117: -87334694.91 | CQ117: -87327894.52 | CR117: -87328235.59 | CS117: -87328576.32 | CT117: -87333654.23 | CU117: -87329256.76 | CV117: -87329596.48 | CW117: -87329935.85 | CX117: -87337345.81 | CY117: -87330613.59 | CZ117: -87330951.96 | DA117: -87331289.99 | DB117: =DB62-DB115 -> -87338663.42 | DC117: -87331965.04 | DD117: -87332302.06 | DE117: -87332638.75 | DF117: -87339975.84 | DG117: -87333311.12 | DH117: -87333646.81 | DI117: -87333982.16 | DJ117: -87338961.12 | DK117: -87334651.87 | DL117: -87334986.23 | DM117: -87335320.26 | DN117: -87342585.2 | DO117: -87335987.31 | DP117: -87336320.35 | DQ117: 0 | DR117: 0 | DS117: 0 | DT117: 0 | DU117: 0 | DV117: 0 | DW117: 0 | DX117: 0 | DY117: 0 | DZ117: 0 | EA117: 0 | EB117: 0 | EC117: 0 | ED117: 0 | EE117: 0 | EF117: 0 | EG117: 0 | EH117: =EH62-EH115 -> 0 | EI117: 0 | EJ117: 0 | EK117: 0 | EL117: 0 | EM117: 0 | EN117: 0 | EO117: 0 | EP117: 0 | EQ117: 0 | ER117: 0 | ES117: 0 | ET117: 0 | EU117: 0 | EV117: 0 | EW117: 0 | EX117: 0 | EY117: 0 | EZ117: 0 | FA117: 0 | FB117: 0 | FC117: 0 | FD117: 0 | FE117: 0 | FF117: 0 | FG117: 0 | FH117: 0 | FI117: 0 | FJ117: 0 | FK117: 0 | FL117: 0 | FM117: 0 | FN117: 0 | FO117: 0 | FP117: 0
D118: Pre-tax IRR | F118: =XIRR(J117:FP117,J5:FP5) -> 
B120: Debt Size from DSCR
C121: Debt Repayment Flag | F121: =Inputs!G18 -> 2020-11-01 | G121: =Inputs!G196 -> 2040-11-01 | H121: =SUM(J121:FP121) -> 152 | J121: =AND(J4>=$F$121,J1<=$G$121)*1 -> 0 | K121: 0 | L121: 0 | M121: 0 | N121: 0 | O121: 0 | P121: 0 | Q121: 0 | R121: 0 | S121: 0 | T121: 0 | U121: 1 | V121: 1 | W121: 1 | X121: 1 | Y121: 1 | Z121: 1 | AA121: 1 | AB121: 1 | AC121: 1 | AD121: 1 | AE121: 1 | AF121: 1 | AG121: 1 | AH121: 1 | AI121: 1 | AJ121: 1 | AK121: 1 | AL121: 1 | AM121: 1 | AN121: 1 | AO121: 1 | AP121: =AND(AP4>=$F$121,AP1<=$G$121)*1 -> 1 | AQ121: 1 | AR121: 1 | AS121: 1 | AT121: 1 | AU121: 1 | AV121: 1 | AW121: 1 | AX121: 1 | AY121: 1 | AZ121: 1 | BA121: 1 | BB121: 1 | BC121: 1 | BD121: 1 | BE121: 1 | BF121: 1 | BG121: 1 | BH121: 1 | BI121: 1 | BJ121: 1 | BK121: 1 | BL121: 1 | BM121: 1 | BN121: 1 | BO121: 1 | BP121: 1 | BQ121: 1 | BR121: 1 | BS121: 1 | BT121: 1 | BU121: 1 | BV121: =AND(BV4>=$F$121,BV1<=$G$121)*1 -> 1 | BW121: 1 | BX121: 1 | BY121: 1 | BZ121: 1 | CA121: 1 | CB121: 1 | CC121: 1 | CD121: 1 | CE121: 1 | CF121: 1 | CG121: 1 | CH121: 1 | CI121: 1 | CJ121: 1 | CK121: 1 | CL121: 1 | CM121: 1 | CN121: 1 | CO121: 1 | CP121: 1 | CQ121: 1 | CR121: 1 | CS121: 1 | CT121: 1 | CU121: 1 | CV121: 1 | CW121: 1 | CX121: 1 | CY121: 1 | CZ121: 1 | DA121: 1 | DB121: =AND(DB4>=$F$121,DB1<=$G$121)*1 -> 1 | DC121: 1 | DD121: 1 | DE121: 1 | DF121: 1 | DG121: 1 | DH121: 1 | DI121: 1 | DJ121: 1 | DK121: 1 | DL121: 1 | DM121: 1 | DN121: 1 | DO121: 1 | DP121: 1 | DQ121: 1 | DR121: 1 | DS121: 1 | DT121: 1 | DU121: 1 | DV121: 1 | DW121: 1 | DX121: 1 | DY121: 1 | DZ121: 1 | EA121: 1 | EB121: 1 | EC121: 1 | ED121: 1 | EE121: 1 | EF121: 1 | EG121: 1 | EH121: =AND(EH4>=$F$121,EH1<=$G$121)*1 -> 1 | EI121: 1 | EJ121: 1 | EK121: 1 | EL121: 1 | EM121: 1 | EN121: 1 | EO121: 1 | EP121: 1 | EQ121: 1 | ER121: 1 | ES121: 1 | ET121: 1 | EU121: 1 | EV121: 1 | EW121: 1 | EX121: 1 | EY121: 1 | EZ121: 1 | FA121: 1 | FB121: 1 | FC121: 1 | FD121: 1 | FE121: 1 | FF121: 1 | FG121: 1 | FH121: 1 | FI121: 1 | FJ121: 1 | FK121: 1 | FL121: 1 | FM121: 1 | FN121: 1 | FO121: 1 | FP121: 1
C122: CFADS over Repayment Period | J122: =J62*J121 -> 0 | K122: 0 | L122: 0 | M122: 0 | N122: 0 | O122: 0 | P122: 0 | Q122: 0 | R122: 0 | S122: 0 | T122: 0 | U122: -87301682.26 | V122: -87309862.3 | W122: -87302416.72 | X122: -87302783.39 | Y122: -87303149.7 | Z122: -87311289.39 | AA122: -87303881.19 | AB122: -87304246.38 | AC122: -87304611.2 | AD122: -87312710.73 | AE122: -87305339.73 | AF122: -87305703.44 | AG122: -87306066.79 | AH122: -87311560.84 | AI122: -87306792.38 | AJ122: -87307154.62 | AK122: -87307516.5 | AL122: -87315536.33 | AM122: -87308239.16 | AN122: -87308599.95 | AO122: -87308960.37 | AP122: =AP62*AP121 -> -87316940.63 | AQ122: -87309680.12 | AR122: -87310039.45 | AS122: -87310398.41 | AT122: -87318339.32 | AU122: -87311115.26 | AV122: -87311473.14 | AW122: -87311830.67 | AX122: -87317217.54 | AY122: -87312544.63 | AZ122: -87312901.07 | BA122: -87313257.16 | BB122: -87321119.92 | BC122: -87313968.25 | BD122: -87314323.26 | BE122: -87314677.91 | BF122: -87322501.9 | BG122: -87315386.15 | BH122: -87315739.73 | BI122: -87316092.96 | BJ122: -87323878.37 | BK122: -87316798.36 | BL122: -87317150.52 | BM122: -87317502.34 | BN122: -87322784.16 | BO122: -87318204.9 | BP122: -87318555.66 | BQ122: -87318906.06 | BR122: -87326614.87 | BS122: -87319605.82 | BT122: -87319955.17 | BU122: -87320304.17 | BV122: =BV62*BV121 -> -87327974.97 | BW122: -87321001.12 | BX122: -87321349.07 | BY122: -87321696.68 | BZ122: -87329329.66 | CA122: -87322390.85 | CB122: -87322737.41 | CC122: -87323083.63 | CD122: -87328262.48 | CE122: -87323775.02 | CF122: -87324120.2 | CG122: -87324465.04 | CH122: -87332022.93 | CI122: -87325153.67 | CJ122: -87325497.48 | CK122: -87325840.94 | CL122: -87333361.57 | CM122: -87326526.83 | CN122: -87326869.26 | CO122: -87327211.36 | CP122: -87334694.91 | CQ122: -87327894.52 | CR122: -87328235.59 | CS122: -87328576.32 | CT122: -87333654.23 | CU122: -87329256.76 | CV122: -87329596.48 | CW122: -87329935.85 | CX122: -87337345.81 | CY122: -87330613.59 | CZ122: -87330951.96 | DA122: -87331289.99 | DB122: =DB62*DB121 -> -87338663.42 | DC122: -87331965.04 | DD122: -87332302.06 | DE122: -87332638.75 | DF122: -87339975.84 | DG122: -87333311.12 | DH122: -87333646.81 | DI122: -87333982.16 | DJ122: -87338961.12 | DK122: -87334651.87 | DL122: -87334986.23 | DM122: -87335320.26 | DN122: -87342585.2 | DO122: -87335987.31 | DP122: -87336320.35 | DQ122: 0 | DR122: 0 | DS122: 0 | DT122: 0 | DU122: 0 | DV122: 0 | DW122: 0 | DX122: 0 | DY122: 0 | DZ122: 0 | EA122: 0 | EB122: 0 | EC122: 0 | ED122: 0 | EE122: 0 | EF122: 0 | EG122: 0 | EH122: =EH62*EH121 -> 0 | EI122: 0 | EJ122: 0 | EK122: 0 | EL122: 0 | EM122: 0 | EN122: 0 | EO122: 0 | EP122: 0 | EQ122: 0 | ER122: 0 | ES122: 0 | ET122: 0 | EU122: 0 | EV122: 0 | EW122: 0 | EX122: 0 | EY122: 0 | EZ122: 0 | FA122: 0 | FB122: 0 | FC122: 0 | FD122: 0 | FE122: 0 | FF122: 0 | FG122: 0 | FH122: 0 | FI122: 0 | FJ122: 0 | FK122: 0 | FL122: 0 | FM122: 0 | FN122: =FN62*FN121 -> 0 | FO122: 0 | FP122: 0
C123: Interest Rate Factor | F123: =Inputs!G192 -> 0.0495 | G123: =F123/G3 -> 0.0165 | I123: 1 | J123: =I123*(1+$G$127*J121) -> 1 | K123: =J123*(1+$G$127*K121) -> 1 | L123: 1 | M123: 1 | N123: 1 | O123: 1 | P123: 1 | Q123: 1 | R123: 1 | S123: 1 | T123: 1 | U123: 1 | V123: 1 | W123: 1 | X123: 1 | Y123: 1 | Z123: 1 | AA123: 1 | AB123: 1 | AC123: 1 | AD123: 1 | AE123: 1 | AF123: 1 | AG123: 1 | AH123: 1 | AI123: 1 | AJ123: 1 | AK123: 1 | AL123: 1 | AM123: 1 | AN123: 1 | AO123: 1 | AP123: 1 | AQ123: 1 | AR123: 1 | AS123: 1 | AT123: 1 | AU123: 1 | AV123: 1 | AW123: 1 | AX123: 1 | AY123: 1 | AZ123: 1 | BA123: 1 | BB123: 1 | BC123: 1 | BD123: 1 | BE123: 1 | BF123: 1 | BG123: 1 | BH123: 1 | BI123: 1 | BJ123: 1 | BK123: 1 | BL123: 1 | BM123: 1 | BN123: 1 | BO123: 1 | BP123: 1 | BQ123: 1 | BR123: 1 | BS123: 1 | BT123: 1 | BU123: 1 | BV123: 1 | BW123: =BV123*(1+$G$127*BW121) -> 1 | BX123: 1 | BY123: 1 | BZ123: 1 | CA123: 1 | CB123: 1 | CC123: 1 | CD123: 1 | CE123: 1 | CF123: 1 | CG123: 1 | CH123: 1 | CI123: 1 | CJ123: 1 | CK123: 1 | CL123: 1 | CM123: 1 | CN123: 1 | CO123: 1 | CP123: 1 | CQ123: 1 | CR123: 1 | CS123: 1 | CT123: 1 | CU123: 1 | CV123: 1 | CW123: 1 | CX123: 1 | CY123: 1 | CZ123: 1 | DA123: 1 | DB123: 1 | DC123: 1 | DD123: 1 | DE123: 1 | DF123: 1 | DG123: 1 | DH123: 1 | DI123: 1 | DJ123: 1 | DK123: 1 | DL123: 1 | DM123: 1 | DN123: 1 | DO123: 1 | DP123: 1 | DQ123: 1 | DR123: 1 | DS123: 1 | DT123: 1 | DU123: 1 | DV123: 1 | DW123: 1 | DX123: 1 | DY123: 1 | DZ123: 1 | EA123: 1 | EB123: 1 | EC123: 1 | ED123: 1 | EE123: 1 | EF123: 1 | EG123: 1 | EH123: 1 | EI123: =EH123*(1+$G$127*EI121) -> 1 | EJ123: 1 | EK123: 1 | EL123: 1 | EM123: 1 | EN123: 1 | EO123: 1 | EP123: 1 | EQ123: 1 | ER123: 1 | ES123: 1 | ET123: 1 | EU123: 1 | EV123: 1 | EW123: 1 | EX123: 1 | EY123: 1 | EZ123: 1 | FA123: 1 | FB123: 1 | FC123: 1 | FD123: 1 | FE123: 1 | FF123: 1 | FG123: 1 | FH123: 1 | FI123: 1 | FJ123: 1 | FK123: 1 | FL123: 1 | FM123: 1 | FN123: 1 | FO123: 1 | FP123: 1
C124: Debt Service at Target DSCR | F124: =Inputs!G187 -> 1.25 | J124: =J122/$F$128*J121 -> 0 | K124: =K122/$F$128*K121 -> 0 | L124: 0 | M124: 0 | N124: 0 | O124: 0 | P124: 0 | Q124: 0 | R124: 0 | S124: 0 | T124: 0 | U124: -158730331.4 | V124: -158745204.2 | W124: -158731666.8 | X124: -158732333.4 | Y124: -158732999.4 | Z124: -158747798.9 | AA124: -158734329.4 | AB124: -158734993.4 | AC124: -158735656.7 | AD124: -158750383.2 | AE124: -158736981.3 | AF124: -158737642.6 | AG124: -158738303.3 | AH124: -158748292.4 | AI124: -158739622.5 | AJ124: -158740281.1 | AK124: -158740939.1 | AL124: -158755520.6 | AM124: -158742253 | AN124: -158742909 | AO124: -158743564.3 | AP124: -158758073.9 | AQ124: -158744872.9 | AR124: -158745526.3 | AS124: -158746178.9 | AT124: -158760616.9 | AU124: -158747482.3 | AV124: -158748133 | AW124: -158748783 | AX124: -158758577.4 | AY124: -158750081.1 | AZ124: -158750729.2 | BA124: -158751376.6 | BB124: -158765672.6 | BC124: -158752669.5 | BD124: -158753315 | BE124: -158753959.8 | BF124: -158768185.3 | BG124: -158755247.5 | BH124: -158755890.4 | BI124: -158756532.7 | BJ124: -158770687.9 | BK124: -158757815.2 | BL124: -158758455.5 | BM124: -158759095.2 | BN124: -158768698.5 | BO124: -158760372.6 | BP124: -158761010.3 | BQ124: -158761647.4 | BR124: -158775663.4 | BS124: -158762919.7 | BT124: -158763554.8 | BU124: -158764189.4 | BV124: -158778136.3 | BW124: =BW122/$F$128*BW121 -> -158765456.6 | BX124: -158766089.2 | BY124: -158766721.2 | BZ124: -158780599.4 | CA124: -158767983.4 | CB124: -158768613.5 | CC124: -158769243 | CD124: -158778659.1 | CE124: -158770500 | CF124: -158771127.6 | CG124: -158771754.6 | CH124: -158785496.2 | CI124: -158773006.7 | CJ124: -158773631.8 | CK124: -158774256.2 | CL124: -158787930.1 | CM124: -158775503.3 | CN124: -158776125.9 | CO124: -158776747.9 | CP124: -158790354.4 | CQ124: -158777990 | CR124: -158778610.2 | CS124: -158779229.7 | CT124: -158788462.2 | CU124: -158780466.8 | CV124: -158781084.5 | CW124: -158781701.6 | CX124: -158795174.2 | CY124: -158782933.8 | CZ124: -158783549 | DA124: -158784163.6 | DB124: -158797569.9 | DC124: -158785391 | DD124: -158786003.7 | DE124: -158786615.9 | DF124: -158799956.1 | DG124: -158787838.4 | DH124: -158788448.7 | DI124: -158789058.5 | DJ124: -158798111.1 | DK124: -158790276.1 | DL124: -158790884.1 | DM124: -158791491.4 | DN124: -158804700.4 | DO124: -158792704.2 | DP124: -158793309.7 | DQ124: 0 | DR124: 0 | DS124: 0 | DT124: 0 | DU124: 0 | DV124: 0 | DW124: 0 | DX124: 0 | DY124: 0 | DZ124: 0 | EA124: 0 | EB124: 0 | EC124: 0 | ED124: 0 | EE124: 0 | EF124: 0 | EG124: 0 | EH124: 0 | EI124: =EI122/$F$128*EI121 -> 0 | EJ124: 0 | EK124: 0 | EL124: 0 | EM124: 0 | EN124: 0 | EO124: 0 | EP124: 0 | EQ124: 0 | ER124: 0 | ES124: 0 | ET124: 0 | EU124: 0 | EV124: 0 | EW124: 0 | EX124: 0 | EY124: 0 | EZ124: 0 | FA124: 0 | FB124: 0 | FC124: 0 | FD124: 0 | FE124: 0 | FF124: 0 | FG124: 0 | FH124: 0 | FI124: 0 | FJ124: 0 | FK124: 0 | FL124: 0 | FM124: 0 | FN124: 0 | FO124: 0 | FP124: 0
C126: PV of CFADS | H126: =SUMPRODUCT(J122:FP122/J123:FP123) -> -8732097925
C127: PV of Debt Service | H127: =SUMPRODUCT(J124:FP124/J123:FP123) -> -1.587654168e+10
C128: Project Debt from Debt to Capital | F128: =Inputs!G188 -> 0.55 | H128: =F128*H143 -> 5775000
C129: Fixed Debt Input | H129: =Inputs!G189 -> 1787000
C131: Permanent Debt Input | F131: =Inputs!G190 -> 2 | G131: TRUE | H131: =CHOOSE(F131,H127,H128,H129)*G131 -> 5775000
C132: ITC | F132: =Inputs!G113 -> 0.26 | G132: =H143 -> 10500000 | H132: =G132*F132 -> 2730000
C133: Tax Equity Funded | F133: =Inputs!G152 -> 1.15 | H133: =H132*F133 -> 3139500
C134: Total Bridge Loan Financing | H134: =H133+H131 -> 8914500
B136: Summary Sources and Uses
C137: Uses of Funds
D138: Capital Expenditures | H138: =H115 -> 10500000
D139: Interest Durning Construction
D140: Fees During Construction
D141: Debt Service Reserve Account
D142: Inverter Replacement Account
D143: Total | H143: =SUM(H138:H142) -> 10500000
C145: Sources of Funds
D146: Bridge Loan | H146: =H134 -> 8914500 | I146: =H146/$H$147 -> 5.622516556
D147: Developer Funding | H147: =H143-H146 -> 1585500 | I147: =H147/$H$147 -> 1
D148: Total | H148: =SUM(H146:H147) -> 10500000
A151: Funding Needs in Partnership
C152: Uses of Funds
D153: Capital Expenditures | J153: =J115 -> 954545.4545 | K153: =K115 -> 954545.4545 | L153: 954545.4545 | M153: 954545.4545 | N153: 954545.4545 | O153: 954545.4545 | P153: 954545.4545 | Q153: 954545.4545 | R153: 954545.4545 | S153: 954545.4545 | T153: 954545.4545 | U153: 0 | V153: 0 | W153: 0 | X153: 0 | Y153: 0 | Z153: 0 | AA153: 0 | AB153: 0 | AC153: 0 | AD153: 0 | AE153: 0 | AF153: 0 | AG153: 0 | AH153: 0 | AI153: 0 | AJ153: 0 | AK153: 0 | AL153: 0 | AM153: 0 | AN153: 0 | AO153: 0 | AP153: 0 | AQ153: 0 | AR153: 0 | AS153: 0 | AT153: 0 | AU153: 0 | AV153: 0 | AW153: 0 | AX153: 0 | AY153: 0 | AZ153: 0 | BA153: 0 | BB153: 0 | BC153: 0 | BD153: 0 | BE153: 0 | BF153: 0 | BG153: 0 | BH153: 0 | BI153: 0 | BJ153: 0 | BK153: 0 | BL153: 0 | BM153: 0 | BN153: 0 | BO153: 0 | BP153: 0 | BQ153: 0 | BR153: 0 | BS153: 0 | BT153: 0 | BU153: 0 | BV153: 0 | BW153: =BW115 -> 0 | BX153: 0 | BY153: 0 | BZ153: 0 | CA153: 0 | CB153: 0 | CC153: 0 | CD153: 0 | CE153: 0 | CF153: 0 | CG153: 0 | CH153: 0 | CI153: 0 | CJ153: 0 | CK153: 0 | CL153: 0 | CM153: 0 | CN153: 0 | CO153: 0 | CP153: 0 | CQ153: 0 | CR153: 0 | CS153: 0 | CT153: 0 | CU153: 0 | CV153: 0 | CW153: 0 | CX153: 0 | CY153: 0 | CZ153: 0 | DA153: 0 | DB153: 0 | DC153: 0 | DD153: 0 | DE153: 0 | DF153: 0 | DG153: 0 | DH153: 0 | DI153: 0 | DJ153: 0 | DK153: 0 | DL153: 0 | DM153: 0 | DN153: 0 | DO153: 0 | DP153: 0 | DQ153: 0 | DR153: 0 | DS153: 0 | DT153: 0 | DU153: 0 | DV153: 0 | DW153: 0 | DX153: 0 | DY153: 0 | DZ153: 0 | EA153: 0 | EB153: 0 | EC153: 0 | ED153: 0 | EE153: 0 | EF153: 0 | EG153: 0 | EH153: 0 | EI153: =EI115 -> 0 | EJ153: 0 | EK153: 0 | EL153: 0 | EM153: 0 | EN153: 0 | EO153: 0 | EP153: 0 | EQ153: 0 | ER153: 0 | ES153: 0 | ET153: 0 | EU153: 0 | EV153: 0 | EW153: 0 | EX153: 0 | EY153: 0 | EZ153: 0 | FA153: 0 | FB153: 0 | FC153: 0 | FD153: 0 | FE153: 0 | FF153: 0 | FG153: 0 | FH153: 0 | FI153: 0 | FJ153: 0 | FK153: 0 | FL153: 0 | FM153: 0 | FN153: 0 | FO153: 0 | FP153: 0
D154: Interest Durning Construction
D155: Fees During Construction
D156: Debt Service Reserve Account
D157: Inverter Replacement Account
D158: Total | J158: =SUM(J153:J157) -> 954545.4545 | K158: =SUM(K153:K157) -> 954545.4545 | L158: 954545.4545 | M158: 954545.4545 | N158: 954545.4545 | O158: 954545.4545 | P158: 954545.4545 | Q158: 954545.4545 | R158: 954545.4545 | S158: 954545.4545 | T158: 954545.4545 | U158: 0 | V158: 0 | W158: 0 | X158: 0 | Y158: 0 | Z158: 0 | AA158: 0 | AB158: 0 | AC158: 0 | AD158: 0 | AE158: 0 | AF158: 0 | AG158: 0 | AH158: 0 | AI158: 0 | AJ158: 0 | AK158: 0 | AL158: 0 | AM158: 0 | AN158: 0 | AO158: 0 | AP158: 0 | AQ158: 0 | AR158: 0 | AS158: 0 | AT158: 0 | AU158: 0 | AV158: 0 | AW158: 0 | AX158: 0 | AY158: 0 | AZ158: 0 | BA158: 0 | BB158: 0 | BC158: 0 | BD158: 0 | BE158: 0 | BF158: 0 | BG158: 0 | BH158: 0 | BI158: 0 | BJ158: 0 | BK158: 0 | BL158: 0 | BM158: 0 | BN158: 0 | BO158: 0 | BP158: 0 | BQ158: 0 | BR158: 0 | BS158: 0 | BT158: 0 | BU158: 0 | BV158: 0 | BW158: =SUM(BW153:BW157) -> 0 | BX158: 0 | BY158: 0 | BZ158: 0 | CA158: 0 | CB158: 0 | CC158: 0 | CD158: 0 | CE158: 0 | CF158: 0 | CG158: 0 | CH158: 0 | CI158: 0 | CJ158: 0 | CK158: 0 | CL158: 0 | CM158: 0 | CN158: 0 | CO158: 0 | CP158: 0 | CQ158: 0 | CR158: 0 | CS158: 0 | CT158: 0 | CU158: 0 | CV158: 0 | CW158: 0 | CX158: 0 | CY158: 0 | CZ158: 0 | DA158: 0 | DB158: 0 | DC158: 0 | DD158: 0 | DE158: 0 | DF158: 0 | DG158: 0 | DH158: 0 | DI158: 0 | DJ158: 0 | DK158: 0 | DL158: 0 | DM158: 0 | DN158: 0 | DO158: 0 | DP158: 0 | DQ158: 0 | DR158: 0 | DS158: 0 | DT158: 0 | DU158: 0 | DV158: 0 | DW158: 0 | DX158: 0 | DY158: 0 | DZ158: 0 | EA158: 0 | EB158: 0 | EC158: 0 | ED158: 0 | EE158: 0 | EF158: 0 | EG158: 0 | EH158: 0 | EI158: =SUM(EI153:EI157) -> 0 | EJ158: 0 | EK158: 0 | EL158: 0 | EM158: 0 | EN158: 0 | EO158: 0 | EP158: 0 | EQ158: 0 | ER158: 0 | ES158: 0 | ET158: 0 | EU158: 0 | EV158: 0 | EW158: 0 | EX158: 0 | EY158: 0 | EZ158: 0 | FA158: 0 | FB158: 0 | FC158: 0 | FD158: 0 | FE158: 0 | FF158: 0 | FG158: 0 | FH158: 0 | FI158: 0 | FJ158: 0 | FK158: 0 | FL158: 0 | FM158: 0 | FN158: 0 | FO158: 0 | FP158: 0
C160: Draws
D161: Debt Issued | H161: =I146 -> 5.622516556 | J161: =$I$146*J158 -> 5366947.622 | K161: =$I$146*K158 -> 5366947.622 | L161: 5366947.622 | M161: 5366947.622 | N161: 5366947.622 | O161: 5366947.622 | P161: 5366947.622 | Q161: 5366947.622 | R161: 5366947.622 | S161: 5366947.622 | T161: 5366947.622 | U161: 0 | V161: 0 | W161: 0 | X161: 0 | Y161: 0 | Z161: 0 | AA161: 0 | AB161: 0 | AC161: 0 | AD161: 0 | AE161: 0 | AF161: 0 | AG161: 0 | AH161: 0 | AI161: 0 | AJ161: 0 | AK161: 0 | AL161: 0 | AM161: 0 | AN161: 0 | AO161: 0 | AP161: 0 | AQ161: 0 | AR161: 0 | AS161: 0 | AT161: 0 | AU161: 0 | AV161: 0 | AW161: 0 | AX161: 0 | AY161: 0 | AZ161: 0 | BA161: 0 | BB161: 0 | BC161: 0 | BD161: 0 | BE161: 0 | BF161: 0 | BG161: 0 | BH161: 0 | BI161: 0 | BJ161: 0 | BK161: 0 | BL161: 0 | BM161: 0 | BN161: 0 | BO161: 0 | BP161: 0 | BQ161: 0 | BR161: 0 | BS161: 0 | BT161: 0 | BU161: 0 | BV161: 0 | BW161: =$I$146*BW158 -> 0 | BX161: 0 | BY161: 0 | BZ161: 0 | CA161: 0 | CB161: 0 | CC161: 0 | CD161: 0 | CE161: 0 | CF161: 0 | CG161: 0 | CH161: 0 | CI161: 0 | CJ161: 0 | CK161: 0 | CL161: 0 | CM161: 0 | CN161: 0 | CO161: 0 | CP161: 0 | CQ161: 0 | CR161: 0 | CS161: 0 | CT161: 0 | CU161: 0 | CV161: 0 | CW161: 0 | CX161: 0 | CY161: 0 | CZ161: 0 | DA161: 0 | DB161: 0 | DC161: 0 | DD161: 0 | DE161: 0 | DF161: 0 | DG161: 0 | DH161: 0 | DI161: 0 | DJ161: 0 | DK161: 0 | DL161: 0 | DM161: 0 | DN161: 0 | DO161: 0 | DP161: 0 | DQ161: 0 | DR161: 0 | DS161: 0 | DT161: 0 | DU161: 0 | DV161: 0 | DW161: 0 | DX161: 0 | DY161: 0 | DZ161: 0 | EA161: 0 | EB161: 0 | EC161: 0 | ED161: 0 | EE161: 0 | EF161: 0 | EG161: 0 | EH161: 0 | EI161: =$I$146*EI158 -> 0 | EJ161: 0 | EK161: 0 | EL161: 0 | EM161: 0 | EN161: 0 | EO161: 0 | EP161: 0 | EQ161: 0 | ER161: 0 | ES161: 0 | ET161: 0 | EU161: 0 | EV161: 0 | EW161: 0 | EX161: 0 | EY161: 0 | EZ161: 0 | FA161: 0 | FB161: 0 | FC161: 0 | FD161: 0 | FE161: 0 | FF161: 0 | FG161: 0 | FH161: 0 | FI161: 0 | FJ161: 0 | FK161: 0 | FL161: 0 | FM161: 0 | FN161: 0 | FO161: 0 | FP161: 0
D162: Equity Issued | J162: =J158-J161 -> -4412402.167 | K162: =K158-K161 -> -4412402.167 | L162: -4412402.167 | M162: -4412402.167 | N162: -4412402.167 | O162: -4412402.167 | P162: -4412402.167 | Q162: -4412402.167 | R162: -4412402.167 | S162: -4412402.167 | T162: -4412402.167 | U162: 0 | V162: 0 | W162: 0 | X162: 0 | Y162: 0 | Z162: 0 | AA162: 0 | AB162: 0 | AC162: 0 | AD162: 0 | AE162: 0 | AF162: 0 | AG162: 0 | AH162: 0 | AI162: 0 | AJ162: 0 | AK162: 0 | AL162: 0 | AM162: 0 | AN162: 0 | AO162: 0 | AP162: 0 | AQ162: 0 | AR162: 0 | AS162: 0 | AT162: 0 | AU162: 0 | AV162: 0 | AW162: 0 | AX162: 0 | AY162: 0 | AZ162: 0 | BA162: 0 | BB162: 0 | BC162: 0 | BD162: 0 | BE162: 0 | BF162: 0 | BG162: 0 | BH162: 0 | BI162: 0 | BJ162: 0 | BK162: 0 | BL162: 0 | BM162: 0 | BN162: 0 | BO162: 0 | BP162: 0 | BQ162: 0 | BR162: 0 | BS162: 0 | BT162: 0 | BU162: 0 | BV162: 0 | BW162: =BW158-BW161 -> 0 | BX162: 0 | BY162: 0 | BZ162: 0 | CA162: 0 | CB162: 0 | CC162: 0 | CD162: 0 | CE162: 0 | CF162: 0 | CG162: 0 | CH162: 0 | CI162: 0 | CJ162: 0 | CK162: 0 | CL162: 0 | CM162: 0 | CN162: 0 | CO162: 0 | CP162: 0 | CQ162: 0 | CR162: 0 | CS162: 0 | CT162: 0 | CU162: 0 | CV162: 0 | CW162: 0 | CX162: 0 | CY162: 0 | CZ162: 0 | DA162: 0 | DB162: 0 | DC162: 0 | DD162: 0 | DE162: 0 | DF162: 0 | DG162: 0 | DH162: 0 | DI162: 0 | DJ162: 0 | DK162: 0 | DL162: 0 | DM162: 0 | DN162: 0 | DO162: 0 | DP162: 0 | DQ162: 0 | DR162: 0 | DS162: 0 | DT162: 0 | DU162: 0 | DV162: 0 | DW162: 0 | DX162: 0 | DY162: 0 | DZ162: 0 | EA162: 0 | EB162: 0 | EC162: 0 | ED162: 0 | EE162: 0 | EF162: 0 | EG162: 0 | EH162: 0 | EI162: =EI158-EI161 -> 0 | EJ162: 0 | EK162: 0 | EL162: 0 | EM162: 0 | EN162: 0 | EO162: 0 | EP162: 0 | EQ162: 0 | ER162: 0 | ES162: 0 | ET162: 0 | EU162: 0 | EV162: 0 | EW162: 0 | EX162: 0 | EY162: 0 | EZ162: 0 | FA162: 0 | FB162: 0 | FC162: 0 | FD162: 0 | FE162: 0 | FF162: 0 | FG162: 0 | FH162: 0 | FI162: 0 | FJ162: 0 | FK162: 0 | FL162: 0 | FM162: 0 | FN162: 0 | FO162: 0 | FP162: 0
D163: Total Sources | J163: =SUM(J161:J162) -> 954545.4545 | K163: =SUM(K161:K162) -> 954545.4545 | L163: 954545.4545 | M163: 954545.4545 | N163: 954545.4545 | O163: 954545.4545 | P163: 954545.4545 | Q163: 954545.4545 | R163: 954545.4545 | S163: 954545.4545 | T163: 954545.4545 | U163: 0 | V163: 0 | W163: 0 | X163: 0 | Y163: 0 | Z163: 0 | AA163: 0 | AB163: 0 | AC163: 0 | AD163: 0 | AE163: 0 | AF163: 0 | AG163: 0 | AH163: 0 | AI163: 0 | AJ163: 0 | AK163: 0 | AL163: 0 | AM163: 0 | AN163: 0 | AO163: 0 | AP163: 0 | AQ163: 0 | AR163: 0 | AS163: 0 | AT163: 0 | AU163: 0 | AV163: 0 | AW163: 0 | AX163: 0 | AY163: 0 | AZ163: 0 | BA163: 0 | BB163: 0 | BC163: 0 | BD163: 0 | BE163: 0 | BF163: 0 | BG163: 0 | BH163: 0 | BI163: 0 | BJ163: 0 | BK163: 0 | BL163: 0 | BM163: 0 | BN163: 0 | BO163: 0 | BP163: 0 | BQ163: 0 | BR163: 0 | BS163: 0 | BT163: 0 | BU163: 0 | BV163: 0 | BW163: =SUM(BW161:BW162) -> 0 | BX163: 0 | BY163: 0 | BZ163: 0 | CA163: 0 | CB163: 0 | CC163: 0 | CD163: 0 | CE163: 0 | CF163: 0 | CG163: 0 | CH163: 0 | CI163: 0 | CJ163: 0 | CK163: 0 | CL163: 0 | CM163: 0 | CN163: 0 | CO163: 0 | CP163: 0 | CQ163: 0 | CR163: 0 | CS163: 0 | CT163: 0 | CU163: 0 | CV163: 0 | CW163: 0 | CX163: 0 | CY163: 0 | CZ163: 0 | DA163: 0 | DB163: 0 | DC163: 0 | DD163: 0 | DE163: 0 | DF163: 0 | DG163: 0 | DH163: 0 | DI163: 0 | DJ163: 0 | DK163: 0 | DL163: 0 | DM163: 0 | DN163: 0 | DO163: 0 | DP163: 0 | DQ163: 0 | DR163: 0 | DS163: 0 | DT163: 0 | DU163: 0 | DV163: 0 | DW163: 0 | DX163: 0 | DY163: 0 | DZ163: 0 | EA163: 0 | EB163: 0 | EC163: 0 | ED163: 0 | EE163: 0 | EF163: 0 | EG163: 0 | EH163: 0 | EI163: =SUM(EI161:EI162) -> 0 | EJ163: 0 | EK163: 0 | EL163: 0 | EM163: 0 | EN163: 0 | EO163: 0 | EP163: 0 | EQ163: 0 | ER163: 0 | ES163: 0 | ET163: 0 | EU163: 0 | EV163: 0 | EW163: 0 | EX163: 0 | EY163: 0 | EZ163: 0 | FA163: 0 | FB163: 0 | FC163: 0 | FD163: 0 | FE163: 0 | FF163: 0 | FG163: 0 | FH163: 0 | FI163: 0 | FJ163: 0 | FK163: 0 | FL163: 0 | FM163: 0 | FN163: 0 | FO163: 0 | FP163: 0
C165: Take Out Date for Bride Loan | F165: 2020-04-01 | H165: =SUM(J165:FP165) -> 0 | J165: =(J4=$F$169)*1 -> 0 | K165: 0 | L165: 0 | M165: 0 | N165: 0 | O165: 0 | P165: 0 | Q165: 0 | R165: 0 | S165: 0 | T165: 0 | U165: 0 | V165: 0 | W165: 0 | X165: 0 | Y165: 0 | Z165: 0 | AA165: 0 | AB165: 0 | AC165: 0 | AD165: 0 | AE165: 0 | AF165: 0 | AG165: 0 | AH165: 0 | AI165: 0 | AJ165: 0 | AK165: 0 | AL165: 0 | AM165: 0 | AN165: 0 | AO165: 0 | AP165: =(AP4=$F$169)*1 -> 0 | AQ165: 0 | AR165: 0 | AS165: 0 | AT165: 0 | AU165: 0 | AV165: 0 | AW165: 0 | AX165: 0 | AY165: 0 | AZ165: 0 | BA165: 0 | BB165: 0 | BC165: 0 | BD165: 0 | BE165: 0 | BF165: 0 | BG165: 0 | BH165: 0 | BI165: 0 | BJ165: 0 | BK165: 0 | BL165: 0 | BM165: 0 | BN165: 0 | BO165: 0 | BP165: 0 | BQ165: 0 | BR165: 0 | BS165: 0 | BT165: 0 | BU165: 0 | BV165: =(BV4=$F$169)*1 -> 0 | BW165: 0 | BX165: 0 | BY165: 0 | BZ165: 0 | CA165: 0 | CB165: 0 | CC165: 0 | CD165: 0 | CE165: 0 | CF165: 0 | CG165: 0 | CH165: 0 | CI165: 0 | CJ165: 0 | CK165: 0 | CL165: 0 | CM165: 0 | CN165: 0 | CO165: 0 | CP165: 0 | CQ165: 0 | CR165: 0 | CS165: 0 | CT165: 0 | CU165: 0 | CV165: 0 | CW165: 0 | CX165: 0 | CY165: 0 | CZ165: 0 | DA165: 0 | DB165: =(DB4=$F$169)*1 -> 0 | DC165: 0 | DD165: 0 | DE165: 0 | DF165: 0 | DG165: 0 | DH165: 0 | DI165: 0 | DJ165: 0 | DK165: 0 | DL165: 0 | DM165: 0 | DN165: 0 | DO165: 0 | DP165: 0 | DQ165: 0 | DR165: 0 | DS165: 0 | DT165: 0 | DU165: 0 | DV165: 0 | DW165: 0 | DX165: 0 | DY165: 0 | DZ165: 0 | EA165: 0 | EB165: 0 | EC165: 0 | ED165: 0 | EE165: 0 | EF165: 0 | EG165: 0 | EH165: =(EH4=$F$169)*1 -> 0 | EI165: 0 | EJ165: 0 | EK165: 0 | EL165: 0 | EM165: 0 | EN165: 0 | EO165: 0 | EP165: 0 | EQ165: 0 | ER165: 0 | ES165: 0 | ET165: 0 | EU165: 0 | EV165: 0 | EW165: 0 | EX165: 0 | EY165: 0 | EZ165: 0 | FA165: 0 | FB165: 0 | FC165: 0 | FD165: 0 | FE165: 0 | FF165: 0 | FG165: 0 | FH165: 0 | FI165: 0 | FJ165: 0 | FK165: 0 | FL165: 0 | FM165: 0 | FN165: 0 | FO165: 0 | FP165: 0
C166: Bridge Loan Balance
D167: Opening Balace | J167: =I172 -> 0 | K167: =J172 -> 5366947.622 | L167: 10733895.24 | M167: 16100842.87 | N167: 21467790.49 | O167: 26834738.11 | P167: 32201685.73 | Q167: 37568633.35 | R167: 42935580.98 | S167: 48302528.6 | T167: 53669476.22 | U167: 59036423.84 | V167: 59036423.84 | W167: 59036423.84 | X167: 59036423.84 | Y167: 59036423.84 | Z167: 59036423.84 | AA167: 59036423.84 | AB167: 59036423.84 | AC167: 59036423.84 | AD167: 59036423.84 | AE167: 59036423.84 | AF167: 59036423.84 | AG167: 59036423.84 | AH167: 59036423.84 | AI167: 59036423.84 | AJ167: 59036423.84 | AK167: 59036423.84 | AL167: 59036423.84 | AM167: 59036423.84 | AN167: 59036423.84 | AO167: 59036423.84 | AP167: 59036423.84 | AQ167: 59036423.84 | AR167: 59036423.84 | AS167: 59036423.84 | AT167: 59036423.84 | AU167: 59036423.84 | AV167: 59036423.84 | AW167: 59036423.84 | AX167: 59036423.84 | AY167: 59036423.84 | AZ167: 59036423.84 | BA167: 59036423.84 | BB167: 59036423.84 | BC167: 59036423.84 | BD167: 59036423.84 | BE167: 59036423.84 | BF167: 59036423.84 | BG167: 59036423.84 | BH167: 59036423.84 | BI167: 59036423.84 | BJ167: 59036423.84 | BK167: 59036423.84 | BL167: 59036423.84 | BM167: 59036423.84 | BN167: 59036423.84 | BO167: 59036423.84 | BP167: 59036423.84 | BQ167: 59036423.84 | BR167: 59036423.84 | BS167: 59036423.84 | BT167: 59036423.84 | BU167: 59036423.84 | BV167: 59036423.84 | BW167: =BV172 -> 59036423.84 | BX167: 59036423.84 | BY167: 59036423.84 | BZ167: 59036423.84 | CA167: 59036423.84 | CB167: 59036423.84 | CC167: 59036423.84 | CD167: 59036423.84 | CE167: 59036423.84 | CF167: 59036423.84 | CG167: 59036423.84 | CH167: 59036423.84 | CI167: 59036423.84 | CJ167: 59036423.84 | CK167: 59036423.84 | CL167: 59036423.84 | CM167: 59036423.84 | CN167: 59036423.84 | CO167: 59036423.84 | CP167: 59036423.84 | CQ167: 59036423.84 | CR167: 59036423.84 | CS167: 59036423.84 | CT167: 59036423.84 | CU167: 59036423.84 | CV167: 59036423.84 | CW167: 59036423.84 | CX167: 59036423.84 | CY167: 59036423.84 | CZ167: 59036423.84 | DA167: 59036423.84 | DB167: 59036423.84 | DC167: 59036423.84 | DD167: 59036423.84 | DE167: 59036423.84 | DF167: 59036423.84 | DG167: 59036423.84 | DH167: 59036423.84 | DI167: 59036423.84 | DJ167: 59036423.84 | DK167: 59036423.84 | DL167: 59036423.84 | DM167: 59036423.84 | DN167: 59036423.84 | DO167: 59036423.84 | DP167: 59036423.84 | DQ167: 59036423.84 | DR167: 59036423.84 | DS167: 59036423.84 | DT167: 59036423.84 | DU167: 59036423.84 | DV167: 59036423.84 | DW167: 59036423.84 | DX167: 59036423.84 | DY167: 59036423.84 | DZ167: 59036423.84 | EA167: 59036423.84 | EB167: 59036423.84 | EC167: 59036423.84 | ED167: 59036423.84 | EE167: 59036423.84 | EF167: 59036423.84 | EG167: 59036423.84 | EH167: 59036423.84 | EI167: =EH172 -> 59036423.84 | EJ167: 59036423.84 | EK167: 59036423.84 | EL167: 59036423.84 | EM167: 59036423.84 | EN167: 59036423.84 | EO167: 59036423.84 | EP167: 59036423.84 | EQ167: 59036423.84 | ER167: 59036423.84 | ES167: 59036423.84 | ET167: 59036423.84 | EU167: 59036423.84 | EV167: 59036423.84 | EW167: 59036423.84 | EX167: 59036423.84 | EY167: 59036423.84 | EZ167: 59036423.84 | FA167: 59036423.84 | FB167: 59036423.84 | FC167: 59036423.84 | FD167: 59036423.84 | FE167: 59036423.84 | FF167: 59036423.84 | FG167: 59036423.84 | FH167: 59036423.84 | FI167: 59036423.84 | FJ167: 59036423.84 | FK167: 59036423.84 | FL167: 59036423.84 | FM167: 59036423.84 | FN167: 59036423.84 | FO167: 59036423.84 | FP167: 59036423.84
D168: Add: Capitalised Interest | F168: FALSE | J168: =J174*$F$172 -> 0 | K168: =K174*$F$172 -> 0 | L168: 0 | M168: 0 | N168: 0 | O168: 0 | P168: 0 | Q168: 0 | R168: 0 | S168: 0 | T168: 0 | U168: 0 | V168: 0 | W168: 0 | X168: 0 | Y168: 0 | Z168: 0 | AA168: 0 | AB168: 0 | AC168: 0 | AD168: 0 | AE168: 0 | AF168: 0 | AG168: 0 | AH168: 0 | AI168: 0 | AJ168: 0 | AK168: 0 | AL168: 0 | AM168: 0 | AN168: 0 | AO168: 0 | AP168: 0 | AQ168: 0 | AR168: 0 | AS168: 0 | AT168: 0 | AU168: 0 | AV168: 0 | AW168: 0 | AX168: 0 | AY168: 0 | AZ168: 0 | BA168: 0 | BB168: 0 | BC168: 0 | BD168: 0 | BE168: 0 | BF168: 0 | BG168: 0 | BH168: 0 | BI168: 0 | BJ168: 0 | BK168: 0 | BL168: 0 | BM168: 0 | BN168: 0 | BO168: 0 | BP168: 0 | BQ168: 0 | BR168: 0 | BS168: 0 | BT168: 0 | BU168: 0 | BV168: 0 | BW168: =BW174*$F$172 -> 0 | BX168: 0 | BY168: 0 | BZ168: 0 | CA168: 0 | CB168: 0 | CC168: 0 | CD168: 0 | CE168: 0 | CF168: 0 | CG168: 0 | CH168: 0 | CI168: 0 | CJ168: 0 | CK168: 0 | CL168: 0 | CM168: 0 | CN168: 0 | CO168: 0 | CP168: 0 | CQ168: 0 | CR168: 0 | CS168: 0 | CT168: 0 | CU168: 0 | CV168: 0 | CW168: 0 | CX168: 0 | CY168: 0 | CZ168: 0 | DA168: 0 | DB168: 0 | DC168: 0 | DD168: 0 | DE168: 0 | DF168: 0 | DG168: 0 | DH168: 0 | DI168: 0 | DJ168: 0 | DK168: 0 | DL168: 0 | DM168: 0 | DN168: 0 | DO168: 0 | DP168: 0 | DQ168: 0 | DR168: 0 | DS168: 0 | DT168: 0 | DU168: 0 | DV168: 0 | DW168: 0 | DX168: 0 | DY168: 0 | DZ168: 0 | EA168: 0 | EB168: 0 | EC168: 0 | ED168: 0 | EE168: 0 | EF168: 0 | EG168: 0 | EH168: 0 | EI168: =EI174*$F$172 -> 0 | EJ168: 0 | EK168: 0 | EL168: 0 | EM168: 0 | EN168: 0 | EO168: 0 | EP168: 0 | EQ168: 0 | ER168: 0 | ES168: 0 | ET168: 0 | EU168: 0 | EV168: 0 | EW168: 0 | EX168: 0 | EY168: 0 | EZ168: 0 | FA168: 0 | FB168: 0 | FC168: 0 | FD168: 0 | FE168: 0 | FF168: 0 | FG168: 0 | FH168: 0 | FI168: 0 | FJ168: 0 | FK168: 0 | FL168: 0 | FM168: 0 | FN168: 0 | FO168: 0 | FP168: 0
D169: Add: Draws | J169: =J161 -> 5366947.622 | K169: =K161 -> 5366947.622 | L169: 5366947.622 | M169: 5366947.622 | N169: 5366947.622 | O169: 5366947.622 | P169: 5366947.622 | Q169: 5366947.622 | R169: 5366947.622 | S169: 5366947.622 | T169: 5366947.622 | U169: 0 | V169: 0 | W169: 0 | X169: 0 | Y169: 0 | Z169: 0 | AA169: 0 | AB169: 0 | AC169: 0 | AD169: 0 | AE169: 0 | AF169: 0 | AG169: 0 | AH169: 0 | AI169: 0 | AJ169: 0 | AK169: 0 | AL169: 0 | AM169: 0 | AN169: 0 | AO169: 0 | AP169: 0 | AQ169: 0 | AR169: 0 | AS169: 0 | AT169: 0 | AU169: 0 | AV169: 0 | AW169: 0 | AX169: 0 | AY169: 0 | AZ169: 0 | BA169: 0 | BB169: 0 | BC169: 0 | BD169: 0 | BE169: 0 | BF169: 0 | BG169: 0 | BH169: 0 | BI169: 0 | BJ169: 0 | BK169: 0 | BL169: 0 | BM169: 0 | BN169: 0 | BO169: 0 | BP169: 0 | BQ169: 0 | BR169: 0 | BS169: 0 | BT169: 0 | BU169: 0 | BV169: 0 | BW169: =BW161 -> 0 | BX169: 0 | BY169: 0 | BZ169: 0 | CA169: 0 | CB169: 0 | CC169: 0 | CD169: 0 | CE169: 0 | CF169: 0 | CG169: 0 | CH169: 0 | CI169: 0 | CJ169: 0 | CK169: 0 | CL169: 0 | CM169: 0 | CN169: 0 | CO169: 0 | CP169: 0 | CQ169: 0 | CR169: 0 | CS169: 0 | CT169: 0 | CU169: 0 | CV169: 0 | CW169: 0 | CX169: 0 | CY169: 0 | CZ169: 0 | DA169: 0 | DB169: 0 | DC169: 0 | DD169: 0 | DE169: 0 | DF169: 0 | DG169: 0 | DH169: 0 | DI169: 0 | DJ169: 0 | DK169: 0 | DL169: 0 | DM169: 0 | DN169: 0 | DO169: 0 | DP169: 0 | DQ169: 0 | DR169: 0 | DS169: 0 | DT169: 0 | DU169: 0 | DV169: 0 | DW169: 0 | DX169: 0 | DY169: 0 | DZ169: 0 | EA169: 0 | EB169: 0 | EC169: 0 | ED169: 0 | EE169: 0 | EF169: 0 | EG169: 0 | EH169: 0 | EI169: =EI161 -> 0 | EJ169: 0 | EK169: 0 | EL169: 0 | EM169: 0 | EN169: 0 | EO169: 0 | EP169: 0 | EQ169: 0 | ER169: 0 | ES169: 0 | ET169: 0 | EU169: 0 | EV169: 0 | EW169: 0 | EX169: 0 | EY169: 0 | EZ169: 0 | FA169: 0 | FB169: 0 | FC169: 0 | FD169: 0 | FE169: 0 | FF169: 0 | FG169: 0 | FH169: 0 | FI169: 0 | FJ169: 0 | FK169: 0 | FL169: 0 | FM169: 0 | FN169: 0 | FO169: 0 | FP169: 0
D170: Less: Takeout from Permanent Debt | F170: =H131 -> 5775000 | J170: =$F$174*J165 -> 0 | K170: =$F$174*K165 -> 0 | L170: 0 | M170: 0 | N170: 0 | O170: 0 | P170: 0 | Q170: 0 | R170: 0 | S170: 0 | T170: 0 | U170: 0 | V170: 0 | W170: 0 | X170: 0 | Y170: 0 | Z170: 0 | AA170: 0 | AB170: 0 | AC170: 0 | AD170: 0 | AE170: 0 | AF170: 0 | AG170: 0 | AH170: 0 | AI170: 0 | AJ170: 0 | AK170: 0 | AL170: 0 | AM170: 0 | AN170: 0 | AO170: 0 | AP170: 0 | AQ170: 0 | AR170: 0 | AS170: 0 | AT170: 0 | AU170: 0 | AV170: 0 | AW170: 0 | AX170: 0 | AY170: 0 | AZ170: 0 | BA170: 0 | BB170: 0 | BC170: 0 | BD170: 0 | BE170: 0 | BF170: 0 | BG170: 0 | BH170: 0 | BI170: 0 | BJ170: 0 | BK170: 0 | BL170: 0 | BM170: 0 | BN170: 0 | BO170: 0 | BP170: 0 | BQ170: 0 | BR170: 0 | BS170: 0 | BT170: 0 | BU170: 0 | BV170: 0 | BW170: =$F$174*BW165 -> 0 | BX170: 0 | BY170: 0 | BZ170: 0 | CA170: 0 | CB170: 0 | CC170: 0 | CD170: 0 | CE170: 0 | CF170: 0 | CG170: 0 | CH170: 0 | CI170: 0 | CJ170: 0 | CK170: 0 | CL170: 0 | CM170: 0 | CN170: 0 | CO170: 0 | CP170: 0 | CQ170: 0 | CR170: 0 | CS170: 0 | CT170: 0 | CU170: 0 | CV170: 0 | CW170: 0 | CX170: 0 | CY170: 0 | CZ170: 0 | DA170: 0 | DB170: 0 | DC170: 0 | DD170: 0 | DE170: 0 | DF170: 0 | DG170: 0 | DH170: 0 | DI170: 0 | DJ170: 0 | DK170: 0 | DL170: 0 | DM170: 0 | DN170: 0 | DO170: 0 | DP170: 0 | DQ170: 0 | DR170: 0 | DS170: 0 | DT170: 0 | DU170: 0 | DV170: 0 | DW170: 0 | DX170: 0 | DY170: 0 | DZ170: 0 | EA170: 0 | EB170: 0 | EC170: 0 | ED170: 0 | EE170: 0 | EF170: 0 | EG170: 0 | EH170: 0 | EI170: =$F$174*EI165 -> 0 | EJ170: 0 | EK170: 0 | EL170: 0 | EM170: 0 | EN170: 0 | EO170: 0 | EP170: 0 | EQ170: 0 | ER170: 0 | ES170: 0 | ET170: 0 | EU170: 0 | EV170: 0 | EW170: 0 | EX170: 0 | EY170: 0 | EZ170: 0 | FA170: 0 | FB170: 0 | FC170: 0 | FD170: 0 | FE170: 0 | FF170: 0 | FG170: 0 | FH170: 0 | FI170: 0 | FJ170: 0 | FK170: 0 | FL170: 0 | FM170: 0 | FN170: 0 | FO170: 0 | FP170: 0
D171: Less: Takeout from Tax Equity | F171: =H133 -> 3139500 | J171: =$F$175*J165 -> 0 | K171: =$F$175*K165 -> 0 | L171: 0 | M171: 0 | N171: 0 | O171: 0 | P171: 0 | Q171: 0 | R171: 0 | S171: 0 | T171: 0 | U171: 0 | V171: 0 | W171: 0 | X171: 0 | Y171: 0 | Z171: 0 | AA171: 0 | AB171: 0 | AC171: 0 | AD171: 0 | AE171: 0 | AF171: 0 | AG171: 0 | AH171: 0 | AI171: 0 | AJ171: 0 | AK171: 0 | AL171: 0 | AM171: 0 | AN171: 0 | AO171: 0 | AP171: 0 | AQ171: 0 | AR171: 0 | AS171: 0 | AT171: 0 | AU171: 0 | AV171: 0 | AW171: 0 | AX171: 0 | AY171: 0 | AZ171: 0 | BA171: 0 | BB171: 0 | BC171: 0 | BD171: 0 | BE171: 0 | BF171: 0 | BG171: 0 | BH171: 0 | BI171: 0 | BJ171: 0 | BK171: 0 | BL171: 0 | BM171: 0 | BN171: 0 | BO171: 0 | BP171: 0 | BQ171: 0 | BR171: 0 | BS171: 0 | BT171: 0 | BU171: 0 | BV171: 0 | BW171: =$F$175*BW165 -> 0 | BX171: 0 | BY171: 0 | BZ171: 0 | CA171: 0 | CB171: 0 | CC171: 0 | CD171: 0 | CE171: 0 | CF171: 0 | CG171: 0 | CH171: 0 | CI171: 0 | CJ171: 0 | CK171: 0 | CL171: 0 | CM171: 0 | CN171: 0 | CO171: 0 | CP171: 0 | CQ171: 0 | CR171: 0 | CS171: 0 | CT171: 0 | CU171: 0 | CV171: 0 | CW171: 0 | CX171: 0 | CY171: 0 | CZ171: 0 | DA171: 0 | DB171: 0 | DC171: 0 | DD171: 0 | DE171: 0 | DF171: 0 | DG171: 0 | DH171: 0 | DI171: 0 | DJ171: 0 | DK171: 0 | DL171: 0 | DM171: 0 | DN171: 0 | DO171: 0 | DP171: 0 | DQ171: 0 | DR171: 0 | DS171: 0 | DT171: 0 | DU171: 0 | DV171: 0 | DW171: 0 | DX171: 0 | DY171: 0 | DZ171: 0 | EA171: 0 | EB171: 0 | EC171: 0 | ED171: 0 | EE171: 0 | EF171: 0 | EG171: 0 | EH171: 0 | EI171: =$F$175*EI165 -> 0 | EJ171: 0 | EK171: 0 | EL171: 0 | EM171: 0 | EN171: 0 | EO171: 0 | EP171: 0 | EQ171: 0 | ER171: 0 | ES171: 0 | ET171: 0 | EU171: 0 | EV171: 0 | EW171: 0 | EX171: 0 | EY171: 0 | EZ171: 0 | FA171: 0 | FB171: 0 | FC171: 0 | FD171: 0 | FE171: 0 | FF171: 0 | FG171: 0 | FH171: 0 | FI171: 0 | FJ171: 0 | FK171: 0 | FL171: 0 | FM171: 0 | FN171: 0 | FO171: 0 | FP171: 0
D172: Closing Balance | J172: =J167+J168+J169-J170-J171 -> 5366947.622 | K172: =K167+K168+K169-K170-K171 -> 10733895.24 | L172: 16100842.87 | M172: 21467790.49 | N172: 26834738.11 | O172: 32201685.73 | P172: 37568633.35 | Q172: 42935580.98 | R172: 48302528.6 | S172: 53669476.22 | T172: 59036423.84 | U172: 59036423.84 | V172: 59036423.84 | W172: 59036423.84 | X172: 59036423.84 | Y172: 59036423.84 | Z172: 59036423.84 | AA172: 59036423.84 | AB172: 59036423.84 | AC172: 59036423.84 | AD172: 59036423.84 | AE172: 59036423.84 | AF172: 59036423.84 | AG172: 59036423.84 | AH172: 59036423.84 | AI172: 59036423.84 | AJ172: 59036423.84 | AK172: 59036423.84 | AL172: 59036423.84 | AM172: 59036423.84 | AN172: 59036423.84 | AO172: 59036423.84 | AP172: 59036423.84 | AQ172: 59036423.84 | AR172: 59036423.84 | AS172: 59036423.84 | AT172: 59036423.84 | AU172: 59036423.84 | AV172: 59036423.84 | AW172: 59036423.84 | AX172: 59036423.84 | AY172: 59036423.84 | AZ172: 59036423.84 | BA172: 59036423.84 | BB172: 59036423.84 | BC172: 59036423.84 | BD172: 59036423.84 | BE172: 59036423.84 | BF172: 59036423.84 | BG172: 59036423.84 | BH172: 59036423.84 | BI172: 59036423.84 | BJ172: 59036423.84 | BK172: 59036423.84 | BL172: 59036423.84 | BM172: 59036423.84 | BN172: 59036423.84 | BO172: 59036423.84 | BP172: 59036423.84 | BQ172: 59036423.84 | BR172: 59036423.84 | BS172: 59036423.84 | BT172: 59036423.84 | BU172: 59036423.84 | BV172: 59036423.84 | BW172: =BW167+BW168+BW169-BW170-BW171 -> 59036423.84 | BX172: 59036423.84 | BY172: 59036423.84 | BZ172: 59036423.84 | CA172: 59036423.84 | CB172: 59036423.84 | CC172: 59036423.84 | CD172: 59036423.84 | CE172: 59036423.84 | CF172: 59036423.84 | CG172: 59036423.84 | CH172: 59036423.84 | CI172: 59036423.84 | CJ172: 59036423.84 | CK172: 59036423.84 | CL172: 59036423.84 | CM172: 59036423.84 | CN172: 59036423.84 | CO172: 59036423.84 | CP172: 59036423.84 | CQ172: 59036423.84 | CR172: 59036423.84 | CS172: 59036423.84 | CT172: 59036423.84 | CU172: 59036423.84 | CV172: 59036423.84 | CW172: 59036423.84 | CX172: 59036423.84 | CY172: 59036423.84 | CZ172: 59036423.84 | DA172: 59036423.84 | DB172: 59036423.84 | DC172: 59036423.84 | DD172: 59036423.84 | DE172: 59036423.84 | DF172: 59036423.84 | DG172: 59036423.84 | DH172: 59036423.84 | DI172: 59036423.84 | DJ172: 59036423.84 | DK172: 59036423.84 | DL172: 59036423.84 | DM172: 59036423.84 | DN172: 59036423.84 | DO172: 59036423.84 | DP172: 59036423.84 | DQ172: 59036423.84 | DR172: 59036423.84 | DS172: 59036423.84 | DT172: 59036423.84 | DU172: 59036423.84 | DV172: 59036423.84 | DW172: 59036423.84 | DX172: 59036423.84 | DY172: 59036423.84 | DZ172: 59036423.84 | EA172: 59036423.84 | EB172: 59036423.84 | EC172: 59036423.84 | ED172: 59036423.84 | EE172: 59036423.84 | EF172: 59036423.84 | EG172: 59036423.84 | EH172: 59036423.84 | EI172: =EI167+EI168+EI169-EI170-EI171 -> 59036423.84 | EJ172: 59036423.84 | EK172: 59036423.84 | EL172: 59036423.84 | EM172: 59036423.84 | EN172: 59036423.84 | EO172: 59036423.84 | EP172: 59036423.84 | EQ172: 59036423.84 | ER172: 59036423.84 | ES172: 59036423.84 | ET172: 59036423.84 | EU172: 59036423.84 | EV172: 59036423.84 | EW172: 59036423.84 | EX172: 59036423.84 | EY172: 59036423.84 | EZ172: 59036423.84 | FA172: 59036423.84 | FB172: 59036423.84 | FC172: 59036423.84 | FD172: 59036423.84 | FE172: 59036423.84 | FF172: 59036423.84 | FG172: 59036423.84 | FH172: 59036423.84 | FI172: 59036423.84 | FJ172: 59036423.84 | FK172: 59036423.84 | FL172: 59036423.84 | FM172: 59036423.84 | FN172: 59036423.84 | FO172: 59036423.84 | FP172: 59036423.84
